Workbook

Sheet graphs
B2: title | C2: Customer Predator-Prey Interaction | M2: title | N2: Synthesized MooseCo Data
B3: x-axis | C3: Months | M3: x-axis | N3: Months
B4: y-axis | C4: Customers | M4: y-axis | N4: Customers
B5: y2-axis | C5: Potenital Market
B19: title | C19: Customer Predator-Prey Interaction | O19: lambda_mu | P19: lambda_sigma
B20: x-axis | C20: Wolfco Customers | N20: =inputs!B2 -> aCustomersInitial | O20: 150 | P20: 50
B21: y-axis | C21: MooseCo Customers | N21: lambda_sampled | O21: =inputs!D2 -> 167.4284866
N22: aCustomerInitial_sampled | O22: =aCustomersInitial -> 174
N24: run | O24: 15 | P24: /100
M28: title
M29: x-axis
M30: y-axis

Sheet Sheet6

Sheet vensim

Sheet inputs
A1: index | B1: auxiliary | C1: value | D1: lambda | E1: mu_lambda | F1: sd_lambda
A2: 1 | B2: =model!D3 -> aCustomersInitial | C2: =[1]!POISSON_INV(RAND(), D2) -> 174 | D2: =_xlfn.NORM.INV( RAND(), E2, F2) -> 167.4284866 | E2: =graphs!O20 -> 150 | F2: =graphs!P20 -> 50
A3: =A2+1 -> 2 | B3: =OFFSET( model!D$3:E$3, 4, ) -> aMooseAcquisitionRate | C3: 0.75 | D3: 0.5
A4: =A3+1 -> 3 | B4: =model!D23:E23 -> aMooseInitial | C4: 30 | D4: 30
A5: 4 | B5: =OFFSET( model!$D23:$E23, ROW(model!D27)-ROW(model!D23), ) -> aMooseSwitchingRate | C5: 0.05 | D5: 0.05
A6: 5 | B6: =model!D31:E31 -> aWolfAcquisitionRate | C6: 0.5 | D6: 0.5
A7: 6 | B7: =model!D43:E43 -> aWolfInitial | C7: 4 | D7: 4
A8: =A7+1 -> 7 | B8: =model!D47:E47 -> aWolfSwitchingRate | C8: 0.5 | D8: 0.5
B10: t0 | C10: 0
B11: step | C11: 0.002
B12: T | C12: 24

Sheet model
B3: (01) aCustomersInitial= | D3: =LEFT(RIGHT(B3, LEN(B3)-8),LEN(RIGHT(B3, LEN(B3)-8))-1) -> aCustomersInitial | E3: =B4 -> 150
B4: 150
B5: Units: **undefined** [35,200]
B7: (02) aMooseAcquisitionRate= | D7: =LEFT(RIGHT(B7, LEN(B7)-8),LEN(RIGHT(B7, LEN(B7)-8))-1) -> aMooseAcquisitionRate | E7: =B8 -> 0.75
B8: 0.75
B9: Units: **undefined**
B11: (03) aMooseAllocationFraction= | D11: =LEFT(RIGHT(B11, LEN(B11)-8),LEN(RIGHT(B11, LEN(B11)-8))-1) -> aMooseAllocationFraction | E11: =B12 -> sMoose/(sMoose+sWolf)
B12: sMoose/(sMoose+sWolf)
B13: Units: **undefined**
B15: (04) aMooseAvailability= | D15: =LEFT(RIGHT(B15, LEN(B15)-8),LEN(RIGHT(B15, LEN(B15)-8))-1) -> aMooseAvailability | E15: =B16 -> 1-sMoose/aMooseCapacity
B16: 1-sMoose/aMooseCapacity
B17: Units: **undefined**
B19: (05) aMooseCapacity= | D19: =LEFT(RIGHT(B19, LEN(B19)-8),LEN(RIGHT(B19, LEN(B19)-8))-1) -> aMooseCapacity | E19: =B20 -> aMooseAllocationFraction * sCustomers
B20: aMooseAllocationFraction * sCustomers
B21: Units: **undefined**
B23: (06) aMooseInitial= | D23: =LEFT(RIGHT(B23, LEN(B23)-8),LEN(RIGHT(B23, LEN(B23)-8))-1) -> aMooseInitial | E23: =B24 -> 30 | H23: =ROW(E23) -> 23
B24: 30 | H24: =H23+4 -> 27
B25: Units: **undefined**
B27: (07) aMooseSwitchingRate= | D27: =LEFT(RIGHT(B27, LEN(B27)-8),LEN(RIGHT(B27, LEN(B27)-8))-1) -> aMooseSwitchingRate | E27: =B28 -> 0.05
B28: 0.05
B29: Units: **undefined** [0,0.1]
B31: (08) aWolfAcquisitionRate= | D31: =LEFT(RIGHT(B31, LEN(B31)-8),LEN(RIGHT(B31, LEN(B31)-8))-1) -> aWolfAcquisitionRate | E31: =B32 -> 0.5
B32: 0.5
B33: Units: **undefined**
B35: (09) aWolfAvailability= | D35: =LEFT(RIGHT(B35, LEN(B35)-8),LEN(RIGHT(B35, LEN(B35)-8))-1) -> aWolfAvailability | E35: =B36 -> 1-sWolf/aWolfCapacity
B36: 1-sWolf/aWolfCapacity
B37: Units: **undefined**
B39: (10) aWolfCapacity= | D39: =LEFT(RIGHT(B39, LEN(B39)-8),LEN(RIGHT(B39, LEN(B39)-8))-1) -> aWolfCapacity | E39: =B40 -> (1-aMooseAllocationFraction)*sCustomers
B40: (1-aMooseAllocationFraction)*sCustomers
B41: Units: **undefined**
B43: (11) aWolfInitial= | D43: =LEFT(RIGHT(B43, LEN(B43)-8),LEN(RIGHT(B43, LEN(B43)-8))-1) -> aWolfInitial | E43: =B44 -> 4
B44: 4
B45: Units: **undefined**
B47: (12) aWolfSwitchingRate= | D47: =LEFT(RIGHT(B47, LEN(B47)-8),LEN(RIGHT(B47, LEN(B47)-8))-1) -> aWolfSwitchingRate | E47: =B48 -> 0.5
B48: 0.5
B49: Units: **undefined** [0,0.75]
B51: (13) fCustomer= | D51: =LEFT(RIGHT(B51, LEN(B51)-8),LEN(RIGHT(B51, LEN(B51)-8))-1) -> fCustomer | E51: =B52 -> fMooseAcquisition + fWolfAcquisition
B52: fMooseAcquisition + fWolfAcquisition
B53: Units: **undefined**
B55: (14) FINAL TIME = 24 | D55: =LEFT(RIGHT(B55, LEN(B55)-8),LEN(RIGHT(B55, LEN(B55)-8))-1) -> FINAL TIME = 2 | E55: =B56 -> Units: Month
B56: Units: Month
B57: The final time for the simulation.
B59: (15) fMooseAcquisition= | D59: =LEFT(RIGHT(B59, LEN(B59)-8),LEN(RIGHT(B59, LEN(B59)-8))-1) -> fMooseAcquisition | E59: =B60 -> aMooseAcquisitionRate * aMooseAvailability * sMoose
B60: aMooseAcquisitionRate * aMooseAvailability * sMoose
B61: Units: **undefined**
B63: (16) fMooseSwitching= | D63: =LEFT(RIGHT(B63, LEN(B63)-8),LEN(RIGHT(B63, LEN(B63)-8))-1) -> fMooseSwitching | E63: =B64 -> aMooseSwitchingRate * sMoose * sWolf
B64: aMooseSwitchingRate * sMoose * sWolf
B65: Units: **undefined**
B67: (17) fWolfAcquisition= | D67: =LEFT(RIGHT(B67, LEN(B67)-8),LEN(RIGHT(B67, LEN(B67)-8))-1) -> fWolfAcquisition | E67: =B68 -> aMooseSwitchingRate * aWolfAcquisitionRate * aWolfAvailability * sMoose *
B68: aMooseSwitchingRate * aWolfAcquisitionRate * aWolfAvailability * sMoose *
B69: sWolf
B70: Units: **undefined**
B72: (18) fWolfSwitching= | D72: =LEFT(RIGHT(B72, LEN(B72)-8),LEN(RIGHT(B72, LEN(B72)-8))-1) -> fWolfSwitching | E72: =B73 -> aWolfSwitchingRate * sWolf
B73: aWolfSwitchingRate * sWolf
B74: Units: **undefined**
B76: (19) INITIAL TIME = 0 | D76: =LEFT(RIGHT(B76, LEN(B76)-8),LEN(RIGHT(B76, LEN(B76)-8))-1) -> INITIAL TIME = | E76: =B77 -> Units: Month
B77: Units: Month
B78: The initial time for the simulation.
B80: (20) SAVEPER = | D80: =LEFT(RIGHT(B80, LEN(B80)-8),LEN(RIGHT(B80, LEN(B80)-8))-1) -> SAVEPER = | E80: =B81 -> TIME STEP
B81: TIME STEP
B82: Units: Month [0,?]
B83: The frequency with which output is stored.
B85: (21) sCustomers= INTEG ( | D85: =LEFT(RIGHT(B85, LEN(B85)-8),LEN(RIGHT(B85, LEN(B85)-8))-1) -> sCustomers= INTEG | E85: =B86 -> -fCustomer,
B86: -fCustomer,
B87: aCustomersInitial)
B88: Units: **undefined**
B90: (22) sMoose= INTEG ( | D90: =LEFT(RIGHT(B90, LEN(B90)-8),LEN(RIGHT(B90, LEN(B90)-8))-1) -> sMoose= INTEG | E90: =B91 -> fMooseAcquisition-fMooseSwitching,
B91: fMooseAcquisition-fMooseSwitching,
B92: aMooseInitial)
B93: Units: **undefined**
B95: (23) sWolf= INTEG ( | D95: =LEFT(RIGHT(B95, LEN(B95)-8),LEN(RIGHT(B95, LEN(B95)-8))-1) -> sWolf= INTEG | E95: =B96 -> fWolfAcquisition-fWolfSwitching,
B96: fWolfAcquisition-fWolfSwitching,
B97: aWolfInitial)
B98: Units: **undefined**
B100: (24) TIME STEP = 0.0333333 | D100: =LEFT(RIGHT(B100, LEN(B100)-8),LEN(RIGHT(B100, LEN(B100)-8))-1) -> TIME STEP = 0.033333 | E100: =B101 -> Units: Month [0,?]
B101: Units: Month [0,?]
B102: The time step for the simulation.

Sheet simulation
A1: time | B1: =model!D59 -> fMooseAcquisition | C1: =model!D63 -> fMooseSwitching | D1: =model!D67 -> fWolfAcquisition | E1: =model!D72 -> fWolfSwitching | F1: sMoose | G1: sWolf | I1: =model!D51 -> fCustomer | J1: sCustomers | M1: =model!D11 -> aMooseAllocationFraction | N1: =model!D19 -> aMooseCapacity | O1: =model!D15 -> aMooseAvailability | P1: =model!D39 -> aWolfCapacity | Q1: =model!D35 -> aWolfAvailability
A2: =t0 -> 0 | B2: 0 | C2: 0 | D2: 0 | E2: 0 | F2: =INT(aMooseInitial) -> 30 | G2: =aWolfInitial -> 4 | I2: =B2+D2 -> 0 | J2: =aCustomersInitial -> 174 | M2: =F2 / (F2 + G2) -> 0.8823529412 | N2: =M2 *J2 -> 153.5294118 | O2: =1 - F2/N2 -> 0.8045977011 | P2: =(1 - M2) * J2 -> 20.47058824 | Q2: =1 - G2/P2 -> 0.8045977011
A3: =IF(A2 + step > T, "", A2 + step) -> 0.002 | B3: =aMooseAcquisitionRate * O2 * F2 *step -> 0.03620689655 | C3: =aMooseSwitchingRate * F2 * G2 *step -> 0.012 | D3: =aWolfAcquisitionRate * O3 * G2 * aMooseSwitchingRate * F2 * step -> 0.004827586207 | E3: =aWolfSwitchingRate * simulation!G2 * step -> 0.004 | F3: =INT( F2 +B3 - C3 ) -> 30 | G3: =G2 + D3 - E3 -> 4.000827586 | I3: =B3+D3 -> 0.04103448276 | J3: =J2 - I3 -> 173.9589655 | M3: =F2 / (F2 + G2) -> 0.8823529412 | N3: =M2 *J2 -> 153.5294118 | O3: =1 - F3/N3 -> 0.8045977011 | P3: =(1 - M3) * J3 -> 20.46576065 | Q3: =1 - G3/P3 -> 0.8045111709
A4: 0.004 | B4: 0.03620689655 | C4: 0.01200248276 | D4: =aWolfAcquisitionRate * G3 * aMooseSwitchingRate * F3 * step -> 0.006001241379 | E4: =aWolfSwitchingRate * simulation!G3 * step -> 0.004000827586 | F4: =F3 +B4 - C4 -> 30.02420441 | G4: =G3 + D4 - E4 -> 4.002828 | I4: 0.04220813793 | J4: =J3 - I4 -> 173.9167574 | M4: =F3 / (F3 + G3) -> 0.8823314645 | N4: =M3 *J3 -> 153.4932049 | O4: 0.804393918 | P4: 20.46453013 | Q4: 0.804401666
A5: 0.006 | B5: 0.03622693114 | C5: 0.01201817261 | D5: 0.006009086305 | E5: =aWolfSwitchingRate * simulation!G4 * step -> 0.004002828 | F5: 30.04841317 | G5: 4.004834258 | I5: 0.04223601744 | J5: 173.8745214 | M5: 0.8823632942 | N5: 153.4522272 | O5: 0.8041839228 | P5: 20.45402591 | Q5: 0.8042031297
A6: 0.008 | B6: 0.03624667617 | C6: 0.01203389145 | D6: 0.006016945724 | E6: =aWolfSwitchingRate * simulation!G5 * step -> 0.004004834258 | F6: 30.07262596 | G6: 4.00684637 | I6: 0.04226362189 | J6: 173.8322577 | M6: 0.8823949385 | N6: 153.4204955 | O6: 0.8039856027 | P6: 20.44355336 | Q6: 0.8040044067
A7: 0.01 | B7: 0.03626693746 | C7: 0.01204963921 | D7: 0.006024819607 | E7: =aWolfSwitchingRate * simulation!G6 * step -> 0.00400684637 | F7: 30.09684326 | G7: 4.008864343 | I7: 0.04229175706 | J7: 173.789966 | M7: 0.8824263964 | N7: 153.3887044 | O7: 0.8037870952 | P7: 20.43311257 | Q7: 0.8038054981
A8: 0.012 | B8: 0.03628718132 | C8: 0.01206541618 | D8: 0.006032708088 | E8: =aWolfSwitchingRate * simulation!G7 * step -> 0.004008864343 | F8: 30.12106502 | G8: 4.010888187 | I8: 0.04231988941 | J8: 173.7476461 | M8: 0.8824576698 | N8: 153.3568534 | O8: 0.8035883995 | P8: 20.42270318 | Q8: 0.8036064006
A9: 0.014 | B9: 0.03630740765 | C9: 0.01208122239 | D9: 0.006040611193 | E9: =aWolfSwitchingRate * simulation!G8 * step -> 0.004010888187 | F9: 30.14529121 | G9: 4.01291791 | I9: 0.04234801884 | J9: 173.7052981 | M9: 0.8824887588 | N9: 153.3249429 | O9: 0.8033895162 | P9: 20.41232518 | Q9: 0.8034071144
A10: 0.016 | B10: 0.03632761638 | C10: 0.0120970579 | D10: 0.006048528949 | E10: =aWolfSwitchingRate * simulation!G9 * step -> 0.00401291791 | F10: 30.16952176 | G10: 4.014953521 | I10: 0.04237614532 | J10: 173.6629219 | M10: 0.8825196632 | N10: 153.2929729 | O10: 0.8031904451 | P10: 20.40197855 | Q10: 0.8032076393
A11: 0.018 | B11: 0.03634780742 | C11: 0.01211292276 | D11: 0.006056461381 | E11: =aWolfSwitchingRate * simulation!G10 * step -> 0.004014953521 | F11: 30.19375665 | G11: 4.016995029 | I11: 0.0424042688 | J11: 173.6205177 | M11: 0.8825503833 | N11: 153.2609434 | O11: 0.8029911863 | P11: 20.39166326 | Q11: 0.8030079755
A12: 0.02 | B12: 0.0363679807 | C12: 0.01212881704 | D12: 0.006064408518 | E12: =aWolfSwitchingRate * simulation!G11 * step -> 0.004016995029 | F12: 30.21799581 | G12: 4.019042442 | I12: 0.04243238922 | J12: 173.5780853 | M12: 0.8825809188 | N12: 153.2288544 | O12: 0.8027917396 | P12: 20.38137929 | Q12: 0.8028081228
A13: 0.022 | B13: 0.03638813614 | C13: 0.01214474077 | D13: 0.006072370384 | E13: =aWolfSwitchingRate * simulation!G12 * step -> 0.004019042442 | F13: 30.24223921 | G13: 4.02109577 | I13: 0.04246050652 | J13: 173.5356248 | M13: 0.8826112699 | N13: 153.196706 | O13: 0.8025921053 | P13: 20.37112661 | Q13: 0.8026080812
A14: 0.024 | B14: 0.03640827365 | C14: 0.01216069402 | D14: 0.006080347008 | E14: =aWolfSwitchingRate * simulation!G13 * step -> 0.00402109577 | F14: 30.26648679 | G14: 4.023155021 | I14: 0.04248862066 | J14: 173.4931361 | M14: 0.8826414366 | N14: 153.1644982 | O14: 0.8023922831 | P14: 20.36090522 | Q14: 0.8024078508
A15: 0.026 | B15: 0.03642839315 | C15: 0.01217667683 | D15: 0.006088338415 | E15: =aWolfSwitchingRate * simulation!G14 * step -> 0.004023155021 | F15: 30.2907385 | G15: 4.025220205 | I15: 0.04251673157 | J15: 173.4506194 | M15: 0.8826714189 | N15: 153.1322309 | O15: 0.8021922732 | P15: 20.35071507 | Q15: 0.8022074315
A16: 0.028 | B16: 0.03644849456 | C16: 0.01219268926 | D16: 0.006096344632 | E16: =aWolfSwitchingRate * simulation!G15 * step -> 0.004025220205 | F16: 30.31499431 | G16: 4.027291329 | I16: 0.0425448392 | J16: 173.4080746 | M16: 0.8827012167 | N16: 153.0999043 | O16: 0.8019920754 | P16: 20.34055616 | Q16: 0.8020068234
A17: 0.03 | B17: 0.0364685778 | C17: 0.01220873137 | D17: 0.006104365686 | E17: =aWolfSwitchingRate * simulation!G16 * step -> 0.004027291329 | F17: 30.33925416 | G17: 4.029368404 | I17: 0.04257294349 | J17: 173.3655016 | M17: 0.8827308301 | N17: 153.0675184 | O17: 0.8017916899 | P17: 20.33042846 | Q17: 0.8018060263
A18: 0.032 | B18: 0.03648864279 | C18: 0.01222480321 | D18: 0.006112401604 | E18: =aWolfSwitchingRate * simulation!G17 * step -> 0.004029368404 | F18: 30.363518 | G18: 4.031451437 | I18: 0.04260104439 | J18: 173.3229006 | M18: 0.8827602591 | N18: 153.0350732 | O18: 0.8015911166 | P18: 20.32033195 | Q18: 0.8016050404
A19: 0.034 | B19: 0.03650868944 | C19: 0.01224090482 | D19: 0.006120452412 | E19: =aWolfSwitchingRate * simulation!G18 * step -> 0.004031451437 | F19: 30.38778578 | G19: 4.033540438 | I19: 0.04262914185 | J19: 173.2802714 | M19: 0.8827895037 | N19: 153.0025686 | O19: 0.8013903554 | P19: 20.31026661 | Q19: 0.8014038656
A20: 0.036 | B20: 0.03652871767 | C20: 0.01225703628 | D20: 0.006128518138 | E20: =aWolfSwitchingRate * simulation!G19 * step -> 0.004033540438 | F20: 30.41205746 | G20: 4.035635415 | I20: 0.04265723581 | J20: 173.2376142 | M20: 0.8828185639 | N20: 152.9700048 | O20: 0.8011894064 | P20: 20.30023241 | Q20: 0.8012025019
A21: 0.038 | B21: 0.0365487274 | C21: 0.01227319761 | D21: 0.006136598807 | E21: =aWolfSwitchingRate * simulation!G20 * step -> 0.004035635415 | F21: 30.43633299 | G21: 4.037736379 | I21: 0.04268532621 | J21: 173.1949289 | M21: 0.8828474397 | N21: 152.9373818 | O21: 0.8009882696 | P21: 20.29022934 | Q21: 0.8010009492
A22: 0.04 | B22: 0.03656871854 | C22: 0.0122893889 | D22: 0.006144694448 | E22: =aWolfSwitchingRate * simulation!G21 * step -> 0.004037736379 | F22: 30.46061232 | G22: 4.039843337 | I22: 0.04271341299 | J22: 173.1522155 | M22: 0.8828761312 | N22: 152.9046995 | O22: 0.800786945 | P22: 20.28025737 | Q22: 0.8007992077
A23: 0.042 | B23: 0.03658869102 | C23: 0.01230561017 | D23: 0.006152805086 | E23: =aWolfSwitchingRate * simulation!G22 * step -> 0.004039843337 | F23: 30.4848954 | G23: 4.041956299 | I23: 0.04274149611 | J23: 173.109474 | M23: 0.8829046382 | N23: 152.8719581 | O23: 0.8005854325 | P23: 20.27031648 | Q23: 0.8005972772
A24: 0.044 | B24: 0.03660864476 | C24: 0.0123218615 | D24: 0.006160930749 | E24: =aWolfSwitchingRate * simulation!G23 * step -> 0.004041956299 | F24: 30.50918218 | G24: 4.044075273 | I24: 0.04276957551 | J24: 173.0667044 | M24: 0.8829329609 | N24: 152.8391575 | O24: 0.8003837322 | P24: 20.26040665 | Q24: 0.8003951578
A25: 0.046 | B25: 0.03662857966 | C25: 0.01233814293 | D25: 0.006169071464 | E25: =aWolfSwitchingRate * simulation!G24 * step -> 0.004044075273 | F25: 30.53347262 | G25: 4.046200269 | I25: 0.04279765112 | J25: 173.0239067 | M25: 0.8829610992 | N25: 152.8062977 | O25: 0.8001818441 | P25: 20.25052786 | Q25: 0.8001928495
A26: 0.048 | B26: 0.03664849564 | C26: 0.01235445451 | D26: 0.006177227257 | E26: =aWolfSwitchingRate * simulation!G25 * step -> 0.004046200269 | F26: 30.55776666 | G26: 4.048331296 | I26: 0.0428257229 | J26: 172.981081 | M26: 0.8829890531 | N26: 152.7733789 | O26: 0.7999797682 | P26: 20.24068009 | Q26: 0.7999903522
A27: 0.05 | B27: 0.03666839264 | C27: 0.01237079631 | D27: 0.006185398156 | E27: =aWolfSwitchingRate * simulation!G26 * step -> 0.004048331296 | F27: 30.58206426 | G27: 4.050468363 | I27: 0.04285379079 | J27: 172.9382272 | M27: 0.8830168226 | N27: 152.7404009 | O27: 0.7997775044 | P27: 20.23086331 | Q27: 0.799787666
A28: 0.052 | B28: 0.03668827055 | C28: 0.01238716838 | D28: 0.006193584188 | E28: =aWolfSwitchingRate * simulation!G27 * step -> 0.004050468363 | F28: 30.60636536 | G28: 4.052611479 | I28: 0.04288185473 | J28: 172.8953454 | M28: 0.8830444078 | N28: 152.7073639 | O28: 0.7995750527 | P28: 20.22107751 | Q28: 0.7995847908
A29: 0.054 | B29: 0.0367081293 | C29: 0.01240357076 | D29: 0.006201785379 | E29: =aWolfSwitchingRate * simulation!G28 * step -> 0.004052611479 | F29: 30.63066992 | G29: 4.054760653 | I29: 0.04290991468 | J29: 172.8524355 | M29: 0.8830718086 | N29: 152.6742679 | O29: 0.7993724133 | P29: 20.21132266 | Q29: 0.7993817268
A30: 0.056 | B30: 0.0367279688 | C30: 0.01242000352 | D30: 0.006210001758 | E30: =aWolfSwitchingRate * simulation!G29 * step -> 0.004054760653 | F30: 30.65497788 | G30: 4.056915894 | I30: 0.04293797056 | J30: 172.8094975 | M30: 0.883099025 | N30: 152.6411128 | O30: 0.7991695859 | P30: 20.20159875 | Q30: 0.7991784737
A31: 0.058 | B31: 0.03674778898 | C31: 0.0124364667 | D31: 0.00621823335 | E31: =aWolfSwitchingRate * simulation!G30 * step -> 0.004056915894 | F31: 30.67928921 | G31: 4.059077211 | I31: 0.04296602233 | J31: 172.7665315 | M31: 0.883126057 | N31: 152.6078987 | O31: 0.7989665708 | P31: 20.19190575 | Q31: 0.7989750318
A32: 0.06 | B32: 0.03676758974 | C32: 0.01245296037 | D32: 0.006226480184 | E32: =aWolfSwitchingRate * simulation!G31 * step -> 0.004059077211 | F32: 30.70360384 | G32: 4.061244614 | I32: 0.04299406992 | J32: 172.7235374 | M32: 0.8831529047 | N32: 152.5746257 | O32: 0.7987633678 | P32: 20.18224363 | Q32: 0.7987714008
A33: 0.062 | B33: 0.03678737101 | C33: 0.01246948457 | D33: 0.006234742286 | E33: =aWolfSwitchingRate * simulation!G32 * step -> 0.004061244614 | F33: 30.72792172 | G33: 4.063418112 | I33: 0.04302211329 | J33: 172.6805153 | M33: 0.883179568 | N33: 152.5412938 | O33: 0.798559977 | P33: 20.17261239 | Q33: 0.798567581
A34: 0.064 | B34: 0.0368071327 | C34: 0.01248603937 | D34: 0.006243019684 | E34: =aWolfSwitchingRate * simulation!G33 * step -> 0.004063418112 | F34: 30.75224282 | G34: 4.065597714 | I34: 0.04305015238 | J34: 172.6374651 | M34: 0.8832060469 | N34: 152.5079029 | O34: 0.7983563984 | P34: 20.163012 | Q34: 0.7983635722
A35: 0.066 | B35: 0.03682687472 | C35: 0.01250262481 | D35: 0.006251312404 | E35: =aWolfSwitchingRate * simulation!G34 * step -> 0.004065597714 | F35: 30.77656707 | G35: 4.067783428 | I35: 0.04307818713 | J35: 172.5943869 | M35: 0.8832323415 | N35: 152.4744531 | O35: 0.7981526319 | P35: 20.15344244 | Q35: 0.7981593745
A36: 0.068 | B36: 0.03684659701 | C36: 0.01251924095 | D36: 0.006259620475 | E36: =aWolfSwitchingRate * simulation!G35 * step -> 0.004067783428 | F36: 30.80089442 | G36: 4.069975265 | I36: 0.04310621748 | J36: 172.5512807 | M36: 0.8832584516 | N36: 152.4409445 | O36: 0.7979486776 | P36: 20.14390368 | Q36: 0.7979549878
A37: 0.07 | B37: 0.03686629946 | C37: 0.01253588784 | D37: 0.006267943922 | E37: =aWolfSwitchingRate * simulation!G36 * step -> 0.004069975265 | F37: 30.82522483 | G37: 4.072173234 | I37: 0.04313424338 | J37: 172.5081465 | M37: 0.8832843774 | N37: 152.407377 | O37: 0.7977445355 | P37: 20.13439572 | Q37: 0.7977504122
A38: 0.072 | B38: 0.036885982 | C38: 0.01255256555 | D38: 0.006276282775 | E38: =aWolfSwitchingRate * simulation!G37 * step -> 0.004072173234 | F38: 30.84955825 | G38: 4.074377344 | I38: 0.04316226478 | J38: 172.4649842 | M38: 0.8833101188 | N38: 152.3737508 | O38: 0.7975402056 | P38: 20.12491852 | Q38: 0.7975456477
A39: 0.074 | B39: 0.03690564455 | C39: 0.01256927412 | D39: 0.00628463706 | E39: =aWolfSwitchingRate * simulation!G38 * step -> 0.004074377344 | F39: 30.87389462 | G39: 4.076587603 | I39: 0.0431902816 | J39: 172.4217939 | M39: 0.8833356758 | N39: 152.3400657 | O39: 0.7973356879 | P39: 20.11547206 | Q39: 0.7973406942
A40: 0.076 | B40: 0.03692528701 | C40: 0.01258601361 | D40: 0.006293006804 | E40: =aWolfSwitchingRate * simulation!G39 * step -> 0.004076587603 | F40: 30.89823389 | G40: 4.078804022 | I40: 0.04321829381 | J40: 172.3785756 | M40: 0.8833610484 | N40: 152.3063219 | O40: 0.7971309824 | P40: 20.10605634 | Q40: 0.7971355519
A41: 0.078 | B41: 0.03694490931 | C41: 0.01260278407 | D41: 0.006301392035 | E41: =aWolfSwitchingRate * simulation!G40 * step -> 0.004078804022 | F41: 30.92257602 | G41: 4.08102661 | I41: 0.04324630134 | J41: 172.3353293 | M41: 0.8833862366 | N41: 152.2725193 | O41: 0.7969260891 | P41: 20.09667131 | Q41: 0.7969302206
A42: 0.08 | B42: 0.03696451136 | C42: 0.01261958556 | D42: 0.00630979278 | E42: =aWolfSwitchingRate * simulation!G41 * step -> 0.00408102661 | F42: 30.94692095 | G42: 4.083255377 | I42: 0.04327430414 | J42: 172.292055 | M42: 0.8834112404 | N42: 152.238658 | O42: 0.796721008 | P42: 20.08731698 | Q42: 0.7967247004
A43: 0.082 | B43: 0.03698409308 | C43: 0.01263641813 | D43: 0.006318209067 | E43: =aWolfSwitchingRate * simulation!G42 * step -> 0.004083255377 | F43: 30.97126862 | G43: 4.08549033 | I43: 0.04330230214 | J43: 172.2487527 | M43: 0.8834360598 | N43: 152.2047381 | O43: 0.7965157392 | P43: 20.07799331 | Q43: 0.7965189913
A44: 0.084 | B44: 0.03700365438 | C44: 0.01265328185 | D44: 0.006326640923 | E44: =aWolfSwitchingRate * simulation!G43 * step -> 0.00408549033 | F44: 30.99561899 | G44: 4.087731481 | I44: 0.0433302953 | J44: 172.2054224 | M44: 0.8834606948 | N44: 152.1707594 | O44: 0.7963102826 | P44: 20.06870028 | Q44: 0.7963130933
A45: 0.086 | B45: 0.03702319518 | C45: 0.01267017675 | D45: 0.006335088376 | E45: =aWolfSwitchingRate * simulation!G44 * step -> 0.004087731481 | F45: 31.01997201 | G45: 4.089978838 | I45: 0.04335828355 | J45: 172.1620642 | M45: 0.8834851454 | N45: 152.1367222 | O45: 0.7961046382 | P45: 20.05943788 | Q45: 0.7961070065
A46: 0.088 | B46: 0.03704271539 | C46: 0.01268710291 | D46: 0.006343551454 | E46: =aWolfSwitchingRate * simulation!G45 * step -> 0.004089978838 | F46: 31.04432762 | G46: 4.09223241 | I46: 0.04338626685 | J46: 172.1186779 | M46: 0.8835094115 | N46: 152.1026263 | O46: 0.7958988061 | P46: 20.05020609 | Q46: 0.7959007307
A47: 0.09 | B47: 0.03706221494 | C47: 0.01270406037 | D47: 0.006352030183 | E47: =aWolfSwitchingRate * simulation!G46 * step -> 0.00409223241 | F47: 31.06868578 | G47: 4.094492208 | I47: 0.04341424512 | J47: 172.0752636 | M47: 0.8835334931 | N47: 152.0684718 | O47: 0.7956927862 | P47: 20.04100487 | Q47: 0.7956942661
A48: 0.092 | B48: 0.03708169373 | C48: 0.01272104918 | D48: 0.006360524592 | E48: =aWolfSwitchingRate * simulation!G47 * step -> 0.004094492208 | F48: 31.09304642 | G48: 4.096758241 | I48: 0.04344221832 | J48: 172.0318214 | M48: 0.8835573904 | N48: 152.0342588 | O48: 0.7954865787 | P48: 20.03183423 | Q48: 0.7954876127
A49: 0.094 | B49: 0.03710115168 | C49: 0.01273806942 | D49: 0.006369034708 | E49: =aWolfSwitchingRate * simulation!G48 * step -> 0.004096758241 | F49: 31.1174095 | G49: 4.099030517 | I49: 0.04347018639 | J49: 171.9883512 | M49: 0.8835811031 | N49: 151.9999872 | O49: 0.7952801834 | P49: 20.02269413 | Q49: 0.7952807704
A50: 0.096 | B50: 0.03712058871 | C50: 0.01275512112 | D50: 0.006377560559 | E50: =aWolfSwitchingRate * simulation!G49 * step -> 0.004099030517 | F50: 31.14177497 | G50: 4.101309047 | I50: 0.04349814926 | J50: 171.9448531 | M50: 0.8836046314 | N50: 151.9656571 | O50: 0.7950736004 | P50: 20.01358455 | Q50: 0.7950737392
A51: 0.098 | B51: 0.03714000473 | C51: 0.01277220434 | D51: 0.006386102172 | E51: =aWolfSwitchingRate * simulation!G50 * step -> 0.004101309047 | F51: 31.16614277 | G51: 4.10359384 | I51: 0.0435261069 | J51: 171.901327 | M51: 0.8836279752 | N51: 151.9312685 | O51: 0.7948668298 | P51: 20.00450548 | Q51: 0.7948665193
A52: 0.1 | B52: 0.03715939965 | C52: 0.01278931915 | D52: 0.006394659575 | E52: =aWolfSwitchingRate * simulation!G51 * step -> 0.00410359384 | F52: 31.19051285 | G52: 4.105884906 | I52: 0.04355405923 | J52: 171.8577729 | M52: 0.8836511345 | N52: 151.8968215 | O52: 0.7946598715 | P52: 19.9954569 | Q52: 0.7946591105
A53: 0.102 | B53: 0.0371787734 | C53: 0.01280646559 | D53: 0.006403232797 | E53: =aWolfSwitchingRate * simulation!G52 * step -> 0.004105884906 | F53: 31.21488516 | G53: 4.108182254 | I53: 0.0435820062 | J53: 171.8141909 | M53: 0.8836741094 | N53: 151.862316 | O53: 0.7944527255 | P53: 19.98643878 | Q53: 0.7944515129
A54: 0.104 | B54: 0.03719812589 | C54: 0.01282364373 | D54: 0.006411821864 | E54: =aWolfSwitchingRate * simulation!G53 * step -> 0.004108182254 | F54: 31.23925964 | G54: 4.110485893 | I54: 0.04360994775 | J54: 171.770581 | M54: 0.8836968997 | N54: 151.8277521 | O54: 0.7942453919 | P54: 19.97745111 | Q54: 0.7942437266
A55: 0.106 | B55: 0.03721745703 | C55: 0.01284085361 | D55: 0.006420426804 | E55: =aWolfSwitchingRate * simulation!G54 * step -> 0.004110485893 | F55: 31.26363625 | G55: 4.112795834 | I55: 0.04363788383 | J55: 171.7269431 | M55: 0.8837195054 | N55: 151.7931299 | O55: 0.7940378706 | P55: 19.96849387 | Q55: 0.7940357515
A56: 0.108 | B56: 0.03723676673 | C56: 0.01285809529 | D56: 0.006429047646 | E56: =aWolfSwitchingRate * simulation!G55 * step -> 0.004112795834 | F56: 31.28801492 | G56: 4.115112086 | I56: 0.04366581438 | J56: 171.6832773 | M56: 0.8837419267 | N56: 151.7584492 | O56: 0.7938301618 | P56: 19.95956704 | Q56: 0.7938275876
A57: 0.11 | B57: 0.03725605492 | C57: 0.01287536883 | D57: 0.006437684417 | E57: =aWolfSwitchingRate * simulation!G56 * step -> 0.004115112086 | F57: 31.3123956 | G57: 4.117434658 | I57: 0.04369373934 | J57: 171.6395835 | M57: 0.8837641634 | N57: 151.7237102 | O57: 0.7936222654 | P57: 19.95067059 | Q57: 0.793619235
A58: 0.112 | B58: 0.0372753215 | C58: 0.01289267429 | D58: 0.006446337145 | E58: =aWolfSwitchingRate * simulation!G57 * step -> 0.004117434658 | F58: 31.33677825 | G58: 4.119763561 | I58: 0.04372165865 | J58: 171.5958619 | M58: 0.8837862155 | N58: 151.6889129 | O58: 0.7934141814 | P58: 19.94180451 | Q58: 0.7934106937
A59: 0.114 | B59: 0.0372945664 | C59: 0.01291001172 | D59: 0.006455005858 | E59: =aWolfSwitchingRate * simulation!G58 * step -> 0.004119763561 | F59: 31.36116281 | G59: 4.122098803 | I59: 0.04374957225 | J59: 171.5521123 | M59: 0.8838080831 | N59: 151.6540574 | O59: 0.7932059099 | P59: 19.93296878 | Q59: 0.7932019636
A60: 0.116 | B60: 0.03731378952 | C60: 0.01292738117 | D60: 0.006463690584 | E60: =aWolfSwitchingRate * simulation!G59 * step -> 0.004122098803 | F60: 31.38554921 | G60: 4.124440395 | I60: 0.0437774801 | J60: 171.5083348 | M60: 0.883829766 | N60: 151.6191435 | O60: 0.7929974508 | P60: 19.92416338 | Q60: 0.7929930449
A61: 0.118 | B61: 0.03733299078 | C61: 0.0129447827 | D61: 0.00647239135 | E61: =aWolfSwitchingRate * simulation!G60 * step -> 0.004124440395 | F61: 31.40993742 | G61: 4.126788346 | I61: 0.04380538213 | J61: 171.4645294 | M61: 0.8838512644 | N61: 151.5841714 | O61: 0.7927888042 | P61: 19.9153883 | Q61: 0.7927839375
A62: 0.12 | B62: 0.0373521701 | C62: 0.01296221637 | D62: 0.006481108185 | E62: =aWolfSwitchingRate * simulation!G61 * step -> 0.004126788346 | F62: 31.43432738 | G62: 4.129142666 | I62: 0.04383327828 | J62: 171.4206962 | M62: 0.8838725781 | N62: 151.5491411 | O62: 0.7925799702 | P62: 19.9066435 | Q62: 0.7925746415
A63: 0.122 | B63: 0.03737132738 | C63: 0.01297968223 | D63: 0.006489841117 | E63: =aWolfSwitchingRate * simulation!G62 * step -> 0.004129142666 | F63: 31.45871902 | G63: 4.131503364 | I63: 0.0438611685 | J63: 171.376835 | M63: 0.8838937072 | N63: 151.5140527 | O63: 0.7923709486 | P63: 19.89792898 | Q63: 0.7923651568
A64: 0.124 | B64: 0.03739046255 | C64: 0.01299718035 | D64: 0.006498590174 | E64: =aWolfSwitchingRate * simulation!G63 * step -> 0.004131503364 | F64: 31.4831123 | G64: 4.133870451 | I64: 0.04388905272 | J64: 171.3329459 | M64: 0.8839146516 | N64: 151.478906 | O64: 0.7921617397 | P64: 19.88924472 | Q64: 0.7921554835
A65: 0.126 | B65: 0.03740957552 | C65: 0.01301471077 | D65: 0.006507355383 | E65: =aWolfSwitchingRate * simulation!G64 * step -> 0.004133870451 | F65: 31.50750717 | G65: 4.136243936 | I65: 0.0439169309 | J65: 171.289029 | M65: 0.8839354114 | N65: 151.4437012 | O65: 0.7919523433 | P65: 19.88059069 | Q65: 0.7919456217
A66: 0.128 | B66: 0.0374286662 | C66: 0.01303227355 | D66: 0.006516136773 | E66: =aWolfSwitchingRate * simulation!G65 * step -> 0.004136243936 | F66: 31.53190356 | G66: 4.138623829 | I66: 0.04394480297 | J66: 171.2450842 | M66: 0.8839559865 | N66: 151.4084383 | O66: 0.7917427595 | P66: 19.87196687 | Q66: 0.7917355712
A67: =IF(A66 + step > T, "", A66 + step) -> 0.13 | B67: =aMooseAcquisitionRate * O66 * F66 *step -> 0.0374477345 | C67: =aMooseSwitchingRate * F66 * G66 *step -> 0.01304986874 | D67: 0.006524934372 | E67: =aWolfSwitchingRate * simulation!G66 * step -> 0.004138623829 | F67: 31.55630143 | G67: 4.141010139 | I67: =B67+D67 -> 0.04397266888 | J67: 171.2011115 | M67: 0.8839763768 | N67: 151.3731173 | O67: =1 - F67/N67 -> 0.7915329883 | P67: =(1 - M67) * J67 -> 19.86337326 | Q67: =1 - G67/P67 -> 0.7915253323
A68: 0.132 | B68: 0.03746678035 | C68: 0.01306749642 | D68: =aWolfAcquisitionRate * G67 * aMooseSwitchingRate * F67 * step -> 0.006533748209 | E68: =aWolfSwitchingRate * simulation!G67 * step -> 0.004141010139 | F68: =F67 +B68 - C68 -> 31.58070071 | G68: =G67 + D68 - E68 -> 4.143402877 | I68: 0.04400052856 | J68: =J67 - I68 -> 171.157111 | M68: =F67 / (F67 + G67) -> 0.8839965824 | N68: =M67 *J67 -> 151.3377383 | O68: 0.7913230297 | P68: 19.85480982 | Q68: 0.7913149048
A69: 0.134 | B69: 0.03748580365 | C69: 0.01308515662 | D69: 0.00654257831 | E69: =aWolfSwitchingRate * simulation!G68 * step -> 0.004143402877 | F69: 31.60510136 | G69: 4.145802053 | I69: 0.04402838196 | J69: 171.1130826 | M69: 0.8840166033 | N69: 151.3023012 | O69: 0.7911128839 | P69: 19.84627654 | Q69: 0.7911042888
A70: 0.136 | B70: 0.03750480432 | C70: 0.01310284941 | D70: 0.006551424705 | E70: =aWolfSwitchingRate * simulation!G69 * step -> 0.004145802053 | F70: 31.62950331 | G70: 4.148207676 | I70: 0.04405622903 | J70: 171.0690264 | M70: 0.8840364394 | N70: 151.2668061 | O70: 0.7909025507 | P70: 19.8377734 | Q70: 0.7908934843
A71: 0.138 | B71: 0.03752378227 | C71: 0.01312057484 | D71: 0.006560287421 | E71: =aWolfSwitchingRate * simulation!G70 * step -> 0.004148207676 | F71: 31.65390652 | G71: 4.150619755 | I71: 0.04408406969 | J71: 171.0249423 | M71: 0.8840560908 | N71: 151.231253 | O71: 0.7906920303 | P71: 19.82930039 | Q71: 0.7906824914
A72: 0.14 | B72: 0.03754273742 | C72: 0.01313833297 | D72: 0.006569166487 | E72: =aWolfSwitchingRate * simulation!G71 * step -> 0.004150619755 | F72: 31.67831092 | G72: 4.153038302 | I72: 0.04411190391 | J72: 170.9808304 | M72: 0.8840755573 | N72: 151.1956419 | O72: 0.7904813226 | P72: 19.82085748 | Q72: 0.7904713101
A73: 0.142 | B73: 0.03756166968 | C73: 0.01315612386 | D73: 0.006578061931 | E73: =aWolfSwitchingRate * simulation!G72 * step -> 0.004153038302 | F73: 31.70271647 | G73: 4.155463326 | I73: 0.04413973161 | J73: 170.9366907 | M73: 0.884094839 | N73: 151.1599729 | O73: 0.7902704277 | P73: 19.81244466 | Q73: 0.7902599403
A74: 0.144 | B74: 0.03758057896 | C74: 0.01317394756 | D74: 0.006586973781 | E74: =aWolfSwitchingRate * simulation!G73 * step -> 0.004155463326 | F74: 31.7271231 | G74: 4.157894836 | I74: 0.04416755274 | J74: 170.8925231 | M74: 0.8841139358 | N74: 151.124246 | O74: 0.7900593456 | P74: 19.80406191 | Q74: 0.7900483822
A75: 0.146 | B75: 0.03759946518 | C75: 0.01319180413 | D75: 0.006595902066 | E75: =aWolfSwitchingRate * simulation!G74 * step -> 0.004157894836 | F75: 31.75153076 | G75: 4.160332843 | I75: 0.04419536724 | J75: 170.8483278 | M75: 0.8841328478 | N75: 151.0884612 | O75: 0.7898480764 | P75: 19.7957092 | Q75: 0.7898366358
A76: 0.148 | B76: 0.03761832824 | C76: 0.01320969363 | D76: 0.006604846813 | E76: =aWolfSwitchingRate * simulation!G75 * step -> 0.004160332843 | F76: 31.7759394 | G76: 4.162777357 | I76: 0.04422317506 | J76: 170.8041046 | M76: 0.8841515748 | N76: 151.0526186 | O76: 0.78963662 | P76: 19.78738653 | Q76: 0.789624701
A77: 0.15 | B77: 0.03763716808 | C77: 0.0132276161 | D77: 0.006613808052 | E77: =aWolfSwitchingRate * simulation!G76 * step -> 0.004162777357 | F77: 31.80034895 | G77: 4.165228388 | I77: 0.04425097613 | J77: 170.7598536 | M77: 0.884170117 | N77: 151.0167181 | O77: 0.7894249765 | P77: 19.77909387 | Q77: 0.789412578
A78: 0.152 | B78: 0.03765598459 | C78: 0.01324557162 | D78: 0.00662278581 | E78: =aWolfSwitchingRate * simulation!G77 * step -> 0.004165228388 | F78: 31.82475936 | G78: 4.167685945 | I78: 0.0442787704 | J78: 170.7155749 | M78: 0.8841884742 | N78: 150.9807598 | O78: 0.789213146 | P78: 19.7708312 | Q78: 0.7892002667
A79: 0.154 | B79: 0.03767477769 | C79: 0.01326356023 | D79: 0.006631780116 | E79: =aWolfSwitchingRate * simulation!G78 * step -> 0.004167685945 | F79: 31.84917058 | G79: 4.17015004 | I79: 0.0443065578 | J79: 170.6712683 | M79: 0.8842066464 | N79: 150.9447437 | O79: 0.7890011284 | P79: 19.76259851 | Q79: 0.7889877671
A80: 0.156 | B80: 0.03769354729 | C80: 0.013281582 | D80: 0.006640790998 | E80: =aWolfSwitchingRate * simulation!G79 * step -> 0.00417015004 | F80: 31.87358255 | G80: 4.172620681 | I80: 0.04433433829 | J80: 170.626934 | M80: 0.8842246337 | N80: 150.9086698 | O80: 0.7887889238 | P80: 19.75439578 | Q80: 0.7887750794
A81: 0.158 | B81: 0.03771229331 | C81: 0.01329963697 | D81: 0.006649818485 | E81: =aWolfSwitchingRate * simulation!G80 * step -> 0.004172620681 | F81: 31.8979952 | G81: 4.175097878 | I81: 0.0443621118 | J81: 170.5825718 | M81: 0.8842424359 | N81: 150.8725382 | O81: 0.7885765323 | P81: 19.746223 | Q81: 0.7885622035
A82: 0.16 | B82: 0.03773101566 | C82: 0.01331772521 | D82: 0.006658862605 | E82: =aWolfSwitchingRate * simulation!G81 * step -> 0.004175097878 | F82: 31.92240849 | G82: 4.177581643 | I82: 0.04438987827 | J82: 170.538182 | M82: 0.8842600531 | N82: 150.8363489 | O82: 0.7883639538 | P82: 19.73808013 | Q82: 0.7883491395
A83: 0.162 | B83: 0.03774971426 | C83: 0.01333584677 | D83: 0.006667923386 | E83: =aWolfSwitchingRate * simulation!G82 * step -> 0.004177581643 | F83: 31.94682236 | G83: 4.180071985 | I83: 0.04441763765 | J83: 170.4937643 | M83: 0.8842774852 | N83: 150.8001018 | O83: 0.7881511884 | P83: 19.72996717 | Q83: 0.7881358874
A84: 0.164 | B84: 0.03776838901 | C84: 0.01335400171 | D84: 0.006677000857 | E84: =aWolfSwitchingRate * simulation!G83 * step -> 0.004180071985 | F84: 31.97123675 | G84: 4.182568914 | I84: 0.04444538987 | J84: 170.4493189 | M84: 0.8842947322 | N84: 150.7637972 | O84: 0.7879382362 | P84: 19.72188409 | Q84: 0.7879224473
A85: 0.166 | B85: 0.03778703984 | C85: 0.0133721901 | D85: 0.006686095048 | E85: =aWolfSwitchingRate * simulation!G84 * step -> 0.004182568914 | F85: 31.9956516 | G85: 4.18507244 | I85: 0.04447313488 | J85: 170.4048458 | M85: 0.8843117941 | N85: 150.7274348 | O85: 0.7877250971 | P85: 19.71383089 | Q85: 0.7877088191
A86: 0.168 | B86: 0.03780566664 | C86: 0.01339041197 | D86: 0.006695205985 | E86: =aWolfSwitchingRate * simulation!G85 * step -> 0.00418507244 | F86: 32.02006685 | G86: 4.187582573 | I86: 0.04450087263 | J86: 170.3603449 | M86: 0.8843286708 | N86: 150.6910149 | O86: 0.7875117712 | P86: 19.70580754 | Q86: 0.7874950029
A87: 0.17 | B87: 0.03782426934 | C87: 0.01340866739 | D87: 0.006704333697 | E87: =aWolfSwitchingRate * simulation!G86 * step -> 0.004187582573 | F87: 32.04448245 | G87: 4.190099325 | I87: 0.04452860304 | J87: 170.3158163 | M87: 0.8843453624 | N87: 150.6545374 | O87: 0.7872982586 | P87: 19.69781402 | Q87: 0.7872809988
A88: 0.172 | B88: 0.03784284785 | C88: 0.01342695643 | D88: 0.006713478214 | E88: =aWolfSwitchingRate * simulation!G87 * step -> 0.004190099325 | F88: 32.06889834 | G88: 4.192622703 | I88: 0.04455632606 | J88: 170.27126 | M88: 0.8843618687 | N88: 150.6180023 | O88: 0.7870845593 | P88: 19.68985032 | Q88: 0.7870668067
A89: 0.174 | B89: 0.03786140208 | C89: 0.01344527913 | D89: 0.006722639564 | E89: =aWolfSwitchingRate * simulation!G88 * step -> 0.004192622703 | F89: 32.09331447 | G89: 4.19515272 | I89: 0.04458404164 | J89: 170.226676 | M89: 0.8843781898 | N89: 150.5814097 | O89: 0.7868706732 | P89: 19.68191642 | Q89: 0.7868524268
A90: 0.176 | B90: 0.03787993194 | C90: 0.01346363555 | D90: 0.006731817775 | E90: =aWolfSwitchingRate * simulation!G89 * step -> 0.00419515272 | F90: 32.11773076 | G90: 4.197689385 | I90: 0.04461174972 | J90: 170.1820642 | M90: 0.8843943257 | N90: 150.5447595 | O90: 0.7866566006 | P90: 19.6740123 | Q90: 0.786637859
A91: 0.178 | B91: 0.03789843735 | C91: 0.01348202575 | D91: 0.006741012875 | E91: =aWolfSwitchingRate * simulation!G90 * step -> 0.004197689385 | F91: 32.14214718 | G91: 4.200232709 | I91: 0.04463945023 | J91: 170.1374248 | M91: 0.8844102762 | N91: 150.5080519 | O91: 0.7864423413 | P91: 19.66613794 | Q91: 0.7864231034
A92: 0.18 | B92: 0.03791691822 | C92: 0.01350044979 | D92: 0.006750224895 | E92: =aWolfSwitchingRate * simulation!G91 * step -> 0.004200232709 | F92: 32.16656364 | G92: 4.202782701 | I92: 0.04466714312 | J92: 170.0927576 | M92: 0.8844260414 | N92: 150.4712868 | O92: 0.7862278955 | P92: 19.65829333 | Q92: 0.7862081601
A93: 0.182 | B93: 0.03793537446 | C93: 0.01351890772 | D93: 0.006759453862 | E93: =aWolfSwitchingRate * simulation!G92 * step -> 0.004202782701 | F93: 32.19098011 | G93: 4.205339372 | I93: 0.04469482832 | J93: 170.0480628 | M93: 0.8844416212 | N93: 150.4344643 | O93: 0.7860132632 | P93: 19.65047845 | Q93: 0.785993029
A94: 0.184 | B94: 0.03795380599 | C94: 0.01353739961 | D94: 0.006768699804 | E94: =aWolfSwitchingRate * simulation!G93 * step -> 0.004205339372 | F94: 32.21539652 | G94: 4.207902733 | I94: 0.04472250579 | J94: 170.0033403 | M94: 0.8844570157 | N94: 150.3975843 | O94: 0.7857984444 | P94: 19.64269328 | Q94: 0.7857777102
A95: 0.186 | B95: 0.03797221271 | C95: 0.0135559255 | D95: 0.006777962752 | E95: =aWolfSwitchingRate * simulation!G94 * step -> 0.004207902733 | F95: 32.2398128 | G95: 4.210472793 | I95: 0.04475017546 | J95: 169.9585901 | M95: 0.8844722247 | N95: 150.360647 | O95: 0.7855834392 | P95: 19.63493781 | Q95: 0.7855622038
A96: 0.188 | B96: 0.03799059453 | C96: 0.01357448547 | D96: 0.006787242733 | E96: =aWolfSwitchingRate * simulation!G95 * step -> 0.004210472793 | F96: 32.26422891 | G96: 4.213049563 | I96: 0.04477783727 | J96: 169.9138123 | M96: 0.8844872482 | N96: 150.3236523 | O96: 0.7853682476 | P96: 19.62721202 | Q96: 0.7853465098
A97: 0.19 | B97: 0.03800895138 | C97: 0.01359307955 | D97: 0.006796539775 | E97: =aWolfSwitchingRate * simulation!G96 * step -> 0.004213049563 | F97: 32.28864479 | G97: 4.215633053 | I97: 0.04480549116 | J97: 169.8690068 | M97: 0.8845020863 | N97: 150.2866003 | O97: 0.7851528697 | P97: 19.61951589 | Q97: 0.7851306283
A98: 0.192 | B98: 0.03802728317 | C98: 0.01361170782 | D98: 0.006805853909 | E98: =aWolfSwitchingRate * simulation!G97 * step -> 0.004215633053 | F98: 32.31306036 | G98: 4.218223274 | I98: 0.04483313708 | J98: 169.8241736 | M98: 0.8845167388 | N98: 150.2494909 | O98: 0.7849373055 | P98: 19.6118494 | Q98: 0.7849145592
A99: 0.194 | B99: 0.0380455898 | C99: 0.01363037033 | D99: 0.006815185163 | E99: =aWolfSwitchingRate * simulation!G98 * step -> 0.004218223274 | F99: 32.33747558 | G99: 4.220820236 | I99: 0.04486077496 | J99: 169.7793129 | M99: 0.8845312058 | N99: 150.2123242 | O99: 0.784721555 | P99: 19.60421255 | Q99: 0.7846983027
A100: 0.196 | B100: 0.03806387118 | C100: 0.01364906713 | D100: 0.006824533565 | E100: =aWolfSwitchingRate * simulation!G99 * step -> 0.004220820236 | F100: 32.36189038 | G100: 4.223423949 | I100: 0.04488840475 | J100: 169.7344245 | M100: 0.8845454871 | N100: 150.1751003 | O100: 0.7845056183 | P100: 19.5966053 | Q100: 0.7844818587
A101: 0.198 | B101: 0.03808212724 | C101: 0.01366779829 | D101: 0.006833899144 | E101: =aWolfSwitchingRate * simulation!G100 * step -> 0.004223423949 | F101: 32.38630471 | G101: 4.226034424 | I101: 0.04491602638 | J101: 169.6895084 | M101: 0.8845595828 | N101: 150.1378192 | O101: 0.7842894955 | P101: 19.58902764 | Q101: 0.7842652274
A102: 0.2 | B102: 0.03810035788 | C102: 0.01368656386 | D102: 0.006843281929 | E102: =aWolfSwitchingRate * simulation!G101 * step -> 0.004226034424 | F102: 32.41071851 | G102: 4.228651672 | I102: 0.04494363981 | J102: 169.6445648 | M102: 0.8845734929 | N102: 150.1004808 | O102: 0.7840731866 | P102: 19.58147957 | Q102: 0.7840484087
A103: 0.202 | B103: 0.03811856301 | C103: 0.0137053639 | D103: 0.00685268195 | E103: =aWolfSwitchingRate * simulation!G102 * step -> 0.004228651672 | F103: 32.43513171 | G103: 4.231275702 | I103: 0.04497124496 | J103: 169.5995936 | M103: 0.8845872172 | N103: 150.0630852 | O103: 0.7838566916 | P103: 19.57396105 | Q103: 0.7838314028
A104: 0.204 | B104: 0.03813674255 | C104: 0.01372419847 | D104: 0.006862099234 | E104: =aWolfSwitchingRate * simulation!G103 * step -> 0.004231275702 | F104: 32.45954425 | G104: 4.233906525 | I104: 0.04499884178 | J104: 169.5545947 | M104: 0.8846007558 | N104: 150.0256325 | O104: 0.7836400107 | P104: 19.56647208 | Q104: 0.7836142096
A105: 0.206 | B105: 0.0381548964 | C105: 0.01374306762 | D105: 0.006871533811 | E105: =aWolfSwitchingRate * simulation!G104 * step -> 0.004233906525 | F105: 32.48395608 | G105: 4.236544153 | I105: 0.04502643021 | J105: 169.5095683 | M105: 0.8846141086 | N105: 149.9881226 | O105: 0.7834231437 | P105: 19.55901263 | Q105: 0.7833968293
A106: 0.208 | B106: 0.03817302449 | C106: 0.01376197142 | D106: 0.006880985709 | E106: =aWolfSwitchingRate * simulation!G105 * step -> 0.004236544153 | F106: 32.50836713 | G106: 4.239188594 | I106: 0.0450540102 | J106: 169.4645143 | M106: 0.8846272756 | N106: 149.9505556 | O106: 0.7832060909 | P106: 19.5515827 | Q106: 0.7831792618
A107: 0.21 | B107: 0.03819112671 | C107: 0.01378090992 | D107: 0.006890454958 | E107: =aWolfSwitchingRate * simulation!G106 * step -> 0.004239188594 | F107: 32.53277735 | G107: 4.241839861 | I107: 0.04508158167 | J107: 169.4194327 | M107: 0.8846402567 | N107: 149.9129316 | O107: 0.7829888522 | P107: 19.54418226 | Q107: 0.7829615072
A108: 0.212 | B108: 0.03820920299 | C108: 0.01379988317 | D108: 0.006899941587 | E108: =aWolfSwitchingRate * simulation!G107 * step -> 0.004241839861 | F108: 32.55718667 | G108: 4.244497962 | I108: 0.04510914458 | J108: 169.3743235 | M108: 0.884653052 | N108: 149.8752504 | O108: 0.7827714277 | P108: 19.5368113 | Q108: 0.7827435656
A109: 0.214 | B109: 0.03822725324 | C109: 0.01381889125 | D109: 0.006909445624 | E109: =aWolfSwitchingRate * simulation!G108 * step -> 0.004244497962 | F109: 32.58159503 | G109: 4.24716291 | I109: 0.04513669886 | J109: 169.3291868 | M109: 0.8846656612 | N109: 149.8375122 | O109: 0.7825538175 | P109: 19.5294698 | Q109: 0.782525437
A110: 0.216 | B110: 0.03824527736 | C110: 0.0138379342 | D110: 0.006918967098 | E110: =aWolfSwitchingRate * simulation!G109 * step -> 0.00424716291 | F110: 32.60600237 | G110: 4.249834714 | I110: 0.04516424446 | J110: 169.2840226 | M110: 0.8846780845 | N110: 149.799717 | O110: 0.7823360216 | P110: 19.52215774 | Q110: 0.7823071215
A111: 0.218 | B111: 0.03826327527 | C111: 0.01385701208 | D111: 0.006928506039 | E111: =aWolfSwitchingRate * simulation!G110 * step -> 0.004249834714 | F111: 32.63040864 | G111: 4.252513385 | I111: 0.04519178131 | J111: 169.2388308 | M111: 0.8846903218 | N111: 149.7618649 | O111: 0.7821180401 | P111: 19.51487512 | Q111: 0.7820886191
A112: 0.22 | B112: 0.03828124688 | C112: 0.01387612495 | D112: 0.006938062475 | E112: =aWolfSwitchingRate * simulation!G111 * step -> 0.004252513385 | F112: 32.65481376 | G112: 4.255198935 | I112: 0.04521930935 | J112: 169.1936115 | M112: 0.884702373 | N112: 149.7239557 | O112: 0.781899873 | P112: 19.50762191 | Q112: 0.7818699299
A113: 0.222 | B113: 0.03829919209 | C113: 0.01389527287 | D113: 0.006947636436 | E113: =aWolfSwitchingRate * simulation!G112 * step -> 0.004255198935 | F113: 32.67921768 | G113: 4.257891372 | I113: 0.04524682853 | J113: 169.1483647 | M113: 0.8847142381 | N113: 149.6859896 | O113: 0.7816815203 | P113: 19.50039809 | Q113: 0.7816510539
A114: 0.224 | B114: 0.03831711084 | C114: 0.0139144559 | D114: 0.00695722795 | E114: =aWolfSwitchingRate * simulation!G113 * step -> 0.004257891372 | F114: 32.70362033 | G114: 4.260590709 | I114: 0.04527433879 | J114: 169.1030903 | M114: 0.8847259171 | N114: 149.6479666 | O114: 0.7814629822 | P114: 19.49320366 | Q114: 0.7814319912
A115: 0.226 | B115: 0.03833500301 | C115: 0.01393367409 | D115: 0.006966837046 | E115: =aWolfSwitchingRate * simulation!G114 * step -> 0.004260590709 | F115: 32.72802166 | G115: 4.263296955 | I115: 0.04530184006 | J115: 169.0577885 | M115: 0.8847374098 | N115: 149.6098867 | O115: 0.7812442587 | P115: 19.48603859 | Q115: 0.7812127419
A116: 0.228 | B116: 0.03835286853 | C116: 0.01395292751 | D116: 0.006976463755 | E116: =aWolfSwitchingRate * simulation!G115 * step -> 0.004263296955 | F116: 32.7524216 | G116: 4.266010122 | I116: 0.04532933229 | J116: 169.0124592 | M116: 0.8847487163 | N116: 149.5717499 | O116: 0.7810253499 | P116: 19.47890287 | Q116: 0.780993306
A117: 0.23 | B117: 0.03837070731 | C117: 0.01397221621 | D117: 0.006986108104 | E117: =aWolfSwitchingRate * simulation!G116 * step -> 0.004266010122 | F117: 32.77682009 | G117: 4.26873022 | I117: 0.04535681542 | J117: 168.9671024 | M117: 0.8847598366 | N117: 149.5335563 | O117: 0.7808062558 | P117: 19.47179649 | Q117: 0.7807736835
A118: 0.232 | B118: 0.03838851926 | C118: 0.01399154024 | D118: 0.006995770122 | E118: =aWolfSwitchingRate * simulation!G117 * step -> 0.00426873022 | F118: 32.80121707 | G118: 4.27145726 | I118: 0.04538428938 | J118: 168.9217181 | M118: 0.8847707705 | N118: 149.4953059 | O118: 0.7805869764 | P118: 19.46471942 | Q118: 0.7805538746
A119: 0.234 | B119: 0.03840630429 | C119: 0.01401089968 | D119: 0.00700544984 | E119: =aWolfSwitchingRate * simulation!G118 * step -> 0.00427145726 | F119: 32.82561248 | G119: 4.274191252 | I119: 0.04541175413 | J119: 168.8763063 | M119: 0.884781518 | N119: 149.4569986 | O119: 0.7803675119 | P119: 19.45767166 | Q119: 0.7803338792
A120: 0.236 | B120: 0.0384240623 | C120: 0.01403029457 | D120: 0.007015147285 | E120: =aWolfSwitchingRate * simulation!G119 * step -> 0.004274191252 | F120: 32.85000625 | G120: 4.276932208 | I120: 0.04543920959 | J120: 168.8308671 | M120: 0.8847920791 | N120: 149.4186347 | O120: 0.7801478623 | P120: 19.45065318 | Q120: 0.7801136975
A121: 0.238 | B121: 0.03844179322 | C121: 0.01404972498 | D121: 0.007024862488 | E121: =aWolfSwitchingRate * simulation!G120 * step -> 0.004276932208 | F121: 32.87439831 | G121: 4.279680139 | I121: 0.04546665571 | J121: 168.7854004 | M121: 0.8848024538 | N121: 149.3802139 | O121: 0.7799280276 | P121: 19.44366397 | Q121: 0.7798933295
A122: 0.24 | B122: 0.03845949695 | C122: 0.01406919095 | D122: 0.007034595477 | E122: =aWolfSwitchingRate * simulation!G121 * step -> 0.004279680139 | F122: 32.89878862 | G122: 4.282435054 | I122: 0.04549409243 | J122: 168.7399064 | M122: 0.8848126419 | N122: 149.3417365 | O122: 0.779708008 | P122: 19.43670401 | Q122: 0.7796727752
A123: 0.242 | B123: 0.03847717341 | C123: 0.01408869256 | D123: 0.007044346281 | E123: =aWolfSwitchingRate * simulation!G122 * step -> 0.004282435054 | F123: 32.9231771 | G123: 4.285196965 | I123: 0.04552151969 | J123: 168.6943848 | M123: 0.8848226435 | N123: 149.3032023 | O123: 0.7794878034 | P123: 19.4297733 | Q123: 0.7794520348
A124: 0.244 | B124: 0.0384948225 | C124: 0.01410822986 | D124: 0.00705411493 | E124: =aWolfSwitchingRate * simulation!G123 * step -> 0.004285196965 | F124: 32.94756369 | G124: 4.287965883 | I124: 0.04554893743 | J124: 168.6488359 | M124: 0.8848324585 | N124: 149.2646115 | O124: 0.7792674141 | P124: 19.42287181 | Q124: 0.7792311083
A125: 0.246 | B125: 0.03851244414 | C125: 0.0141278029 | D125: 0.007063901452 | E125: =aWolfSwitchingRate * simulation!G124 * step -> 0.004287965883 | F125: 32.97194833 | G125: 4.290741819 | I125: 0.04557634559 | J125: 168.6032596 | M125: 0.8848420868 | N125: 149.2259641 | O125: 0.7790468399 | P125: 19.41599953 | Q125: 0.7790099957
A126: 0.248 | B126: 0.03853003823 | C126: 0.01414741176 | D126: 0.007073705878 | E126: =aWolfSwitchingRate * simulation!G125 * step -> 0.004290741819 | F126: 32.99633096 | G126: 4.293524783 | I126: 0.04560374411 | J126: 168.5576558 | M126: 0.8848515284 | N126: 149.18726 | O126: 0.778826081 | P126: 19.40915644 | Q126: 0.7787886972
A127: 0.25 | B127: 0.0385476047 | C127: 0.01416705647 | D127: 0.007083528236 | E127: =aWolfSwitchingRate * simulation!G126 * step -> 0.004293524783 | F127: 33.02071151 | G127: 4.296314786 | I127: 0.04563113293 | J127: 168.5120247 | M127: 0.8848607833 | N127: 149.1484994 | O127: 0.7786051375 | P127: 19.40234253 | Q127: 0.7785672127
A128: 0.252 | B128: 0.03856514344 | C128: 0.01418673711 | D128: 0.007093368555 | E128: =aWolfSwitchingRate * simulation!G127 * step -> 0.004296314786 | F128: 33.04508992 | G128: 4.29911184 | I128: 0.04565851199 | J128: 168.4663662 | M128: 0.8848698513 | N128: 149.1096821 | O128: 0.7783840094 | P128: 19.39555779 | Q128: 0.7783455425
A129: 0.254 | B129: 0.03858265437 | C129: 0.01420645373 | D129: 0.007103226865 | E129: =aWolfSwitchingRate * simulation!G128 * step -> 0.00429911184 | F129: 33.06946612 | G129: 4.301915955 | I129: 0.04568588123 | J129: 168.4206803 | M129: 0.8848787325 | N129: 149.0708084 | O129: 0.7781626968 | P129: 19.38880219 | Q129: 0.7781236864
A130: 0.256 | B130: 0.0386001374 | C130: 0.01422620639 | D130: 0.007113103195 | E130: =aWolfSwitchingRate * simulation!G129 * step -> 0.004301915955 | F130: 33.09384005 | G130: 4.304727142 | I130: 0.0457132406 | J130: 168.374967 | M130: 0.8848874268 | N130: 149.0318781 | O130: 0.7779411998 | P130: 19.38207572 | Q130: 0.7779016446
A131: =IF(A130 + step > T, "", A130 + step) -> 0.258 | B131: =aMooseAcquisitionRate * O130 * F130 *step -> 0.03861759245 | C131: =aMooseSwitchingRate * F130 * G130 *step -> 0.01424599515 | D131: 0.007122997575 | E131: =aWolfSwitchingRate * simulation!G130 * step -> 0.004304727142 | F131: 33.11821164 | G131: 4.307545413 | I131: =B131+D131 -> 0.04574059002 | J131: 168.3292265 | M131: 0.8848959341 | N131: 148.9928913 | O131: =1 - F131/N131 -> 0.7777195184 | P131: =(1 - M131) * J131 -> 19.37537837 | Q131: =1 - G131/P131 -> 0.7776794172
A132: 0.26 | B132: 0.03863501941 | C132: 0.01426582006 | D132: =aWolfAcquisitionRate * G131 * aMooseSwitchingRate * F131 * step -> 0.007132910032 | E132: =aWolfSwitchingRate * simulation!G131 * step -> 0.004307545413 | F132: =F131 +B132 - C132 -> 33.14258084 | G132: =G131 + D132 - E132 -> 4.310370777 | I132: 0.04576792945 | J132: =J131 - I132 -> 168.2834585 | M132: =F131 / (F131 + G131) -> 0.8849042544 | N132: =M131 *J131 -> 148.9538481 | O132: 0.7774976527 | P132: 19.36871013 | Q132: 0.7774570042
A133: 0.262 | B133: 0.03865241821 | C133: 0.0142856812 | D133: 0.007142840598 | E133: =aWolfSwitchingRate * simulation!G132 * step -> 0.004310370777 | F133: 33.16694758 | G133: 4.313203247 | I133: 0.04579525881 | J133: 168.2376633 | M133: 0.8849123877 | N133: 148.9147484 | O133: 0.7772756027 | P133: 19.36207097 | Q133: 0.7772344057
A134: 0.264 | B134: 0.03866978876 | C134: 0.0143055786 | D134: 0.0071527893 | E134: =aWolfSwitchingRate * simulation!G133 * step -> 0.004313203247 | F134: 33.19131179 | G134: 4.316042833 | I134: 0.04582257806 | J134: 168.1918407 | M134: 0.8849203338 | N134: 148.8755923 | O134: 0.7770533687 | P134: 19.35546089 | Q134: 0.7770116218
A135: 0.266 | B135: 0.03868713096 | C135: 0.01432551234 | D135: 0.007162756169 | E135: =aWolfSwitchingRate * simulation!G134 * step -> 0.004316042833 | F135: 33.21567341 | G135: 4.318889546 | I135: 0.04584988712 | J135: 168.1459908 | M135: 0.8849280927 | N135: 148.8363798 | O135: 0.7768309505 | P135: 19.34887986 | Q135: 0.7767886525
A136: 0.268 | B136: 0.03870444472 | C136: 0.01434548247 | D136: 0.007172741233 | E136: =aWolfSwitchingRate * simulation!G135 * step -> 0.004318889546 | F136: 33.24003237 | G136: 4.321743398 | I136: 0.04587718595 | J136: 168.1001136 | M136: 0.8849356645 | N136: 148.7971109 | O136: 0.7766083484 | P136: 19.34232788 | Q136: 0.7765654979
A137: 0.27 | B137: 0.03872172996 | C137: 0.01436548905 | D137: 0.007182744523 | E137: =aWolfSwitchingRate * simulation!G136 * step -> 0.004321743398 | F137: 33.26438861 | G137: 4.324604399 | I137: 0.04590447448 | J137: 168.0542091 | M137: 0.8849430489 | N137: 148.7577857 | O137: 0.7763855623 | P137: 19.33580492 | Q137: 0.7763421582
A138: 0.272 | B138: 0.03873898659 | C138: 0.01438553213 | D138: 0.007192766067 | E138: =aWolfSwitchingRate * simulation!G137 * step -> 0.004324604399 | F138: 33.28874207 | G138: 4.327472561 | I138: 0.04593175265 | J138: 168.0082774 | M138: 0.884950246 | N138: 148.7184042 | O138: 0.7761625924 | P138: 19.32931098 | Q138: 0.7761186333
A139: 0.274 | B139: 0.03875621451 | C139: 0.01440561179 | D139: 0.007202805894 | E139: =aWolfSwitchingRate * simulation!G138 * step -> 0.004327472561 | F139: 33.31309267 | G139: 4.330347894 | I139: 0.0459590204 | J139: 167.9623184 | M139: 0.8849572557 | N139: 148.6789664 | O139: 0.7759394387 | P139: 19.32284604 | Q139: 0.7758949233
A140: 0.276 | B140: 0.03877341364 | C140: 0.01442572807 | D140: 0.007212864035 | E140: =aWolfSwitchingRate * simulation!G139 * step -> 0.004330347894 | F140: 33.33744036 | G140: 4.33323041 | I140: 0.04598627767 | J140: 167.9163321 | M140: 0.884964078 | N140: 148.6394723 | O140: 0.7757161013 | P140: 19.31641009 | Q140: 0.7756710284
A141: 0.278 | B141: 0.03879058389 | C141: 0.01444588104 | D141: 0.007222940518 | E141: =aWolfSwitchingRate * simulation!G140 * step -> 0.00433323041 | F141: 33.36178506 | G141: 4.336120121 | I141: 0.04601352441 | J141: 167.8703186 | M141: 0.8849707127 | N141: 148.599922 | O141: 0.7754925803 | P141: 19.3100031 | Q141: 0.7754469485
A142: 0.28 | B142: 0.03880772517 | C142: 0.01446607074 | D142: 0.007233035372 | E142: =aWolfSwitchingRate * simulation!G141 * step -> 0.004336120121 | F142: 33.38612671 | G142: 4.339017036 | I142: 0.04604076054 | J142: 167.8242778 | M142: 0.8849771599 | N142: 148.5603155 | O142: 0.7752688757 | P142: 19.30362508 | Q142: 0.7752226839
A143: 0.282 | B143: 0.03882483738 | C143: 0.01448629726 | D143: 0.007243148628 | E143: =aWolfSwitchingRate * simulation!G142 * step -> 0.004339017036 | F143: 33.41046525 | G143: 4.341921167 | I143: 0.04606798601 | J143: 167.7782098 | M143: 0.8849834194 | N143: 148.5206527 | O143: 0.7750449878 | P143: 19.29727599 | Q143: 0.7749982345
A144: 0.284 | B144: 0.03884192045 | C144: 0.01450656063 | D144: 0.007253280315 | E144: =aWolfSwitchingRate * simulation!G143 * step -> 0.004341921167 | F144: 33.43480061 | G144: 4.344832527 | I144: 0.04609520076 | J144: 167.7321146 | M144: 0.8849894913 | N144: 148.4809338 | O144: 0.7748209164 | P144: 19.29095583 | Q144: 0.7747736004
A145: 0.286 | B145: 0.03885897428 | C145: 0.01452686092 | D145: 0.007263430461 | E145: =aWolfSwitchingRate * simulation!G144 * step -> 0.004344832527 | F145: 33.45913273 | G145: 4.347751124 | I145: 0.04612240474 | J145: 167.6859922 | M145: 0.8849953754 | N145: 148.4411588 | O145: 0.7745966617 | P145: 19.28466458 | Q145: 0.7745487817
A146: 0.288 | B146: 0.03887599877 | C146: 0.01454719819 | D146: 0.007273599097 | E146: =aWolfSwitchingRate * simulation!G145 * step -> 0.004347751124 | F146: 33.48346153 | G146: 4.350676972 | I146: 0.04614959787 | J146: 167.6398426 | M146: 0.8850010717 | N146: 148.4013276 | O146: 0.7743722239 | P146: 19.27840224 | Q146: 0.7743237786
A147: 0.29 | B147: 0.03889299385 | C147: 0.0145675725 | D147: 0.007283786251 | E147: =aWolfSwitchingRate * simulation!G146 * step -> 0.004350676972 | F147: 33.50778695 | G147: 4.353610082 | I147: 0.0461767801 | J147: 167.5936658 | M147: 0.8850065802 | N147: 148.3614404 | O147: 0.7741476029 | P147: 19.27216878 | Q147: 0.774098591
A148: 0.292 | B148: 0.03890995942 | C148: 0.01458798391 | D148: 0.007293991954 | E148: =aWolfSwitchingRate * simulation!G147 * step -> 0.004353610082 | F148: 33.53210892 | G148: 4.356550464 | I148: 0.04620395137 | J148: 167.5474619 | M148: 0.8850119007 | N148: 148.3214971 | O148: 0.7739227989 | P148: 19.26596419 | Q148: 0.773873219
A149: 0.294 | B149: 0.03892689538 | C149: 0.01460843247 | D149: 0.007304216234 | E149: =aWolfSwitchingRate * simulation!G148 * step -> 0.004356550464 | F149: 33.55642739 | G149: 4.359498129 | I149: 0.04623111162 | J149: 167.5012308 | M149: 0.8850170332 | N149: 148.2814977 | O149: 0.7736978119 | P149: 19.25978845 | Q149: 0.7736476628
A150: 0.296 | B150: 0.03894380166 | C150: 0.01462891824 | D150: 0.007314459121 | E150: =aWolfSwitchingRate * simulation!G149 * step -> 0.004359498129 | F150: 33.58074227 | G150: 4.36245309 | I150: 0.04625826079 | J150: 167.4549725 | M150: 0.8850219777 | N150: 148.2414423 | O150: 0.773472642 | P150: 19.25364156 | Q150: 0.7734219225
A151: 0.298 | B151: 0.03896067817 | C151: 0.01464944129 | D151: 0.007324720645 | E151: =aWolfSwitchingRate * simulation!G150 * step -> 0.00436245309 | F151: 33.60505351 | G151: 4.365415358 | I151: 0.04628539881 | J151: 167.4086871 | M151: 0.8850267341 | N151: 148.2013309 | O151: 0.7732472894 | P151: 19.2475235 | Q151: 0.773195998
A152: 0.3 | B152: 0.0389775248 | C152: 0.01467000167 | D152: 0.007335000834 | E152: =aWolfSwitchingRate * simulation!G151 * step -> 0.004365415358 | F152: 33.62936103 | G152: 4.368384943 | I152: 0.04631252564 | J152: 167.3623746 | M152: 0.8850313023 | N152: 148.1611636 | O152: 0.7730217541 | P152: 19.24143426 | Q152: 0.7729698896
A153: 0.302 | B153: 0.03899434148 | C153: 0.01469059944 | D153: 0.007345299719 | E153: =aWolfSwitchingRate * simulation!G152 * step -> 0.004368384943 | F153: 33.65366477 | G153: 4.371361858 | I153: 0.0463396412 | J153: 167.3160349 | M153: 0.8850356822 | N153: 148.1209403 | O153: 0.7727960361 | P153: 19.23537381 | Q153: 0.7727435973
A154: 0.304 | B154: 0.03901112811 | C154: 0.01471123466 | D154: 0.007355617329 | E154: =aWolfSwitchingRate * simulation!G153 * step -> 0.004371361858 | F154: 33.67796467 | G154: 4.374346114 | I154: 0.04636674543 | J154: 167.2696682 | M154: 0.8850398739 | N154: 148.0806611 | O154: 0.7725701357 | P154: 19.22934216 | Q154: 0.7725171211
A155: 0.306 | B155: 0.0390278846 | C155: 0.01473190738 | D155: 0.007365953692 | E155: =aWolfSwitchingRate * simulation!G154 * step -> 0.004374346114 | F155: 33.70226064 | G155: 4.377337721 | I155: 0.04639383829 | J155: 167.2232744 | M155: 0.8850438771 | N155: 148.040326 | O155: 0.7723440528 | P155: 19.22333927 | Q155: 0.7722904612
A156: 0.308 | B156: 0.03904461086 | C156: 0.01475261768 | D156: 0.00737630884 | E156: =aWolfSwitchingRate * simulation!G155 * step -> 0.004377337721 | F156: 33.72655264 | G156: 4.380336692 | I156: 0.0464209197 | J156: 167.1768534 | M156: 0.885047692 | N156: 147.9999351 | O156: 0.7721177876 | P156: 19.21736515 | Q156: 0.7720636176
A157: 0.31 | B157: 0.03906130681 | C157: 0.0147733656 | D157: 0.007386682801 | E157: =aWolfSwitchingRate * simulation!G156 * step -> 0.004380336692 | F157: 33.75084058 | G157: 4.383343038 | I157: 0.04644798961 | J157: 167.1304054 | M157: 0.8850513183 | N157: 147.9594883 | O157: 0.7718913402 | P157: 19.21141978 | Q157: 0.7718365905
A158: 0.312 | B158: 0.03907797235 | C158: 0.01479415121 | D158: 0.007397075604 | E158: =aWolfSwitchingRate * simulation!G157 * step -> 0.004383343038 | F158: 33.7751244 | G158: 4.386356771 | I158: 0.04647504795 | J158: 167.0839304 | M158: 0.8850547561 | N158: 147.9189857 | O158: 0.7716647106 | P158: 19.20550314 | Q158: 0.7716093799
A159: 0.314 | B159: 0.03909460739 | C159: 0.01481497456 | D159: 0.00740748728 | E159: =aWolfSwitchingRate * simulation!G158 * step -> 0.004386356771 | F159: 33.79940403 | G159: 4.389377901 | I159: 0.04650209467 | J159: 167.0374283 | M159: 0.8850580052 | N159: 147.8784273 | O159: 0.771437899 | P159: 19.19961522 | Q159: 0.771381986
A160: 0.316 | B160: 0.03911121185 | C160: 0.01483583571 | D160: 0.007417917857 | E160: =aWolfSwitchingRate * simulation!G159 * step -> 0.004389377901 | F160: 33.82367941 | G160: 4.392406441 | I160: 0.04652912971 | J160: 166.9908992 | M160: 0.8850610656 | N160: 147.8378131 | O160: 0.7712109054 | P160: 19.19375601 | Q160: 0.7711544088
A161: 0.318 | B161: 0.03912778563 | C161: 0.01485673473 | D161: 0.007428367365 | E161: =aWolfSwitchingRate * simulation!G160 * step -> 0.004392406441 | F161: 33.84795046 | G161: 4.395442402 | I161: 0.04655615299 | J161: 166.944343 | M161: 0.8850639372 | N161: 147.7971432 | O161: 0.7709837299 | P161: 19.18792549 | Q161: 0.7709266484
A162: 0.32 | B162: 0.03914432864 | C162: 0.01487767167 | D162: 0.007438835834 | E162: =aWolfSwitchingRate * simulation!G161 * step -> 0.004395442402 | F162: 33.87221711 | G162: 4.398485796 | I162: 0.04658316447 | J162: 166.8977599 | M162: 0.88506662 | N162: 147.7564175 | O162: 0.7707563727 | P162: 19.18212365 | Q162: 0.7706987049
A163: 0.322 | B163: 0.0391608408 | C163: 0.01489864659 | D163: 0.007449323293 | E163: =aWolfSwitchingRate * simulation!G162 * step -> 0.004398485796 | F163: 33.89647931 | G163: 4.401536633 | I163: 0.04661016409 | J163: 166.8511497 | M163: 0.8850691139 | N163: 147.7156362 | O163: 0.7705288338 | P163: 19.17635048 | Q163: 0.7704705784
A164: 0.324 | B164: 0.03917732201 | C164: 0.01491965954 | D164: 0.007459829771 | E164: =aWolfSwitchingRate * simulation!G163 * step -> 0.004401536633 | F164: 33.92073697 | G164: 4.404594926 | I164: 0.04663715178 | J164: 166.8045125 | M164: 0.8850714188 | N164: 147.6747992 | O164: 0.7703011133 | P164: 19.17060596 | Q164: 0.770242269
A165: 0.326 | B165: 0.03919377218 | C165: 0.0149407106 | D165: 0.007470355298 | E165: =aWolfSwitchingRate * simulation!G164 * step -> 0.004404594926 | F165: 33.94499003 | G165: 4.407660687 | I165: 0.04666412748 | J165: 166.7578484 | M165: 0.8850735347 | N165: 147.6339066 | O165: 0.7700732114 | P165: 19.16489008 | Q165: 0.7700137768
A166: 0.328 | B166: 0.03921019123 | C166: 0.01496179981 | D166: 0.007480899904 | E166: =aWolfSwitchingRate * simulation!G165 * step -> 0.004407660687 | F166: 33.96923842 | G166: 4.410733926 | I166: 0.04669109113 | J166: 166.7111573 | M166: 0.8850754614 | N166: 147.5929583 | O166: 0.7698451281 | P166: 19.15920283 | Q166: 0.769785102
A167: 0.33 | B167: 0.03922657906 | C167: 0.01498292724 | D167: 0.007491463618 | E167: =aWolfSwitchingRate * simulation!G166 * step -> 0.004410733926 | F167: 33.99348208 | G167: 4.413814656 | I167: 0.04671804268 | J167: 166.6644393 | M167: 0.885077199 | N167: 147.5519545 | O167: 0.7696168635 | P167: 19.15354419 | Q167: 0.7695562445
A168: 0.332 | B168: 0.03924293558 | C168: 0.01500409294 | D168: 0.007502046469 | E168: =aWolfSwitchingRate * simulation!G167 * step -> 0.004413814656 | F168: 34.01772092 | G168: 4.416902888 | I168: 0.04674498205 | J168: 166.6176943 | M168: 0.8850787472 | N168: 147.5108951 | O168: 0.7693884177 | P168: 19.14791416 | Q168: 0.7693272045
A169: 0.334 | B169: 0.03925926071 | C169: 0.01502529698 | D169: 0.007512648488 | E169: =aWolfSwitchingRate * simulation!G168 * step -> 0.004416902888 | F169: 34.04195488 | G169: 4.419998633 | I169: 0.0467719092 | J169: 166.5709224 | M169: 0.8850801062 | N169: 147.4697801 | O169: 0.7691597909 | P169: 19.14231272 | Q169: 0.7690979821
A170: 0.336 | B170: 0.03927555435 | C170: 0.01504653941 | D170: 0.007523269703 | E170: =aWolfSwitchingRate * simulation!G169 * step -> 0.004419998633 | F170: 34.0661839 | G170: 4.423101904 | I170: 0.04679882405 | J170: 166.5241236 | M170: 0.8850812757 | N170: 147.4286097 | O170: 0.7689309831 | P170: 19.13673985 | Q170: 0.7688685775
A171: 0.338 | B171: 0.03929181641 | C171: 0.01506782029 | D171: 0.007533910143 | E171: =aWolfSwitchingRate * simulation!G170 * step -> 0.004423101904 | F171: 34.09040789 | G171: 4.426212712 | I171: 0.04682572656 | J171: 166.4772978 | M171: 0.8850822557 | N171: 147.3873837 | O171: 0.7687019945 | P171: 19.13119555 | Q171: 0.7686389906
A172: 0.34 | B172: 0.03930804681 | C172: 0.01508913968 | D172: 0.00754456984 | E172: =aWolfSwitchingRate * simulation!G171 * step -> 0.004426212712 | F172: 34.1146268 | G172: 4.42933107 | I172: 0.04685261665 | J172: 166.4304452 | M172: 0.8850830462 | N172: 147.3461023 | O172: 0.7684728251 | P172: 19.12567979 | Q172: 0.7684092216
A173: 0.342 | B173: 0.03932424545 | C173: 0.01511049764 | D173: 0.007555248821 | E173: =aWolfSwitchingRate * simulation!G172 * step -> 0.00442933107 | F173: 34.13884055 | G173: 4.432456987 | I173: 0.04687949427 | J173: 166.3835657 | M173: 0.885083647 | N173: 147.3047654 | O173: 0.768243475 | P173: 19.12019258 | Q173: 0.7681792707
A174: 0.344 | B174: 0.03934041224 | C174: 0.01513189423 | D174: 0.007565947116 | E174: =aWolfSwitchingRate * simulation!G173 * step -> 0.004432456987 | F174: 34.16304907 | G174: 4.435590477 | I174: 0.04690635936 | J174: 166.3366594 | M174: 0.8850840581 | N174: 147.2633732 | O174: 0.7680139444 | P174: 19.11473389 | Q174: 0.7679491379
A175: 0.346 | B175: 0.0393565471 | C175: 0.01515332951 | D175: 0.007576664756 | E175: =aWolfSwitchingRate * simulation!G174 * step -> 0.004435590477 | F175: 34.18725228 | G175: 4.438731552 | I175: 0.04693321186 | J175: 166.2897262 | M175: 0.8850842794 | N175: 147.2219255 | O175: 0.7677842334 | P175: 19.10930371 | Q175: 0.7677188233
A176: 0.348 | B176: 0.03937264993 | C176: 0.01517480354 | D176: 0.007587401769 | E176: =aWolfSwitchingRate * simulation!G175 * step -> 0.004438731552 | F176: 34.21145013 | G176: 4.441880222 | I176: 0.0469600517 | J176: 166.2427661 | M176: 0.8850843108 | N176: 147.1804224 | O176: 0.7675543421 | P176: 19.10390203 | Q176: 0.767488327
A177: 0.35 | B177: 0.03938872064 | C177: 0.01519631637 | D177: 0.007598158185 | E177: =aWolfSwitchingRate * simulation!G176 * step -> 0.004441880222 | F177: 34.23564254 | G177: 4.4450365 | I177: 0.04698687883 | J177: 166.1957792 | M177: 0.8850841524 | N177: 147.1388641 | O177: 0.7673242705 | P177: 19.09852885 | Q177: 0.7672576492
A178: 0.352 | B178: 0.03940475915 | C178: 0.01521786807 | D178: 0.007608934033 | E178: =aWolfSwitchingRate * simulation!G177 * step -> 0.0044450365 | F178: 34.25982943 | G178: 4.448200397 | I178: 0.04701369318 | J178: 166.1487655 | M178: 0.8850838038 | N178: 147.0972504 | O178: 0.7670940188 | P178: 19.09318413 | Q178: 0.76702679
A179: 0.354 | B179: 0.03942076536 | C179: 0.01523945869 | D179: 0.007619729343 | E179: =aWolfSwitchingRate * simulation!G178 * step -> 0.004448200397 | F179: 34.28401073 | G179: 4.451371926 | I179: 0.0470404947 | J179: 166.101725 | M179: 0.8850832652 | N179: 147.0555814 | O179: 0.7668635872 | P179: 19.08786788 | Q179: 0.7667957494
A180: 0.356 | B180: 0.03943673918 | C180: 0.01526108829 | D180: 0.007630544145 | E180: =aWolfSwitchingRate * simulation!G179 * step -> 0.004451371926 | F180: 34.30818638 | G180: 4.454551099 | I180: 0.04706728333 | J180: 166.0546578 | M180: 0.8850825364 | N180: 147.0138572 | O180: 0.7666329756 | P180: 19.08258009 | Q180: 0.7665645275
A181: 0.358 | B181: 0.03945268052 | C181: 0.01528275693 | D181: 0.007641378467 | E181: =aWolfSwitchingRate * simulation!G180 * step -> 0.004454551099 | F181: 34.33235631 | G181: 4.457737926 | I181: 0.04709405899 | J181: 166.0075637 | M181: 0.8850816173 | N181: 146.9720777 | O181: 0.7664021843 | P181: 19.07732073 | Q181: 0.7663331246
A182: 0.36 | B182: 0.0394685893 | C182: 0.01530446468 | D182: 0.00765223234 | E182: =aWolfSwitchingRate * simulation!G181 * step -> 0.004457737926 | F182: 34.35652043 | G182: 4.46093242 | I182: 0.04712082164 | J182: 165.9604429 | M182: 0.8850805079 | N182: 146.930243 | O182: 0.7661712134 | P182: 19.0720898 | Q182: 0.7661015406
A183: 0.362 | B183: 0.03948446542 | C183: 0.01532621158 | D183: 0.007663105792 | E183: =aWolfSwitchingRate * simulation!G182 * step -> 0.00446093242 | F183: 34.38067869 | G183: 4.464134594 | I183: 0.04714757121 | J183: 165.9132953 | M183: 0.8850792081 | N183: 146.8883531 | O183: 0.7659400629 | P183: 19.06688728 | Q183: 0.7658697758
A184: 0.364 | B184: 0.03950030879 | C184: 0.01534799771 | D184: 0.007673998854 | E184: =aWolfSwitchingRate * simulation!G183 * step -> 0.004464134594 | F184: 34.404831 | G184: 4.467344458 | I184: 0.04717430765 | J184: 165.866121 | M184: 0.8850777178 | N184: 146.846408 | O184: 0.765708733 | P184: 19.06171316 | Q184: 0.7656378302
A185: 0.366 | B185: 0.03951611933 | C185: 0.01536982311 | D185: 0.007684911554 | E185: =aWolfSwitchingRate * simulation!G184 * step -> 0.004467344458 | F185: 34.42897729 | G185: 4.470562025 | I185: 0.04720103088 | J185: 165.81892 | M185: 0.8850760369 | N185: 146.8044078 | O185: 0.7654772237 | P185: 19.05656744 | Q185: 0.7654057039
A186: 0.368 | B186: 0.03953189693 | C186: 0.01539168784 | D186: 0.007695843922 | E186: =aWolfSwitchingRate * simulation!G185 * step -> 0.004470562025 | F186: 34.4531175 | G186: 4.473787307 | I186: 0.04722774085 | J186: 165.7716922 | M186: 0.8850741653 | N186: 146.7623525 | O186: 0.7652455353 | P186: 19.0514501 | Q186: 0.7651733971
A187: 0.37 | B187: 0.03954764152 | C187: 0.01541359198 | D187: 0.007706795988 | E187: =aWolfSwitchingRate * simulation!G186 * step -> 0.004473787307 | F187: 34.47725155 | G187: 4.477020316 | I187: 0.04725443751 | J187: 165.7244378 | M187: 0.885072103 | N187: 146.7202421 | O187: 0.7650136678 | P187: 19.04636112 | Q187: 0.7649409098
A188: 0.372 | B188: 0.039563353 | C188: 0.01543553556 | D188: 0.007717767781 | E188: =aWolfSwitchingRate * simulation!G187 * step -> 0.004477020316 | F188: 34.50137937 | G188: 4.480261063 | I188: 0.04728112078 | J188: 165.6771567 | M188: 0.8850698498 | N188: 146.6780767 | O188: 0.7647816214 | P188: 19.0413005 | Q188: 0.7647082423
A189: 0.374 | B189: 0.03957903128 | C189: 0.01545751866 | D189: 0.007728759331 | E189: =aWolfSwitchingRate * simulation!G188 * step -> 0.004480261063 | F189: 34.52550088 | G189: 4.483509561 | I189: 0.04730779061 | J189: 165.6298489 | M189: 0.8850674057 | N189: 146.6358562 | O189: 0.7645493961 | P189: 19.03626822 | Q189: 0.7644753945
A190: 0.376 | B190: 0.03959467628 | C190: 0.01547954133 | D190: 0.007739770666 | E190: =aWolfSwitchingRate * simulation!G189 * step -> 0.004483509561 | F190: 34.54961602 | G190: 4.486765823 | I190: 0.04733444694 | J190: 165.5825144 | M190: 0.8850647707 | N190: 146.5935807 | O190: 0.7643169922 | P190: 19.03126427 | Q190: 0.7642423667
A191: 0.378 | B191: 0.03961028789 | C191: 0.01550160363 | D191: 0.007750801816 | E191: =aWolfSwitchingRate * simulation!G190 * step -> 0.004486765823 | F191: 34.5737247 | G191: 4.490029859 | I191: 0.04736108971 | J191: 165.5351533 | M191: 0.8850619445 | N191: 146.5512502 | O191: 0.7640844096 | P191: 19.02628864 | Q191: 0.764009159
A192: 0.38 | B192: 0.03962586604 | C192: 0.01552370562 | D192: 0.007761852811 | E192: =aWolfSwitchingRate * simulation!G191 * step -> 0.004490029859 | F192: 34.59782686 | G192: 4.493301681 | I192: 0.04738771885 | J192: 165.4877656 | M192: 0.8850589272 | N192: 146.5088647 | O192: 0.7638516486 | P192: 19.02134132 | Q192: 0.7637757714
A193: 0.382 | B193: 0.03964141063 | C193: 0.01554584736 | D193: 0.007772923681 | E193: =aWolfSwitchingRate * simulation!G192 * step -> 0.004493301681 | F193: 34.62192242 | G193: 4.496581303 | I193: 0.04741433431 | J193: 165.4403513 | M193: 0.8850557185 | N193: 146.4664243 | O193: 0.7636187093 | P193: 19.0164223 | Q193: 0.7635422041
A194: 0.384 | B194: 0.03965692157 | C194: 0.01556802891 | D194: 0.007784014453 | E194: =aWolfSwitchingRate * simulation!G193 * step -> 0.004496581303 | F194: 34.64601132 | G194: 4.499868737 | I194: 0.04744093602 | J194: 165.3929104 | M194: 0.8850523186 | N194: 146.423929 | O194: 0.7633855917 | P194: 19.01153157 | Q194: 0.7633084572
A195: =IF(A194 + step > T, "", A194 + step) -> 0.386 | B195: =aMooseAcquisitionRate * O194 * F194 *step -> 0.03967239877 | C195: =aMooseSwitchingRate * F194 * G194 *step -> 0.01559025032 | D195: 0.007795125159 | E195: =aWolfSwitchingRate * simulation!G194 * step -> 0.004499868737 | F195: 34.67009347 | G195: 4.503163993 | I195: =B195+D195 -> 0.04746752393 | J195: 165.3454428 | M195: 0.8850487272 | N195: 146.3813788 | O195: =1 - F195/N195 -> 0.7631522961 | P195: =(1 - M195) * J195 -> 19.0066691 | Q195: =1 - G195/P195 -> 0.7630745309
A196: 0.388 | B196: 0.03968784215 | C196: 0.01561251165 | D196: =aWolfAcquisitionRate * G195 * aMooseSwitchingRate * F195 * step -> 0.007806255827 | E196: =aWolfSwitchingRate * simulation!G195 * step -> 0.004503163993 | F196: =F195 +B196 - C196 -> 34.6941688 | G196: =G195 + D196 - E196 -> 4.506467085 | I196: 0.04749409798 | J196: =J195 - I196 -> 165.2979487 | M196: =F195 / (F195 + G195) -> 0.8850449443 | N196: =M195 *J195 -> 146.3387737 | O196: 0.7629188224 | P196: 19.0018349 | Q196: 0.7628404253
A197: 0.39 | B197: 0.03970325161 | C197: 0.01563481297 | D197: 0.007817406486 | E197: =aWolfSwitchingRate * simulation!G196 * step -> 0.004506467085 | F197: 34.71823723 | G197: 4.509778024 | I197: 0.04752065809 | J197: 165.2504281 | M197: 0.8850409698 | N197: 146.2961138 | O197: 0.762685171 | P197: 18.99702895 | Q197: 0.7626061404
A198: 0.392 | B198: 0.03971862705 | C198: 0.01565715433 | D198: 0.007828577166 | E198: =aWolfSwitchingRate * simulation!G197 * step -> 0.004509778024 | F198: 34.74229871 | G198: 4.513096823 | I198: 0.04754720422 | J198: 165.2028809 | M198: 0.8850368036 | N198: 146.2533991 | O198: 0.7624513419 | P198: 18.99225125 | Q198: 0.7623716765
A199: 0.394 | B199: 0.0397339684 | C199: 0.01567953579 | D199: 0.007839767897 | E199: =aWolfSwitchingRate * simulation!G198 * step -> 0.004513096823 | F199: 34.76635314 | G199: 4.516423494 | I199: 0.0475737363 | J199: 165.1553071 | M199: 0.8850324455 | N199: 146.2106296 | O199: 0.7622173352 | P199: 18.98750177 | Q199: 0.7621370336
A200: 0.396 | B200: 0.03974927557 | C200: 0.01570195741 | D200: 0.007850978707 | E200: =aWolfSwitchingRate * simulation!G199 * step -> 0.004516423494 | F200: 34.79040046 | G200: 4.51975805 | I200: 0.04760025427 | J200: 165.1077069 | M200: 0.8850278956 | N200: 146.1678054 | O200: 0.761983151 | P200: 18.9827805 | Q200: 0.7619022119
... 4299 more rows

Sheet synthetic-data
I2: median | J2: =MEDIAN(J8:J107) -> 138.6355628 | K2: 137 | L2: =INDEX(L8:L107, MATCH( RANDBETWEEN(1, 100), $I$8:$I$107, 0),) -> 35.28802281 | M2: =INDEX(M8:M107, MATCH( RANDBETWEEN(1, 100), $I$8:$I$107, 0),) -> 28.33022633 | N2: =INDEX(N8:N107, MATCH( RANDBETWEEN(1, 100), $I$8:$I$107, 0),) -> 29.1032225 | O2: =INDEX(O8:O107, MATCH( RANDBETWEEN(1, 100), $I$8:$I$107, 0),) -> 21.79908338 | P2: =INDEX(P8:P107, MATCH( RANDBETWEEN(1, 100), $I$8:$I$107, 0),) -> 15.92079718 | Q2: =INDEX(Q8:Q107, MATCH( RANDBETWEEN(1, 100), $I$8:$I$107, 0),) -> 12.1375161 | R2: =INDEX(R8:R107, MATCH( RANDBETWEEN(1, 100), $I$8:$I$107, 0),) -> 10.41229636 | S2: =INDEX(S8:S107, MATCH( RANDBETWEEN(1, 100), $I$8:$I$107, 0),) -> 9.40300748 | T2: =INDEX(T8:T107, MATCH( RANDBETWEEN(1, 100), $I$8:$I$107, 0),) -> 10.39337654 | U2: =INDEX(U8:U107, MATCH( RANDBETWEEN(1, 100), $I$8:$I$107, 0),) -> 12.14966993 | V2: =INDEX(V8:V107, MATCH( RANDBETWEEN(1, 100), $I$8:$I$107, 0),) -> 15.47132646 | W2: =INDEX(W8:W107, MATCH( RANDBETWEEN(1, 100), $I$8:$I$107, 0),) -> 10.38187284 | X2: =INDEX(X8:X107, MATCH( RANDBETWEEN(1, 100), $I$8:$I$107, 0),) -> 13.21222646 | Y2: =INDEX(Y8:Y107, MATCH( RANDBETWEEN(1, 100), $I$8:$I$107, 0),) -> 11.38574689 | Z2: =INDEX(Z8:Z107, MATCH( RANDBETWEEN(1, 100), $I$8:$I$107, 0),) -> 11.17273457 | AA2: =INDEX(AA8:AA107, MATCH( RANDBETWEEN(1, 100), $I$8:$I$107, 0),) -> 12.6950102 | AB2: =INDEX(AB8:AB107, MATCH( RANDBETWEEN(1, 100), $I$8:$I$107, 0),) -> 11.06494673 | AC2: =INDEX(AC8:AC107, MATCH( RANDBETWEEN(1, 100), $I$8:$I$107, 0),) -> 9.677198303 | AD2: =INDEX(AD8:AD107, MATCH( RANDBETWEEN(1, 100), $I$8:$I$107, 0),) -> 9.98345341 | AE2: =INDEX(AE8:AE107, MATCH( RANDBETWEEN(1, 100), $I$8:$I$107, 0),) -> 12.65168408 | AF2: =INDEX(AF8:AF107, MATCH( RANDBETWEEN(1, 100), $I$8:$I$107, 0),) -> 13.39181762 | AG2: =INDEX(AG8:AG107, MATCH( RANDBETWEEN(1, 100), $I$8:$I$107, 0),) -> 9.594735582 | AH2: =INDEX(AH8:AH107, MATCH( RANDBETWEEN(1, 100), $I$8:$I$107, 0),) -> 12.19373709 | AI2: =INDEX(AI8:AI107, MATCH( RANDBETWEEN(1, 100), $I$8:$I$107, 0),) -> 11.38837865
C3: month | D3: =simulation!F1 -> sMoose | E3: =simulation!G1 -> sWolf | F3: =simulation!J1 -> sCustomers | G3: sMoose_synth | L3: 1 | M3: =L3+1 -> 2 | N3: 3 | O3: 4 | P3: 5 | Q3: 6 | R3: 7 | S3: 8 | T3: 9 | U3: 10 | V3: 11 | W3: 12 | X3: 13 | Y3: 14 | Z3: 15 | AA3: 16 | AB3: 17 | AC3: 18 | AD3: 19 | AE3: 20 | AF3: 21 | AG3: 22 | AH3: =AG3+1 -> 23 | AI3: 24
C4: 1 | D4: =INDEX( INDIRECT(D$3), MATCH( $C4, time, 1), ) -> 41.31487473 | E4: =INDEX( INDIRECT(E$3), MATCH( $C4, time, 1), ) -> 5.942730955 | F4: =INDEX( INDIRECT(F$3), MATCH( $C4, time, 1), ) -> 149.6602699 | G4: =TRANSPOSE(L2:AI2) -> 35.28802281 | J4: =inputs!D1 -> lambda | K4: =inputs!B2 -> aCustomersInitial | L4: =$D$3&"_"&L3 -> sMoose_1 | M4: sMoose_2 | N4: sMoose_3 | O4: sMoose_4 | P4: sMoose_5 | Q4: sMoose_6 | R4: sMoose_7 | S4: sMoose_8 | T4: sMoose_9 | U4: sMoose_10 | V4: sMoose_11 | W4: sMoose_12 | X4: sMoose_13 | Y4: sMoose_14 | Z4: sMoose_15 | AA4: sMoose_16 | AB4: sMoose_17 | AC4: sMoose_18 | AD4: sMoose_19 | AE4: sMoose_20 | AF4: sMoose_21 | AG4: sMoose_22 | AH4: =$D$3&"_"&AH3 -> sMoose_23 | AI4: =$D$3&"_"&AI3 -> sMoose_24
C5: =C4+1 -> 2 | D5: =INDEX( INDIRECT(D$3), MATCH( $C5, time, 1), ) -> 43.77029783 | E5: =INDEX( INDIRECT(E$3), MATCH( $C5, time, 1), ) -> 10.76252485 | F5: =INDEX( INDIRECT(F$3), MATCH( $C5, time, 1), ) -> 120.6416652 | G5: 28.33022633 | J5: =inputs!D2 -> 167.4284866 | K5: =aCustomersInitial -> 174 | L5: =TRANSPOSE( D4:D27 ) -> 41.31487473 | M5: 43.77029783 | N5: 31.58840896 | O5: 17.82274816 | P5: 10.77998815 | Q5: 8.161120587 | R5: 7.672707028 | S5: 8.397825526 | T5: 9.939116165 | U5: 11.85514134 | V5: 13.46905978 | W5: 14.19572135 | X5: 14.0753223 | Y5: 13.54747091 | Z5: 12.95282869 | AA5: 12.43042753 | AB5: 12.00925695 | AC5: 11.67975812 | AD5: 11.42407223 | AE5: 11.22529342 | AF5: 11.07096805 | AG5: 10.95053148 | AH5: 10.85630682 | AI5: 10.78244534
C6: =C5+1 -> 3 | D6: =INDEX( INDIRECT(D$3), MATCH( $C6, time, 1), ) -> 31.58840896 | E6: =INDEX( INDIRECT(E$3), MATCH( $C6, time, 1), ) -> 17.13566944 | F6: =INDEX( INDIRECT(F$3), MATCH( $C6, time, 1), ) -> 92.57204755 | G6: 29.1032225
C7: 4 | D7: =INDEX( INDIRECT(D$3), MATCH( $C7, time, 1), ) -> 17.82274816 | E7: =INDEX( INDIRECT(E$3), MATCH( $C7, time, 1), ) -> 19.04880889 | F7: =INDEX( INDIRECT(F$3), MATCH( $C7, time, 1), ) -> 72.68993107 | G7: 21.79908338 | I7: run | J7: =J4 -> lambda | K7: =K4 -> aCustomersInitial | L7: sMoose_1 | M7: sMoose_2 | N7: sMoose_3 | O7: sMoose_4 | P7: sMoose_5 | Q7: sMoose_6 | R7: sMoose_7 | S7: sMoose_8 | T7: sMoose_9 | U7: sMoose_10 | V7: sMoose_11 | W7: sMoose_12 | X7: sMoose_13 | Y7: sMoose_14 | Z7: sMoose_15 | AA7: sMoose_16 | AB7: sMoose_17 | AC7: sMoose_18 | AD7: sMoose_19 | AE7: sMoose_20 | AF7: sMoose_21 | AG7: sMoose_22 | AH7: sMoose_23 | AI7: sMoose_24
C8: 5 | D8: =INDEX( INDIRECT(D$3), MATCH( $C8, time, 1), ) -> 10.77998815 | E8: =INDEX( INDIRECT(E$3), MATCH( $C8, time, 1), ) -> 16.31290568 | F8: =INDEX( INDIRECT(F$3), MATCH( $C8, time, 1), ) -> 61.07845207 | G8: 15.92079718 | I8: 1 | J8: 165.3259916 | K8: 164 | L8: 40.87420927 | M8: 42.87098102 | N8: 31.09484657 | O8: 17.90553453 | P8: 11.00337204 | Q8: 8.359309509 | R8: 7.804739641 | S8: 8.418809202 | T8: 9.76358677 | U8: 11.37423208 | V8: 12.64524696 | W8: 13.15924251 | X8: 13.02931449 | Y8: 12.61546424 | Z8: 12.16558183 | AA8: 11.77481699 | AB8: 11.46082402 | AC8: 11.21523532 | AD8: 11.0245513 | AE8: 10.87626208 | AF8: 10.76118204 | AG8: 10.67147826 | AH8: 10.60142679 | AI8: 10.54664432
C9: 6 | D9: =INDEX( INDIRECT(D$3), MATCH( $C9, time, 1), ) -> 8.161120587 | E9: =INDEX( INDIRECT(E$3), MATCH( $C9, time, 1), ) -> 12.46068333 | F9: =INDEX( INDIRECT(F$3), MATCH( $C9, time, 1), ) -> 53.68119143 | G9: 12.1375161 | I9: =I8+1 -> 2 | J9: 92.73112822 | K9: 86 | L9: 34.8696397 | M9: 32.24640873 | N9: 24.61975615 | O9: 17.48864206 | P9: 12.96484778 | Q9: 10.57502709 | R9: 9.468832393 | S9: 9.047890087 | T9: 8.93563587 | U9: 8.909558922 | V9: 8.870877165 | W9: 8.804043768 | X9: 8.725180484 | Y9: 8.650074362 | Z9: 8.586165538 | AA9: 8.534886659 | AB9: 8.494979446 | AC9: 8.464418314 | AD9: 8.441219796 | AE9: 8.423669325 | AF9: 8.410486493 | AG9: 8.40058176 | AH9: 8.393150212 | AI9: 8.387579653
C10: 7 | D10: =INDEX( INDIRECT(D$3), MATCH( $C10, time, 1), ) -> 7.672707028 | E10: =INDEX( INDIRECT(E$3), MATCH( $C10, time, 1), ) -> 9.182331091 | F10: =INDEX( INDIRECT(F$3), MATCH( $C10, time, 1), ) -> 47.87616167 | G10: 10.41229636 | I10: =I9+1 -> 3 | J10: 228.4341388 | K10: 204 | L10: 42.40738876 | M10: 46.06215988 | N10: 32.76608828 | O10: 17.50035265 | P10: 10.16166421 | Q10: 7.629989993 | R10: 7.300680548 | S10: 8.286363967 | T10: 10.32804031 | U10: 13.13421146 | V10: 15.95324376 | W10: 17.64392413 | X10: 17.70969604 | Y10: 16.72524593 | Z10: 15.45713688 | AA10: 14.3035912 | AB10: 13.37514373 | AC10: 12.6624986 | AD10: 12.12375682 | AE10: 11.71594021 | AF10: 11.4067164 | AG10: 11.17002657 | AH10: 10.98767963 | AI10: 10.84647729
C11: 8 | D11: =INDEX( INDIRECT(D$3), MATCH( $C11, time, 1), ) -> 8.397825526 | E11: =INDEX( INDIRECT(E$3), MATCH( $C11, time, 1), ) -> 6.793773096 | F11: =INDEX( INDIRECT(F$3), MATCH( $C11, time, 1), ) -> 42.43879786 | G11: 9.40300748 | I11: 4 | J11: 207.6233515 | K11: 186 | L11: 41.78901374 | M11: 44.75441281 | N11: 32.10959297 | O11: 17.70481132 | P11: 10.52355294 | Q11: 7.93836643 | R11: 7.520555174 | S11: 8.362865765 | T11: 10.12204516 | U11: 12.40480372 | V11: 14.4770862 | W11: 15.53062208 | X11: 15.45025757 | Y11: 14.75912731 | Z11: 13.9414978 | AA11: 13.21288279 | AB11: 12.62426532 | AC11: 12.16531786 | AD11: 11.81107959 | AE11: 11.53715522 | AF11: 11.325432 | AG11: 11.16074064 | AH11: 11.03217471 | AI11: 10.93152694
C12: 9 | D12: =INDEX( INDIRECT(D$3), MATCH( $C12, time, 1), ) -> 9.939116165 | E12: =INDEX( INDIRECT(E$3), MATCH( $C12, time, 1), ) -> 5.174651125 | F12: =INDEX( INDIRECT(F$3), MATCH( $C12, time, 1), ) -> 36.85978739 | G12: 10.39337654 | I12: 5 | J12: 135.8250311 | K12: 128 | L12: 38.82261723 | M12: 38.89306189 | N12: 28.76855123 | O12: 18.02379003 | P12: 11.88373871 | Q12: 9.206416376 | R12: 8.370693064 | S12: 8.504689098 | T12: 9.100379409 | U12: 9.745972604 | V12: 10.14926248 | W12: 10.24691784 | X12: 10.15328713 | Y12: 9.9943386 | Z12: 9.837563049 | AA12: 9.705559084 | AB12: 9.600886898 | AC12: 9.519797139 | AD12: 9.457521747 | AE12: 9.409760444 | AF12: 9.373315885 | AG12: 9.345452791 | AH12: 9.324152889 | AI12: 9.307870839
C13: 10 | D13: =INDEX( INDIRECT(D$3), MATCH( $C13, time, 1), ) -> 11.85514134 | E13: =INDEX( INDIRECT(E$3), MATCH( $C13, time, 1), ) -> 4.122261089 | F13: =INDEX( INDIRECT(F$3), MATCH( $C13, time, 1), ) -> 31.19813263 | G13: 12.14966993 | I13: 6 | J13: 95.99378521 | K13: 94 | L13: 35.81664372 | M13: 33.71830519 | N13: 25.55297818 | O13: 17.67901291 | P13: 12.77606149 | Q13: 10.28464825 | R13: 9.208165627 | S13: 8.876513983 | T13: 8.8720581 | U13: 8.937383698 | V13: 8.954380843 | W13: 8.910035849 | X13: 8.834227047 | Y13: 8.754343701 | Z13: 8.683862315 | AA13: 8.626502592 | AB13: 8.581594602 | AC13: 8.547100673 | AD13: 8.520865293 | AE13: 8.500984354 | AF13: 8.486027114 | AG13: 8.474771088 | AH13: 8.466311799 | AI13: 8.45996028
C14: 11 | D14: =INDEX( INDIRECT(D$3), MATCH( $C14, time, 1), ) -> 13.46905978 | E14: =INDEX( INDIRECT(E$3), MATCH( $C14, time, 1), ) -> 3.43595501 | F14: =INDEX( INDIRECT(F$3), MATCH( $C14, time, 1), ) -> 26.00818213 | G14: 15.47132646 | I14: 7 | J14: 96.43126924 | K14: 73 | L14: 33.05305647 | M14: 29.61999083 | N14: 22.94101377 | O14: 17.04730554 | P14: 13.20714934 | Q14: 11.0461667 | R14: 9.934750106 | S14: 9.40300748 | T14: 9.150805357 | U14: 9.007703311 | V14: 8.896826124 | W14: 8.797347409 | X14: 8.709157249 | Y14: 8.634953534 | Z14: 8.575191495 | AA14: 8.528416929 | AB14: 8.492431259 | AC14: 8.465025435 | AD14: 8.444280638 | AE14: 8.428610324 | AF14: 8.416849739 | AG14: 8.408017757 | AH14: 8.401392702 | AI14: 8.396427142
C15: 12 | D15: =INDEX( INDIRECT(D$3), MATCH( $C15, time, 1), ) -> 14.19572135 | E15: =INDEX( INDIRECT(E$3), MATCH( $C15, time, 1), ) -> 2.95097267 | F15: =INDEX( INDIRECT(F$3), MATCH( $C15, time, 1), ) -> 21.96201759 | G15: 10.38187284 | I15: 8 | J15: 93.65709248 | K15: 74 | L15: 33.20675574 | M15: 29.83265126 | N15: 23.07757877 | O15: 17.08797882 | P15: 13.19256656 | Q15: 11.01099424 | R15: 9.897703117 | S15: 9.37263317 | T15: 9.129488871 | U15: 8.994022874 | V15: 8.887949043 | W15: 8.790801796 | X15: 8.703461958 | Y15: 8.629419604 | Z15: 8.569563708 | AA15: 8.522630299 | AB15: 8.4864909 | AC15: 8.458956805 | AD15: 8.438111339 | AE15: 8.422364252 | AF15: 8.410546342 | AG15: 8.401671917 | AH15: 8.395015664 | AI15: 8.390027294
C16: 13 | D16: =INDEX( INDIRECT(D$3), MATCH( $C16, time, 1), ) -> 14.0753223 | E16: =INDEX( INDIRECT(E$3), MATCH( $C16, time, 1), ) -> 2.551913775 | F16: =INDEX( INDIRECT(F$3), MATCH( $C16, time, 1), ) -> 19.15798773 | G16: 13.21222646 | I16: 9 | J16: 226.6878564 | K16: 241 | L16: 43.41517852 | M16: 48.24656019 | N16: 33.74929723 | O16: 17.02589608 | P16: 9.499152649 | Q16: 7.076236222 | R16: 6.874709472 | S16: 8.052054991 | T16: 10.5046765 | U16: 14.18946445 | V16: 18.53153594 | W16: 21.93272837 | X16: 22.7296903 | Y16: 21.04768303 | Z16: 18.38298458 | AA16: 15.88987107 | AB16: 13.96896352 | AC16: 12.61079971 | AD16: 11.68209255 | AE16: 11.04698965 | AF16: 10.60626501 | AG16: 10.29115469 | AH16: 10.0599322 | AI16: 9.887025349
C17: 14 | D17: =INDEX( INDIRECT(D$3), MATCH( $C17, time, 1), ) -> 13.54747091 | E17: =INDEX( INDIRECT(E$3), MATCH( $C17, time, 1), ) -> 2.186985602 | F17: =INDEX( INDIRECT(F$3), MATCH( $C17, time, 1), ) -> 17.22899806 | G17: 11.38574689 | I17: 10 | J17: 182.4817693 | K17: 182 | L17: 41.63703638 | M17: 44.43715814 | N17: 31.94391918 | O17: 17.74607492 | P17: 10.60765214 | Q17: 8.010951542 | R17: 7.57067235 | S17: 8.375884925 | T17: 10.06488106 | U17: 12.22616349 | V17: 14.1408634 | W17: 15.07652885 | X17: 14.97859271 | Y17: 14.34501794 | Z17: 13.60814623 | AA17: 12.95462459 | AB17: 12.42686216 | AC17: 12.01467977 | AD17: 11.6957598 | AE17: 11.44853259 | AF17: 11.2570313 | AG17: 11.10781339 | AH17: 10.99117379 | AI17: 10.89977265
C18: 15 | D18: =INDEX( INDIRECT(D$3), MATCH( $C18, time, 1), ) -> 12.95282869 | E18: =INDEX( INDIRECT(E$3), MATCH( $C18, time, 1), ) -> 1.847248339 | F18: =INDEX( INDIRECT(F$3), MATCH( $C18, time, 1), ) -> 15.82007745 | G18: 11.17273457 | I18: 11 | J18: 104.6486555 | K18: 93 | L18: 35.70446326 | M18: 33.54011024 | N18: 25.44031184 | O18: 17.65811438 | P18: 12.80071075 | Q18: 10.32049934 | R18: 9.239419775 | S18: 8.895916065 | T18: 8.877163219 | U18: 8.930223697 | V18: 8.939734673 | W18: 8.892465166 | X18: 8.81641284 | Y18: 8.737341931 | Z18: 8.667886369 | AA18: 8.611454317 | AB18: 8.567302169 | AC18: 8.53340034 | AD18: 8.507621633 | AE18: 8.48809127 | AF18: 8.4734013 | AG18: 8.46234919 | AH18: 8.454045333 | AI18: 8.447812209
C19: 16 | D19: =INDEX( INDIRECT(D$3), MATCH( $C19, time, 1), ) -> 12.43042753 | E19: =INDEX( INDIRECT(E$3), MATCH( $C19, time, 1), ) -> 1.538429997 | F19: =INDEX( INDIRECT(F$3), MATCH( $C19, time, 1), ) -> 14.73350824 | G19: 12.6950102 | I19: 12 | J19: 86.10348048 | K19: 97 | L19: 36.14332761 | M19: 34.24320616 | N19: 25.88430764 | O19: 17.73714012 | P19: 12.70075913 | Q19: 10.1781543 | R19: 9.116778438 | S19: 8.821704484 | T19: 8.861482537 | U19: 8.965092888 | V19: 9.005534114 | W19: 8.970191092 | X19: 8.89485912 | Y19: 8.812132805 | Z19: 8.738186802 | AA19: 8.677725796 | AB19: 8.630301642 | AC19: 8.593840052 | AD19: 8.566087687 | AE19: 8.545041786 | AF19: 8.529195678 | AG19: 8.517260738 | AH19: 8.508283292 | AI19: 8.501536537
C20: 17 | D20: =INDEX( INDIRECT(D$3), MATCH( $C20, time, 1), ) -> 12.00925695 | E20: =INDEX( INDIRECT(E$3), MATCH( $C20, time, 1), ) -> 1.26620416 | F20: =INDEX( INDIRECT(F$3), MATCH( $C20, time, 1), ) -> 13.87225346 | G20: 11.06494673 | I20: 13 | J20: 104.6534152 | K20: 115 | L20: 37.83378391 | M20: 37.10452746 | N20: 27.67260774 | O20: 17.96316883 | P20: 12.22693574 | Q20: 9.583085994 | R20: 8.642742356 | S20: 8.590183542 | T20: 8.933578892 | U20: 9.317519156 | V20: 9.536757244 | W20: 9.566363107 | X20: 9.485406132 | Y20: 9.370408227 | Z20: 9.260774402 | AA20: 9.169322684 | AB20: 9.097063997 | AC20: 9.041260385 | AD20: 8.99858562 | AE20: 8.966038036 | AF20: 8.941367328 | AG20: 8.922646584 | AH20: 8.908451093 | AI20: 8.897692163
C21: 18 | D21: =INDEX( INDIRECT(D$3), MATCH( $C21, time, 1), ) -> 11.67975812 | E21: =INDEX( INDIRECT(E$3), MATCH( $C21, time, 1), ) -> 1.0324453 | F21: =INDEX( INDIRECT(F$3), MATCH( $C21, time, 1), ) -> 13.18347088 | G21: 9.677198303 | I21: 14 | J21: 186.1006308 | K21: 198 | L21: 42.2123429 | M21: 45.64682269 | N21: 32.56247085 | O21: 17.57144303 | P21: 10.27932604 | Q21: 7.729645987 | R21: 7.373044889 | S21: 8.315096821 | T21: 10.26882569 | U21: 12.90587458 | V21: 15.47132646 | W21: 16.93103925 | X21: 16.93461121 | Y21: 16.05358939 | Z21: 14.95205158 | AA21: 13.95660566 | AB21: 13.15353732 | AC21: 12.53288878 | AD21: 12.05952806 | AE21: 11.69794598 | AF21: 11.42152792 | AG21: 11.20848498 | AH21: 11.043421 | AI21: 10.91499693
C22: 19 | D22: =INDEX( INDIRECT(D$3), MATCH( $C22, time, 1), ) -> 11.42407223 | E22: =INDEX( INDIRECT(E$3), MATCH( $C22, time, 1), ) -> 0.8357333422 | F22: =INDEX( INDIRECT(F$3), MATCH( $C22, time, 1), ) -> 12.6323136 | G22: 9.98345341 | I22: 15 | J22: 216.3742505 | K22: 210 | L22: 42.5924642 | M22: 46.45860095 | N22: 32.95585404 | O22: 17.42696536 | P22: 10.04691563 | Q22: 7.533258395 | R22: 7.229184229 | S22: 8.254592875 | T22: 10.37796487 | U22: 13.34660985 | V22: 16.42070362 | W22: 18.35897599 | X22: 18.50199471 | Y22: 17.40958598 | Z22: 15.95794395 | AA22: 14.62928388 | AB22: 13.56370805 | AC22: 12.75283271 | AD22: 12.14647055 | AE22: 11.69253483 | AF22: 11.35176107 | AG22: 11.09308611 | AH22: 10.8951462 | AI22: 10.74271915
C23: 20 | D23: =INDEX( INDIRECT(D$3), MATCH( $C23, time, 1), ) -> 11.22529342 | E23: =INDEX( INDIRECT(E$3), MATCH( $C23, time, 1), ) -> 0.672394939 | F23: =INDEX( INDIRECT(F$3), MATCH( $C23, time, 1), ) -> 12.19148117 | G23: 12.65168408 | I23: 16 | J23: 211.514005 | K23: 199 | L23: 35.46453009 | M23: 36.65284479 | N23: 31.33579152 | O23: 22.70857496 | P23: 15.81352838 | Q23: 11.95805062 | R23: 10.30327636 | S23: 10.04361351 | T23: 10.76102779 | U23: 12.25687305 | V23: 14.39161841 | W23: 16.92360373 | X23: 19.42010895 | Y23: 21.28401606 | Z23: 21.99877761 | AA23: 21.45573489 | AB23: 20.01289958 | AC23: 18.21033441 | AD23: 16.47018864 | AE23: 14.99973229 | AF23: 13.85367503 | AG23: 12.99553476 | AH23: 12.36514832 | AI23: 11.9031453
C24: 21 | D24: =INDEX( INDIRECT(D$3), MATCH( $C24, time, 1), ) -> 11.07096805 | E24: =INDEX( INDIRECT(E$3), MATCH( $C24, time, 1), ) -> 0.5388428143 | F24: =INDEX( INDIRECT(F$3), MATCH( $C24, time, 1), ) -> 11.84123681 | G24: 13.39181762 | I24: 17 | J24: 204.0597177 | K24: 232 | L24: 35.94476918 | M24: 37.62269161 | N24: 32.21058897 | O24: 22.96143694 | P24: 15.62114592 | Q24: 11.62228678 | R24: 9.962933913 | S24: 9.755909697 | T24: 10.5789795 | U24: 12.26993275 | V24: 14.7547674 | W24: 17.86618927 | X24: 21.19764103 | Y24: 24.01566187 | Z24: 25.42991167 | AA24: 24.90493976 | AB24: 22.72188823 | AC24: 19.79327745 | AD24: 16.99962428 | AE24: 14.78165095 | AF24: 13.21146211 | AG24: 12.16987247 | AH24: 11.50415946 | AI24: 11.08063336
C25: 22 | D25: =INDEX( INDIRECT(D$3), MATCH( $C25, time, 1), ) -> 10.95053148 | E25: =INDEX( INDIRECT(E$3), MATCH( $C25, time, 1), ) -> 0.4303433211 | F25: =INDEX( INDIRECT(F$3), MATCH( $C25, time, 1), ) -> 11.56298471 | G25: 9.594735582 | I25: 18 | J25: 75.58039467 | K25: 79 | L25: 30.89992046 | M25: 28.33022633 | N25: 23.52862118 | O25: 18.65809636 | P25: 14.97685772 | Q25: 12.63277423 | R25: 11.31113391 | S25: 10.66268887 | T25: 10.41342834 | U25: 10.36356223 | V25: 10.37780803 | W25: 10.38187284 | X25: 10.35173527 | Y25: 10.29326046 | Z25: 10.22160621 | AA25: 10.14954823 | AB25: 10.08438197 | AC25: 10.02894366 | AD25: 9.98345341 | AE25: 9.946855975 | AF25: 9.917907836 | AG25: 9.895138083 | AH25: 9.87731436 | AI25: 9.863404747
C26: 23 | D26: =INDEX( INDIRECT(D$3), MATCH( $C26, time, 1), ) -> 10.85630682 | E26: =INDEX( INDIRECT(E$3), MATCH( $C26, time, 1), ) -> 0.3427740467 | F26: =INDEX( INDIRECT(F$3), MATCH( $C26, time, 1), ) -> 11.34232272 | G26: 12.19373709 | I26: 19 | J26: 152.5522397 | K26: 148 | L26: 34.33647807 | M26: 34.43296615 | N26: 29.26501337 | O26: 21.87509527 | P26: 15.95615659 | Q26: 12.47541017 | R26: 10.85518574 | S26: 10.45079374 | T26: 10.85680157 | U26: 11.80683793 | V26: 13.06054815 | W26: 14.3272346 | X26: 15.30289178 | Y26: 15.78761809 | Z26: 15.78093808 | AA26: 15.43752495 | AB26: 14.94030565 | AC26: 14.41918351 | AD26: 13.94115189 | AE26: 13.52981225 | AF26: 13.18898227 | AG26: 12.91067977 | AH26: 12.68516418 | AI26: 12.50292953
C27: 24 | D27: =INDEX( INDIRECT(D$3), MATCH( $C27, time, 1), ) -> 10.78244534 | E27: =INDEX( INDIRECT(E$3), MATCH( $C27, time, 1), ) -> 0.2724534324 | F27: =INDEX( INDIRECT(F$3), MATCH( $C27, time, 1), ) -> 11.16756574 | G27: 11.38837865 | I27: 20 | J27: 83.78782833 | K27: 74 | L27: 30.45587698 | M27: 27.62363338 | N27: 22.88898142 | O27: 18.26021522 | P27: 14.79829868 | Q27: 12.58566523 | R27: 11.31977617 | S27: 10.67590468 | T27: 10.39972802 | U27: 10.30813795 | V27: 10.280595 | W27: 10.25349006 | X27: 10.20638638 | Y27: 10.14286289 | Z27: 10.07355402 | AA27: 10.00726947 | AB27: 9.948798162 | AC27: 9.899716352 | AD27: 9.859752763 | AE27: 9.827759942 | AF27: 9.80254356 | AG27: 9.782766096 | AH27: 9.767324587 | AI27: 9.755303699
I28: 21 | J28: 114.1525913 | K28: 110 | L28: 32.89991396 | M28: 31.75003767 | N28: 26.7155867 | O28: 20.55165066 | P28: 15.6960366 | Q28: 12.70713077 | R28: 11.1744776 | S28: 10.60381148 | T28: 10.63015051 | U28: 10.98059448 | V28: 11.43148193 | W28: 11.80553729 | X28: 12.007756 | Y28: 12.03613153 | Z28: 11.94582532 | AA28: 11.79976547 | AB28: 11.64219329 | AC28: 11.49616983 | AD28: 11.3704311 | AE28: 11.26601726 | AF28: 11.18137329 | AG28: 11.11331874 | AH28: 11.05889426 | AI28: 11.01548694
I29: 22 | J29: 137.4873215 | K29: 157 | L29: 34.58432262 | M29: 34.91293386 | N29: 29.71829657 | O29: 22.08071808 | P29: 15.95754685 | Q29: 12.39216994 | R29: 10.7619979 | S29: 10.3907337 | T29: 10.86930635 | U29: 11.94231771 | V29: 13.38234885 | W29: 14.89300206 | X29: 16.12619886 | Y29: 16.80508176 | Z29: 16.86895471 | AA29: 16.4726762 | AB29: 15.84476105 | AC29: 15.16486819 | AD29: 14.5325212 | AE29: 13.98610619 | AF29: 13.53396772 | AG29: 13.1664223 | AH29: 12.87035061 | AI29: 12.63259828
I30: 23 | J30: 141.1665357 | K30: 151 | L30: 34.42207768 | M30: 34.59820761 | N30: 29.42130126 | O30: 21.94724542 | P30: 15.95846439 | Q30: 12.44842074 | R30: 10.82461221 | S30: 10.43165593 | T30: 10.86277475 | U30: 11.85506646 | V30: 13.1719916 | W30: 14.51997081 | X30: 15.57939401 | Y30: 16.12524588 | Z30: 16.13923179 | AA30: 15.77791714 | AB30: 15.23931942 | AC30: 14.66870729 | AD30: 14.14278888 | AE30: 13.68947755 | AF30: 13.31388672 | AG30: 13.00750709 | AH30: 12.75959832 | AI30: 12.55957968
I31: 24 | J31: 296.3010022 | K31: 280 | L31: 36.44972754 | M31: 38.6554671 | N31: 33.1119309 | O31: 23.13999555 | P31: 15.32391513 | Q31: 11.1953614 | R31: 9.541392364 | S31: 9.382939209 | T31: 10.29348573 | U31: 12.14862661 | V31: 14.94620185 | W31: 18.61576643 | X31: 22.82669596 | Y31: 26.76322579 | Z31: 29.10520734 | AA31: 28.63126214 | AB31: 25.37189595 | AC31: 20.88740145 | AD31: 16.88457575 | AE31: 14.07966743 | AF31: 12.42223973 | AG31: 11.60225568 | AH31: 11.32498674 | AI31: 11.34930921
I32: 25 | J32: 121.9169589 | K32: 103 | L32: 32.53643698 | M32: 31.10015358 | N32: 26.10084426 | O32: 20.20146707 | P32: 15.58392756 | Q32: 12.71717752 | R32: 11.21585356 | S32: 10.61679033 | T32: 10.57017742 | U32: 10.81341553 | V32: 11.13980689 | W32: 11.39985249 | X32: 11.52443682 | Y32: 11.52036757 | Z32: 11.43358552 | AA32: 11.31124833 | AB32: 11.18479111 | AC32: 11.06989531 | AD32: 10.97204788 | AE32: 10.8913902 | AF32: 10.82638422 | AG32: 10.77439632 | AH32: 10.73304042 | AI32: 10.70023611
I33: 26 | J33: 173.9463553 | K33: 141 | L33: 34.12397266 | M33: 34.02521603 | N33: 28.87851458 | O33: 21.69137967 | P33: 15.94263295 | Q33: 12.53481846 | R33: 10.92419573 | S33: 10.49165192 | T33: 10.83555037 | U33: 11.68245196 | V33: 12.78545383 | W33: 13.86458447 | X33: 14.65502705 | Y33: 15.01191276 | Z33: 14.96735298 | AA33: 14.66584854 | AB33: 14.25649233 | AC33: 13.83793882 | AD33: 13.45837276 | AE33: 13.13336456 | AF33: 12.86442172 | AG33: 12.64468408 | AH33: 12.46636181 | AI33: 12.32201968
I34: 27 | J34: 120.9594902 | K34: 134 | L34: 33.89159612 | M34: 33.58347927 | N34: 28.45881093 | O34: 21.48400235 | P34: 15.91614026 | Q34: 12.58823331 | R34: 10.98932403 | S34: 10.5267805 | T34: 10.80394812 | U34: 11.54225027 | V34: 12.49212393 | W34: 13.38989719 | X34: 14.01226593 | Y34: 14.26241835 | Z34: 14.19288442 | AA34: 13.93215368 | AB34: 13.5985351 | AC34: 13.26548615 | AD34: 12.96700541 | AE34: 12.7129629 | AF34: 12.50337357 | AG34: 12.3323829 | AH34: 12.19373709 | AI34: 12.08159213
I35: 28 | J35: 221.8857798 | K35: 180 | L35: 35.11356723 | M35: 35.9528378 | N35: 30.69107408 | O35: 22.48043546 | P35: 15.90124441 | Q35: 12.15855923 | R35: 10.51147445 | S35: 10.20922744 | T35: 10.83693571 | U35: 12.1708293 | V35: 14.02956662 | W35: 16.13525877 | X35: 18.07014904 | Y35: 19.36373258 | Z35: 19.72632336 | AA35: 19.22277546 | AB35: 18.1810502 | AC35: 16.95594976 | AD35: 15.78520943 | AE35: 14.7768236 | AF35: 13.96052632 | AG35: 13.31843965 | AH35: 12.82048395 | AI35: 12.43568066
I36: 29 | J36: 137.4285943 | K36: 145 | L36: 34.24767429 | M36: 34.26213933 | N36: 29.1032225 | O36: 21.79908338 | P36: 15.95182117 | Q36: 12.50152408 | R36: 10.88518795 | S36: 10.46897637 | T36: 10.8489602 | U36: 11.75554282 | V36: 12.94513276 | W36: 14.13093751 | X36: 15.02533024 | Y36: 15.45269835 | Z36: 15.42807102 | AA36: 15.10265498 | AB36: 14.64458513 | AC36: 14.16959673 | AD36: 13.73599492 | AE36: 13.36361429 | AF36: 13.05516797 | AG36: 12.80317105 | AH36: 12.59877847 | AI36: 12.43344022
I37: 30 | J37: 105.8105631 | K37: 120 | L37: 33.35527561 | M37: 32.58121836 | N37: 27.50513061 | O37: 20.98647569 | P37: 15.81555577 | Q37: 12.67172852 | R37: 11.1052046 | S37: 10.57922412 | T37: 10.71223658 | U37: 11.22377614 | V37: 11.87271107 | W37: 12.44202417 | X37: 12.78905985 | Y37: 12.8857595 | Z37: 12.79544347 | AA37: 12.60751923 | AB37: 12.39100546 | AC37: 12.18433991 | AD37: 12.0034547 | AE37: 11.85164626 | AF37: 11.72757699 | AG37: 11.62710087 | AH37: 11.54617651 | AI37: 11.48116135
I38: 31 | J38: 97.64437589 | K38: 92 | L38: 31.87283673 | M38: 29.94576045 | N38: 25.01781504 | O38: 19.56474903 | P38: 15.35252514 | Q38: 12.70395829 | R38: 11.26890569 | S38: 10.63523308 | T38: 10.48346071 | U38: 10.57519525 | V38: 10.73540327 | W38: 10.85390327 | X38: 10.88953796 | Y38: 10.85241747 | Z38: 10.77299756 | AA38: 10.67909867 | AB38: 10.58800968 | AC38: 10.50771782 | AD38: 10.4404931 | AE38: 10.38569986 | AF38: 10.34193075 | AG38: 10.30720914 | AH38: 10.27980899 | AI38: 10.2582527
I39: 32 | J39: 104.5230928 | K39: 99 | L39: 32.3093605 | M39: 30.7004162 | N39: 25.72434963 | O39: 19.98273125 | P39: 15.50804999 | Q39: 12.71674241 | R39: 11.23684625 | S39: 10.623462 | T39: 10.53688305 | U39: 10.72223267 | V39: 10.98380182 | W39: 11.18718681 | X39: 11.27516127 | Y39: 11.25692816 | Z39: 11.17273457 | AA39: 11.06193646 | AB39: 10.95007076 | AC39: 10.84955211 | AD39: 10.76447889 | AE39: 10.69464091 | AF39: 10.63853991 | AG39: 10.59380858 | AH39: 10.55833171 | AI39: 10.53027751
I40: 33 | J40: 194.0467324 | K40: 189 | L40: 35.28802281 | M40: 36.29981392 | N40: 31.01185106 | O40: 22.59798461 | P40: 15.86299271 | Q40: 12.0635945 | R40: 10.41229636 | S40: 10.13162058 | T40: 10.80508937 | U40: 12.22114457 | V40: 14.21833725 | W40: 16.53454538 | X40: 18.74095434 | Y40: 20.30232806 | Z40: 20.82271592 | AA40: 20.29451691 | AB40: 19.06729343 | AC40: 17.58008955 | AD40: 16.14983334 | AE40: 14.92682049 | AF40: 13.95243464 | AG40: 13.20202194 | AH40: 12.63351121 | AI40: 12.20417814
I41: 34 | J41: 91.22617033 | K41: 108 | L41: 32.80016621 | M41: 31.57047533 | N41: 26.54545055 | O41: 20.45566543 | P41: 15.66656128 | Q41: 12.71133169 | R41: 11.18690139 | S41: 10.60777634 | T41: 10.6129912 | U41: 10.93216391 | V41: 11.34613543 | W41: 11.68567511 | X41: 11.86383856 | Y41: 11.88182549 | Z41: 11.79233395 | AA41: 11.65352022 | AB41: 11.50561739 | AC41: 11.36933487 | AD41: 11.25235733 | AE41: 11.15542382 | AF41: 11.07697471 | AG41: 11.01399652 | AH41: 10.96370759 | AI41: 10.92366103
I42: 35 | J42: 258.7898892 | K42: 264 | L42: 36.30093665 | M42: 38.34989972 | N42: 32.8489541 | O42: 23.09750671 | P42: 15.42171357 | Q42: 11.32859649 | R42: 9.671746711 | S42: 9.49961772 | T42: 10.38689858 | U42: 12.198241 | V42: 14.91040985 | W42: 18.42322524 | X42: 22.37950024 | Y42: 25.98125291 | Z42: 28.03732124 | AA42: 27.55355211 | AB42: 24.65037875 | AC42: 20.65762012 | AD42: 16.99986951 | AE42: 14.32352635 | AF42: 12.63744797 | AG42: 11.69514092 | AH42: 11.2412131 | AI42: 11.06514945
I43: 36 | J43: 178.6768581 | K43: 176 | L43: 35.03071955 | M43: 35.78876516 | N43: 30.53864655 | O43: 22.42194106 | P43: 15.91583733 | Q43: 12.20045366 | R43: 10.55561884 | S43: 10.24287808 | T43: 10.8481419 | U43: 12.14209165 | V43: 13.93466437 | W43: 15.94213607 | X43: 17.75436561 | Y43: 18.93215953 | Z43: 19.23119554 | AA43: 18.74206512 | AB43: 17.77927063 | AC43: 16.66265636 | AD43: 15.59948542 | AE43: 14.68179514 | AF43: 13.93459801 | AG43: 13.34216058 | AH43: 12.87858298 | AI43: 12.51714508
I44: 37 | J44: 143.2132149 | K44: 137 | L44: 33.99379066 | M44: 33.77720442 | N44: 28.64297071 | O44: 21.57595452 | P44: 15.92921376 | Q44: 12.56615763 | R44: 10.96193495 | S44: 10.51245142 | T44: 10.8187489 | U44: 11.604175 | V44: 12.61978772 | W44: 13.59426669 | X44: 14.28637279 | Y44: 14.57969124 | Z44: 14.51942223 | AA44: 14.24145427 | AB44: 13.87684434 | AC44: 13.50914625 | AD44: 13.17793275 | AE44: 12.89526968 | AF44: 12.66172566 | AG44: 12.47102791 | AH44: 12.31630737 | AI44: 12.19108791
I45: 38 | J45: 178.9815674 | K45: 182 | L45: 35.15372196 | M45: 36.03252554 | N45: 30.76493956 | O45: 22.50818199 | P45: 15.89335366 | Q45: 12.1375161 | R45: 10.48939721 | S45: 10.19218097 | T45: 10.83061 | U45: 12.18366603 | V45: 14.07441014 | W45: 16.22817 | X45: 18.22403138 | Y45: 19.57639465 | Z45: 19.97236973 | AA45: 19.46240176 | AB45: 18.38033433 | AC45: 17.09905494 | AD45: 15.8726188 | AE45: 14.81765463 | AF45: 13.96638198 | AG45: 13.29967236 | AH45: 12.78510489 | AI45: 12.38935492
I46: 39 | J46: 136.9652146 | K46: 138 | L46: 34.02697076 | M46: 33.84028605 | N46: 28.70290755 | O46: 21.60556304 | P46: 15.93298605 | Q46: 12.55851924 | R46: 10.95262671 | S46: 10.50743147 | T46: 10.82326588 | U46: 11.62421533 | V46: 12.66172139 | W46: 13.66213218 | X46: 14.37826454 | Y46: 14.6868273 | Z46: 14.6301122 | AA46: 14.34631106 | AB46: 13.97088392 | AC46: 13.59098021 | AD46: 13.24819392 | AE46: 12.95540194 | AF46: 12.71338486 | AG46: 12.51572631 | AH46: 12.3553384 | AI46: 12.2255184
I47: 40 | J47: 54.77821525 | K47: 60 | L47: 28.93454423 | M47: 25.34721242 | N47: 20.88261998 | O47: 16.98674532 | P47: 14.17908713 | Q47: 12.3753903 | R47: 11.30496611 | S47: 10.71084992 | T47: 10.39716811 | U47: 10.22914913 | V47: 10.12377296 | W47: 10.04017055 | X47: 9.963682489 | Y47: 9.892507425 | Z47: 9.828591189 | AA47: 9.773562016 | AB47: 9.727782902 | AC47: 9.690629995 | AD47: 9.660983987 | AE47: 9.637552791 | AF47: 9.619245832 | AG47: 9.604981669 | AH47: 9.593904813 | AI47: 9.585322818
I48: 41 | J48: 144.3295606 | K48: 137 | L48: 33.99379066 | M48: 33.77720442 | N48: 28.64297071 | O48: 21.57595452 | P48: 15.92921376 | Q48: 12.56615763 | R48: 10.96193495 | S48: 10.51245142 | T48: 10.8187489 | U48: 11.604175 | V48: 12.61978772 | W48: 13.59426669 | X48: 14.28637279 | Y48: 14.57969124 | Z48: 14.51942223 | AA48: 14.24145427 | AB48: 13.87684434 | AC48: 13.50914625 | AD48: 13.17793275 | AE48: 12.89526968 | AF48: 12.66172566 | AG48: 12.47102791 | AH48: 12.31630737 | AI48: 12.19108791
I49: 42 | J49: 68.82289861 | K49: 65 | L49: 29.53148172 | M49: 26.21410916 | N49: 21.63663886 | O49: 17.46949738 | P49: 14.42202766 | Q49: 12.46577362 | R49: 11.31885159 | S49: 10.70039793 | T49: 10.39337654 | U49: 10.24574872 | V49: 10.16181366 | W49: 10.09360483 | X49: 10.02485147 | Y49: 9.955382612 | Z49: 9.889616665 | AA49: 9.831177486 | AB49: 9.78164456 | AC49: 9.740994867 | AD49: 9.708337729 | AE49: 9.682415456 | AF49: 9.66210382 | AG49: 9.646244918 | AH49: 9.633909852 | AI49: 9.624340215
I50: 43 | J50: 128.3903226 | K50: 112 | L50: 32.99659793 | M50: 31.92495369 | N50: 26.88149578 | O50: 20.64451428 | P50: 15.72356813 | Q50: 12.70192177 | R50: 11.16157326 | S50: 10.59957708 | T50: 10.64718004 | U50: 11.02930427 | V50: 11.51809717 | W50: 11.92821219 | X50: 12.15606603 | Y50: 12.19582866 | Z50: 12.10491885 | AA50: 11.95123467 | AB50: 11.78332555 | AC50: 11.62682239 | AD50: 11.49162615 | AE50: 11.37912052 | AF50: 11.28776524 | AG50: 11.21420418 | AH50: 11.15528828 | AI50: 11.10822644
I51: 44 | J51: 167.8047288 | K51: 173 | L51: 34.9662573 | M51: 35.66142467 | N51: 30.42004154 | O51: 22.37530352 | P51: 15.92564735 | Q51: 12.23164722 | R51: 10.5886686 | S51: 10.26766419 | T51: 10.85518332 | U51: 12.1177213 | V51: 13.85878552 | W51: 15.79086802 | X51: 17.51073024 | Y51: 18.60355773 | Z51: 18.85791638 | AA51: 18.38092938 | AB51: 17.47565061 | AC51: 16.43684035 | AD51: 15.450775 | AE51: 14.5986544 | AF51: 13.90220029 | AG51: 13.34702139 | AH51: 12.90994837 | AI51: 12.56709302
I52: 45 | J52: 157.7412258 | K52: 141 | L52: 34.12397266 | M52: 34.02521603 | N52: 28.87851458 | O52: 21.69137967 | P52: 15.94263295 | Q52: 12.53481846 | R52: 10.92419573 | S52: 10.49165192 | T52: 10.83555037 | U52: 11.68245196 | V52: 12.78545383 | W52: 13.86458447 | X52: 14.65502705 | Y52: 15.01191276 | Z52: 14.96735298 | AA52: 14.66584854 | AB52: 14.25649233 | AC52: 13.83793882 | AD52: 13.45837276 | AE52: 13.13336456 | AF52: 12.86442172 | AG52: 12.64468408 | AH52: 12.46636181 | AI52: 12.32201968
I53: 46 | J53: 169.3505509 | K53: 171 | L53: 34.92212145 | M53: 35.57440204 | N53: 30.33884434 | O53: 22.34282413 | P53: 15.93159928 | Q53: 12.25230445 | R53: 10.6106488 | S53: 10.28394099 | T53: 10.85918074 | U53: 12.10006941 | V53: 13.80590092 | W53: 15.686961 | X53: 17.34520139 | Y53: 18.38243544 | Z53: 18.60850653 | AA53: 18.14021613 | AB53: 17.27241108 | AC53: 16.28370242 | AD53: 15.34724596 | AE53: 14.53754182 | AF53: 13.87424859 | AG53: 13.34376346 | AH53: 12.92456241 | AI53: 12.59448291
I54: 47 | J54: 119.7053922 | K54: 118 | L54: 33.26957465 | M54: 32.42336995 | N54: 27.35500064 | O54: 20.90523972 | P54: 15.79515243 | Q54: 12.68060923 | R54: 11.12000105 | S54: 10.58488762 | T54: 10.69659284 | U54: 11.17551262 | V54: 11.78328199 | W54: 12.31062095 | X54: 12.62529734 | Y54: 12.70591527 | Z54: 12.61490251 | AA54: 12.43609007 | AB54: 12.23287303 | AC54: 12.04007232 | AD54: 11.87188092 | AE54: 11.73102364 | AF54: 11.61608582 | AG54: 11.52313196 | AH54: 11.44836524 | AI54: 11.38837865
I55: 48 | J55: 117.5470001 | K55: 114 | L55: 33.09035255 | M55: 32.09538089 | N55: 27.04329285 | O55: 20.73434322 | P55: 15.74922166 | Q55: 12.69574124 | R55: 11.14819022 | S55: 10.59503449 | T55: 10.66398715 | U55: 11.07813061 | V55: 11.60575308 | W55: 12.05345412 | X55: 12.30856986 | Y55: 12.3607884 | Z55: 12.2695287 | AA55: 12.10784227 | AB55: 11.92889931 | AC55: 11.76113557 | AD55: 11.6157417 | AE55: 11.49449272 | AF55: 11.39587518 | AG55: 11.31634856 | AH55: 11.25256144 | AI55: 11.20153157
I56: 49 | J56: 148.6862607 | K56: 149 | L56: 34.36535879 | M56: 34.48865442 | N56: 29.31770895 | O56: 21.89956477 | P56: 15.95714414 | Q56: 12.46650646 | R56: 10.84505499 | S56: 10.44451805 | T56: 10.85899829 | U56: 11.82325585 | V56: 13.09814654 | W56: 14.39189959 | X56: 15.39521603 | Y56: 15.89990413 | Z56: 15.89980488 | AA56: 15.55040716 | AB56: 15.03964168 | AC56: 14.50239931 | AD56: 14.00879382 | AE56: 13.58380078 | AF56: 13.23164771 | AG56: 12.94418032 | AH56: 12.71133711 | AI56: 12.52326784
I57: 50 | J57: 181.1244633 | K57: 177 | L57: 35.05175695 | M57: 35.83038419 | N57: 30.57735416 | O57: 22.43695079 | P57: 15.91234503 | Q57: 12.19000863 | R57: 10.54458786 | S57: 10.23452578 | T57: 10.84552879 | U57: 12.14966993 | V57: 13.95905321 | W57: 15.99133326 | X57: 17.83429809 | Y57: 19.04079237 | Z57: 19.35530077 | AA57: 18.86237224 | AB57: 17.88007605 | AC57: 16.73683852 | AD57: 15.64727184 | AE57: 14.70723976 | AF57: 13.94290117 | AG57: 13.33802737 | AH57: 12.86573361 | AI57: 12.49828807
I58: 51 | J58: 70.03080093 | K58: 79 | L58: 30.89992046 | M58: 28.33022633 | N58: 23.52862118 | O58: 18.65809636 | P58: 14.97685772 | Q58: 12.63277423 | R58: 11.31113391 | S58: 10.66268887 | T58: 10.41342834 | U58: 10.36356223 | V58: 10.37780803 | W58: 10.38187284 | X58: 10.35173527 | Y58: 10.29326046 | Z58: 10.22160621 | AA58: 10.14954823 | AB58: 10.08438197 | AC58: 10.02894366 | AD58: 9.98345341 | AE58: 9.946855975 | AF58: 9.917907836 | AG58: 9.895138083 | AH58: 9.87731436 | AI58: 9.863404747
I59: 52 | J59: 82.79424796 | K59: 76 | L59: 30.6388513 | M59: 27.91246047 | N59: 23.14951763 | O59: 18.42281051 | P59: 14.87218304 | Q59: 12.60600624 | R59: 11.31695002 | S59: 10.67047665 | T59: 10.40427318 | U59: 10.32847947 | V59: 10.31672702 | W59: 10.30132325 | X59: 10.26053987 | Y59: 10.19887072 | Z59: 10.12866507 | AA59: 10.06021506 | AB59: 9.999240898 | AC59: 9.947785774 | AD59: 9.905760186 | AE59: 9.872050461 | AF59: 9.845443625 | AG59: 9.824552184 | AH59: 9.808224701 | AI59: 9.795502157
I60: 53 | J60: 105.0351727 | K60: 98 | L60: 32.25017358 | M60: 30.5970273 | N60: 25.62720821 | O60: 19.92581813 | P60: 15.48764985 | Q60: 12.71588093 | R60: 11.24179259 | S60: 10.62510574 | T60: 10.52880575 | U60: 10.7001466 | V60: 10.94627847 | W60: 11.13644336 | X60: 11.21606776 | Y60: 11.19471201 | Z60: 11.11119487 | AA60: 11.00306134 | AB60: 10.89451718 | AC60: 10.79725141 | AD60: 10.71505841 | AE60: 10.64765416 | AF60: 10.59355223 | AG60: 10.55044689 | AH60: 10.51628482 | AI60: 10.4892908
I61: 54 | J61: 139.7838041 | K61: 132 | L61: 33.82116701 | M61: 33.45047229 | N61: 28.33230585 | O61: 21.4200089 | P61: 15.90589692 | Q61: 12.60221151 | R61: 11.007117 | S61: 10.53571972 | T61: 10.7930585 | U61: 11.49953412 | V61: 12.40562657 | W61: 13.25328718 | X61: 13.83118314 | Y61: 14.05466963 | Z61: 13.98005111 | AA61: 13.73055453 | AB61: 13.41639587 | AC61: 13.10485599 | AD61: 12.82659936 | AE61: 12.59021421 | AF61: 12.39540891 | AG61: 12.23659758 | AH61: 12.10790482 | AI61: 12.00387152
I62: 55 | J62: 182.31292 | K62: 179 | L62: 35.09317746 | M62: 35.91241494 | N62: 30.65356239 | O62: 22.46619355 | P62: 15.90504558 | Q62: 12.16905954 | R62: 10.5225141 | S62: 10.21769841 | T62: 10.83992256 | U62: 12.16403442 | V62: 14.00649988 | W62: 16.08789329 | X62: 17.99219657 | Y62: 19.25659604 | Z62: 19.6028875 | AA62: 19.1027487 | AB62: 18.08098242 | AC62: 16.88349625 | AD62: 15.74013758 | AE62: 14.75474816 | AF62: 13.9558487 | AG62: 13.32613974 | AH62: 12.83664775 | AI62: 12.45751227
I63: 56 | J63: 300.2835724 | K63: 294 | L63: 36.56713288 | M63: 38.89725433 | N63: 33.31760579 | O63: 23.16723045 | P63: 15.2407727 | Q63: 11.08613365 | R63: 9.435289249 | S63: 9.287306422 | T63: 10.21478324 | U63: 12.10179476 | V63: 14.96262166 | W63: 18.75069745 | X63: 23.15841009 | Y63: 27.35961066 | Z63: 29.93135536 | AA63: 29.45785577 | AB63: 25.89052209 | AC63: 21.00109777 | AD63: 16.73948913 | AE63: 13.86163089 | AF63: 12.25552799 | AG63: 11.56137351 | AH63: 11.46093463 | AI63: 11.69550217
I64: 57 | J64: 173.9332075 | K64: 178 | L64: 35.07257514 | M64: 35.87159891 | N64: 30.61565758 | O64: 22.45170012 | P64: 15.90874677 | Q64: 12.17954329 | R64: 10.53355242 | S64: 10.22613187 | T64: 10.84278796 | U64: 12.15698274 | V64: 13.98299692 | W64: 16.03991862 | X64: 17.91357743 | Y64: 19.14894371 | Z64: 19.47920578 | AA64: 18.98260724 | AB64: 17.98065223 | AC64: 16.81045558 | AD64: 15.69415728 | AE64: 14.73155568 | AF64: 13.94997941 | AG64: 13.33267826 | AH64: 12.85174329 | AI64: 12.47839611
I65: 58 | J65: 155.7471871 | K65: 127 | L65: 33.63649849 | M65: 33.10369653 | N65: 28.00232967 | O65: 21.25008131 | P65: 15.87455591 | Q65: 12.63433614 | R65: 11.04985823 | S65: 10.55592197 | T65: 10.76242387 | U65: 11.38823156 | V65: 12.18560282 | W65: 12.91222073 | X65: 13.38631059 | Y65: 13.55028617 | Z65: 13.46634618 | AA65: 13.24383278 | AB65: 12.9742374 | AC65: 12.71120827 | AD65: 12.47826641 | AE65: 12.28134795 | AF65: 12.11958065 | AG65: 11.98801474 | AH65: 11.88162279 | AI65: 11.79579612
I66: 59 | J66: 121.3760293 | K66: 119 | L66: 33.31273939 | M66: 32.5027919 | N66: 27.43053141 | O66: 20.94620007 | P66: 15.80556114 | Q66: 12.67627478 | R66: 11.11266069 | S66: 10.58210778 | T66: 10.7044771 | U66: 11.1996945 | V66: 11.82796383 | W66: 12.37611507 | X66: 12.70675374 | Y66: 12.79524863 | Z66: 12.70453103 | AA66: 12.52120757 | AB66: 12.31144169 | AC66: 12.11182541 | AD66: 11.93740002 | AE66: 11.79116732 | AF66: 11.67174859 | AG66: 11.57510416 | AH66: 11.49731683 | AI66: 11.43486386
I67: 60 | J67: 166.4514233 | K67: 176 | L67: 35.03071955 | M67: 35.78876516 | N67: 30.53864655 | O67: 22.42194106 | P67: 15.91583733 | Q67: 12.20045366 | R67: 10.55561884 | S67: 10.24287808 | T67: 10.8481419 | U67: 12.14209165 | V67: 13.93466437 | W67: 15.94213607 | X67: 17.75436561 | Y67: 18.93215953 | Z67: 19.23119554 | AA67: 18.74206512 | AB67: 17.77927063 | AC67: 16.66265636 | AD67: 15.59948542 | AE67: 14.68179514 | AF67: 13.93459801 | AG67: 13.34216058 | AH67: 12.87858298 | AI67: 12.51714508
I68: 61 | J68: 94.28273103 | K68: 101 | L68: 32.42478682 | M68: 30.90300067 | N68: 25.91498029 | O68: 20.09386001 | P68: 15.54711542 | Q68: 12.71755152 | R68: 11.22659108 | S68: 10.62015785 | T68: 10.55336071 | U68: 10.76729922 | V68: 11.06067308 | W68: 11.29162653 | X68: 11.39724776 | Y68: 11.38574689 | Z68: 11.30022932 | AA68: 11.18384004 | AB68: 11.06494673 | AC68: 10.95752146 | AD68: 10.86632055 | AE68: 10.7912976 | AF68: 10.73093266 | AG68: 10.68272934 | AH68: 10.64444176 | AI68: 10.61411842
I69: 62 | J69: 95.81711709 | K69: 91 | L69: 31.8059913 | M69: 29.83181648 | N69: 24.9116799 | O69: 19.50120123 | P69: 15.32779561 | Q69: 12.70078871 | R69: 11.27298914 | S69: 10.63701867 | T69: 10.47654618 | U69: 10.55581487 | V69: 10.70283764 | W69: 10.81062688 | X69: 10.83987268 | Y69: 10.80056028 | Z69: 10.72180974 | AA69: 10.63000469 | AB69: 10.54144385 | AC69: 10.46359392 | AD69: 10.39851409 | AE69: 10.34552273 | AF69: 10.30322617 | AG69: 10.26969625 | AH69: 10.24325462 | AI69: 10.22246691
I70: 63 | J70: 55.12204148 | K70: 63 | L70: 29.30063746 | M70: 25.87489433 | N70: 21.34010934 | O70: 17.28022035 | P70: 14.32794712 | Q70: 12.43191323 | R70: 11.31471379 | S70: 10.70510044 | T70: 10.39449358 | U70: 10.23778793 | V70: 10.1444562 | W70: 10.06948795 | X70: 9.997294489 | Y70: 9.927006253 | Z70: 9.86197413 | AA70: 9.804956655 | AB70: 9.75700455 | AC70: 9.717833019 | AD70: 9.686451116 | AE70: 9.661585087 | AF70: 9.642124293 | AG70: 9.6269429 | AH70: 9.615142918 | AI70: 9.605993758
I71: 64 | J71: 126.9754918 | K71: 135 | L71: 33.92611193 | M71: 33.64881318 | N71: 28.52093303 | O71: 21.51518274 | P71: 15.92079718 | Q71: 12.58101858 | R71: 10.98028564 | S71: 10.5221265 | T71: 10.80908836 | U71: 11.56318589 | V71: 12.53497315 | W71: 13.45812163 | X71: 14.10333878 | Y71: 14.36745446 | Z71: 14.30078316 | AA71: 14.03435437 | AB71: 13.69064726 | AC71: 13.34637169 | AD71: 13.03730535 | AE71: 12.77401224 | AF71: 12.55667877 | AG71: 12.37931306 | AH71: 12.23546281 | AI71: 12.11908094
I72: 65 | J72: 219.0602643 | K72: 239 | L72: 36.03043923 | M72: 37.79703224 | N72: 32.36513599 | O72: 22.99842263 | P72: 15.57764513 | Q72: 11.55501804 | R72: 9.895747271 | S72: 9.697418982 | T72: 10.53704713 | U72: 12.25894372 | V72: 14.80128111 | W72: 18.01222359 | X72: 21.49503716 | Y72: 24.49783872 | Z72: 26.05917141 | AA72: 25.54416612 | AB72: 23.20300964 | AC72: 20.03442692 | AD72: 17.03266607 | AE72: 14.68887108 | AF72: 13.06872672 | AG72: 12.02739292 | AH72: 11.38879214 | AI72: 11.00183005
I73: 66 | J73: 147.3490246 | K73: 145 | L73: 34.24767429 | M73: 34.26213933 | N73: 29.1032225 | O73: 21.79908338 | P73: 15.95182117 | Q73: 12.50152408 | R73: 10.88518795 | S73: 10.46897637 | T73: 10.8489602 | U73: 11.75554282 | V73: 12.94513276 | W73: 14.13093751 | X73: 15.02533024 | Y73: 15.45269835 | Z73: 15.42807102 | AA73: 15.10265498 | AB73: 14.64458513 | AC73: 14.16959673 | AD73: 13.73599492 | AE73: 13.36361429 | AF73: 13.05516797 | AG73: 12.80317105 | AH73: 12.59877847 | AI73: 12.43344022
I74: =I73+1 -> 67 | J74: 168.6644717 | K74: 164 | L74: 34.75984612 | M74: 35.2556161 | N74: 30.04047311 | O74: 22.2197721 | P74: 15.94829047 | Q74: 12.32345349 | R74: 10.68701731 | S74: 10.33907006 | T74: 10.86837881 | U74: 12.0289317 | V74: 13.60592838 | W74: 15.30422311 | X74: 16.74775962 | Y74: 17.5983518 | Z74: 17.73532781 | AA74: 17.300887 | AB74: 16.55821351 | AC74: 15.73325202 | AD74: 14.95851163 | AE74: 14.28819436 | AF74: 13.73561324 | AG74: 13.28940491 | AH74: 12.93284809 | AI74: 12.64889547
I75: 68 | J75: 55.44329212 | K75: 45 | L75: 26.08980169 | M75: 22.14504763 | N75: 18.41319008 | O75: 15.51042801 | P75: 13.48794336 | Q75: 12.17144573 | R75: 11.34980742 | S75: 10.84682294 | T75: 10.53483907 | U75: 10.33071101 | V75: 10.1848674 | W75: 10.07257033 | X75: 9.982142347 | Y75: 9.90830729 | Z75: 9.84823037 | AA75: 9.799822323 | AB75: 9.761215785 | AC75: 9.730692367 | AD75: 9.70672018 | AE75: 9.687952215 | AF75: 9.673369202 | AG75: 9.662041007 | AH75: 9.653257105 | AI75: 9.646454956
I76: 69 | J76: 59.82932324 | K76: 58 | L76: 28.67631966 | M76: 24.98248989 | N76: 20.56910652 | O76: 16.78462118 | P76: 14.07446109 | Q76: 12.33356478 | R76: 11.29574614 | S76: 10.71345495 | T76: 10.39927047 | U76: 10.22523901 | V76: 10.1131733 | W76: 10.02478864 | X76: 9.946001085 | Y76: 9.874469524 | Z76: 9.811327395 | AA76: 9.757552984 | AB76: 9.713115537 | AC76: 9.677198303 | AD76: 9.648610348 | AE76: 9.626051378 | AF76: 9.608444377 | AG76: 9.594735582 | AH76: 9.584095725 | AI76: 9.575855797
I77: 70 | J77: 131.6125569 | K77: 120 | L77: 33.35527561 | M77: 32.58121836 | N77: 27.50513061 | O77: 20.98647569 | P77: 15.81555577 | Q77: 12.67172852 | R77: 11.1052046 | S77: 10.57922412 | T77: 10.71223658 | U77: 11.22377614 | V77: 11.87271107 | W77: 12.44202417 | X77: 12.78905985 | Y77: 12.8857595 | Z77: 12.79544347 | AA77: 12.60751923 | AB77: 12.39100546 | AC77: 12.18433991 | AD77: 12.0034547 | AE77: 11.85164626 | AF77: 11.72757699 | AG77: 11.62710087 | AH77: 11.54617651 | AI77: 11.48116135
I78: 71 | J78: 185.149787 | K78: 229 | L78: 35.90653177 | M78: 37.54500124 | N78: 32.14143239 | O78: 22.94409357 | P78: 15.63965226 | Q78: 11.65160282 | R78: 9.992310663 | S78: 9.781339481 | T78: 10.5967905 | U78: 12.2735353 | V78: 14.73216269 | W78: 17.79865258 | X78: 21.06252567 | Y78: 23.79914365 | Z78: 25.1495936 | AA78: 24.62055512 | AB78: 22.50530578 | AC78: 19.68023819 | AD78: 16.97849971 | AE78: 14.81875542 | AF78: 13.27456849 | AG78: 12.23703911 | AH78: 11.56329871 | AI78: 11.12707864
I79: 72 | J79: 111.2487567 | K79: 90 | L79: 31.73793795 | M79: 29.71625758 | N79: 24.80419764 | O79: 19.43666098 | P79: 15.3024092 | Q79: 12.69726381 | R79: 11.27694459 | S79: 10.63884621 | T79: 10.46984888 | U79: 10.53689672 | V79: 10.67106176 | W79: 10.76847911 | X79: 10.79158417 | Y79: 10.75018867 | Z79: 10.67209903 | AA79: 10.58231241 | AB79: 10.49617954 | AC79: 10.42067092 | AD79: 10.35764564 | AE79: 10.30637898 | AF79: 10.26549096 | AG79: 10.23310013 | AH79: 10.20757404 | AI79: 10.18751984
I80: 73 | J80: 135.8903109 | K80: 141 | L80: 34.12397266 | M80: 34.02521603 | N80: 28.87851458 | O80: 21.69137967 | P80: 15.94263295 | Q80: 12.53481846 | R80: 10.92419573 | S80: 10.49165192 | T80: 10.83555037 | U80: 11.68245196 | V80: 12.78545383 | W80: 13.86458447 | X80: 14.65502705 | Y80: 15.01191276 | Z80: 14.96735298 | AA80: 14.66584854 | AB80: 14.25649233 | AC80: 13.83793882 | AD80: 13.45837276 | AE80: 13.13336456 | AF80: 12.86442172 | AG80: 12.64468408 | AH80: 12.46636181 | AI80: 12.32201968
I81: 74 | J81: 197.2281379 | K81: 195 | L81: 35.39596068 | M81: 36.51546941 | N81: 31.21004709 | O81: 22.6666544 | P81: 15.83405773 | Q81: 12.0001914 | R81: 10.34666776 | S81: 10.07894412 | T81: 10.779587 | U81: 12.24488078 | V81: 14.32659149 | W81: 16.77459971 | X81: 19.15681525 | Y81: 20.89959009 | Z81: 21.53462998 | AA81: 20.99600303 | AB81: 19.64035311 | AC81: 17.9665228 | AD81: 16.35243264 | AE81: 14.98137864 | AF81: 13.90282044 | AG81: 13.08563994 | AH81: 12.47754214 | AI81: 12.02625828
I82: 75 | J82: 79.88755788 | K82: 72 | L82: 30.26528012 | M82: 27.32624487 | N82: 22.62208867 | O82: 18.09293765 | P82: 14.72101036 | Q82: 12.56319313 | R82: 11.32164906 | S82: 10.68145253 | T82: 10.39640231 | U82: 10.2902222 | V82: 10.24809837 | W82: 10.2102673 | X82: 10.15742437 | Y82: 10.09225032 | Z82: 10.02378922 | AA82: 9.959497255 | AB82: 9.903318644 | AC82: 9.856407287 | AD82: 9.818327755 | AE82: 9.787902469 | AF82: 9.763954461 | AG82: 9.745192095 | AH82: 9.730556919 | AI82: 9.719173726
I83: 76 | J83: 177.3950851 | K83: 202 | L83: 35.51428419 | M83: 36.75270409 | N83: 31.42693508 | O83: 22.73813574 | P83: 15.79757145 | Q83: 11.9265639 | R83: 10.27096585 | S83: 10.01706818 | T83: 10.74640227 | U83: 12.26403489 | V83: 14.43688327 | W83: 17.0298098 | X83: 19.61034409 | Y83: 21.56486735 | Z83: 22.34081427 | AA83: 21.79570235 | AB83: 20.28683135 | AC83: 18.38581378 | AD83: 16.54978891 | AE83: 15.00495062 | AF83: 13.80976318 | AG83: 12.92310937 | AH83: 12.27836957 | AI83: 11.81048269
I84: 77 | J84: 155.1911945 | K84: 157 | L84: 34.58432262 | M84: 34.91293386 | N84: 29.71829657 | O84: 22.08071808 | P84: 15.95754685 | Q84: 12.39216994 | R84: 10.7619979 | S84: 10.3907337 | T84: 10.86930635 | U84: 11.94231771 | V84: 13.38234885 | W84: 14.89300206 | X84: 16.12619886 | Y84: 16.80508176 | Z84: 16.86895471 | AA84: 16.4726762 | AB84: 15.84476105 | AC84: 15.16486819 | AD84: 14.5325212 | AE84: 13.98610619 | AF84: 13.53396772 | AG84: 13.1664223 | AH84: 12.87035061 | AI84: 12.63259828
I85: 78 | J85: 174.2628782 | K85: 184 | L85: 35.19306442 | M85: 36.11070435 | N85: 30.83729617 | O85: 22.53497345 | P85: 15.88509695 | Q85: 12.11642782 | R85: 10.46733239 | S85: 10.17500809 | T85: 10.82383524 | U85: 12.1955278 | V85: 14.117566 | W85: 16.31867116 | X85: 18.37518509 | Y85: 19.78680976 | Z85: 20.21717464 | AA85: 19.70132291 | AB85: 18.57837935 | AC85: 17.23969546 | AD85: 15.95637551 | AE85: 14.85412185 | AF85: 13.96770909 | AG85: 13.27662288 | AH85: 12.74592237 | AI85: 12.33978761
I86: 79 | J86: 92.26266825 | K86: 93 | L86: 31.93850449 | M86: 30.0581171 | N86: 25.1226186 | O86: 19.62731547 | P86: 15.37660762 | Q86: 12.70677939 | R86: 11.26469591 | S86: 10.6334845 | T86: 10.49058033 | U86: 10.59502007 | V86: 10.76874014 | W86: 10.89829507 | X86: 10.94057466 | Y86: 10.90576045 | Z86: 10.82566421 | AA86: 10.72959442 | AB86: 10.6358739 | AC86: 10.55303589 | AD86: 10.48357244 | AE86: 10.42689707 | AF86: 10.38158876 | AG86: 10.34562065 | AH86: 10.31721714 | AI86: 10.29485569
I87: 80 | J87: 207.6693013 | K87: 199 | L87: 35.46453009 | M87: 36.65284479 | N87: 31.33579152 | O87: 22.70857496 | P87: 15.81352838 | Q87: 11.95805062 | R87: 10.30327636 | S87: 10.04361351 | T87: 10.76102779 | U87: 12.25687305 | V87: 14.39161841 | W87: 16.92360373 | X87: 19.42010895 | Y87: 21.28401606 | Z87: 21.99877761 | AA87: 21.45573489 | AB87: 20.01289958 | AC87: 18.21033441 | AD87: 16.47018864 | AE87: 14.99973229 | AF87: 13.85367503 | AG87: 12.99553476 | AH87: 12.36514832 | AI87: 11.9031453
I88: 81 | J88: 67.32930616 | K88: 62 | L88: 29.18132833 | M88: 25.70154655 | N88: 21.18931119 | O88: 17.18367866 | P88: 14.27937785 | Q88: 12.41386299 | R88: 11.31196593 | S88: 10.70721945 | T88: 10.3952792 | U88: 10.23449567 | V88: 10.13687807 | W88: 10.05883381 | X88: 9.985094742 | Y88: 9.914464824 | Z88: 9.849800974 | AA88: 9.793463328 | AB88: 9.746259811 | AC88: 9.707785697 | AD88: 9.677004386 | AE88: 9.652635232 | AF88: 9.633574293 | AG88: 9.618710981 | AH88: 9.607161947 | AI88: 9.598209761
I89: 82 | J89: 100.0502759 | K89: 91 | L89: 31.8059913 | M89: 29.83181648 | N89: 24.9116799 | O89: 19.50120123 | P89: 15.32779561 | Q89: 12.70078871 | R89: 11.27298914 | S89: 10.63701867 | T89: 10.47654618 | U89: 10.55581487 | V89: 10.70283764 | W89: 10.81062688 | X89: 10.83987268 | Y89: 10.80056028 | Z89: 10.72180974 | AA89: 10.63000469 | AB89: 10.54144385 | AC89: 10.46359392 | AD89: 10.39851409 | AE89: 10.34552273 | AF89: 10.30322617 | AG89: 10.26969625 | AH89: 10.24325462 | AI89: 10.22246691
I90: 83 | J90: 96.29855158 | K90: 106 | L90: 32.69721226 | M90: 31.38610316 | N90: 26.37097028 | O90: 20.35647074 | P90: 15.63507533 | Q90: 12.71448733 | R90: 11.19884365 | S90: 10.61151348 | T90: 10.59579988 | U90: 10.88417994 | V90: 11.2622852 | W90: 11.56886235 | X90: 11.72449824 | Y90: 11.73302551 | Z90: 11.6445203 | AA90: 11.51257621 | AB90: 11.37370455 | AC90: 11.24646526 | AD90: 11.13759486 | AE90: 11.04756892 | AF90: 10.97483153 | AG90: 10.91652756 | AH90: 10.87004162 | AI90: 10.83308141
I91: 84 | J91: 124.6210583 | K91: 123 | L91: 33.47924366 | M91: 32.81069063 | N91: 27.7234699 | O91: 21.10329611 | P91: 15.84313116 | Q91: 12.65686219 | R91: 11.08215146 | S91: 10.56992291 | T91: 10.73468644 | U91: 11.29525796 | V91: 12.0070819 | W91: 12.64190922 | X91: 13.04076209 | Y91: 13.164124 | Z91: 13.07571973 | AA91: 12.87346833 | AB91: 12.63548338 | AC91: 12.40621128 | AD91: 12.20453072 | AE91: 12.03473734 | AF91: 11.8956516 | AG91: 11.78279566 | AH91: 11.69173157 | AI91: 11.61843131
I92: 85 | J92: 156.2111497 | K92: 138 | L92: 34.02697076 | M92: 33.84028605 | N92: 28.70290755 | O92: 21.60556304 | P92: 15.93298605 | Q92: 12.55851924 | R92: 10.95262671 | S92: 10.50743147 | T92: 10.82326588 | U92: 11.62421533 | V92: 12.66172139 | W92: 13.66213218 | X92: 14.37826454 | Y92: 14.6868273 | Z92: 14.6301122 | AA92: 14.34631106 | AB92: 13.97088392 | AC92: 13.59098021 | AD92: 13.24819392 | AE92: 12.95540194 | AF92: 12.71338486 | AG92: 12.51572631 | AH92: 12.3553384 | AI92: 12.2255184
I93: 86 | J93: 131.7872585 | K93: 134 | L93: 33.89159612 | M93: 33.58347927 | N93: 28.45881093 | O93: 21.48400235 | P93: 15.91614026 | Q93: 12.58823331 | R93: 10.98932403 | S93: 10.5267805 | T93: 10.80394812 | U93: 11.54225027 | V93: 12.49212393 | W93: 13.38989719 | X93: 14.01226593 | Y93: 14.26241835 | Z93: 14.19288442 | AA93: 13.93215368 | AB93: 13.5985351 | AC93: 13.26548615 | AD93: 12.96700541 | AE93: 12.7129629 | AF93: 12.50337357 | AG93: 12.3323829 | AH93: 12.19373709 | AI93: 12.08159213
I94: 87 | J94: 146.5539283 | K94: 133 | L94: 33.85661753 | M94: 33.51736989 | N94: 28.39593887 | O94: 21.45228068 | P94: 15.91117568 | Q94: 12.59529895 | R94: 10.99826845 | S94: 10.53131162 | T94: 10.798604 | U94: 11.52103034 | V94: 12.44900249 | W94: 13.32160933 | X94: 13.92153571 | Y94: 14.15814627 | Z94: 14.08596573 | AA94: 13.83088026 | AB94: 13.50711054 | AC94: 13.18497178 | AD94: 12.89675898 | AE94: 12.65168408 | AF94: 12.44960288 | AG94: 12.2847962 | AH94: 12.15120243 | AI94: 12.04317348
I95: 88 | J95: 63.66884072 | K95: 66 | L95: 29.64316614 | M95: 26.38004071 | N95: 21.78238356 | O95: 17.56225033 | P95: 14.46757492 | Q95: 12.4816332 | R95: 11.32029509 | S95: 10.69786559 | T95: 10.39309281 | U95: 10.25046525 | V95: 10.17164584 | W95: 10.10712634 | X95: 10.04027077 | Y95: 9.971279119 | Z95: 9.905144455 | AA95: 9.845959083 | AB95: 9.795589519 | AC95: 9.754155117 | AD95: 9.72081998 | AE95: 9.694335576 | AF95: 9.673570723 | AG95: 9.657350597 | AH95: 9.644729956 | AI95: 9.634935662
I96: 89 | J96: 143.9280739 | K96: 153 | L96: 34.47744712 | M96: 34.7053913 | N96: 29.52255236 | O96: 21.99329504 | P96: 15.95894547 | Q96: 12.42998583 | R96: 10.80394299 | S96: 10.41839306 | T96: 10.86574038 | U96: 11.88550991 | V96: 13.24399668 | W96: 14.64625518 | X96: 15.76275783 | Y96: 16.3513947 | Z96: 16.3807221 | AA96: 16.00759438 | AB96: 15.44018575 | AC96: 14.83468369 | AD96: 14.27488117 | AE96: 13.79189519 | AF96: 13.39181762 | AG96: 13.06576781 | AH96: 12.80227317 | AI96: 12.58996241
I97: 90 | J97: 184.0725539 | K97: 152 | L97: 34.44992811 | M97: 34.65209111 | N97: 29.47221523 | O97: 21.97047066 | P97: 15.95880733 | Q97: 12.43924531 | R97: 10.81430477 | S97: 10.42507355 | T97: 10.86435795 | U97: 11.87045893 | V97: 13.20822666 | W97: 14.58334407 | X97: 15.67119134 | Y97: 16.23823572 | Z97: 16.25973365 | AA97: 15.89249691 | AB97: 15.33961539 | AC97: 14.75174926 | AD97: 14.20908638 | AE97: 13.74110766 | AF97: 13.35340391 | AG97: 13.03728233 | AH97: 12.78164347 | AI97: 12.57551914
I98: 91 | J98: 199.0474385 | K98: 236 | L98: 35.99431513 | M98: 37.72347256 | N98: 32.30003801 | O98: 22.98314564 | P98: 15.59633206 | Q98: 11.58364918 | R98: 9.92430626 | S98: 9.722335738 | T98: 10.5550681 | U98: 12.26406807 | V98: 14.78236669 | W98: 17.95154726 | X98: 21.37056248 | Y98: 24.29507058 | Z98: 25.79371465 | AA98: 25.27439228 | AB98: 23.00097117 | AC98: 19.93489811 | AD98: 17.02116832 | AE98: 14.72954179 | AF98: 13.12897883 | AG98: 12.08589407 | AH98: 11.43425616 | AI98: 11.03043397
I99: 92 | J99: 180.507059 | K99: 170 | L99: 34.89969403 | M99: 35.53023364 | N99: 30.29758947 | O99: 22.32615347 | P99: 15.93438877 | Q99: 12.26258511 | R99: 10.62161771 | S99: 10.29199859 | T99: 10.8609608 | U99: 12.09080962 | V99: 13.77875853 | W99: 15.63409204 | X99: 17.26153704 | Y99: 18.2713212 | Z99: 18.4837105 | AA99: 18.01994063 | AB99: 17.17059807 | AC99: 16.20639739 | AD99: 15.29419077 | AE99: 14.50528267 | AF99: 13.85834093 | AG99: 13.34012884 | AH99: 12.92989605 | AI99: 12.60629644
I100: 93 | J100: 267.1078385 | K100: 276 | L100: 36.41408219 | M100: 38.58217417 | N100: 33.04915733 | O100: 23.13061903 | P100: 15.34811822 | Q100: 11.22781921 | R100: 9.573052801 | S100: 9.411366602 | T100: 10.31652587 | U100: 12.16152272 | V100: 14.93916897 | W100: 18.57183418 | X100: 22.72225316 | Y100: 26.57844568 | Z100: 28.85130675 | AA100: 28.37583179 | AB100: 25.20516062 | AC100: 20.84073945 | AD100: 16.91898446 | AE100: 14.14111563 | AF100: 12.47281449 | AG100: 11.61937519 | AH100: 11.29472072 | AI100: 11.26448705
I101: 94 | J101: 102.4231978 | K101: 91 | L101: 31.8059913 | M101: 29.83181648 | N101: 24.9116799 | O101: 19.50120123 | P101: 15.32779561 | Q101: 12.70078871 | R101: 11.27298914 | S101: 10.63701867 | T101: 10.47654618 | U101: 10.55581487 | V101: 10.70283764 | W101: 10.81062688 | X101: 10.83987268 | Y101: 10.80056028 | Z101: 10.72180974 | AA101: 10.63000469 | AB101: 10.54144385 | AC101: 10.46359392 | AD101: 10.39851409 | AE101: 10.34552273 | AF101: 10.30322617 | AG101: 10.26969625 | AH101: 10.24325462 | AI101: 10.22246691
I102: 95 | J102: 110.0482208 | K102: 125 | L102: 33.55897972 | M102: 32.95899319 | N102: 27.86460932 | O102: 21.17793808 | P102: 15.85958236 | Q102: 12.64597131 | R102: 11.06622289 | S102: 10.56315706 | T102: 10.74889011 | U102: 11.34212497 | V102: 12.09651515 | W102: 12.77663223 | X102: 13.21222646 | Y102: 13.35514755 | Z102: 13.26867762 | AA102: 13.05645412 | AB102: 12.8031001 | AC102: 12.55748475 | AD102: 12.34069911 | AE102: 12.15781132 | AF102: 12.00778028 | AG102: 11.88589634 | AH102: 11.78743593 | AI102: 11.70809083
I103: 96 | J103: 153.7079263 | K103: 159 | L103: 34.63591605 | M103: 35.01342803 | N103: 29.81291738 | O103: 22.12219579 | P103: 15.95574219 | Q103: 12.37283764 | R103: 10.74075784 | S103: 10.37637295 | T103: 10.86994513 | U103: 11.96870477 | V103: 13.44864916 | W103: 15.01326619 | X103: 16.30588451 | Y103: 17.0321182 | Z103: 17.11522732 | AA103: 16.7076917 | AB103: 16.04811415 | AC103: 15.32870597 | AD103: 14.6576804 | AE103: 14.07752094 | AF103: 13.59785453 | AG103: 13.20855915 | AH103: 12.89558864 | AI103: 12.64478454
I104: 97 | J104: 209.6783106 | K104: 255 | L104: 36.20939518 | M104: 38.16240441 | N104: 32.68599071 | O104: 23.06706218 | P104: 15.47764718 | Q104: 11.40755734 | R104: 9.749499904 | S104: 9.568708271 | T104: 10.44064496 | U104: 12.22313387 | V104: 14.87989042 | W104: 18.29284437 | X104: 22.09007475 | Y104: 25.4871765 | Z104: 27.37148999 | AA104: 26.87817169 | AB104: 24.1767198 | AC104: 20.47351259 | AD104: 17.03530285 | AE104: 14.45830073 | AF104: 12.77757072 | AG104: 11.78392167 | AH104: 11.24883953 | AI104: 10.98223206
I105: 98 | J105: 186.1187238 | K105: 165 | L105: 34.78380382 | M105: 35.30256297 | N105: 30.08449987 | O105: 22.23828575 | P105: 15.94632959 | Q105: 12.3134178 | R105: 10.67617629 | S105: 10.33138801 | T105: 10.86754666 | U105: 12.04001549 | V105: 13.6359321 | W105: 15.36068945 | X105: 16.83472104 | Y105: 17.71113884 | Z105: 17.85987551 | AA105: 17.42030203 | AB105: 16.6603591 | AC105: 15.81313443 | AD105: 15.01645677 | AE105: 14.32713964 | AF105: 13.75931765 | AG105: 13.3013486 | AH105: 12.93590705 | AI105: 12.64529647
I106: 99 | J106: 134.5512745 | K106: 134 | L106: 33.89159612 | M106: 33.58347927 | N106: 28.45881093 | O106: 21.48400235 | P106: 15.91614026 | Q106: 12.58823331 | R106: 10.98932403 | S106: 10.5267805 | T106: 10.80394812 | U106: 11.54225027 | V106: 12.49212393 | W106: 13.38989719 | X106: 14.01226593 | Y106: 14.26241835 | Z106: 14.19288442 | AA106: 13.93215368 | AB106: 13.5985351 | AC106: 13.26548615 | AD106: 12.96700541 | AE106: 12.7129629 | AF106: 12.50337357 | AG106: 12.3323829 | AH106: 12.19373709 | AI106: 12.08159213
I107: 100 | J107: 128.3147465 | K107: 121 | L107: 33.39719653 | M107: 32.65866608 | N107: 27.57881142 | O107: 21.02607682 | P107: 15.82514395 | Q107: 12.66697479 | R107: 11.0976337 | S107: 10.5762338 | T107: 10.71986308 | U107: 11.24774109 | V107: 11.91749716 | W107: 12.50831505 | X107: 12.87218452 | Y107: 12.97742494 | Z107: 12.88762368 | AA107: 12.6950102 | AB107: 12.47154613 | AC107: 12.25759196 | AD107: 12.07001503 | AE107: 11.91242498 | AF107: 11.78353083 | AG107: 11.67907808 | AH107: 11.59489724 | AI107: 11.52722169

Sheet forecast-scenarios
G1: grid
G2: =min -> 6.874709472 | H2: =G2 + width -> 11.01189454 | I2: 15.14907962 | J2: 19.28626469 | K2: 23.42344976 | L2: 27.56063483 | M2: 31.6978199 | N2: 35.83500497 | O2: 39.97219005 | P2: 44.10937512 | Q2: 48.24656019
G3: midpoints
B4: max | C4: =MAX( sMoose_2400 ) -> 48.24656019 | F4: ='synthetic-data'!G3 -> sMoose_synth | G4: =(G2+H2)/2 -> 8.943302008 | H4: 13.08048708 | I4: 17.21767215 | J4: 21.35485722 | K4: 25.49204229 | L4: 29.62922737 | M4: 33.76641244 | N4: 37.90359751 | O4: 42.04078258 | P4: 46.17796765 | Q4: max prob
B5: min | C5: =MIN( sMoose_2400 ) -> 6.874709472 | E5: =TRANSPOSE( 'synthetic-data'!L7:AI7 ) -> sMoose_1 | F5: ='synthetic-data'!G4 -> 35.28802281 | G5: =COUNTIFS( INDIRECT($E5), ">="&G$2, INDIRECT($E5), "<"&H$2 ) / 100 -> 0 | H5: =COUNTIFS( INDIRECT($E5), ">="&H$2, INDIRECT($E5), "<"&I$2 ) / 100 -> 0 | I5: 0 | J5: 0 | K5: 0.01 | L5: 0.11 | M5: 0.69 | N5: 0.12 | O5: 0.07 | P5: 0 | Q5: =INDEX( G$4:P$4, , MATCH( MAX(G5:P5), G5:P5, 0)) -> 33.76641244
B6: grid | C6: 10 | E6: sMoose_2 | F6: ='synthetic-data'!G5 -> 28.33022633 | G6: =COUNTIFS( INDIRECT($E6), ">="&G$2, INDIRECT($E6), "<"&H$2 ) / 100 -> 0 | H6: 0 | I6: 0 | J6: 0.01 | K6: 0.07 | L6: 0.18 | M6: 0.46 | N6: 0.21 | O6: 0.01 | P6: 0.05 | Q6: =INDEX( G$4:P$4, , MATCH( MAX(G6:P6), G6:P6, 0)) -> 33.76641244
B7: width | C7: =( C4 - C5 ) / C6 -> 4.137185072 | E7: sMoose_3 | F7: ='synthetic-data'!G6 -> 29.1032225 | G7: =COUNTIFS( INDIRECT($E7), ">="&G$2, INDIRECT($E7), "<"&H$2 ) / 100 -> 0 | H7: 0 | I7: 0.01 | J7: 0.11 | K7: 0.25 | L7: 0.48 | M7: 0.15 | N7: 0 | O7: 0 | P7: 0 | Q7: =INDEX( G$4:P$4, , MATCH( MAX(G7:P7), G7:P7, 0)) -> 29.62922737
E8: sMoose_4 | F8: ='synthetic-data'!G7 -> 21.79908338 | G8: =COUNTIFS( INDIRECT($E8), ">="&G$2, INDIRECT($E8), "<"&H$2 ) / 100 -> 0 | H8: 0 | I8: 0.27 | J8: 0.73 | K8: 0 | L8: 0 | M8: 0 | N8: 0 | O8: 0 | P8: 0 | Q8: =INDEX( G$4:P$4, , MATCH( MAX(G8:P8), G8:P8, 0)) -> 21.35485722
E9: sMoose_5 | F9: ='synthetic-data'!G8 -> 15.92079718 | G9: =COUNTIFS( INDIRECT($E9), ">="&G$2, INDIRECT($E9), "<"&H$2 ) / 100 -> 0.07 | H9: 0.2 | I9: 0.73 | J9: 0 | K9: 0 | L9: 0 | M9: 0 | N9: 0 | O9: 0 | P9: 0 | Q9: =INDEX( G$4:P$4, , MATCH( MAX(G9:P9), G9:P9, 0)) -> 17.21767215
E10: sMoose_6 | F10: ='synthetic-data'!G9 -> 12.1375161 | G10: =COUNTIFS( INDIRECT($E10), ">="&G$2, INDIRECT($E10), "<"&H$2 ) / 100 -> 0.14 | H10: 0.86 | I10: 0 | J10: 0 | K10: 0 | L10: 0 | M10: 0 | N10: 0 | O10: 0 | P10: 0 | Q10: =INDEX( G$4:P$4, , MATCH( MAX(G10:P10), G10:P10, 0)) -> 13.08048708
E11: sMoose_7 | F11: ='synthetic-data'!G10 -> 10.41229636 | G11: =COUNTIFS( INDIRECT($E11), ">="&G$2, INDIRECT($E11), "<"&H$2 ) / 100 -> 0.65 | H11: 0.35 | I11: 0 | J11: 0 | K11: 0 | L11: 0 | M11: 0 | N11: 0 | O11: 0 | P11: 0 | Q11: =INDEX( G$4:P$4, , MATCH( MAX(G11:P11), G11:P11, 0)) -> 8.943302008
E12: sMoose_8 | F12: ='synthetic-data'!G11 -> 9.40300748 | G12: =COUNTIFS( INDIRECT($E12), ">="&G$2, INDIRECT($E12), "<"&H$2 ) / 100 -> 1 | H12: 0 | I12: 0 | J12: 0 | K12: 0 | L12: 0 | M12: 0 | N12: 0 | O12: 0 | P12: 0 | Q12: =INDEX( G$4:P$4, , MATCH( MAX(G12:P12), G12:P12, 0)) -> 8.943302008
E13: sMoose_9 | F13: ='synthetic-data'!G12 -> 10.39337654 | G13: =COUNTIFS( INDIRECT($E13), ">="&G$2, INDIRECT($E13), "<"&H$2 ) / 100 -> 1 | H13: 0 | I13: 0 | J13: 0 | K13: 0 | L13: 0 | M13: 0 | N13: 0 | O13: 0 | P13: 0 | Q13: =INDEX( G$4:P$4, , MATCH( MAX(G13:P13), G13:P13, 0)) -> 8.943302008
E14: sMoose_10 | F14: ='synthetic-data'!G13 -> 12.14966993 | G14: =COUNTIFS( INDIRECT($E14), ">="&G$2, INDIRECT($E14), "<"&H$2 ) / 100 -> 0.33 | H14: 0.67 | I14: 0 | J14: 0 | K14: 0 | L14: 0 | M14: 0 | N14: 0 | O14: 0 | P14: 0 | Q14: =INDEX( G$4:P$4, , MATCH( MAX(G14:P14), G14:P14, 0)) -> 13.08048708
E15: sMoose_11 | F15: ='synthetic-data'!G14 -> 15.47132646 | G15: =COUNTIFS( INDIRECT($E15), ">="&G$2, INDIRECT($E15), "<"&H$2 ) / 100 -> 0.28 | H15: 0.68 | I15: 0.04 | J15: 0 | K15: 0 | L15: 0 | M15: 0 | N15: 0 | O15: 0 | P15: 0 | Q15: =INDEX( G$4:P$4, , MATCH( MAX(G15:P15), G15:P15, 0)) -> 13.08048708
E16: sMoose_12 | F16: ='synthetic-data'!G15 -> 10.38187284 | G16: =COUNTIFS( INDIRECT($E16), ">="&G$2, INDIRECT($E16), "<"&H$2 ) / 100 -> 0.26 | H16: 0.42 | I16: 0.31 | J16: 0.01 | K16: 0 | L16: 0 | M16: 0 | N16: 0 | O16: 0 | P16: 0 | Q16: =INDEX( G$4:P$4, , MATCH( MAX(G16:P16), G16:P16, 0)) -> 13.08048708
E17: sMoose_13 | F17: ='synthetic-data'!G16 -> 13.21222646 | G17: =COUNTIFS( INDIRECT($E17), ">="&G$2, INDIRECT($E17), "<"&H$2 ) / 100 -> 0.26 | H17: 0.34 | I17: 0.27 | J17: 0.13 | K17: 0 | L17: 0 | M17: 0 | N17: 0 | O17: 0 | P17: 0 | Q17: =INDEX( G$4:P$4, , MATCH( MAX(G17:P17), G17:P17, 0)) -> 13.08048708
E18: sMoose_14 | F18: ='synthetic-data'!G17 -> 11.38574689 | G18: =COUNTIFS( INDIRECT($E18), ">="&G$2, INDIRECT($E18), "<"&H$2 ) / 100 -> 0.26 | H18: 0.33 | I18: 0.23 | J18: 0.09 | K18: 0.09 | L18: 0 | M18: 0 | N18: 0 | O18: 0 | P18: 0 | Q18: =INDEX( G$4:P$4, , MATCH( MAX(G18:P18), G18:P18, 0)) -> 13.08048708
E19: sMoose_15 | F19: ='synthetic-data'!G18 -> 11.17273457 | G19: =COUNTIFS( INDIRECT($E19), ">="&G$2, INDIRECT($E19), "<"&H$2 ) / 100 -> 0.26 | H19: 0.34 | I19: 0.2 | J19: 0.11 | K19: 0.05 | L19: 0.04 | M19: 0 | N19: 0 | O19: 0 | P19: 0 | Q19: =INDEX( G$4:P$4, , MATCH( MAX(G19:P19), G19:P19, 0)) -> 13.08048708
E20: sMoose_16 | F20: ='synthetic-data'!G19 -> 12.6950102 | G20: =COUNTIFS( INDIRECT($E20), ">="&G$2, INDIRECT($E20), "<"&H$2 ) / 100 -> 0.27 | H20: 0.37 | I20: 0.2 | J20: 0.07 | K20: 0.06 | L20: 0.03 | M20: 0 | N20: 0 | O20: 0 | P20: 0 | Q20: =INDEX( G$4:P$4, , MATCH( MAX(G20:P20), G20:P20, 0)) -> 13.08048708
E21: sMoose_17 | F21: ='synthetic-data'!G20 -> 11.06494673 | G21: =COUNTIFS( INDIRECT($E21), ">="&G$2, INDIRECT($E21), "<"&H$2 ) / 100 -> 0.28 | H21: 0.39 | I21: 0.2 | J21: 0.08 | K21: 0.05 | L21: 0 | M21: 0 | N21: 0 | O21: 0 | P21: 0 | Q21: =INDEX( G$4:P$4, , MATCH( MAX(G21:P21), G21:P21, 0)) -> 13.08048708
E22: sMoose_18 | F22: ='synthetic-data'!G21 -> 9.677198303 | G22: =COUNTIFS( INDIRECT($E22), ">="&G$2, INDIRECT($E22), "<"&H$2 ) / 100 -> 0.29 | H22: 0.41 | I22: 0.21 | J22: 0.09 | K22: 0 | L22: 0 | M22: 0 | N22: 0 | O22: 0 | P22: 0 | Q22: =INDEX( G$4:P$4, , MATCH( MAX(G22:P22), G22:P22, 0)) -> 13.08048708
E23: sMoose_19 | F23: ='synthetic-data'!G22 -> 9.98345341 | G23: =COUNTIFS( INDIRECT($E23), ">="&G$2, INDIRECT($E23), "<"&H$2 ) / 100 -> 0.3 | H23: 0.45 | I23: 0.25 | J23: 0 | K23: 0 | L23: 0 | M23: 0 | N23: 0 | O23: 0 | P23: 0 | Q23: =INDEX( G$4:P$4, , MATCH( MAX(G23:P23), G23:P23, 0)) -> 13.08048708
E24: sMoose_20 | F24: ='synthetic-data'!G23 -> 12.65168408 | G24: =COUNTIFS( INDIRECT($E24), ">="&G$2, INDIRECT($E24), "<"&H$2 ) / 100 -> 0.31 | H24: 0.69 | I24: 0 | J24: 0 | K24: 0 | L24: 0 | M24: 0 | N24: 0 | O24: 0 | P24: 0 | Q24: =INDEX( G$4:P$4, , MATCH( MAX(G24:P24), G24:P24, 0)) -> 13.08048708
E25: sMoose_21 | F25: ='synthetic-data'!G24 -> 13.39181762 | G25: =COUNTIFS( INDIRECT($E25), ">="&G$2, INDIRECT($E25), "<"&H$2 ) / 100 -> 0.33 | H25: 0.67 | I25: 0 | J25: 0 | K25: 0 | L25: 0 | M25: 0 | N25: 0 | O25: 0 | P25: 0 | Q25: =INDEX( G$4:P$4, , MATCH( MAX(G25:P25), G25:P25, 0)) -> 13.08048708
E26: sMoose_22 | F26: ='synthetic-data'!G25 -> 9.594735582 | G26: =COUNTIFS( INDIRECT($E26), ">="&G$2, INDIRECT($E26), "<"&H$2 ) / 100 -> 0.33 | H26: 0.67 | I26: 0 | J26: 0 | K26: 0 | L26: 0 | M26: 0 | N26: 0 | O26: 0 | P26: 0 | Q26: =INDEX( G$4:P$4, , MATCH( MAX(G26:P26), G26:P26, 0)) -> 13.08048708
E27: sMoose_23 | F27: ='synthetic-data'!G26 -> 12.19373709 | G27: =COUNTIFS( INDIRECT($E27), ">="&G$2, INDIRECT($E27), "<"&H$2 ) / 100 -> 0.37 | H27: 0.63 | I27: 0 | J27: 0 | K27: 0 | L27: 0 | M27: 0 | N27: 0 | O27: 0 | P27: 0 | Q27: =INDEX( G$4:P$4, , MATCH( MAX(G27:P27), G27:P27, 0)) -> 13.08048708
E28: sMoose_24 | F28: ='synthetic-data'!G27 -> 11.38837865 | G28: =COUNTIFS( INDIRECT($E28), ">="&G$2, INDIRECT($E28), "<"&H$2 ) / 100 -> 0.41 | H28: 0.59 | I28: 0 | J28: 0 | K28: 0 | L28: 0 | M28: 0 | N28: 0 | O28: 0 | P28: 0 | Q28: =INDEX( G$4:P$4, , MATCH( MAX(G28:P28), G28:P28, 0)) -> 13.08048708

Sheet inference
E2: Model 1: high time to adjust | H2: h | I2: Pr(h) | J2: =TRANSPOSE( sMoose_6_smpl ) -> 6 | K2: 12 | L2: 8 | M2: 10 | N2: 11 | O2: 9 | P2: 9 | Q2: log-Likelihood | R2: Pr(d|h) | S2: Pr(h|d) | U2: update
A3: ='synthetic-data'!I7 -> run | B3: sMoose_6 | F3: =B$3&"_smpl" -> sMoose_6_smpl | H3: =min6_ -> 6 | I3: =LN(U3) -> -10.75861472 | J3: =LN( _xlfn.POISSON.DIST( J$2, $H3, FALSE ) ) -> -1.828694397 | K3: -4.486100865 | L3: -2.270527149 | M3: -3.186817881 | N3: -3.792953684 | O3: -2.675992257 | P3: -2.675992257 | Q3: =SUM( I3:P3) -> -31.67569321 | R3: =EXP( Q3 ) -> 1.751544718e-14 | S3: =R3 / R$15 -> 1.424344905e-07 | U3: 2.126145566e-05
A4: ='synthetic-data'!I8 -> 1 | B4: 8.359309509 | D4: site >>> | E4: 1 | F4: 6 | H4: =H3 + interval6 -> 6.545454545 | I4: =LN(U4) -> -8.140065296 | J4: -1.85208068 | K4: -3.987418887 | L4: -2.119890678 | M4: -2.862158656 | N4: -3.381283083 | O4: -2.43834441 | P4: -2.43834441 | Q4: =SUM( I4:P4) -> -27.2195861 | R4: =EXP( Q4 ) -> 1.508981645e-12 | S4: =R4 / R$15 -> 1.227094174e-05 | U4: 0.0002916181561
A5: ='synthetic-data'!I9 -> 2 | B5: 10.57502709 | E5: 2 | F5: 12 | H5: 7.090909091 | I5: =LN(U5) -> -6.048859545 | J5: -1.91727898 | K5: -3.57236094 | L5: -2.025003563 | M5: -2.607186125 | N5: -3.046267844 | O5: -2.263414586 | P5: -2.263414586 | Q5: -23.74378617 | R5: 4.877583217e-11 | S5: 0.0003966419317 | U5: 0.002360552575
A6: ='synthetic-data'!I10 -> 3 | B6: 7.629989993 | E6: 3 | F6: 8 | H6: 7.636363636 | I6: =LN(U6) -> -4.417791768 | J6: -2.018085692 | K6: -3.228519819 | L6: -1.977594331 | M6: -2.411560949 | N6: -2.776534696 | O6: -2.141897382 | P6: -2.141897382 | Q6: -21.11388202 | R6: 6.766398123e-10 | S6: 0.005502391456 | U6: 0.01206083602
A7: ='synthetic-data'!I11 -> 4 | B7: 7.93836643 | E7: 4 | F7: 10 | H7: 8.181818182 | I7: =LN(U7) -> -3.1935857 | J7: -2.149583009 | K7: -2.946059907 | L7: -1.971105904 | M7: -2.26708678 | N7: -2.563067655 | O7: -2.066416084 | P7: -2.066416084 | Q7: -19.22332112 | R7: 4.481441302e-09 | S7: 0.03644279258 | U7: 0.04102450531
A8: ='synthetic-data'!I12 -> 5 | B8: 9.206416376 | E8: 5 | F8: 11 | H8: 8.727272727 | I8: =LN(U8) -> -2.33329257 | J8: -2.307806427 | K8: -2.717052199 | L8: -2.000252281 | M8: -2.167156114 | N8: -2.398598468 | O8: -2.031023939 | P8: -2.031023939 | Q8: -17.98620594 | R8: 1.544151868e-08 | S8: 0.1255694373 | U8: 0.09697592083
A9: ='synthetic-data'!I13 -> 6 | B9: 10.28464825 | E9: 6 | F9: 9 | H9: 9.272727273 | I9: =LN(U9) -> -1.801783061 | J9: -2.489513242 | K9: -2.535011283 | L9: -2.060709852 | M9: -2.106364441 | N9: -2.277182173 | O9: -2.030856888 | P9: -2.030856888 | Q9: -17.33227783 | R9: 2.969527697e-08 | S9: 0.2414800834 | U9: 0.1650044128
A10: ='synthetic-data'!I14 -> 7 | B10: 11.0461667 | E10: 7 | F10: 9 | H10: 9.818181818 | I10: =LN(U10) -> -1.569957236 | J10: -2.692017304 | K10: -2.394564862 | L10: -2.148897086 | M10: -2.080234848 | N10: -2.193894166 | O10: -2.061885709 | P10: -2.061885709 | Q10: -17.20333692 | R10: 3.378202699e-08 | S10: 0.2747132719 | U10: 0.2080540794
A11: ='synthetic-data'!I15 -> 8 | B11: 11.01099424 | H11: 10.36363636 | I11: =LN(U11) -> -1.613439093 | J11: -2.913068522 | K11: -2.291212752 | L11: -2.261813862 | M11: -2.085017181 | N11: -2.144609278 | O11: -2.120735263 | P11: -2.120735263 | Q11: -17.55063121 | R11: 2.387029079e-08 | S11: 0.1941116702 | U11: 0.1992013627
A12: ='synthetic-data'!I16 -> 9 | B12: 7.076236222 | H12: 10.90909091 | I12: =LN(U12) -> -1.911606363 | J12: -3.150763301 | K12: -2.221147765 | L12: -2.396922052 | M12: -2.117538782 | N12: -2.125837585 | O12: -2.204550159 | P12: -2.204550159 | Q12: -18.33291617 | R12: 1.091731073e-08 | S12: 0.08877886905 | U12: 0.1478427067
A13: ='synthetic-data'!I17 -> 10 | B13: 8.010951542 | E13: max6 | F13: =MAX( INDIRECT(F$3)) -> 12 | H13: 11.45454545 | I13: =LN(U13) -> -2.446857262 | J13: -3.403476862 | K13: -2.18112034 | L13: -2.552055284 | M13: -2.175091686 | N13: -2.134600325 | O13: -2.310893227 | P13: -2.310893227 | Q13: -19.51498821 | R13: 3.347713661e-09 | S13: 0.02722339228 | U13: 0.08656521122
A14: ='synthetic-data'!I18 -> 11 | B14: 10.32049934 | E14: min6 | F14: =MIN( INDIRECT(F$3)) -> 6 | H14: 12 | I14: =LN(U14) -> -3.204047981 | J14: -3.669811313 | K14: -2.168334698 | L14: -2.725349704 | M14: -2.255346075 | N14: -2.168334698 | O14: -2.437667632 | P14: -2.437667632 | Q14: -21.06655973 | R14: 7.094296811e-10 | S14: 0.005769036562 | U14: 0.04059753285
A15: ='synthetic-data'!I19 -> 12 | B15: 10.1781543 | E15: grid6 | F15: 11 | J15: =EXP( SUM(J3:J14) ) -> 6.321848018e-14 | K15: =EXP( SUM(K3:K14) ) -> 8.268533544e-16 | L15: 3.067611882e-12 | M15: 5.013060923e-13 | N15: 3.431603506e-14 | O15: 2.333440011e-12 | P15: 2.333440011e-12 | Q15: =SUM(J15:P15) -> 8.334159364e-12 | R15: =SUM( R3:R14) -> 1.22971951e-07
A16: ='synthetic-data'!I20 -> 13 | B16: 9.583085994 | E16: interval6 | F16: =(F13 - F14) / F15 -> 0.5454545455 | I16: Pr( d ) | J16: =J15 / $Q$15 -> 0.007585465722 | K16: =K15 / $Q$15 -> 9.921256821e-05 | L16: 0.3680769407 | M16: 0.06015076871 | N16: 0.004117516064 | O16: 0.2799850481 | P16: 0.2799850481
A17: ='synthetic-data'!I21 -> 14 | B17: 7.729645987 | I17: Product(theta) | J17: =PRODUCT(K16:P16) -> 7.090085391e-10 | K17: =PRODUCT($J16:J16)*PRODUCT(L16:$P16) -> 5.42084543e-08 | L17: =PRODUCT($J16:K16)*PRODUCT(M16:$P16) -> 1.461151019e-11 | M17: =PRODUCT($J16:L16)*PRODUCT(N16:$P16) -> 8.941132566e-11 | N17: =PRODUCT($J16:M16)*PRODUCT(O16:$P16) -> 1.306166117e-09 | O17: =PRODUCT($J16:N16)*PRODUCT(P16:$P16) -> 1.920873992e-11 | P17: =PRODUCT($J16:O16)*PRODUCT($P16:Q16) -> 5.37815997e-12 | Q17: =SUM(J17:P17) -> 5.635223869e-08
A18: ='synthetic-data'!I22 -> 15 | B18: 7.533258395 | I18: w | J18: =J17/$Q$17 -> 0.01258172799 | K18: =K17/$Q$17 -> 0.9619574228 | L18: 0.0002592889037 | M18: 0.001586650819 | N18: 0.02317860208 | O18: 0.0003408691538 | P18: 9.543826642e-05
A19: ='synthetic-data'!I23 -> 16 | B19: 11.95805062
A20: ='synthetic-data'!I24 -> 17 | B20: 11.62228678
A21: ='synthetic-data'!I25 -> 18 | B21: 12.63277423 | H21: h
A22: ='synthetic-data'!I26 -> 19 | B22: 12.47541017 | H22: mu_h | I22: 12
A23: ='synthetic-data'!I27 -> 20 | B23: 12.58566523 | H23: sigma_h | I23: 2
A24: ='synthetic-data'!I28 -> 21 | B24: 12.70713077
A25: ='synthetic-data'!I29 -> 22 | B25: 12.39216994 | I25: lppd_i | J25: =AVERAGE( J3:J14) -> -2.532681644 | K25: =AVERAGE( K3:K14) -> -2.89407536 | L25: -2.209176812 | M25: -2.36012996 | N25: -2.583596971 | O25: -2.231973128 | P25: -2.231973128
A26: ='synthetic-data'!I30 -> 23 | B26: 12.44842074 | I26: pWAIC_i | J26: =VAR( J3:J14 ) -> 0.4004542953 | K26: =VAR( K3:K14 ) -> 0.5968751165 | L26: 0.05884622228 | M26: 0.1243198294 | N26: 0.3097122629 | O26: 0.04069781581 | P26: 0.04069781581
A27: ='synthetic-data'!I31 -> 24 | B27: 11.1953614 | I27: lppd | J27: =SUM( J25:P25 ) -> -17.043607
A28: ='synthetic-data'!I32 -> 25 | B28: 12.71717752 | I28: pWAIC | J28: =SUM( J26:P26) -> 1.571603358
A29: ='synthetic-data'!I33 -> 26 | B29: 12.53481846 | I29: WAIC_i | J29: =-2*J25+2*J26 -> 5.866271879 | K29: 6.981900953 | L29: 4.536046069 | M29: 4.968899578 | N29: 5.786618468 | O29: 4.545341888 | P29: 4.545341888
A30: ='synthetic-data'!I34 -> 27 | B30: 12.58823331 | I30: WAIC | J30: =-2*J27 + 2*J28 -> 37.23042072
A31: ='synthetic-data'!I35 -> 28 | B31: 12.15855923 | I31: sigma_WAIC | J31: =SQRT( COUNT(J2:P2) * VAR( J29:P29 ) ) -> 2.466868851
A32: ='synthetic-data'!I36 -> 29 | B32: 12.50152408 | I32: WAIC_cv | J32: =$J$30-J29 -> 31.36414884 | K32: 30.24851977 | L32: 32.69437465 | M32: 32.26152114 | N32: 31.44380225 | O32: 32.68507883 | P32: 32.68507883
A33: ='synthetic-data'!I37 -> 30 | B33: 12.67172852 | I33: pWAIC_cv | J33: =$J$28 - J26 -> 1.171149063 | K33: =$J$28 - K26 -> 0.9747282415 | L33: 1.512757136 | M33: 1.447283529 | N33: 1.261891095 | O33: 1.530905542 | P33: 1.530905542
A34: ='synthetic-data'!I38 -> 31 | B34: 12.70395829
A35: ='synthetic-data'!I39 -> 32 | B35: 12.71674241 | E35: Model 2: low time to adjust | H35: h | I35: Pr(h) | J35: =TRANSPOSE( sMoose_61_smpl ) -> 12 | K35: 13 | L35: 11 | M35: 13 | N35: 11 | O35: 13 | P35: 9 | Q35: log-Likelihood | R35: Pr(d|h) | S35: Pr(h|d)
A36: ='synthetic-data'!I40 -> 33 | B36: 12.0639 | F36: =B$3&"1_smpl" -> sMoose_61_smpl | H36: =min61_ -> 9 | I36: =LN( _xlfn.NORM.DIST( H36, mu_h, sigma_h, FALSE ) ) -> -2.737085714 | J36: =LN( _xlfn.POISSON.DIST( J$35, $H36, FALSE ) ) -> -2.620519568 | K36: =LN( _xlfn.POISSON.DIST( K$35, $H36, FALSE ) ) -> -2.988244348 | L36: -2.332837495 | M36: -2.988244348 | N36: -2.332837495 | O36: -2.988244348 | P36: -2.026806284 | Q36: =SUM( I36:P36) -> -21.0148196 | R36: =EXP( Q36 ) -> 7.471018468e-10 | S36: =R36 / R$15 -> 0.006075384191
A37: ='synthetic-data'!I41 -> 34 | B37: 12.71133169 | D37: site >>> | E37: 1 | F37: 12 | H37: =H36 + interval61 -> 9.363636364 | I37: -2.480887367 | J37: =LN( _xlfn.POISSON.DIST( J$35, $H37, FALSE ) ) -> -2.508846274 | K37: -2.836961916 | L37: -2.26077334 | M37: -2.836961916 | N37: -2.26077334 | O37: -2.836961916 | P37: -2.033960405 | Q37: =SUM( I37:P37) -> -20.05612647 | R37: =EXP( Q37 ) -> 1.948654946e-09 | S37: =R37 / R$15 -> 0.01584633675
A38: ='synthetic-data'!I42 -> 35 | B38: 11.32859649 | E38: 2 | F38: 13 | H38: 9.727272727 | I38: -2.257746871 | J38: -2.415284483 | K38: -2.705300279 | L38: -2.205311395 | M38: -2.705300279 | N38: -2.205311395 | O38: -2.705300279 | P38: -2.054698152 | Q38: -19.25425313 | R38: 4.344943281e-09 | S38: 0.03533279945
A39: ='synthetic-data'!I43 -> 36 | B39: 12.20045366 | E39: 3 | F39: 11 | H39: 10.09090909 | I39: -2.067664226 | J39: -2.338504444 | K39: -2.591818873 | L39: -2.165232723 | M39: -2.591818873 | N39: -2.165232723 | O39: -2.591818873 | P39: -2.088022214 | Q39: -18.60011295 | R39: 8.357446064e-09 | S39: 0.06796221414
A40: ='synthetic-data'!I44 -> 37 | B40: 12.56615763 | E40: 4 | F40: 13 | H40: 10.45454545 | I40: -1.910639433 | J40: -2.277317683 | K40: -2.495230185 | L40: -2.139447889 | M40: -2.495230185 | N40: -2.139447889 | O40: -2.495230185 | P40: -2.133041235 | Q40: -18.08558469 | R40: 1.398074676e-08 | S40: 0.1136905339
A41: ='synthetic-data'!I45 -> 38 | B41: 12.1375161 | E41: 5 | F41: 11 | H41: 10.81818182 | I41: -1.786672491 | J41: -2.23065767 | K41: -2.414378807 | L41: -2.126979241 | M41: -2.414378807 | N41: -2.126979241 | O41: -2.414378807 | P41: -2.188955315 | Q41: -17.70338038 | R41: 2.04889447e-08 | S41: 0.1666147812
A42: ='synthetic-data'!I46 -> 39 | B42: 12.55851924 | E42: 6 | F42: 13 | H42: 11.18181818 | I42: -1.6957634 | J42: -2.197563687 | K42: -2.348223961 | L42: -2.126946119 | M42: -2.348223961 | N42: -2.126946119 | O42: -2.348223961 | P42: -2.255043919 | Q42: -17.44693513 | R42: 2.647843713e-08 | S42: 0.2153209486
A43: ='synthetic-data'!I47 -> 40 | B43: 12.3753903 | E43: 7 | F43: 9 | H43: 11.54545455 | I43: -1.63791216 | J43: -2.177167277 | K43: -2.295824821 | L43: -2.138552441 | M43: -2.295824821 | N43: -2.138552441 | O43: -2.295824821 | P43: -2.330655703 | Q43: -17.31031448 | R43: 3.035469959e-08 | S43: 0.2468424657
A44: ='synthetic-data'!I48 -> 41 | B44: 12.56615763 | H44: 11.90909091 | I44: -1.613118772 | J44: -2.1686808 | K44: -2.256328107 | L44: -2.161076201 | M44: -2.256328107 | N44: -2.161076201 | O44: -2.256328107 | P44: -2.415199936 | Q44: -17.28813623 | R44: 3.103543474e-08 | S44: 0.2523781602
A45: ='synthetic-data'!I49 -> 42 | B45: 12.46577362 | H45: 12.27272727 | I45: -1.621383234 | J45: -2.171387701 | K45: -2.228957553 | L45: -2.193860557 | M45: -2.228957553 | N45: -2.193860557 | O45: -2.228957553 | P45: -2.508139202 | Q45: -17.37550391 | R45: 2.843901384e-08 | S45: 0.2312642323
A46: ='synthetic-data'!I50 -> 43 | B46: 12.70192177 | E46: max61 | F46: =MAX( INDIRECT(F$36)) -> 13 | H46: 12.63636364 | I46: -1.662705548 | J46: -2.184634208 | K46: -2.213004905 | L46: -2.236306219 | M46: -2.213004905 | N46: -2.236306219 | O46: -2.213004905 | P46: -2.608983173 | Q46: -17.56795008 | R46: 2.346044366e-08 | S46: 0.1907788197
A47: ='synthetic-data'!I51 -> 44 | B47: 12.23164722 | E47: min61 | F47: =MIN( INDIRECT(F$36)) -> 9 | H47: 13 | I47: -1.737085714 | J47: -2.207822206 | K47: -2.207822206 | L47: -2.287864914 | M47: -2.207822206 | N47: -2.287864914 | O47: -2.207822206 | P47: -2.717283263 | Q47: -17.86138763 | R47: 1.749435414e-08 | S47: 0.1422629632
A48: ='synthetic-data'!I52 -> 45 | B48: 12.53481846 | E48: grid61 | F48: 11 | J48: =EXP( SUM(J36:J47) ) -> 1.141833284e-12 | K48: =EXP( SUM(K36:K47) ) -> 1.42121231e-13 | L48: 3.510760158e-12 | M48: 1.42121231e-13 | N48: 3.510760158e-12 | O48: 1.42121231e-13 | P48: 1.31026881e-12 | Q48: =SUM(J48:P48) -> 9.899986104e-12 | R48: =SUM( R36:R47) -> 2.071302207e-07
A49: ='synthetic-data'!I53 -> 46 | B49: 12.25230445 | E49: interval61 | F49: =(F46 - F47) / F48 -> 0.3636363636 | I49: Pr( d ) | J49: =J48 / $Q$15 -> 0.1370064135 | K49: =K48 / $Q$15 -> 0.01705285738 | L49: 0.4212494632 | M49: 0.01705285738 | N49: 0.4212494632 | O49: 0.01705285738 | P49: 0.1572166734
A50: ='synthetic-data'!I54 -> 47 | B50: 12.68060923 | I50: Product(theta) | J50: =PRODUCT(K49:P49) -> 1.383466996e-07 | K50: =PRODUCT($J49:J49)*PRODUCT(L49:$P49) -> 1.111507867e-06 | L50: =PRODUCT($J49:K49)*PRODUCT(M49:$P49) -> 4.499563037e-08 | M50: =PRODUCT($J49:L49)*PRODUCT(N49:$P49) -> 1.111507867e-06 | N50: =PRODUCT($J49:M49)*PRODUCT(O49:$P49) -> 4.499563037e-08 | O50: =PRODUCT($J49:N49)*PRODUCT(P49:$P49) -> 1.111507867e-06 | P50: =PRODUCT($J49:O49)*PRODUCT($P49:Q49) -> 1.895438514e-08 | Q50: =SUM(J50:P50) -> 3.581815947e-06
A51: ='synthetic-data'!I55 -> 48 | B51: 12.69574124 | I51: w | J51: =J50/$Q$17 -> 2.455034668 | K51: =K50/$Q$17 -> 19.72428945 | L51: 0.7984710353 | M51: 19.72428945 | N51: 0.7984710353 | O51: 19.72428945 | P51: 0.336355495
A52: ='synthetic-data'!I56 -> 49 | B52: 12.46650646
A53: ='synthetic-data'!I57 -> 50 | B53: 12.19000863
A54: ='synthetic-data'!I58 -> 51 | B54: 12.63277423 | H54: h
A55: ='synthetic-data'!I59 -> 52 | B55: 12.60600624 | H55: mu_h | I55: 12
A56: ='synthetic-data'!I60 -> 53 | B56: 12.71588093 | H56: sigma_h | I56: 2
A57: ='synthetic-data'!I61 -> 54 | B57: 12.60221151
A58: ='synthetic-data'!I62 -> 55 | B58: 12.16905954 | I58: lppd_i | J58: =AVERAGE( J36:J47) -> -2.291532167 | K58: =AVERAGE( K36:K47) -> -2.465174663 | L58: -2.197932378 | M58: -2.465174663 | N58: -2.197932378 | O58: -2.465174663 | P58: -2.280065733
A59: ='synthetic-data'!I63 -> 56 | B59: 11.08613365 | I59: pWAIC_i | J59: =VAR( J36:J47 ) -> 0.02243254573 | K59: =VAR( K36:K47 ) -> 0.06914567219 | L59: 0.004657024871 | M59: 0.06914567219 | N59: 0.004657024871 | O59: 0.06914567219 | P59: 0.05591879992
A60: ='synthetic-data'!I64 -> 57 | B60: 12.17954329 | I60: lppd | J60: =SUM( J58:P58 ) -> -16.36298665 | R60: log-predictive-posterior-distbriution
A61: ='synthetic-data'!I65 -> 58 | B61: 12.63433614 | I61: pWAIC | J61: =SUM( J59:P59) -> 0.295102412 | R61: variance penalty
A62: ='synthetic-data'!I66 -> 59 | B62: 12.67627478 | I62: WAIC_i | J62: =-2*J58+2*J59 -> 4.627929425 | K62: 5.068640671 | L62: 4.405178805 | M62: 5.068640671 | N62: 4.405178805 | O62: 5.068640671 | P62: 4.671969067 | R62: Widely Available Information Criterion (Watanabe 2010)
A63: ='synthetic-data'!I67 -> 60 | B63: 12.20045366 | I63: WAIC | J63: =-2*J60 + 2*J61 -> 33.31617812 | R63: -2(lppd - pWAIC)
A64: ='synthetic-data'!I68 -> 61 | B64: 12.71755152 | I64: sigma_WAIC | J64: =SQRT( COUNT(J35:P35) * VAR( J62:P62 ) ) -> 0.8102821973
A65: ='synthetic-data'!I69 -> 62 | B65: 12.70078871 | I65: WAIC_cv | J65: =$J$30-J62 -> 32.6024913 | K65: 32.16178005 | L65: 32.82524192 | M65: 32.16178005 | N65: 32.82524192 | O65: 32.16178005 | P65: 32.55845166 | R65: leave-one-out cross validation (loo-cv)
A66: ='synthetic-data'!I70 -> 63 | B66: 12.43191323 | I66: pWAIC_cv | J66: =$J$61-J59 -> 0.2726698662 | K66: =$J$61-K59 -> 0.2259567398 | L66: 0.2904453871 | M66: 0.2259567398 | N66: 0.2904453871 | O66: 0.2259567398 | P66: 0.239183612
A67: ='synthetic-data'!I71 -> 64 | B67: 12.58101858 | F67: Model 1 - Model 2
A68: ='synthetic-data'!I72 -> 65 | B68: 11.55501804 | I68: dWAIC | J68: =J32 - J65 -> -1.238342454 | K68: =K32 - K65 -> -1.913260281 | L68: -0.1308672636 | M68: 0.09974109301 | N68: -1.381439663 | O68: 0.5232987835 | P68: 0.1266271788
A69: ='synthetic-data'!I73 -> 66 | B69: 12.50152408 | I69: dpWAIC | J69: =J33 - J66 -> 0.8984791965 | K69: =K33 - K66 -> 0.7487715017 | L69: 1.222311749 | M69: 1.221326789 | N69: 0.971445708 | O69: 1.304948802 | P69: 1.29172193
A70: ='synthetic-data'!I74 -> 67 | B70: 12.32345349 | I70: =I68 -> dWAIC | J70: =I69 -> dpWAIC
A71: ='synthetic-data'!I75 -> 68 | B71: 12.17144573 | I71: =TRANSPOSE(J68:P69) -> -1.238342454 | J71: 0.8984791965 | L71: =I71 -> -1.238342454 | M71: =J71 -> 0.8984791965 | O71: -1.238342454 | P71: 0.8984791965
A72: ='synthetic-data'!I76 -> 69 | B72: 12.33356478 | I72: -1.913260281 | J72: 0.7487715017 | L72: =I72 -> -1.913260281 | M72: 0.7487715017 | O72: -1.913260281 | P72: 0.7487715017
A73: ='synthetic-data'!I77 -> 70 | B73: 12.67172852 | I73: -0.1308672636 | J73: 1.222311749 | L73: -0.1308672636 | M73: 1.222311749 | O73: -0.1308672636 | P73: 1.222311749
A74: ='synthetic-data'!I78 -> 71 | B74: 11.65160282 | I74: 0.09974109301 | J74: 1.221326789 | L74: 0.09974109301 | M74: 1.221326789 | O74: 0.09974109301 | P74: 1.221326789
A75: ='synthetic-data'!I79 -> 72 | B75: 12.69726381 | I75: -1.381439663 | J75: 0.971445708 | L75: -1.381439663 | M75: 0.971445708 | O75: -1.381439663 | P75: 0.971445708
A76: ='synthetic-data'!I80 -> 73 | B76: 12.53481846 | I76: 0.5232987835 | J76: 1.304948802 | L76: 0.5232987835 | M76: 1.304948802 | O76: 0.5232987835 | P76: 1.304948802
A77: ='synthetic-data'!I81 -> 74 | B77: 12.0001914 | I77: 0.1266271788 | J77: 1.29172193 | L77: 0.1266271788 | M77: 1.29172193 | O77: 0.1266271788 | P77: 1.29172193
A78: ='synthetic-data'!I82 -> 75 | B78: 12.56319313
A79: ='synthetic-data'!I83 -> 76 | B79: 11.9265639
A80: ='synthetic-data'!I84 -> 77 | B80: 12.39216994
A81: ='synthetic-data'!I85 -> 78 | B81: 12.11642782
A82: ='synthetic-data'!I86 -> 79 | B82: 12.70677939
A83: ='synthetic-data'!I87 -> 80 | B83: 11.95805062
A84: ='synthetic-data'!I88 -> 81 | B84: 12.41386299
A85: ='synthetic-data'!I89 -> 82 | B85: 12.70078871
A86: ='synthetic-data'!I90 -> 83 | B86: 12.71448733
A87: ='synthetic-data'!I91 -> 84 | B87: 12.65686219
A88: ='synthetic-data'!I92 -> 85 | B88: 12.55851924
A89: ='synthetic-data'!I93 -> 86 | B89: 12.58823331
A90: ='synthetic-data'!I94 -> 87 | B90: 12.59529895
A91: ='synthetic-data'!I95 -> 88 | B91: 12.4816332
A92: ='synthetic-data'!I96 -> 89 | B92: 12.42998583
A93: ='synthetic-data'!I97 -> 90 | B93: 12.43924531
A94: ='synthetic-data'!I98 -> 91 | B94: 11.58364918
A95: ='synthetic-data'!I99 -> 92 | B95: 12.26258511
A96: ='synthetic-data'!I100 -> 93 | B96: 11.22781921
A97: ='synthetic-data'!I101 -> 94 | B97: 12.70078871
A98: ='synthetic-data'!I102 -> 95 | B98: 12.64597131
A99: ='synthetic-data'!I103 -> 96 | B99: 12.37283764
A100: ='synthetic-data'!I104 -> 97 | B100: 11.40755734
A101: ='synthetic-data'!I105 -> 98 | B101: 12.3134178
A102: ='synthetic-data'!I106 -> 99 | B102: 12.58823331
A103: ='synthetic-data'!I107 -> 100 | B103: 12.66697479

Sheet >>>>>>

Sheet all-WAIC-CV
B1: 1. Compute log probability of each observation for each simulated parameter run: out of sample
B2: ='synthetic-data'!J7 -> lambda | C2: ='synthetic-data'!L7 -> sMoose_1 | D2: ='synthetic-data'!M7 -> sMoose_2 | E2: ='synthetic-data'!N7 -> sMoose_3 | F2: ='synthetic-data'!O7 -> sMoose_4 | G2: ='synthetic-data'!P7 -> sMoose_5 | H2: ='synthetic-data'!Q7 -> sMoose_6 | I2: ='synthetic-data'!R7 -> sMoose_7 | J2: ='synthetic-data'!S7 -> sMoose_8 | K2: ='synthetic-data'!T7 -> sMoose_9 | L2: ='synthetic-data'!U7 -> sMoose_10 | M2: ='synthetic-data'!V7 -> sMoose_11 | N2: ='synthetic-data'!W7 -> sMoose_12 | O2: ='synthetic-data'!X7 -> sMoose_13 | P2: ='synthetic-data'!Y7 -> sMoose_14 | Q2: ='synthetic-data'!Z7 -> sMoose_15 | R2: ='synthetic-data'!AA7 -> sMoose_16 | S2: ='synthetic-data'!AB7 -> sMoose_17 | T2: ='synthetic-data'!AC7 -> sMoose_18 | U2: ='synthetic-data'!AD7 -> sMoose_19 | V2: ='synthetic-data'!AE7 -> sMoose_20 | W2: ='synthetic-data'!AF7 -> sMoose_21 | X2: ='synthetic-data'!AG7 -> sMoose_22 | Y2: ='synthetic-data'!AH7 -> sMoose_23 | Z2: ='synthetic-data'!AI7 -> sMoose_24
B3: ='synthetic-data'!J8 -> 165.3259916 | C3: =_xlfn.POISSON.DIST( 'synthetic-data'!L8, 'synthetic-data'!$J8, FALSE ) -> 1.051561121e-31 | D3: =_xlfn.POISSON.DIST( 'synthetic-data'!M8, 'synthetic-data'!$J8, FALSE ) -> 1.669104954e-30 | E3: =_xlfn.POISSON.DIST( 'synthetic-data'!N8, 'synthetic-data'!$J8, FALSE ) -> 1.130804674e-37 | F3: =_xlfn.POISSON.DIST( 'synthetic-data'!O8, 'synthetic-data'!$J8, FALSE ) -> 2.293849616e-49 | G3: =_xlfn.POISSON.DIST( 'synthetic-data'!P8, 'synthetic-data'!$J8, FALSE ) -> 1.000992728e-55 | H3: =_xlfn.POISSON.DIST( 'synthetic-data'!Q8, 'synthetic-data'!$J8, FALSE ) -> 2.193020587e-59 | I3: =_xlfn.POISSON.DIST( 'synthetic-data'!R8, 'synthetic-data'!$J8, FALSE ) -> 1.061186116e-60 | J3: =_xlfn.POISSON.DIST( 'synthetic-data'!S8, 'synthetic-data'!$J8, FALSE ) -> 2.193020587e-59 | K3: =_xlfn.POISSON.DIST( 'synthetic-data'!T8, 'synthetic-data'!$J8, FALSE ) -> 4.028481145e-58 | L3: =_xlfn.POISSON.DIST( 'synthetic-data'!U8, 'synthetic-data'!$J8, FALSE ) -> 1.000992728e-55 | M3: =_xlfn.POISSON.DIST( 'synthetic-data'!V8, 'synthetic-data'!$J8, FALSE ) -> 1.379084295e-54 | N3: =_xlfn.POISSON.DIST( 'synthetic-data'!W8, 'synthetic-data'!$J8, FALSE ) -> 1.75383445e-53 | O3: =_xlfn.POISSON.DIST( 'synthetic-data'!X8, 'synthetic-data'!$J8, FALSE ) -> 1.75383445e-53 | P3: =_xlfn.POISSON.DIST( 'synthetic-data'!Y8, 'synthetic-data'!$J8, FALSE ) -> 1.379084295e-54 | Q3: =_xlfn.POISSON.DIST( 'synthetic-data'!Z8, 'synthetic-data'!$J8, FALSE ) -> 1.379084295e-54 | R3: =_xlfn.POISSON.DIST( 'synthetic-data'!AA8, 'synthetic-data'!$J8, FALSE ) -> 1.000992728e-55 | S3: =_xlfn.POISSON.DIST( 'synthetic-data'!AB8, 'synthetic-data'!$J8, FALSE ) -> 1.000992728e-55 | T3: =_xlfn.POISSON.DIST( 'synthetic-data'!AC8, 'synthetic-data'!$J8, FALSE ) -> 1.000992728e-55 | U3: =_xlfn.POISSON.DIST( 'synthetic-data'!AD8, 'synthetic-data'!$J8, FALSE ) -> 1.000992728e-55 | V3: =_xlfn.POISSON.DIST( 'synthetic-data'!AE8, 'synthetic-data'!$J8, FALSE ) -> 6.660126399e-57 | W3: =_xlfn.POISSON.DIST( 'synthetic-data'!AF8, 'synthetic-data'!$J8, FALSE ) -> 6.660126399e-57 | X3: =_xlfn.POISSON.DIST( 'synthetic-data'!AG8, 'synthetic-data'!$J8, FALSE ) -> 6.660126399e-57 | Y3: =_xlfn.POISSON.DIST( 'synthetic-data'!AH8, 'synthetic-data'!$J8, FALSE ) -> 6.660126399e-57 | Z3: =_xlfn.POISSON.DIST( 'synthetic-data'!AI8, 'synthetic-data'!$J8, FALSE ) -> 6.660126399e-57
B4: ='synthetic-data'!J9 -> 92.73112822 | C4: =_xlfn.POISSON.DIST( 'synthetic-data'!L9, 'synthetic-data'!$J9, FALSE ) -> 1.389589727e-12 | D4: =_xlfn.POISSON.DIST( 'synthetic-data'!M9, 'synthetic-data'!$J9, FALSE ) -> 1.813127581e-13 | E4: =_xlfn.POISSON.DIST( 'synthetic-data'!N9, 'synthetic-data'!$J9, FALSE ) -> 1.406339231e-17 | F4: =_xlfn.POISSON.DIST( 'synthetic-data'!O9, 'synthetic-data'!$J9, FALSE ) -> 4.160527922e-22 | G4: =_xlfn.POISSON.DIST( 'synthetic-data'!P9, 'synthetic-data'!$J9, FALSE ) -> 4.50559627e-26 | H4: =_xlfn.POISSON.DIST( 'synthetic-data'!Q9, 'synthetic-data'!$J9, FALSE ) -> 6.916320616e-28 | I4: =_xlfn.POISSON.DIST( 'synthetic-data'!R9, 'synthetic-data'!$J9, FALSE ) -> 7.458467021e-29 | J4: =_xlfn.POISSON.DIST( 'synthetic-data'!S9, 'synthetic-data'!$J9, FALSE ) -> 7.458467021e-29 | K4: =_xlfn.POISSON.DIST( 'synthetic-data'!T9, 'synthetic-data'!$J9, FALSE ) -> 7.238799363e-30 | L4: =_xlfn.POISSON.DIST( 'synthetic-data'!U9, 'synthetic-data'!$J9, FALSE ) -> 7.238799363e-30 | M4: =_xlfn.POISSON.DIST( 'synthetic-data'!V9, 'synthetic-data'!$J9, FALSE ) -> 7.238799363e-30 | N4: =_xlfn.POISSON.DIST( 'synthetic-data'!W9, 'synthetic-data'!$J9, FALSE ) -> 7.238799363e-30 | O4: =_xlfn.POISSON.DIST( 'synthetic-data'!X9, 'synthetic-data'!$J9, FALSE ) -> 7.238799363e-30 | P4: =_xlfn.POISSON.DIST( 'synthetic-data'!Y9, 'synthetic-data'!$J9, FALSE ) -> 7.238799363e-30 | Q4: =_xlfn.POISSON.DIST( 'synthetic-data'!Z9, 'synthetic-data'!$J9, FALSE ) -> 7.238799363e-30 | R4: =_xlfn.POISSON.DIST( 'synthetic-data'!AA9, 'synthetic-data'!$J9, FALSE ) -> 7.238799363e-30 | S4: =_xlfn.POISSON.DIST( 'synthetic-data'!AB9, 'synthetic-data'!$J9, FALSE ) -> 7.238799363e-30 | T4: =_xlfn.POISSON.DIST( 'synthetic-data'!AC9, 'synthetic-data'!$J9, FALSE ) -> 7.238799363e-30 | U4: =_xlfn.POISSON.DIST( 'synthetic-data'!AD9, 'synthetic-data'!$J9, FALSE ) -> 7.238799363e-30 | V4: =_xlfn.POISSON.DIST( 'synthetic-data'!AE9, 'synthetic-data'!$J9, FALSE ) -> 7.238799363e-30 | W4: =_xlfn.POISSON.DIST( 'synthetic-data'!AF9, 'synthetic-data'!$J9, FALSE ) -> 7.238799363e-30 | X4: =_xlfn.POISSON.DIST( 'synthetic-data'!AG9, 'synthetic-data'!$J9, FALSE ) -> 7.238799363e-30 | Y4: =_xlfn.POISSON.DIST( 'synthetic-data'!AH9, 'synthetic-data'!$J9, FALSE ) -> 7.238799363e-30 | Z4: =_xlfn.POISSON.DIST( 'synthetic-data'!AI9, 'synthetic-data'!$J9, FALSE ) -> 7.238799363e-30
B5: ='synthetic-data'!J10 -> 228.4341388 | C5: =_xlfn.POISSON.DIST( 'synthetic-data'!L10, 'synthetic-data'!$J10, FALSE ) -> 5.159387968e-52 | D5: =_xlfn.POISSON.DIST( 'synthetic-data'!M10, 'synthetic-data'!$J10, FALSE ) -> 3.587159954e-49 | E5: =_xlfn.POISSON.DIST( 'synthetic-data'!N10, 'synthetic-data'!$J10, FALSE ) -> 7.120238986e-60 | F5: =_xlfn.POISSON.DIST( 'synthetic-data'!O10, 'synthetic-data'!$J10, FALSE ) -> 2.188682052e-74 | G5: =_xlfn.POISSON.DIST( 'synthetic-data'!P10, 'synthetic-data'!$J10, FALSE ) -> 6.609385754e-83 | H5: =_xlfn.POISSON.DIST( 'synthetic-data'!Q10, 'synthetic-data'!$J10, FALSE ) -> 3.992184198e-87 | I5: =_xlfn.POISSON.DIST( 'synthetic-data'!R10, 'synthetic-data'!$J10, FALSE ) -> 3.992184198e-87 | J5: =_xlfn.POISSON.DIST( 'synthetic-data'!S10, 'synthetic-data'!$J10, FALSE ) -> 1.139938949e-85 | K5: =_xlfn.POISSON.DIST( 'synthetic-data'!T10, 'synthetic-data'!$J10, FALSE ) -> 6.609385754e-83 | L5: =_xlfn.POISSON.DIST( 'synthetic-data'!U10, 'synthetic-data'!$J10, FALSE ) -> 4.59120666e-79 | M5: =_xlfn.POISSON.DIST( 'synthetic-data'!V10, 'synthetic-data'!$J10, FALSE ) -> 1.140852672e-76 | N5: =_xlfn.POISSON.DIST( 'synthetic-data'!W10, 'synthetic-data'!$J10, FALSE ) -> 2.188682052e-74 | O5: =_xlfn.POISSON.DIST( 'synthetic-data'!X10, 'synthetic-data'!$J10, FALSE ) -> 2.188682052e-74 | P5: =_xlfn.POISSON.DIST( 'synthetic-data'!Y10, 'synthetic-data'!$J10, FALSE ) -> 1.62881061e-75 | Q5: =_xlfn.POISSON.DIST( 'synthetic-data'!Z10, 'synthetic-data'!$J10, FALSE ) -> 1.140852672e-76 | R5: =_xlfn.POISSON.DIST( 'synthetic-data'!AA10, 'synthetic-data'!$J10, FALSE ) -> 7.491345281e-78 | S5: =_xlfn.POISSON.DIST( 'synthetic-data'!AB10, 'synthetic-data'!$J10, FALSE ) -> 4.59120666e-79 | T5: =_xlfn.POISSON.DIST( 'synthetic-data'!AC10, 'synthetic-data'!$J10, FALSE ) -> 2.612818158e-80 | U5: =_xlfn.POISSON.DIST( 'synthetic-data'!AD10, 'synthetic-data'!$J10, FALSE ) -> 2.612818158e-80 | V5: =_xlfn.POISSON.DIST( 'synthetic-data'!AE10, 'synthetic-data'!$J10, FALSE ) -> 1.372553948e-81 | W5: =_xlfn.POISSON.DIST( 'synthetic-data'!AF10, 'synthetic-data'!$J10, FALSE ) -> 1.372553948e-81 | X5: =_xlfn.POISSON.DIST( 'synthetic-data'!AG10, 'synthetic-data'!$J10, FALSE ) -> 1.372553948e-81 | Y5: =_xlfn.POISSON.DIST( 'synthetic-data'!AH10, 'synthetic-data'!$J10, FALSE ) -> 6.609385754e-83 | Z5: =_xlfn.POISSON.DIST( 'synthetic-data'!AI10, 'synthetic-data'!$J10, FALSE ) -> 6.609385754e-83
B6: ='synthetic-data'!J11 -> 207.6233515 | C6: =_xlfn.POISSON.DIST( 'synthetic-data'!L11, 'synthetic-data'!$J11, FALSE ) -> 2.061670604e-45 | D6: =_xlfn.POISSON.DIST( 'synthetic-data'!M11, 'synthetic-data'!$J11, FALSE ) -> 2.322081445e-43 | E6: =_xlfn.POISSON.DIST( 'synthetic-data'!N11, 'synthetic-data'!$J11, FALSE ) -> 3.655869465e-52 | F6: =_xlfn.POISSON.DIST( 'synthetic-data'!O11, 'synthetic-data'!$J11, FALSE ) -> 4.709241395e-66 | G6: =_xlfn.POISSON.DIST( 'synthetic-data'!P11, 'synthetic-data'!$J11, FALSE ) -> 2.775383832e-74 | H6: =_xlfn.POISSON.DIST( 'synthetic-data'!Q11, 'synthetic-data'!$J11, FALSE ) -> 2.232682449e-78 | I6: =_xlfn.POISSON.DIST( 'synthetic-data'!R11, 'synthetic-data'!$J11, FALSE ) -> 2.232682449e-78 | J6: =_xlfn.POISSON.DIST( 'synthetic-data'!S11, 'synthetic-data'!$J11, FALSE ) -> 5.794462663e-77 | K6: =_xlfn.POISSON.DIST( 'synthetic-data'!T11, 'synthetic-data'!$J11, FALSE ) -> 2.775383832e-74 | L6: =_xlfn.POISSON.DIST( 'synthetic-data'!U11, 'synthetic-data'!$J11, FALSE ) -> 9.063616418e-72 | M6: =_xlfn.POISSON.DIST( 'synthetic-data'!V11, 'synthetic-data'!$J11, FALSE ) -> 2.146755202e-69 | N6: =_xlfn.POISSON.DIST( 'synthetic-data'!W11, 'synthetic-data'!$J11, FALSE ) -> 2.9714434e-68 | O6: =_xlfn.POISSON.DIST( 'synthetic-data'!X11, 'synthetic-data'!$J11, FALSE ) -> 2.9714434e-68 | P6: =_xlfn.POISSON.DIST( 'synthetic-data'!Y11, 'synthetic-data'!$J11, FALSE ) -> 2.146755202e-69 | Q6: =_xlfn.POISSON.DIST( 'synthetic-data'!Z11, 'synthetic-data'!$J11, FALSE ) -> 1.447552629e-70 | R6: =_xlfn.POISSON.DIST( 'synthetic-data'!AA11, 'synthetic-data'!$J11, FALSE ) -> 1.447552629e-70 | S6: =_xlfn.POISSON.DIST( 'synthetic-data'!AB11, 'synthetic-data'!$J11, FALSE ) -> 9.063616418e-72 | T6: =_xlfn.POISSON.DIST( 'synthetic-data'!AC11, 'synthetic-data'!$J11, FALSE ) -> 9.063616418e-72 | U6: =_xlfn.POISSON.DIST( 'synthetic-data'!AD11, 'synthetic-data'!$J11, FALSE ) -> 5.238495391e-73 | V6: =_xlfn.POISSON.DIST( 'synthetic-data'!AE11, 'synthetic-data'!$J11, FALSE ) -> 5.238495391e-73 | W6: =_xlfn.POISSON.DIST( 'synthetic-data'!AF11, 'synthetic-data'!$J11, FALSE ) -> 5.238495391e-73 | X6: =_xlfn.POISSON.DIST( 'synthetic-data'!AG11, 'synthetic-data'!$J11, FALSE ) -> 5.238495391e-73 | Y6: =_xlfn.POISSON.DIST( 'synthetic-data'!AH11, 'synthetic-data'!$J11, FALSE ) -> 5.238495391e-73 | Z6: =_xlfn.POISSON.DIST( 'synthetic-data'!AI11, 'synthetic-data'!$J11, FALSE ) -> 2.775383832e-74
B7: ='synthetic-data'!J12 -> 135.8250311 | C7: =_xlfn.POISSON.DIST( 'synthetic-data'!L12, 'synthetic-data'!$J12, FALSE ) -> 2.221523541e-23 | D7: =_xlfn.POISSON.DIST( 'synthetic-data'!M12, 'synthetic-data'!$J12, FALSE ) -> 2.221523541e-23 | E7: =_xlfn.POISSON.DIST( 'synthetic-data'!N12, 'synthetic-data'!$J12, FALSE ) -> 1.783332958e-29 | F7: =_xlfn.POISSON.DIST( 'synthetic-data'!O12, 'synthetic-data'!$J12, FALSE ) -> 3.974057134e-37 | G7: =_xlfn.POISSON.DIST( 'synthetic-data'!P12, 'synthetic-data'!$J12, FALSE ) -> 7.474131195e-44 | H7: =_xlfn.POISSON.DIST( 'synthetic-data'!Q12, 'synthetic-data'!$J12, FALSE ) -> 4.456498613e-46 | I7: =_xlfn.POISSON.DIST( 'synthetic-data'!R12, 'synthetic-data'!$J12, FALSE ) -> 2.952952574e-47 | J7: =_xlfn.POISSON.DIST( 'synthetic-data'!S12, 'synthetic-data'!$J12, FALSE ) -> 2.952952574e-47 | K7: =_xlfn.POISSON.DIST( 'synthetic-data'!T12, 'synthetic-data'!$J12, FALSE ) -> 4.456498613e-46 | L7: =_xlfn.POISSON.DIST( 'synthetic-data'!U12, 'synthetic-data'!$J12, FALSE ) -> 4.456498613e-46 | M7: =_xlfn.POISSON.DIST( 'synthetic-data'!V12, 'synthetic-data'!$J12, FALSE ) -> 6.053040627e-45 | N7: =_xlfn.POISSON.DIST( 'synthetic-data'!W12, 'synthetic-data'!$J12, FALSE ) -> 6.053040627e-45 | O7: =_xlfn.POISSON.DIST( 'synthetic-data'!X12, 'synthetic-data'!$J12, FALSE ) -> 6.053040627e-45 | P7: =_xlfn.POISSON.DIST( 'synthetic-data'!Y12, 'synthetic-data'!$J12, FALSE ) -> 4.456498613e-46 | Q7: =_xlfn.POISSON.DIST( 'synthetic-data'!Z12, 'synthetic-data'!$J12, FALSE ) -> 4.456498613e-46 | R7: =_xlfn.POISSON.DIST( 'synthetic-data'!AA12, 'synthetic-data'!$J12, FALSE ) -> 4.456498613e-46 | S7: =_xlfn.POISSON.DIST( 'synthetic-data'!AB12, 'synthetic-data'!$J12, FALSE ) -> 4.456498613e-46 | T7: =_xlfn.POISSON.DIST( 'synthetic-data'!AC12, 'synthetic-data'!$J12, FALSE ) -> 4.456498613e-46 | U7: =_xlfn.POISSON.DIST( 'synthetic-data'!AD12, 'synthetic-data'!$J12, FALSE ) -> 4.456498613e-46 | V7: =_xlfn.POISSON.DIST( 'synthetic-data'!AE12, 'synthetic-data'!$J12, FALSE ) -> 4.456498613e-46 | W7: =_xlfn.POISSON.DIST( 'synthetic-data'!AF12, 'synthetic-data'!$J12, FALSE ) -> 4.456498613e-46 | X7: =_xlfn.POISSON.DIST( 'synthetic-data'!AG12, 'synthetic-data'!$J12, FALSE ) -> 4.456498613e-46 | Y7: =_xlfn.POISSON.DIST( 'synthetic-data'!AH12, 'synthetic-data'!$J12, FALSE ) -> 4.456498613e-46 | Z7: =_xlfn.POISSON.DIST( 'synthetic-data'!AI12, 'synthetic-data'!$J12, FALSE ) -> 4.456498613e-46
B8: ='synthetic-data'!J13 -> 95.99378521 | C8: =_xlfn.POISSON.DIST( 'synthetic-data'!L13, 'synthetic-data'!$J13, FALSE ) -> 4.728302284e-13 | D8: =_xlfn.POISSON.DIST( 'synthetic-data'!M13, 'synthetic-data'!$J13, FALSE ) -> 6.106128799e-14 | E8: =_xlfn.POISSON.DIST( 'synthetic-data'!N13, 'synthetic-data'!$J13, FALSE ) -> 4.740902595e-18 | F8: =_xlfn.POISSON.DIST( 'synthetic-data'!O13, 'synthetic-data'!$J13, FALSE ) -> 2.867432874e-23 | G8: =_xlfn.POISSON.DIST( 'synthetic-data'!P13, 'synthetic-data'!$J13, FALSE ) -> 2.612216845e-27 | H8: =_xlfn.POISSON.DIST( 'synthetic-data'!Q13, 'synthetic-data'!$J13, FALSE ) -> 3.74194089e-29 | I8: =_xlfn.POISSON.DIST( 'synthetic-data'!R13, 'synthetic-data'!$J13, FALSE ) -> 3.898107447e-30 | J8: =_xlfn.POISSON.DIST( 'synthetic-data'!S13, 'synthetic-data'!$J13, FALSE ) -> 3.654712328e-31 | K8: =_xlfn.POISSON.DIST( 'synthetic-data'!T13, 'synthetic-data'!$J13, FALSE ) -> 3.654712328e-31 | L8: =_xlfn.POISSON.DIST( 'synthetic-data'!U13, 'synthetic-data'!$J13, FALSE ) -> 3.654712328e-31 | M8: =_xlfn.POISSON.DIST( 'synthetic-data'!V13, 'synthetic-data'!$J13, FALSE ) -> 3.654712328e-31 | N8: =_xlfn.POISSON.DIST( 'synthetic-data'!W13, 'synthetic-data'!$J13, FALSE ) -> 3.654712328e-31 | O8: =_xlfn.POISSON.DIST( 'synthetic-data'!X13, 'synthetic-data'!$J13, FALSE ) -> 3.654712328e-31 | P8: =_xlfn.POISSON.DIST( 'synthetic-data'!Y13, 'synthetic-data'!$J13, FALSE ) -> 3.654712328e-31 | Q8: =_xlfn.POISSON.DIST( 'synthetic-data'!Z13, 'synthetic-data'!$J13, FALSE ) -> 3.654712328e-31 | R8: =_xlfn.POISSON.DIST( 'synthetic-data'!AA13, 'synthetic-data'!$J13, FALSE ) -> 3.654712328e-31 | S8: =_xlfn.POISSON.DIST( 'synthetic-data'!AB13, 'synthetic-data'!$J13, FALSE ) -> 3.654712328e-31 | T8: =_xlfn.POISSON.DIST( 'synthetic-data'!AC13, 'synthetic-data'!$J13, FALSE ) -> 3.654712328e-31 | U8: =_xlfn.POISSON.DIST( 'synthetic-data'!AD13, 'synthetic-data'!$J13, FALSE ) -> 3.654712328e-31 | V8: =_xlfn.POISSON.DIST( 'synthetic-data'!AE13, 'synthetic-data'!$J13, FALSE ) -> 3.654712328e-31 | W8: =_xlfn.POISSON.DIST( 'synthetic-data'!AF13, 'synthetic-data'!$J13, FALSE ) -> 3.654712328e-31 | X8: =_xlfn.POISSON.DIST( 'synthetic-data'!AG13, 'synthetic-data'!$J13, FALSE ) -> 3.654712328e-31 | Y8: =_xlfn.POISSON.DIST( 'synthetic-data'!AH13, 'synthetic-data'!$J13, FALSE ) -> 3.654712328e-31 | Z8: =_xlfn.POISSON.DIST( 'synthetic-data'!AI13, 'synthetic-data'!$J13, FALSE ) -> 3.654712328e-31
B9: ='synthetic-data'!J14 -> 96.43126924 | C9: =_xlfn.POISSON.DIST( 'synthetic-data'!L14, 'synthetic-data'!$J14, FALSE ) -> 4.580747363e-14 | D9: =_xlfn.POISSON.DIST( 'synthetic-data'!M14, 'synthetic-data'!$J14, FALSE ) -> 5.202495041e-16 | E9: =_xlfn.POISSON.DIST( 'synthetic-data'!N14, 'synthetic-data'!$J14, FALSE ) -> 5.277870397e-20 | F9: =_xlfn.POISSON.DIST( 'synthetic-data'!O14, 'synthetic-data'!$J14, FALSE ) -> 2.000172186e-23 | G9: =_xlfn.POISSON.DIST( 'synthetic-data'!P14, 'synthetic-data'!$J14, FALSE ) -> 1.32124711e-26 | H9: =_xlfn.POISSON.DIST( 'synthetic-data'!Q14, 'synthetic-data'!$J14, FALSE ) -> 2.216526269e-28 | I9: =_xlfn.POISSON.DIST( 'synthetic-data'!R14, 'synthetic-data'!$J14, FALSE ) -> 2.621982579e-30 | J9: =_xlfn.POISSON.DIST( 'synthetic-data'!S14, 'synthetic-data'!$J14, FALSE ) -> 2.621982579e-30 | K9: =_xlfn.POISSON.DIST( 'synthetic-data'!T14, 'synthetic-data'!$J14, FALSE ) -> 2.621982579e-30 | L9: =_xlfn.POISSON.DIST( 'synthetic-data'!U14, 'synthetic-data'!$J14, FALSE ) -> 2.621982579e-30 | M9: =_xlfn.POISSON.DIST( 'synthetic-data'!V14, 'synthetic-data'!$J14, FALSE ) -> 2.447115277e-31 | N9: =_xlfn.POISSON.DIST( 'synthetic-data'!W14, 'synthetic-data'!$J14, FALSE ) -> 2.447115277e-31 | O9: =_xlfn.POISSON.DIST( 'synthetic-data'!X14, 'synthetic-data'!$J14, FALSE ) -> 2.447115277e-31 | P9: =_xlfn.POISSON.DIST( 'synthetic-data'!Y14, 'synthetic-data'!$J14, FALSE ) -> 2.447115277e-31 | Q9: =_xlfn.POISSON.DIST( 'synthetic-data'!Z14, 'synthetic-data'!$J14, FALSE ) -> 2.447115277e-31 | R9: =_xlfn.POISSON.DIST( 'synthetic-data'!AA14, 'synthetic-data'!$J14, FALSE ) -> 2.447115277e-31 | S9: =_xlfn.POISSON.DIST( 'synthetic-data'!AB14, 'synthetic-data'!$J14, FALSE ) -> 2.447115277e-31 | T9: =_xlfn.POISSON.DIST( 'synthetic-data'!AC14, 'synthetic-data'!$J14, FALSE ) -> 2.447115277e-31 | U9: =_xlfn.POISSON.DIST( 'synthetic-data'!AD14, 'synthetic-data'!$J14, FALSE ) -> 2.447115277e-31 | V9: =_xlfn.POISSON.DIST( 'synthetic-data'!AE14, 'synthetic-data'!$J14, FALSE ) -> 2.447115277e-31 | W9: =_xlfn.POISSON.DIST( 'synthetic-data'!AF14, 'synthetic-data'!$J14, FALSE ) -> 2.447115277e-31 | X9: =_xlfn.POISSON.DIST( 'synthetic-data'!AG14, 'synthetic-data'!$J14, FALSE ) -> 2.447115277e-31 | Y9: =_xlfn.POISSON.DIST( 'synthetic-data'!AH14, 'synthetic-data'!$J14, FALSE ) -> 2.447115277e-31 | Z9: =_xlfn.POISSON.DIST( 'synthetic-data'!AI14, 'synthetic-data'!$J14, FALSE ) -> 2.447115277e-31
B10: ='synthetic-data'!J15 -> 93.65709248 | C10: =_xlfn.POISSON.DIST( 'synthetic-data'!L15, 'synthetic-data'!$J15, FALSE ) -> 2.801547632e-13 | D10: =_xlfn.POISSON.DIST( 'synthetic-data'!M15, 'synthetic-data'!$J15, FALSE ) -> 3.575873876e-15 | E10: =_xlfn.POISSON.DIST( 'synthetic-data'!N15, 'synthetic-data'!$J15, FALSE ) -> 1.812101653e-18 | F10: =_xlfn.POISSON.DIST( 'synthetic-data'!O15, 'synthetic-data'!$J15, FALSE ) -> 1.951481517e-22 | G10: =_xlfn.POISSON.DIST( 'synthetic-data'!P15, 'synthetic-data'!$J15, FALSE ) -> 1.448738348e-25 | H10: =_xlfn.POISSON.DIST( 'synthetic-data'!Q15, 'synthetic-data'!$J15, FALSE ) -> 2.576518183e-27 | I10: =_xlfn.POISSON.DIST( 'synthetic-data'!R15, 'synthetic-data'!$J15, FALSE ) -> 3.231056514e-29 | J10: =_xlfn.POISSON.DIST( 'synthetic-data'!S15, 'synthetic-data'!$J15, FALSE ) -> 3.231056514e-29 | K10: =_xlfn.POISSON.DIST( 'synthetic-data'!T15, 'synthetic-data'!$J15, FALSE ) -> 3.231056514e-29 | L10: =_xlfn.POISSON.DIST( 'synthetic-data'!U15, 'synthetic-data'!$J15, FALSE ) -> 3.104891243e-30 | M10: =_xlfn.POISSON.DIST( 'synthetic-data'!V15, 'synthetic-data'!$J15, FALSE ) -> 3.104891243e-30 | N10: =_xlfn.POISSON.DIST( 'synthetic-data'!W15, 'synthetic-data'!$J15, FALSE ) -> 3.104891243e-30 | O10: =_xlfn.POISSON.DIST( 'synthetic-data'!X15, 'synthetic-data'!$J15, FALSE ) -> 3.104891243e-30 | P10: =_xlfn.POISSON.DIST( 'synthetic-data'!Y15, 'synthetic-data'!$J15, FALSE ) -> 3.104891243e-30 | Q10: =_xlfn.POISSON.DIST( 'synthetic-data'!Z15, 'synthetic-data'!$J15, FALSE ) -> 3.104891243e-30 | R10: =_xlfn.POISSON.DIST( 'synthetic-data'!AA15, 'synthetic-data'!$J15, FALSE ) -> 3.104891243e-30 | S10: =_xlfn.POISSON.DIST( 'synthetic-data'!AB15, 'synthetic-data'!$J15, FALSE ) -> 3.104891243e-30 | T10: =_xlfn.POISSON.DIST( 'synthetic-data'!AC15, 'synthetic-data'!$J15, FALSE ) -> 3.104891243e-30 | U10: =_xlfn.POISSON.DIST( 'synthetic-data'!AD15, 'synthetic-data'!$J15, FALSE ) -> 3.104891243e-30 | V10: =_xlfn.POISSON.DIST( 'synthetic-data'!AE15, 'synthetic-data'!$J15, FALSE ) -> 3.104891243e-30 | W10: =_xlfn.POISSON.DIST( 'synthetic-data'!AF15, 'synthetic-data'!$J15, FALSE ) -> 3.104891243e-30 | X10: =_xlfn.POISSON.DIST( 'synthetic-data'!AG15, 'synthetic-data'!$J15, FALSE ) -> 3.104891243e-30 | Y10: =_xlfn.POISSON.DIST( 'synthetic-data'!AH15, 'synthetic-data'!$J15, FALSE ) -> 3.104891243e-30 | Z10: =_xlfn.POISSON.DIST( 'synthetic-data'!AI15, 'synthetic-data'!$J15, FALSE ) -> 3.104891243e-30
B11: ='synthetic-data'!J16 -> 226.6878564 | C11: =_xlfn.POISSON.DIST( 'synthetic-data'!L16, 'synthetic-data'!$J16, FALSE ) -> 1.129752147e-50 | D11: =_xlfn.POISSON.DIST( 'synthetic-data'!M16, 'synthetic-data'!$J16, FALSE ) -> 3.2912611e-47 | E11: =_xlfn.POISSON.DIST( 'synthetic-data'!N16, 'synthetic-data'!$J16, FALSE ) -> 2.193621035e-58 | F11: =_xlfn.POISSON.DIST( 'synthetic-data'!O16, 'synthetic-data'!$J16, FALSE ) -> 1.101353363e-73 | G11: =_xlfn.POISSON.DIST( 'synthetic-data'!P16, 'synthetic-data'!$J16, FALSE ) -> 1.548125337e-83 | H11: =_xlfn.POISSON.DIST( 'synthetic-data'!Q16, 'synthetic-data'!$J16, FALSE ) -> 2.169112632e-86 | I11: =_xlfn.POISSON.DIST( 'synthetic-data'!R16, 'synthetic-data'!$J16, FALSE ) -> 6.698104021e-88 | J11: =_xlfn.POISSON.DIST( 'synthetic-data'!S16, 'synthetic-data'!$J16, FALSE ) -> 6.146393661e-85 | K11: =_xlfn.POISSON.DIST( 'synthetic-data'!T16, 'synthetic-data'!$J16, FALSE ) -> 3.509412142e-82 | L11: =_xlfn.POISSON.DIST( 'synthetic-data'!U16, 'synthetic-data'!$J16, FALSE ) -> 3.857465744e-77 | M11: =_xlfn.POISSON.DIST( 'synthetic-data'!V16, 'synthetic-data'!$J16, FALSE ) -> 1.387019072e-72 | N11: =_xlfn.POISSON.DIST( 'synthetic-data'!W16, 'synthetic-data'!$J16, FALSE ) -> 2.024716903e-69 | O11: =_xlfn.POISSON.DIST( 'synthetic-data'!X16, 'synthetic-data'!$J16, FALSE ) -> 2.086266976e-68 | P11: =_xlfn.POISSON.DIST( 'synthetic-data'!Y16, 'synthetic-data'!$J16, FALSE ) -> 2.024716903e-69 | Q11: =_xlfn.POISSON.DIST( 'synthetic-data'!Z16, 'synthetic-data'!$J16, FALSE ) -> 1.387019072e-72 | R11: =_xlfn.POISSON.DIST( 'synthetic-data'!AA16, 'synthetic-data'!$J16, FALSE ) -> 5.829604271e-76 | S11: =_xlfn.POISSON.DIST( 'synthetic-data'!AB16, 'synthetic-data'!$J16, FALSE ) -> 2.382329661e-78 | T11: =_xlfn.POISSON.DIST( 'synthetic-data'!AC16, 'synthetic-data'!$J16, FALSE ) -> 1.36620841e-79 | U11: =_xlfn.POISSON.DIST( 'synthetic-data'!AD16, 'synthetic-data'!$J16, FALSE ) -> 7.23219196e-81 | V11: =_xlfn.POISSON.DIST( 'synthetic-data'!AE16, 'synthetic-data'!$J16, FALSE ) -> 7.23219196e-81 | W11: =_xlfn.POISSON.DIST( 'synthetic-data'!AF16, 'synthetic-data'!$J16, FALSE ) -> 3.509412142e-82 | X11: =_xlfn.POISSON.DIST( 'synthetic-data'!AG16, 'synthetic-data'!$J16, FALSE ) -> 3.509412142e-82 | Y11: =_xlfn.POISSON.DIST( 'synthetic-data'!AH16, 'synthetic-data'!$J16, FALSE ) -> 3.509412142e-82 | Z11: =_xlfn.POISSON.DIST( 'synthetic-data'!AI16, 'synthetic-data'!$J16, FALSE ) -> 1.548125337e-83
B12: ='synthetic-data'!J17 -> 182.4817693 | C12: =_xlfn.POISSON.DIST( 'synthetic-data'!L17, 'synthetic-data'!$J17, FALSE ) -> 8.604872479e-37 | D12: =_xlfn.POISSON.DIST( 'synthetic-data'!M17, 'synthetic-data'!$J17, FALSE ) -> 6.580099568e-35 | E12: =_xlfn.POISSON.DIST( 'synthetic-data'!N17, 'synthetic-data'!$J17, FALSE ) -> 8.549815923e-44 | F12: =_xlfn.POISSON.DIST( 'synthetic-data'!O17, 'synthetic-data'!$J17, FALSE ) -> 4.353487038e-56 | G12: =_xlfn.POISSON.DIST( 'synthetic-data'!P17, 'synthetic-data'!$J17, FALSE ) -> 6.33295434e-64 | H12: =_xlfn.POISSON.DIST( 'synthetic-data'!Q17, 'synthetic-data'!$J17, FALSE ) -> 1.711630041e-66 | I12: =_xlfn.POISSON.DIST( 'synthetic-data'!R17, 'synthetic-data'!$J17, FALSE ) -> 7.503785382e-68 | J12: =_xlfn.POISSON.DIST( 'synthetic-data'!S17, 'synthetic-data'!$J17, FALSE ) -> 1.711630041e-66 | K12: =_xlfn.POISSON.DIST( 'synthetic-data'!T17, 'synthetic-data'!$J17, FALSE ) -> 6.33295434e-64 | L12: =_xlfn.POISSON.DIST( 'synthetic-data'!U17, 'synthetic-data'!$J17, FALSE ) -> 1.597612286e-61 | M12: =_xlfn.POISSON.DIST( 'synthetic-data'!V17, 'synthetic-data'!$J17, FALSE ) -> 2.923068344e-59 | N12: =_xlfn.POISSON.DIST( 'synthetic-data'!W17, 'synthetic-data'!$J17, FALSE ) -> 3.556044554e-58 | O12: =_xlfn.POISSON.DIST( 'synthetic-data'!X17, 'synthetic-data'!$J17, FALSE ) -> 2.923068344e-59 | P12: =_xlfn.POISSON.DIST( 'synthetic-data'!Y17, 'synthetic-data'!$J17, FALSE ) -> 2.923068344e-59 | Q12: =_xlfn.POISSON.DIST( 'synthetic-data'!Z17, 'synthetic-data'!$J17, FALSE ) -> 2.242577819e-60 | R12: =_xlfn.POISSON.DIST( 'synthetic-data'!AA17, 'synthetic-data'!$J17, FALSE ) -> 1.597612286e-61 | S12: =_xlfn.POISSON.DIST( 'synthetic-data'!AB17, 'synthetic-data'!$J17, FALSE ) -> 1.597612286e-61 | T12: =_xlfn.POISSON.DIST( 'synthetic-data'!AC17, 'synthetic-data'!$J17, FALSE ) -> 1.597612286e-61 | U12: =_xlfn.POISSON.DIST( 'synthetic-data'!AD17, 'synthetic-data'!$J17, FALSE ) -> 1.050589739e-62 | V12: =_xlfn.POISSON.DIST( 'synthetic-data'!AE17, 'synthetic-data'!$J17, FALSE ) -> 1.050589739e-62 | W12: =_xlfn.POISSON.DIST( 'synthetic-data'!AF17, 'synthetic-data'!$J17, FALSE ) -> 1.050589739e-62 | X12: =_xlfn.POISSON.DIST( 'synthetic-data'!AG17, 'synthetic-data'!$J17, FALSE ) -> 1.050589739e-62 | Y12: =_xlfn.POISSON.DIST( 'synthetic-data'!AH17, 'synthetic-data'!$J17, FALSE ) -> 6.33295434e-64 | Z12: =_xlfn.POISSON.DIST( 'synthetic-data'!AI17, 'synthetic-data'!$J17, FALSE ) -> 6.33295434e-64
B13: ='synthetic-data'!J18 -> 104.6486555 | C13: =_xlfn.POISSON.DIST( 'synthetic-data'!L18, 'synthetic-data'!$J18, FALSE ) -> 1.690875313e-15 | D13: =_xlfn.POISSON.DIST( 'synthetic-data'!M18, 'synthetic-data'!$J18, FALSE ) -> 1.837347229e-16 | E13: =_xlfn.POISSON.DIST( 'synthetic-data'!N18, 'synthetic-data'!$J18, FALSE ) -> 7.150921699e-21 | F13: =_xlfn.POISSON.DIST( 'synthetic-data'!O18, 'synthetic-data'!$J18, FALSE ) -> 2.168053337e-26 | G13: =_xlfn.POISSON.DIST( 'synthetic-data'!P18, 'synthetic-data'!$J18, FALSE ) -> 1.282724081e-30 | H13: =_xlfn.POISSON.DIST( 'synthetic-data'!Q18, 'synthetic-data'!$J18, FALSE ) -> 1.546108164e-32 | I13: =_xlfn.POISSON.DIST( 'synthetic-data'!R18, 'synthetic-data'!$J18, FALSE ) -> 1.477427642e-33 | J13: =_xlfn.POISSON.DIST( 'synthetic-data'!S18, 'synthetic-data'!$J18, FALSE ) -> 1.270618214e-34 | K13: =_xlfn.POISSON.DIST( 'synthetic-data'!T18, 'synthetic-data'!$J18, FALSE ) -> 1.270618214e-34 | L13: =_xlfn.POISSON.DIST( 'synthetic-data'!U18, 'synthetic-data'!$J18, FALSE ) -> 1.270618214e-34 | M13: =_xlfn.POISSON.DIST( 'synthetic-data'!V18, 'synthetic-data'!$J18, FALSE ) -> 1.270618214e-34 | N13: =_xlfn.POISSON.DIST( 'synthetic-data'!W18, 'synthetic-data'!$J18, FALSE ) -> 1.270618214e-34 | O13: =_xlfn.POISSON.DIST( 'synthetic-data'!X18, 'synthetic-data'!$J18, FALSE ) -> 1.270618214e-34 | P13: =_xlfn.POISSON.DIST( 'synthetic-data'!Y18, 'synthetic-data'!$J18, FALSE ) -> 1.270618214e-34 | Q13: =_xlfn.POISSON.DIST( 'synthetic-data'!Z18, 'synthetic-data'!$J18, FALSE ) -> 1.270618214e-34 | R13: =_xlfn.POISSON.DIST( 'synthetic-data'!AA18, 'synthetic-data'!$J18, FALSE ) -> 1.270618214e-34 | S13: =_xlfn.POISSON.DIST( 'synthetic-data'!AB18, 'synthetic-data'!$J18, FALSE ) -> 1.270618214e-34 | T13: =_xlfn.POISSON.DIST( 'synthetic-data'!AC18, 'synthetic-data'!$J18, FALSE ) -> 1.270618214e-34 | U13: =_xlfn.POISSON.DIST( 'synthetic-data'!AD18, 'synthetic-data'!$J18, FALSE ) -> 1.270618214e-34 | V13: =_xlfn.POISSON.DIST( 'synthetic-data'!AE18, 'synthetic-data'!$J18, FALSE ) -> 1.270618214e-34 | W13: =_xlfn.POISSON.DIST( 'synthetic-data'!AF18, 'synthetic-data'!$J18, FALSE ) -> 1.270618214e-34 | X13: =_xlfn.POISSON.DIST( 'synthetic-data'!AG18, 'synthetic-data'!$J18, FALSE ) -> 1.270618214e-34 | Y13: =_xlfn.POISSON.DIST( 'synthetic-data'!AH18, 'synthetic-data'!$J18, FALSE ) -> 1.270618214e-34 | Z13: =_xlfn.POISSON.DIST( 'synthetic-data'!AI18, 'synthetic-data'!$J18, FALSE ) -> 1.270618214e-34
B14: ='synthetic-data'!J19 -> 86.10348048 | C14: =_xlfn.POISSON.DIST( 'synthetic-data'!L19, 'synthetic-data'!$J19, FALSE ) -> 4.965281257e-10 | D14: =_xlfn.POISSON.DIST( 'synthetic-data'!M19, 'synthetic-data'!$J19, FALSE ) -> 8.438650211e-11 | E14: =_xlfn.POISSON.DIST( 'synthetic-data'!N19, 'synthetic-data'!$J19, FALSE ) -> 6.174553368e-15 | F14: =_xlfn.POISSON.DIST( 'synthetic-data'!O19, 'synthetic-data'!$J19, FALSE ) -> 8.912859435e-20 | G14: =_xlfn.POISSON.DIST( 'synthetic-data'!P19, 'synthetic-data'!$J19, FALSE ) -> 1.398443981e-23 | H14: =_xlfn.POISSON.DIST( 'synthetic-data'!Q19, 'synthetic-data'!$J19, FALSE ) -> 2.489875269e-25 | I14: =_xlfn.POISSON.DIST( 'synthetic-data'!R19, 'synthetic-data'!$J19, FALSE ) -> 2.8917243e-26 | J14: =_xlfn.POISSON.DIST( 'synthetic-data'!S19, 'synthetic-data'!$J19, FALSE ) -> 3.022586144e-27 | K14: =_xlfn.POISSON.DIST( 'synthetic-data'!T19, 'synthetic-data'!$J19, FALSE ) -> 3.022586144e-27 | L14: =_xlfn.POISSON.DIST( 'synthetic-data'!U19, 'synthetic-data'!$J19, FALSE ) -> 3.022586144e-27 | M14: =_xlfn.POISSON.DIST( 'synthetic-data'!V19, 'synthetic-data'!$J19, FALSE ) -> 2.8917243e-26 | N14: =_xlfn.POISSON.DIST( 'synthetic-data'!W19, 'synthetic-data'!$J19, FALSE ) -> 3.022586144e-27 | O14: =_xlfn.POISSON.DIST( 'synthetic-data'!X19, 'synthetic-data'!$J19, FALSE ) -> 3.022586144e-27 | P14: =_xlfn.POISSON.DIST( 'synthetic-data'!Y19, 'synthetic-data'!$J19, FALSE ) -> 3.022586144e-27 | Q14: =_xlfn.POISSON.DIST( 'synthetic-data'!Z19, 'synthetic-data'!$J19, FALSE ) -> 3.022586144e-27 | R14: =_xlfn.POISSON.DIST( 'synthetic-data'!AA19, 'synthetic-data'!$J19, FALSE ) -> 3.022586144e-27 | S14: =_xlfn.POISSON.DIST( 'synthetic-data'!AB19, 'synthetic-data'!$J19, FALSE ) -> 3.022586144e-27 | T14: =_xlfn.POISSON.DIST( 'synthetic-data'!AC19, 'synthetic-data'!$J19, FALSE ) -> 3.022586144e-27 | U14: =_xlfn.POISSON.DIST( 'synthetic-data'!AD19, 'synthetic-data'!$J19, FALSE ) -> 3.022586144e-27 | V14: =_xlfn.POISSON.DIST( 'synthetic-data'!AE19, 'synthetic-data'!$J19, FALSE ) -> 3.022586144e-27 | W14: =_xlfn.POISSON.DIST( 'synthetic-data'!AF19, 'synthetic-data'!$J19, FALSE ) -> 3.022586144e-27 | X14: =_xlfn.POISSON.DIST( 'synthetic-data'!AG19, 'synthetic-data'!$J19, FALSE ) -> 3.022586144e-27 | Y14: =_xlfn.POISSON.DIST( 'synthetic-data'!AH19, 'synthetic-data'!$J19, FALSE ) -> 3.022586144e-27 | Z14: =_xlfn.POISSON.DIST( 'synthetic-data'!AI19, 'synthetic-data'!$J19, FALSE ) -> 3.022586144e-27
B15: ='synthetic-data'!J20 -> 104.6534152 | C15: =_xlfn.POISSON.DIST( 'synthetic-data'!L20, 'synthetic-data'!$J20, FALSE ) -> 1.385920739e-14 | D15: =_xlfn.POISSON.DIST( 'synthetic-data'!M20, 'synthetic-data'!$J20, FALSE ) -> 1.385920739e-14 | E15: =_xlfn.POISSON.DIST( 'synthetic-data'!N20, 'synthetic-data'!$J20, FALSE ) -> 1.111625297e-19 | F15: =_xlfn.POISSON.DIST( 'synthetic-data'!O20, 'synthetic-data'!$J20, FALSE ) -> 2.159427575e-26 | G15: =_xlfn.POISSON.DIST( 'synthetic-data'!P20, 'synthetic-data'!$J20, FALSE ) -> 1.27733016e-30 | H15: =_xlfn.POISSON.DIST( 'synthetic-data'!Q20, 'synthetic-data'!$J20, FALSE ) -> 1.471014256e-33 | I15: =_xlfn.POISSON.DIST( 'synthetic-data'!R20, 'synthetic-data'!$J20, FALSE ) -> 1.265045033e-34 | J15: =_xlfn.POISSON.DIST( 'synthetic-data'!S20, 'synthetic-data'!$J20, FALSE ) -> 1.265045033e-34 | K15: =_xlfn.POISSON.DIST( 'synthetic-data'!T20, 'synthetic-data'!$J20, FALSE ) -> 1.265045033e-34 | L15: =_xlfn.POISSON.DIST( 'synthetic-data'!U20, 'synthetic-data'!$J20, FALSE ) -> 1.471014256e-33 | M15: =_xlfn.POISSON.DIST( 'synthetic-data'!V20, 'synthetic-data'!$J20, FALSE ) -> 1.471014256e-33 | N15: =_xlfn.POISSON.DIST( 'synthetic-data'!W20, 'synthetic-data'!$J20, FALSE ) -> 1.471014256e-33 | O15: =_xlfn.POISSON.DIST( 'synthetic-data'!X20, 'synthetic-data'!$J20, FALSE ) -> 1.471014256e-33 | P15: =_xlfn.POISSON.DIST( 'synthetic-data'!Y20, 'synthetic-data'!$J20, FALSE ) -> 1.471014256e-33 | Q15: =_xlfn.POISSON.DIST( 'synthetic-data'!Z20, 'synthetic-data'!$J20, FALSE ) -> 1.471014256e-33 | R15: =_xlfn.POISSON.DIST( 'synthetic-data'!AA20, 'synthetic-data'!$J20, FALSE ) -> 1.471014256e-33 | S15: =_xlfn.POISSON.DIST( 'synthetic-data'!AB20, 'synthetic-data'!$J20, FALSE ) -> 1.471014256e-33 | T15: =_xlfn.POISSON.DIST( 'synthetic-data'!AC20, 'synthetic-data'!$J20, FALSE ) -> 1.471014256e-33 | U15: =_xlfn.POISSON.DIST( 'synthetic-data'!AD20, 'synthetic-data'!$J20, FALSE ) -> 1.265045033e-34 | V15: =_xlfn.POISSON.DIST( 'synthetic-data'!AE20, 'synthetic-data'!$J20, FALSE ) -> 1.265045033e-34 | W15: =_xlfn.POISSON.DIST( 'synthetic-data'!AF20, 'synthetic-data'!$J20, FALSE ) -> 1.265045033e-34 | X15: =_xlfn.POISSON.DIST( 'synthetic-data'!AG20, 'synthetic-data'!$J20, FALSE ) -> 1.265045033e-34 | Y15: =_xlfn.POISSON.DIST( 'synthetic-data'!AH20, 'synthetic-data'!$J20, FALSE ) -> 1.265045033e-34 | Z15: =_xlfn.POISSON.DIST( 'synthetic-data'!AI20, 'synthetic-data'!$J20, FALSE ) -> 1.265045033e-34
B16: ='synthetic-data'!J21 -> 186.1006308 | C16: =_xlfn.POISSON.DIST( 'synthetic-data'!L21, 'synthetic-data'!$J21, FALSE ) -> 2.286937279e-37 | D16: =_xlfn.POISSON.DIST( 'synthetic-data'!M21, 'synthetic-data'!$J21, FALSE ) -> 1.73126737e-35 | E16: =_xlfn.POISSON.DIST( 'synthetic-data'!N21, 'synthetic-data'!$J21, FALSE ) -> 2.450655533e-44 | F16: =_xlfn.POISSON.DIST( 'synthetic-data'!O21, 'synthetic-data'!$J21, FALSE ) -> 1.629925766e-57 | G16: =_xlfn.POISSON.DIST( 'synthetic-data'!P21, 'synthetic-data'!$J21, FALSE ) -> 2.066514187e-65 | H16: =_xlfn.POISSON.DIST( 'synthetic-data'!Q21, 'synthetic-data'!$J21, FALSE ) -> 2.308486569e-69 | I16: =_xlfn.POISSON.DIST( 'synthetic-data'!R21, 'synthetic-data'!$J21, FALSE ) -> 2.308486569e-69 | J16: =_xlfn.POISSON.DIST( 'synthetic-data'!S21, 'synthetic-data'!$J21, FALSE ) -> 5.370135084e-68 | K16: =_xlfn.POISSON.DIST( 'synthetic-data'!T21, 'synthetic-data'!$J21, FALSE ) -> 2.066514187e-65 | L16: =_xlfn.POISSON.DIST( 'synthetic-data'!U21, 'synthetic-data'!$J21, FALSE ) -> 5.422007954e-63 | M16: =_xlfn.POISSON.DIST( 'synthetic-data'!V21, 'synthetic-data'!$J21, FALSE ) -> 1.280091574e-59 | N16: =_xlfn.POISSON.DIST( 'synthetic-data'!W21, 'synthetic-data'!$J21, FALSE ) -> 1.488911558e-58 | O16: =_xlfn.POISSON.DIST( 'synthetic-data'!X21, 'synthetic-data'!$J21, FALSE ) -> 1.488911558e-58 | P16: =_xlfn.POISSON.DIST( 'synthetic-data'!Y21, 'synthetic-data'!$J21, FALSE ) -> 1.488911558e-58 | Q16: =_xlfn.POISSON.DIST( 'synthetic-data'!Z21, 'synthetic-data'!$J21, FALSE ) -> 1.031773698e-60 | R16: =_xlfn.POISSON.DIST( 'synthetic-data'!AA21, 'synthetic-data'!$J21, FALSE ) -> 7.761839233e-62 | S16: =_xlfn.POISSON.DIST( 'synthetic-data'!AB21, 'synthetic-data'!$J21, FALSE ) -> 7.761839233e-62 | T16: =_xlfn.POISSON.DIST( 'synthetic-data'!AC21, 'synthetic-data'!$J21, FALSE ) -> 5.422007954e-63 | U16: =_xlfn.POISSON.DIST( 'synthetic-data'!AD21, 'synthetic-data'!$J21, FALSE ) -> 5.422007954e-63 | V16: =_xlfn.POISSON.DIST( 'synthetic-data'!AE21, 'synthetic-data'!$J21, FALSE ) -> 3.496178125e-64 | W16: =_xlfn.POISSON.DIST( 'synthetic-data'!AF21, 'synthetic-data'!$J21, FALSE ) -> 3.496178125e-64 | X16: =_xlfn.POISSON.DIST( 'synthetic-data'!AG21, 'synthetic-data'!$J21, FALSE ) -> 3.496178125e-64 | Y16: =_xlfn.POISSON.DIST( 'synthetic-data'!AH21, 'synthetic-data'!$J21, FALSE ) -> 3.496178125e-64 | Z16: =_xlfn.POISSON.DIST( 'synthetic-data'!AI21, 'synthetic-data'!$J21, FALSE ) -> 2.066514187e-65
B17: ='synthetic-data'!J22 -> 216.3742505 | C17: =_xlfn.POISSON.DIST( 'synthetic-data'!L22, 'synthetic-data'!$J22, FALSE ) -> 9.137196947e-48 | D17: =_xlfn.POISSON.DIST( 'synthetic-data'!M22, 'synthetic-data'!$J22, FALSE ) -> 5.113800891e-45 | E17: =_xlfn.POISSON.DIST( 'synthetic-data'!N22, 'synthetic-data'!$J22, FALSE ) -> 2.169020662e-55 | F17: =_xlfn.POISSON.DIST( 'synthetic-data'!O22, 'synthetic-data'!$J22, FALSE ) -> 1.504122728e-69 | G17: =_xlfn.POISSON.DIST( 'synthetic-data'!P22, 'synthetic-data'!$J22, FALSE ) -> 6.639719312e-78 | H17: =_xlfn.POISSON.DIST( 'synthetic-data'!Q22, 'synthetic-data'!$J22, FALSE ) -> 4.719168532e-82 | I17: =_xlfn.POISSON.DIST( 'synthetic-data'!R22, 'synthetic-data'!$J22, FALSE ) -> 4.719168532e-82 | J17: =_xlfn.POISSON.DIST( 'synthetic-data'!S22, 'synthetic-data'!$J22, FALSE ) -> 1.276383193e-80 | K17: =_xlfn.POISSON.DIST( 'synthetic-data'!T22, 'synthetic-data'!$J22, FALSE ) -> 6.639719312e-78 | L17: =_xlfn.POISSON.DIST( 'synthetic-data'!U22, 'synthetic-data'!$J22, FALSE ) -> 3.919666943e-74 | M17: =_xlfn.POISSON.DIST( 'synthetic-data'!V22, 'synthetic-data'!$J22, FALSE ) -> 1.181752741e-70 | N17: =_xlfn.POISSON.DIST( 'synthetic-data'!W22, 'synthetic-data'!$J22, FALSE ) -> 1.808074599e-68 | O17: =_xlfn.POISSON.DIST( 'synthetic-data'!X22, 'synthetic-data'!$J22, FALSE ) -> 1.808074599e-68 | P17: =_xlfn.POISSON.DIST( 'synthetic-data'!Y22, 'synthetic-data'!$J22, FALSE ) -> 1.504122728e-69 | Q17: =_xlfn.POISSON.DIST( 'synthetic-data'!Z22, 'synthetic-data'!$J22, FALSE ) -> 8.738583182e-72 | R17: =_xlfn.POISSON.DIST( 'synthetic-data'!AA22, 'synthetic-data'!$J22, FALSE ) -> 6.057964265e-73 | S17: =_xlfn.POISSON.DIST( 'synthetic-data'!AB22, 'synthetic-data'!$J22, FALSE ) -> 3.919666943e-74 | T17: =_xlfn.POISSON.DIST( 'synthetic-data'!AC22, 'synthetic-data'!$J22, FALSE ) -> 2.354978476e-75 | U17: =_xlfn.POISSON.DIST( 'synthetic-data'!AD22, 'synthetic-data'!$J22, FALSE ) -> 2.354978476e-75 | V17: =_xlfn.POISSON.DIST( 'synthetic-data'!AE22, 'synthetic-data'!$J22, FALSE ) -> 1.306058445e-76 | W17: =_xlfn.POISSON.DIST( 'synthetic-data'!AF22, 'synthetic-data'!$J22, FALSE ) -> 1.306058445e-76 | X17: =_xlfn.POISSON.DIST( 'synthetic-data'!AG22, 'synthetic-data'!$J22, FALSE ) -> 1.306058445e-76 | Y17: =_xlfn.POISSON.DIST( 'synthetic-data'!AH22, 'synthetic-data'!$J22, FALSE ) -> 6.639719312e-78 | Z17: =_xlfn.POISSON.DIST( 'synthetic-data'!AI22, 'synthetic-data'!$J22, FALSE ) -> 6.639719312e-78
B18: ='synthetic-data'!J23 -> 211.514005 | C18: =_xlfn.POISSON.DIST( 'synthetic-data'!L23, 'synthetic-data'!$J23, FALSE ) -> 3.260405598e-51 | D18: =_xlfn.POISSON.DIST( 'synthetic-data'!M23, 'synthetic-data'!$J23, FALSE ) -> 1.915615128e-50 | E18: =_xlfn.POISSON.DIST( 'synthetic-data'!N23, 'synthetic-data'!$J23, FALSE ) -> 2.047038425e-54 | F18: =_xlfn.POISSON.DIST( 'synthetic-data'!O23, 'synthetic-data'!$J23, FALSE ) -> 1.767376243e-62 | G18: =_xlfn.POISSON.DIST( 'synthetic-data'!P23, 'synthetic-data'!$J23, FALSE ) -> 8.020881376e-70 | H18: =_xlfn.POISSON.DIST( 'synthetic-data'!Q23, 'synthetic-data'!$J23, FALSE ) -> 1.312832961e-74 | I18: =_xlfn.POISSON.DIST( 'synthetic-data'!R23, 'synthetic-data'!$J23, FALSE ) -> 6.827520742e-76 | J18: =_xlfn.POISSON.DIST( 'synthetic-data'!S23, 'synthetic-data'!$J23, FALSE ) -> 6.827520742e-76 | K18: =_xlfn.POISSON.DIST( 'synthetic-data'!T23, 'synthetic-data'!$J23, FALSE ) -> 6.827520742e-76 | L18: =_xlfn.POISSON.DIST( 'synthetic-data'!U23, 'synthetic-data'!$J23, FALSE ) -> 2.314021312e-73 | M18: =_xlfn.POISSON.DIST( 'synthetic-data'!V23, 'synthetic-data'!$J23, FALSE ) -> 5.688191694e-71 | N18: =_xlfn.POISSON.DIST( 'synthetic-data'!W23, 'synthetic-data'!$J23, FALSE ) -> 1.060330465e-68 | O18: =_xlfn.POISSON.DIST( 'synthetic-data'!X23, 'synthetic-data'!$J23, FALSE ) -> 1.725772714e-65 | P18: =_xlfn.POISSON.DIST( 'synthetic-data'!Y23, 'synthetic-data'!$J23, FALSE ) -> 1.838283822e-63 | Q18: =_xlfn.POISSON.DIST( 'synthetic-data'!Z23, 'synthetic-data'!$J23, FALSE ) -> 1.838283822e-63 | R18: =_xlfn.POISSON.DIST( 'synthetic-data'!AA23, 'synthetic-data'!$J23, FALSE ) -> 1.838283822e-63 | S18: =_xlfn.POISSON.DIST( 'synthetic-data'!AB23, 'synthetic-data'!$J23, FALSE ) -> 1.825125492e-64 | T18: =_xlfn.POISSON.DIST( 'synthetic-data'!AC23, 'synthetic-data'!$J23, FALSE ) -> 1.550236901e-66 | U18: =_xlfn.POISSON.DIST( 'synthetic-data'!AD23, 'synthetic-data'!$J23, FALSE ) -> 1.060330465e-68 | V18: =_xlfn.POISSON.DIST( 'synthetic-data'!AE23, 'synthetic-data'!$J23, FALSE ) -> 5.688191694e-71 | W18: =_xlfn.POISSON.DIST( 'synthetic-data'!AF23, 'synthetic-data'!$J23, FALSE ) -> 3.764983964e-72 | X18: =_xlfn.POISSON.DIST( 'synthetic-data'!AG23, 'synthetic-data'!$J23, FALSE ) -> 2.314021312e-73 | Y18: =_xlfn.POISSON.DIST( 'synthetic-data'!AH23, 'synthetic-data'!$J23, FALSE ) -> 2.314021312e-73 | Z18: =_xlfn.POISSON.DIST( 'synthetic-data'!AI23, 'synthetic-data'!$J23, FALSE ) -> 1.312832961e-74
B19: ='synthetic-data'!J24 -> 204.0597177 | C19: =_xlfn.POISSON.DIST( 'synthetic-data'!L24, 'synthetic-data'!$J24, FALSE ) -> 1.604216002e-48 | D19: =_xlfn.POISSON.DIST( 'synthetic-data'!M24, 'synthetic-data'!$J24, FALSE ) -> 5.015025921e-47 | E19: =_xlfn.POISSON.DIST( 'synthetic-data'!N24, 'synthetic-data'!$J24, FALSE ) -> 7.413988382e-51 | F19: =_xlfn.POISSON.DIST( 'synthetic-data'!O24, 'synthetic-data'!$J24, FALSE ) -> 1.386386247e-59 | G19: =_xlfn.POISSON.DIST( 'synthetic-data'!P24, 'synthetic-data'!$J24, FALSE ) -> 8.088169669e-67 | H19: =_xlfn.POISSON.DIST( 'synthetic-data'!Q24, 'synthetic-data'!$J24, FALSE ) -> 1.528146604e-71 | I19: =_xlfn.POISSON.DIST( 'synthetic-data'!R24, 'synthetic-data'!$J24, FALSE ) -> 4.036854931e-74 | J19: =_xlfn.POISSON.DIST( 'synthetic-data'!S24, 'synthetic-data'!$J24, FALSE ) -> 4.036854931e-74 | K19: =_xlfn.POISSON.DIST( 'synthetic-data'!T24, 'synthetic-data'!$J24, FALSE ) -> 8.237594775e-73 | L19: =_xlfn.POISSON.DIST( 'synthetic-data'!U24, 'synthetic-data'!$J24, FALSE ) -> 2.598609704e-70 | M19: =_xlfn.POISSON.DIST( 'synthetic-data'!V24, 'synthetic-data'!$J24, FALSE ) -> 5.945443149e-68 | N19: =_xlfn.POISSON.DIST( 'synthetic-data'!W24, 'synthetic-data'!$J24, FALSE ) -> 1.238214575e-64 | O19: =_xlfn.POISSON.DIST( 'synthetic-data'!X24, 'synthetic-data'!$J24, FALSE ) -> 1.494684879e-60 | P19: =_xlfn.POISSON.DIST( 'synthetic-data'!Y24, 'synthetic-data'!$J24, FALSE ) -> 1.045826704e-57 | Q19: =_xlfn.POISSON.DIST( 'synthetic-data'!Z24, 'synthetic-data'!$J24, FALSE ) -> 8.536444076e-57 | R19: =_xlfn.POISSON.DIST( 'synthetic-data'!AA24, 'synthetic-data'!$J24, FALSE ) -> 1.045826704e-57 | S19: =_xlfn.POISSON.DIST( 'synthetic-data'!AB24, 'synthetic-data'!$J24, FALSE ) -> 1.386386247e-59 | T19: =_xlfn.POISSON.DIST( 'synthetic-data'!AC24, 'synthetic-data'!$J24, FALSE ) -> 1.50759389e-62 | U19: =_xlfn.POISSON.DIST( 'synthetic-data'!AD24, 'synthetic-data'!$J24, FALSE ) -> 1.031543512e-65 | V19: =_xlfn.POISSON.DIST( 'synthetic-data'!AE24, 'synthetic-data'!$J24, FALSE ) -> 5.945443149e-68 | W19: =_xlfn.POISSON.DIST( 'synthetic-data'!AF24, 'synthetic-data'!$J24, FALSE ) -> 4.079012019e-69 | X19: =_xlfn.POISSON.DIST( 'synthetic-data'!AG24, 'synthetic-data'!$J24, FALSE ) -> 2.598609704e-70 | Y19: =_xlfn.POISSON.DIST( 'synthetic-data'!AH24, 'synthetic-data'!$J24, FALSE ) -> 1.528146604e-71 | Z19: =_xlfn.POISSON.DIST( 'synthetic-data'!AI24, 'synthetic-data'!$J24, FALSE ) -> 1.528146604e-71
B20: ='synthetic-data'!J25 -> 75.58039467 | C20: =_xlfn.POISSON.DIST( 'synthetic-data'!L25, 'synthetic-data'!$J25, FALSE ) -> 1.271938875e-09 | D20: =_xlfn.POISSON.DIST( 'synthetic-data'!M25, 'synthetic-data'!$J25, FALSE ) -> 1.937167538e-10 | E20: =_xlfn.POISSON.DIST( 'synthetic-data'!N25, 'synthetic-data'!$J25, FALSE ) -> 9.263344158e-13 | F20: =_xlfn.POISSON.DIST( 'synthetic-data'!O25, 'synthetic-data'!$J25, FALSE ) -> 1.516615292e-15 | G20: =_xlfn.POISSON.DIST( 'synthetic-data'!P25, 'synthetic-data'!$J25, FALSE ) -> 3.41327655e-18 | H20: =_xlfn.POISSON.DIST( 'synthetic-data'!Q25, 'synthetic-data'!$J25, FALSE ) -> 1.087488202e-19 | I20: =_xlfn.POISSON.DIST( 'synthetic-data'!R25, 'synthetic-data'!$J25, FALSE ) -> 1.726619513e-20 | J20: =_xlfn.POISSON.DIST( 'synthetic-data'!S25, 'synthetic-data'!$J25, FALSE ) -> 2.512928747e-21 | K20: =_xlfn.POISSON.DIST( 'synthetic-data'!T25, 'synthetic-data'!$J25, FALSE ) -> 2.512928747e-21 | L20: =_xlfn.POISSON.DIST( 'synthetic-data'!U25, 'synthetic-data'!$J25, FALSE ) -> 2.512928747e-21 | M20: =_xlfn.POISSON.DIST( 'synthetic-data'!V25, 'synthetic-data'!$J25, FALSE ) -> 2.512928747e-21 | N20: =_xlfn.POISSON.DIST( 'synthetic-data'!W25, 'synthetic-data'!$J25, FALSE ) -> 2.512928747e-21 | O20: =_xlfn.POISSON.DIST( 'synthetic-data'!X25, 'synthetic-data'!$J25, FALSE ) -> 2.512928747e-21 | P20: =_xlfn.POISSON.DIST( 'synthetic-data'!Y25, 'synthetic-data'!$J25, FALSE ) -> 2.512928747e-21 | Q20: =_xlfn.POISSON.DIST( 'synthetic-data'!Z25, 'synthetic-data'!$J25, FALSE ) -> 2.512928747e-21 | R20: =_xlfn.POISSON.DIST( 'synthetic-data'!AA25, 'synthetic-data'!$J25, FALSE ) -> 2.512928747e-21 | S20: =_xlfn.POISSON.DIST( 'synthetic-data'!AB25, 'synthetic-data'!$J25, FALSE ) -> 2.512928747e-21 | T20: =_xlfn.POISSON.DIST( 'synthetic-data'!AC25, 'synthetic-data'!$J25, FALSE ) -> 2.512928747e-21 | U20: =_xlfn.POISSON.DIST( 'synthetic-data'!AD25, 'synthetic-data'!$J25, FALSE ) -> 3.324842054e-22 | V20: =_xlfn.POISSON.DIST( 'synthetic-data'!AE25, 'synthetic-data'!$J25, FALSE ) -> 3.324842054e-22 | W20: =_xlfn.POISSON.DIST( 'synthetic-data'!AF25, 'synthetic-data'!$J25, FALSE ) -> 3.324842054e-22 | X20: =_xlfn.POISSON.DIST( 'synthetic-data'!AG25, 'synthetic-data'!$J25, FALSE ) -> 3.324842054e-22 | Y20: =_xlfn.POISSON.DIST( 'synthetic-data'!AH25, 'synthetic-data'!$J25, FALSE ) -> 3.324842054e-22 | Z20: =_xlfn.POISSON.DIST( 'synthetic-data'!AI25, 'synthetic-data'!$J25, FALSE ) -> 3.324842054e-22
B21: ='synthetic-data'!J26 -> 152.5522397 | C21: =_xlfn.POISSON.DIST( 'synthetic-data'!L26, 'synthetic-data'!$J26, FALSE ) -> 3.261906431e-31 | D21: =_xlfn.POISSON.DIST( 'synthetic-data'!M26, 'synthetic-data'!$J26, FALSE ) -> 3.261906431e-31 | E21: =_xlfn.POISSON.DIST( 'synthetic-data'!N26, 'synthetic-data'!$J26, FALSE ) -> 1.31826992e-34 | F21: =_xlfn.POISSON.DIST( 'synthetic-data'!O26, 'synthetic-data'!$J26, FALSE ) -> 7.777688523e-41 | G21: =_xlfn.POISSON.DIST( 'synthetic-data'!P26, 'synthetic-data'!$J26, FALSE ) -> 2.410922883e-46 | H21: =_xlfn.POISSON.DIST( 'synthetic-data'!Q26, 'synthetic-data'!$J26, FALSE ) -> 1.853916637e-49 | I21: =_xlfn.POISSON.DIST( 'synthetic-data'!R26, 'synthetic-data'!$J26, FALSE ) -> 1.051542807e-51 | J21: =_xlfn.POISSON.DIST( 'synthetic-data'!S26, 'synthetic-data'!$J26, FALSE ) -> 1.051542807e-51 | K21: =_xlfn.POISSON.DIST( 'synthetic-data'!T26, 'synthetic-data'!$J26, FALSE ) -> 1.051542807e-51 | L21: =_xlfn.POISSON.DIST( 'synthetic-data'!U26, 'synthetic-data'!$J26, FALSE ) -> 1.458320094e-50 | M21: =_xlfn.POISSON.DIST( 'synthetic-data'!V26, 'synthetic-data'!$J26, FALSE ) -> 2.175531809e-48 | N21: =_xlfn.POISSON.DIST( 'synthetic-data'!W26, 'synthetic-data'!$J26, FALSE ) -> 2.370587499e-47 | O21: =_xlfn.POISSON.DIST( 'synthetic-data'!X26, 'synthetic-data'!$J26, FALSE ) -> 2.410922883e-46 | P21: =_xlfn.POISSON.DIST( 'synthetic-data'!Y26, 'synthetic-data'!$J26, FALSE ) -> 2.410922883e-46 | Q21: =_xlfn.POISSON.DIST( 'synthetic-data'!Z26, 'synthetic-data'!$J26, FALSE ) -> 2.410922883e-46 | R21: =_xlfn.POISSON.DIST( 'synthetic-data'!AA26, 'synthetic-data'!$J26, FALSE ) -> 2.410922883e-46 | S21: =_xlfn.POISSON.DIST( 'synthetic-data'!AB26, 'synthetic-data'!$J26, FALSE ) -> 2.370587499e-47 | T21: =_xlfn.POISSON.DIST( 'synthetic-data'!AC26, 'synthetic-data'!$J26, FALSE ) -> 2.370587499e-47 | U21: =_xlfn.POISSON.DIST( 'synthetic-data'!AD26, 'synthetic-data'!$J26, FALSE ) -> 2.175531809e-48 | V21: =_xlfn.POISSON.DIST( 'synthetic-data'!AE26, 'synthetic-data'!$J26, FALSE ) -> 2.175531809e-48 | W21: =_xlfn.POISSON.DIST( 'synthetic-data'!AF26, 'synthetic-data'!$J26, FALSE ) -> 2.175531809e-48 | X21: =_xlfn.POISSON.DIST( 'synthetic-data'!AG26, 'synthetic-data'!$J26, FALSE ) -> 1.853916637e-49 | Y21: =_xlfn.POISSON.DIST( 'synthetic-data'!AH26, 'synthetic-data'!$J26, FALSE ) -> 1.853916637e-49 | Z21: =_xlfn.POISSON.DIST( 'synthetic-data'!AI26, 'synthetic-data'!$J26, FALSE ) -> 1.853916637e-49
B22: ='synthetic-data'!J27 -> 83.78782833 | C22: =_xlfn.POISSON.DIST( 'synthetic-data'!L27, 'synthetic-data'!$J27, FALSE ) -> 7.641461978e-12 | D22: =_xlfn.POISSON.DIST( 'synthetic-data'!M27, 'synthetic-data'!$J27, FALSE ) -> 3.164542537e-13 | E22: =_xlfn.POISSON.DIST( 'synthetic-data'!N27, 'synthetic-data'!$J27, FALSE ) -> 7.423735073e-16 | F22: =_xlfn.POISSON.DIST( 'synthetic-data'!O27, 'synthetic-data'!$J27, FALSE ) -> 2.644382657e-18 | G22: =_xlfn.POISSON.DIST( 'synthetic-data'!P27, 'synthetic-data'!$J27, FALSE ) -> 3.940335773e-21 | H22: =_xlfn.POISSON.DIST( 'synthetic-data'!Q27, 'synthetic-data'!$J27, FALSE ) -> 1.021510302e-22 | I22: =_xlfn.POISSON.DIST( 'synthetic-data'!R27, 'synthetic-data'!$J27, FALSE ) -> 1.462995744e-23 | J22: =_xlfn.POISSON.DIST( 'synthetic-data'!S27, 'synthetic-data'!$J27, FALSE ) -> 1.920679114e-24 | K22: =_xlfn.POISSON.DIST( 'synthetic-data'!T27, 'synthetic-data'!$J27, FALSE ) -> 1.920679114e-24 | L22: =_xlfn.POISSON.DIST( 'synthetic-data'!U27, 'synthetic-data'!$J27, FALSE ) -> 1.920679114e-24 | M22: =_xlfn.POISSON.DIST( 'synthetic-data'!V27, 'synthetic-data'!$J27, FALSE ) -> 1.920679114e-24 | N22: =_xlfn.POISSON.DIST( 'synthetic-data'!W27, 'synthetic-data'!$J27, FALSE ) -> 1.920679114e-24 | O22: =_xlfn.POISSON.DIST( 'synthetic-data'!X27, 'synthetic-data'!$J27, FALSE ) -> 1.920679114e-24 | P22: =_xlfn.POISSON.DIST( 'synthetic-data'!Y27, 'synthetic-data'!$J27, FALSE ) -> 1.920679114e-24 | Q22: =_xlfn.POISSON.DIST( 'synthetic-data'!Z27, 'synthetic-data'!$J27, FALSE ) -> 1.920679114e-24 | R22: =_xlfn.POISSON.DIST( 'synthetic-data'!AA27, 'synthetic-data'!$J27, FALSE ) -> 1.920679114e-24 | S22: =_xlfn.POISSON.DIST( 'synthetic-data'!AB27, 'synthetic-data'!$J27, FALSE ) -> 2.2923128e-25 | T22: =_xlfn.POISSON.DIST( 'synthetic-data'!AC27, 'synthetic-data'!$J27, FALSE ) -> 2.2923128e-25 | U22: =_xlfn.POISSON.DIST( 'synthetic-data'!AD27, 'synthetic-data'!$J27, FALSE ) -> 2.2923128e-25 | V22: =_xlfn.POISSON.DIST( 'synthetic-data'!AE27, 'synthetic-data'!$J27, FALSE ) -> 2.2923128e-25 | W22: =_xlfn.POISSON.DIST( 'synthetic-data'!AF27, 'synthetic-data'!$J27, FALSE ) -> 2.2923128e-25 | X22: =_xlfn.POISSON.DIST( 'synthetic-data'!AG27, 'synthetic-data'!$J27, FALSE ) -> 2.2923128e-25 | Y22: =_xlfn.POISSON.DIST( 'synthetic-data'!AH27, 'synthetic-data'!$J27, FALSE ) -> 2.2923128e-25 | Z22: =_xlfn.POISSON.DIST( 'synthetic-data'!AI27, 'synthetic-data'!$J27, FALSE ) -> 2.2923128e-25
B23: ='synthetic-data'!J28 -> 114.1525913 | C23: =_xlfn.POISSON.DIST( 'synthetic-data'!L28, 'synthetic-data'!$J28, FALSE ) -> 6.974812803e-20 | D23: =_xlfn.POISSON.DIST( 'synthetic-data'!M28, 'synthetic-data'!$J28, FALSE ) -> 1.955225083e-20 | E23: =_xlfn.POISSON.DIST( 'synthetic-data'!N28, 'synthetic-data'!$J28, FALSE ) -> 2.056698494e-23 | F23: =_xlfn.POISSON.DIST( 'synthetic-data'!O28, 'synthetic-data'!$J28, FALSE ) -> 1.540814631e-27 | G23: =_xlfn.POISSON.DIST( 'synthetic-data'!P28, 'synthetic-data'!$J28, FALSE ) -> 1.478926284e-31 | H23: =_xlfn.POISSON.DIST( 'synthetic-data'!Q28, 'synthetic-data'!$J28, FALSE ) -> 2.714262529e-34 | I23: =_xlfn.POISSON.DIST( 'synthetic-data'!R28, 'synthetic-data'!$J28, FALSE ) -> 2.853299254e-35 | J23: =_xlfn.POISSON.DIST( 'synthetic-data'!S28, 'synthetic-data'!$J28, FALSE ) -> 2.749503227e-36 | K23: =_xlfn.POISSON.DIST( 'synthetic-data'!T28, 'synthetic-data'!$J28, FALSE ) -> 2.749503227e-36 | L23: =_xlfn.POISSON.DIST( 'synthetic-data'!U28, 'synthetic-data'!$J28, FALSE ) -> 2.749503227e-36 | M23: =_xlfn.POISSON.DIST( 'synthetic-data'!V28, 'synthetic-data'!$J28, FALSE ) -> 2.853299254e-35 | N23: =_xlfn.POISSON.DIST( 'synthetic-data'!W28, 'synthetic-data'!$J28, FALSE ) -> 2.853299254e-35 | O23: =_xlfn.POISSON.DIST( 'synthetic-data'!X28, 'synthetic-data'!$J28, FALSE ) -> 2.714262529e-34 | P23: =_xlfn.POISSON.DIST( 'synthetic-data'!Y28, 'synthetic-data'!$J28, FALSE ) -> 2.714262529e-34 | Q23: =_xlfn.POISSON.DIST( 'synthetic-data'!Z28, 'synthetic-data'!$J28, FALSE ) -> 2.853299254e-35 | R23: =_xlfn.POISSON.DIST( 'synthetic-data'!AA28, 'synthetic-data'!$J28, FALSE ) -> 2.853299254e-35 | S23: =_xlfn.POISSON.DIST( 'synthetic-data'!AB28, 'synthetic-data'!$J28, FALSE ) -> 2.853299254e-35 | T23: =_xlfn.POISSON.DIST( 'synthetic-data'!AC28, 'synthetic-data'!$J28, FALSE ) -> 2.853299254e-35 | U23: =_xlfn.POISSON.DIST( 'synthetic-data'!AD28, 'synthetic-data'!$J28, FALSE ) -> 2.853299254e-35 | V23: =_xlfn.POISSON.DIST( 'synthetic-data'!AE28, 'synthetic-data'!$J28, FALSE ) -> 2.853299254e-35 | W23: =_xlfn.POISSON.DIST( 'synthetic-data'!AF28, 'synthetic-data'!$J28, FALSE ) -> 2.853299254e-35 | X23: =_xlfn.POISSON.DIST( 'synthetic-data'!AG28, 'synthetic-data'!$J28, FALSE ) -> 2.853299254e-35 | Y23: =_xlfn.POISSON.DIST( 'synthetic-data'!AH28, 'synthetic-data'!$J28, FALSE ) -> 2.853299254e-35 | Z23: =_xlfn.POISSON.DIST( 'synthetic-data'!AI28, 'synthetic-data'!$J28, FALSE ) -> 2.853299254e-35
B24: ='synthetic-data'!J29 -> 137.4873215 | C24: =_xlfn.POISSON.DIST( 'synthetic-data'!L29, 'synthetic-data'!$J29, FALSE ) -> 3.317267447e-26 | D24: =_xlfn.POISSON.DIST( 'synthetic-data'!M29, 'synthetic-data'!$J29, FALSE ) -> 3.317267447e-26 | E24: =_xlfn.POISSON.DIST( 'synthetic-data'!N29, 'synthetic-data'!$J29, FALSE ) -> 2.254722066e-29 | F24: =_xlfn.POISSON.DIST( 'synthetic-data'!O29, 'synthetic-data'!$J29, FALSE ) -> 1.909970612e-34 | G24: =_xlfn.POISSON.DIST( 'synthetic-data'!P29, 'synthetic-data'!$J29, FALSE ) -> 1.767889467e-40 | H24: =_xlfn.POISSON.DIST( 'synthetic-data'!Q29, 'synthetic-data'!$J29, FALSE ) -> 1.857076533e-43 | I24: =_xlfn.POISSON.DIST( 'synthetic-data'!R29, 'synthetic-data'!$J29, FALSE ) -> 1.296816212e-45 | J24: =_xlfn.POISSON.DIST( 'synthetic-data'!S29, 'synthetic-data'!$J29, FALSE ) -> 1.296816212e-45 | K24: =_xlfn.POISSON.DIST( 'synthetic-data'!T29, 'synthetic-data'!$J29, FALSE ) -> 1.296816212e-45 | L24: =_xlfn.POISSON.DIST( 'synthetic-data'!U29, 'synthetic-data'!$J29, FALSE ) -> 1.620870794e-44 | M24: =_xlfn.POISSON.DIST( 'synthetic-data'!V29, 'synthetic-data'!$J29, FALSE ) -> 1.964034449e-42 | N24: =_xlfn.POISSON.DIST( 'synthetic-data'!W29, 'synthetic-data'!$J29, FALSE ) -> 1.92878454e-41 | O24: =_xlfn.POISSON.DIST( 'synthetic-data'!X29, 'synthetic-data'!$J29, FALSE ) -> 1.519139922e-39 | P24: =_xlfn.POISSON.DIST( 'synthetic-data'!Y29, 'synthetic-data'!$J29, FALSE ) -> 1.519139922e-39 | Q24: =_xlfn.POISSON.DIST( 'synthetic-data'!Z29, 'synthetic-data'!$J29, FALSE ) -> 1.519139922e-39 | R24: =_xlfn.POISSON.DIST( 'synthetic-data'!AA29, 'synthetic-data'!$J29, FALSE ) -> 1.519139922e-39 | S24: =_xlfn.POISSON.DIST( 'synthetic-data'!AB29, 'synthetic-data'!$J29, FALSE ) -> 1.767889467e-40 | T24: =_xlfn.POISSON.DIST( 'synthetic-data'!AC29, 'synthetic-data'!$J29, FALSE ) -> 1.767889467e-40 | U24: =_xlfn.POISSON.DIST( 'synthetic-data'!AD29, 'synthetic-data'!$J29, FALSE ) -> 1.92878454e-41 | V24: =_xlfn.POISSON.DIST( 'synthetic-data'!AE29, 'synthetic-data'!$J29, FALSE ) -> 1.964034449e-42 | W24: =_xlfn.POISSON.DIST( 'synthetic-data'!AF29, 'synthetic-data'!$J29, FALSE ) -> 1.964034449e-42 | X24: =_xlfn.POISSON.DIST( 'synthetic-data'!AG29, 'synthetic-data'!$J29, FALSE ) -> 1.964034449e-42 | Y24: =_xlfn.POISSON.DIST( 'synthetic-data'!AH29, 'synthetic-data'!$J29, FALSE ) -> 1.857076533e-43 | Z24: =_xlfn.POISSON.DIST( 'synthetic-data'!AI29, 'synthetic-data'!$J29, FALSE ) -> 1.857076533e-43
B25: ='synthetic-data'!J30 -> 141.1665357 | C25: =_xlfn.POISSON.DIST( 'synthetic-data'!L30, 'synthetic-data'!$J30, FALSE ) -> 2.055264226e-27 | D25: =_xlfn.POISSON.DIST( 'synthetic-data'!M30, 'synthetic-data'!$J30, FALSE ) -> 2.055264226e-27 | E25: =_xlfn.POISSON.DIST( 'synthetic-data'!N30, 'synthetic-data'!$J30, FALSE ) -> 1.224150071e-30 | F25: =_xlfn.POISSON.DIST( 'synthetic-data'!O30, 'synthetic-data'!$J30, FALSE ) -> 1.343307734e-36 | G25: =_xlfn.POISSON.DIST( 'synthetic-data'!P30, 'synthetic-data'!$J30, FALSE ) -> 6.631767228e-42 | H25: =_xlfn.POISSON.DIST( 'synthetic-data'!Q30, 'synthetic-data'!$J30, FALSE ) -> 6.435712734e-45 | I25: =_xlfn.POISSON.DIST( 'synthetic-data'!R30, 'synthetic-data'!$J30, FALSE ) -> 4.262918875e-47 | J25: =_xlfn.POISSON.DIST( 'synthetic-data'!S30, 'synthetic-data'!$J30, FALSE ) -> 4.262918875e-47 | K25: =_xlfn.POISSON.DIST( 'synthetic-data'!T30, 'synthetic-data'!$J30, FALSE ) -> 4.262918875e-47 | L25: =_xlfn.POISSON.DIST( 'synthetic-data'!U30, 'synthetic-data'!$J30, FALSE ) -> 5.470740813e-46 | M25: =_xlfn.POISSON.DIST( 'synthetic-data'!V30, 'synthetic-data'!$J30, FALSE ) -> 6.98851747e-44 | N25: =_xlfn.POISSON.DIST( 'synthetic-data'!W30, 'synthetic-data'!$J30, FALSE ) -> 7.046748576e-43 | O25: =_xlfn.POISSON.DIST( 'synthetic-data'!X30, 'synthetic-data'!$J30, FALSE ) -> 6.631767228e-42 | P25: =_xlfn.POISSON.DIST( 'synthetic-data'!Y30, 'synthetic-data'!$J30, FALSE ) -> 5.851147531e-41 | Q25: =_xlfn.POISSON.DIST( 'synthetic-data'!Z30, 'synthetic-data'!$J30, FALSE ) -> 5.851147531e-41 | R25: =_xlfn.POISSON.DIST( 'synthetic-data'!AA30, 'synthetic-data'!$J30, FALSE ) -> 6.631767228e-42 | S25: =_xlfn.POISSON.DIST( 'synthetic-data'!AB30, 'synthetic-data'!$J30, FALSE ) -> 6.631767228e-42 | T25: =_xlfn.POISSON.DIST( 'synthetic-data'!AC30, 'synthetic-data'!$J30, FALSE ) -> 7.046748576e-43 | U25: =_xlfn.POISSON.DIST( 'synthetic-data'!AD30, 'synthetic-data'!$J30, FALSE ) -> 7.046748576e-43 | V25: =_xlfn.POISSON.DIST( 'synthetic-data'!AE30, 'synthetic-data'!$J30, FALSE ) -> 6.98851747e-44 | W25: =_xlfn.POISSON.DIST( 'synthetic-data'!AF30, 'synthetic-data'!$J30, FALSE ) -> 6.98851747e-44 | X25: =_xlfn.POISSON.DIST( 'synthetic-data'!AG30, 'synthetic-data'!$J30, FALSE ) -> 6.98851747e-44 | Y25: =_xlfn.POISSON.DIST( 'synthetic-data'!AH30, 'synthetic-data'!$J30, FALSE ) -> 6.435712734e-45 | Z25: =_xlfn.POISSON.DIST( 'synthetic-data'!AI30, 'synthetic-data'!$J30, FALSE ) -> 6.435712734e-45
B26: ='synthetic-data'!J31 -> 296.3010022 | C26: =_xlfn.POISSON.DIST( 'synthetic-data'!L31, 'synthetic-data'!$J31, FALSE ) -> 5.369909269e-82 | D26: =_xlfn.POISSON.DIST( 'synthetic-data'!M31, 'synthetic-data'!$J31, FALSE ) -> 3.353110518e-80 | E26: =_xlfn.POISSON.DIST( 'synthetic-data'!N31, 'synthetic-data'!$J31, FALSE ) -> 8.843354784e-85 | F26: =_xlfn.POISSON.DIST( 'synthetic-data'!O31, 'synthetic-data'!$J31, FALSE ) -> 5.69478199e-95 | G26: =_xlfn.POISSON.DIST( 'synthetic-data'!P31, 'synthetic-data'!$J31, FALSE ) -> 1.89499015e-104 | H26: =_xlfn.POISSON.DIST( 'synthetic-data'!Q31, 'synthetic-data'!$J31, FALSE ) -> 8.054125048e-110 | I26: =_xlfn.POISSON.DIST( 'synthetic-data'!R31, 'synthetic-data'!$J31, FALSE ) -> 1.009124644e-112 | J26: =_xlfn.POISSON.DIST( 'synthetic-data'!S31, 'synthetic-data'!$J31, FALSE ) -> 1.009124644e-112 | K26: =_xlfn.POISSON.DIST( 'synthetic-data'!T31, 'synthetic-data'!$J31, FALSE ) -> 2.990046435e-111 | L26: =_xlfn.POISSON.DIST( 'synthetic-data'!U31, 'synthetic-data'!$J31, FALSE ) -> 1.988704436e-108 | M26: =_xlfn.POISSON.DIST( 'synthetic-data'!V31, 'synthetic-data'!$J31, FALSE ) -> 9.593235268e-106 | N26: =_xlfn.POISSON.DIST( 'synthetic-data'!W31, 'synthetic-data'!$J31, FALSE ) -> 1.006850312e-100 | O26: =_xlfn.POISSON.DIST( 'synthetic-data'!X31, 'synthetic-data'!$J31, FALSE ) -> 4.420504311e-96 | P26: =_xlfn.POISSON.DIST( 'synthetic-data'!Y31, 'synthetic-data'!$J31, FALSE ) -> 9.496244018e-92 | Q26: =_xlfn.POISSON.DIST( 'synthetic-data'!Z31, 'synthetic-data'!$J31, FALSE ) -> 1.126760033e-88 | R26: =_xlfn.POISSON.DIST( 'synthetic-data'!AA31, 'synthetic-data'!$J31, FALSE ) -> 1.102798867e-89 | S26: =_xlfn.POISSON.DIST( 'synthetic-data'!AB31, 'synthetic-data'!$J31, FALSE ) -> 8.33282178e-93 | T26: =_xlfn.POISSON.DIST( 'synthetic-data'!AC31, 'synthetic-data'!$J31, FALSE ) -> 2.326202688e-98 | U26: =_xlfn.POISSON.DIST( 'synthetic-data'!AD31, 'synthetic-data'!$J31, FALSE ) -> 3.509296753e-103 | V26: =_xlfn.POISSON.DIST( 'synthetic-data'!AE31, 'synthetic-data'!$J31, FALSE ) -> 9.593235268e-106 | W26: =_xlfn.POISSON.DIST( 'synthetic-data'!AF31, 'synthetic-data'!$J31, FALSE ) -> 1.988704436e-108 | X26: =_xlfn.POISSON.DIST( 'synthetic-data'!AG31, 'synthetic-data'!$J31, FALSE ) -> 8.054125048e-110 | Y26: =_xlfn.POISSON.DIST( 'synthetic-data'!AH31, 'synthetic-data'!$J31, FALSE ) -> 8.054125048e-110 | Z26: =_xlfn.POISSON.DIST( 'synthetic-data'!AI31, 'synthetic-data'!$J31, FALSE ) -> 8.054125048e-110
B27: ='synthetic-data'!J32 -> 121.9169589 | C27: =_xlfn.POISSON.DIST( 'synthetic-data'!L32, 'synthetic-data'!$J32, FALSE ) -> 2.432302797e-22 | D27: =_xlfn.POISSON.DIST( 'synthetic-data'!M32, 'synthetic-data'!$J32, FALSE ) -> 6.384156088e-23 | E27: =_xlfn.POISSON.DIST( 'synthetic-data'!N32, 'synthetic-data'!$J32, FALSE ) -> 4.832653238e-26 | F27: =_xlfn.POISSON.DIST( 'synthetic-data'!O32, 'synthetic-data'!$J32, FALSE ) -> 2.439469082e-30 | G27: =_xlfn.POISSON.DIST( 'synthetic-data'!P32, 'synthetic-data'!$J32, FALSE ) -> 1.684999279e-34 | H27: =_xlfn.POISSON.DIST( 'synthetic-data'!Q32, 'synthetic-data'!$J32, FALSE ) -> 2.538458125e-37 | I27: =_xlfn.POISSON.DIST( 'synthetic-data'!R32, 'synthetic-data'!$J32, FALSE ) -> 2.498544729e-38 | J27: =_xlfn.POISSON.DIST( 'synthetic-data'!S32, 'synthetic-data'!$J32, FALSE ) -> 2.254320669e-39 | K27: =_xlfn.POISSON.DIST( 'synthetic-data'!T32, 'synthetic-data'!$J32, FALSE ) -> 2.254320669e-39 | L27: =_xlfn.POISSON.DIST( 'synthetic-data'!U32, 'synthetic-data'!$J32, FALSE ) -> 2.254320669e-39 | M27: =_xlfn.POISSON.DIST( 'synthetic-data'!V32, 'synthetic-data'!$J32, FALSE ) -> 2.498544729e-38 | N27: =_xlfn.POISSON.DIST( 'synthetic-data'!W32, 'synthetic-data'!$J32, FALSE ) -> 2.498544729e-38 | O27: =_xlfn.POISSON.DIST( 'synthetic-data'!X32, 'synthetic-data'!$J32, FALSE ) -> 2.498544729e-38 | P27: =_xlfn.POISSON.DIST( 'synthetic-data'!Y32, 'synthetic-data'!$J32, FALSE ) -> 2.498544729e-38 | Q27: =_xlfn.POISSON.DIST( 'synthetic-data'!Z32, 'synthetic-data'!$J32, FALSE ) -> 2.498544729e-38 | R27: =_xlfn.POISSON.DIST( 'synthetic-data'!AA32, 'synthetic-data'!$J32, FALSE ) -> 2.498544729e-38 | S27: =_xlfn.POISSON.DIST( 'synthetic-data'!AB32, 'synthetic-data'!$J32, FALSE ) -> 2.498544729e-38 | T27: =_xlfn.POISSON.DIST( 'synthetic-data'!AC32, 'synthetic-data'!$J32, FALSE ) -> 2.498544729e-38 | U27: =_xlfn.POISSON.DIST( 'synthetic-data'!AD32, 'synthetic-data'!$J32, FALSE ) -> 2.254320669e-39 | V27: =_xlfn.POISSON.DIST( 'synthetic-data'!AE32, 'synthetic-data'!$J32, FALSE ) -> 2.254320669e-39 | W27: =_xlfn.POISSON.DIST( 'synthetic-data'!AF32, 'synthetic-data'!$J32, FALSE ) -> 2.254320669e-39 | X27: =_xlfn.POISSON.DIST( 'synthetic-data'!AG32, 'synthetic-data'!$J32, FALSE ) -> 2.254320669e-39 | Y27: =_xlfn.POISSON.DIST( 'synthetic-data'!AH32, 'synthetic-data'!$J32, FALSE ) -> 2.254320669e-39 | Z27: =_xlfn.POISSON.DIST( 'synthetic-data'!AI32, 'synthetic-data'!$J32, FALSE ) -> 2.254320669e-39
B28: ='synthetic-data'!J33 -> 173.9463553 | C28: =_xlfn.POISSON.DIST( 'synthetic-data'!L33, 'synthetic-data'!$J33, FALSE ) -> 1.445487943e-38 | D28: =_xlfn.POISSON.DIST( 'synthetic-data'!M33, 'synthetic-data'!$J33, FALSE ) -> 1.445487943e-38 | E28: =_xlfn.POISSON.DIST( 'synthetic-data'!N33, 'synthetic-data'!$J33, FALSE ) -> 5.052964586e-43 | F28: =_xlfn.POISSON.DIST( 'synthetic-data'!O33, 'synthetic-data'!$J33, FALSE ) -> 6.258003925e-49 | G28: =_xlfn.POISSON.DIST( 'synthetic-data'!P33, 'synthetic-data'!$J33, FALSE ) -> 8.826491983e-55 | H28: =_xlfn.POISSON.DIST( 'synthetic-data'!Q33, 'synthetic-data'!$J33, FALSE ) -> 4.578305595e-58 | I28: =_xlfn.POISSON.DIST( 'synthetic-data'!R33, 'synthetic-data'!$J33, FALSE ) -> 1.9973218e-60 | J28: =_xlfn.POISSON.DIST( 'synthetic-data'!S33, 'synthetic-data'!$J33, FALSE ) -> 1.9973218e-60 | K28: =_xlfn.POISSON.DIST( 'synthetic-data'!T33, 'synthetic-data'!$J33, FALSE ) -> 1.9973218e-60 | L28: =_xlfn.POISSON.DIST( 'synthetic-data'!U33, 'synthetic-data'!$J33, FALSE ) -> 3.158425886e-59 | M28: =_xlfn.POISSON.DIST( 'synthetic-data'!V33, 'synthetic-data'!$J33, FALSE ) -> 4.578305595e-58 | N28: =_xlfn.POISSON.DIST( 'synthetic-data'!W33, 'synthetic-data'!$J33, FALSE ) -> 6.125996706e-57 | O28: =_xlfn.POISSON.DIST( 'synthetic-data'!X33, 'synthetic-data'!$J33, FALSE ) -> 7.611391426e-56 | P28: =_xlfn.POISSON.DIST( 'synthetic-data'!Y33, 'synthetic-data'!$J33, FALSE ) -> 8.826491983e-55 | Q28: =_xlfn.POISSON.DIST( 'synthetic-data'!Z33, 'synthetic-data'!$J33, FALSE ) -> 7.611391426e-56 | R28: =_xlfn.POISSON.DIST( 'synthetic-data'!AA33, 'synthetic-data'!$J33, FALSE ) -> 7.611391426e-56 | S28: =_xlfn.POISSON.DIST( 'synthetic-data'!AB33, 'synthetic-data'!$J33, FALSE ) -> 7.611391426e-56 | T28: =_xlfn.POISSON.DIST( 'synthetic-data'!AC33, 'synthetic-data'!$J33, FALSE ) -> 6.125996706e-57 | U28: =_xlfn.POISSON.DIST( 'synthetic-data'!AD33, 'synthetic-data'!$J33, FALSE ) -> 6.125996706e-57 | V28: =_xlfn.POISSON.DIST( 'synthetic-data'!AE33, 'synthetic-data'!$J33, FALSE ) -> 6.125996706e-57 | W28: =_xlfn.POISSON.DIST( 'synthetic-data'!AF33, 'synthetic-data'!$J33, FALSE ) -> 4.578305595e-58 | X28: =_xlfn.POISSON.DIST( 'synthetic-data'!AG33, 'synthetic-data'!$J33, FALSE ) -> 4.578305595e-58 | Y28: =_xlfn.POISSON.DIST( 'synthetic-data'!AH33, 'synthetic-data'!$J33, FALSE ) -> 4.578305595e-58 | Z28: =_xlfn.POISSON.DIST( 'synthetic-data'!AI33, 'synthetic-data'!$J33, FALSE ) -> 4.578305595e-58
B29: ='synthetic-data'!J34 -> 120.9594902 | C29: =_xlfn.POISSON.DIST( 'synthetic-data'!L34, 'synthetic-data'!$J34, FALSE ) -> 1.804651949e-21 | D29: =_xlfn.POISSON.DIST( 'synthetic-data'!M34, 'synthetic-data'!$J34, FALSE ) -> 1.804651949e-21 | E29: =_xlfn.POISSON.DIST( 'synthetic-data'!N34, 'synthetic-data'!$J34, FALSE ) -> 1.984899765e-24 | F29: =_xlfn.POISSON.DIST( 'synthetic-data'!O34, 'synthetic-data'!$J34, FALSE ) -> 3.126481449e-29 | G29: =_xlfn.POISSON.DIST( 'synthetic-data'!P34, 'synthetic-data'!$J34, FALSE ) -> 3.899962846e-34 | H29: =_xlfn.POISSON.DIST( 'synthetic-data'!Q34, 'synthetic-data'!$J34, FALSE ) -> 6.01593691e-37 | I29: =_xlfn.POISSON.DIST( 'synthetic-data'!R34, 'synthetic-data'!$J34, FALSE ) -> 5.427468463e-39 | J29: =_xlfn.POISSON.DIST( 'synthetic-data'!S34, 'synthetic-data'!$J34, FALSE ) -> 5.427468463e-39 | K29: =_xlfn.POISSON.DIST( 'synthetic-data'!T34, 'synthetic-data'!$J34, FALSE ) -> 5.427468463e-39 | L29: =_xlfn.POISSON.DIST( 'synthetic-data'!U34, 'synthetic-data'!$J34, FALSE ) -> 5.968216532e-38 | M29: =_xlfn.POISSON.DIST( 'synthetic-data'!V34, 'synthetic-data'!$J34, FALSE ) -> 6.01593691e-37 | N29: =_xlfn.POISSON.DIST( 'synthetic-data'!W34, 'synthetic-data'!$J34, FALSE ) -> 5.597574322e-36 | O29: =_xlfn.POISSON.DIST( 'synthetic-data'!X34, 'synthetic-data'!$J34, FALSE ) -> 4.836283832e-35 | P29: =_xlfn.POISSON.DIST( 'synthetic-data'!Y34, 'synthetic-data'!$J34, FALSE ) -> 4.836283832e-35 | Q29: =_xlfn.POISSON.DIST( 'synthetic-data'!Z34, 'synthetic-data'!$J34, FALSE ) -> 4.836283832e-35 | R29: =_xlfn.POISSON.DIST( 'synthetic-data'!AA34, 'synthetic-data'!$J34, FALSE ) -> 5.597574322e-36 | S29: =_xlfn.POISSON.DIST( 'synthetic-data'!AB34, 'synthetic-data'!$J34, FALSE ) -> 5.597574322e-36 | T29: =_xlfn.POISSON.DIST( 'synthetic-data'!AC34, 'synthetic-data'!$J34, FALSE ) -> 5.597574322e-36 | U29: =_xlfn.POISSON.DIST( 'synthetic-data'!AD34, 'synthetic-data'!$J34, FALSE ) -> 6.01593691e-37 | V29: =_xlfn.POISSON.DIST( 'synthetic-data'!AE34, 'synthetic-data'!$J34, FALSE ) -> 6.01593691e-37 | W29: =_xlfn.POISSON.DIST( 'synthetic-data'!AF34, 'synthetic-data'!$J34, FALSE ) -> 6.01593691e-37 | X29: =_xlfn.POISSON.DIST( 'synthetic-data'!AG34, 'synthetic-data'!$J34, FALSE ) -> 6.01593691e-37 | Y29: =_xlfn.POISSON.DIST( 'synthetic-data'!AH34, 'synthetic-data'!$J34, FALSE ) -> 6.01593691e-37 | Z29: =_xlfn.POISSON.DIST( 'synthetic-data'!AI34, 'synthetic-data'!$J34, FALSE ) -> 6.01593691e-37
B30: ='synthetic-data'!J35 -> 221.8857798 | C30: =_xlfn.POISSON.DIST( 'synthetic-data'!L35, 'synthetic-data'!$J35, FALSE ) -> 5.451663436e-55 | D30: =_xlfn.POISSON.DIST( 'synthetic-data'!M35, 'synthetic-data'!$J35, FALSE ) -> 5.451663436e-55 | E30: =_xlfn.POISSON.DIST( 'synthetic-data'!N35, 'synthetic-data'!$J35, FALSE ) -> 3.948701091e-59 | F30: =_xlfn.POISSON.DIST( 'synthetic-data'!O35, 'synthetic-data'!$J35, FALSE ) -> 1.586032133e-66 | G30: =_xlfn.POISSON.DIST( 'synthetic-data'!P35, 'synthetic-data'!$J35, FALSE ) -> 5.14840464e-74 | H30: =_xlfn.POISSON.DIST( 'synthetic-data'!Q35, 'synthetic-data'!$J35, FALSE ) -> 1.286609963e-77 | I30: =_xlfn.POISSON.DIST( 'synthetic-data'!R35, 'synthetic-data'!$J35, FALSE ) -> 3.449545686e-80 | J30: =_xlfn.POISSON.DIST( 'synthetic-data'!S35, 'synthetic-data'!$J35, FALSE ) -> 3.449545686e-80 | K30: =_xlfn.POISSON.DIST( 'synthetic-data'!T35, 'synthetic-data'!$J35, FALSE ) -> 3.449545686e-80 | L30: =_xlfn.POISSON.DIST( 'synthetic-data'!U35, 'synthetic-data'!$J35, FALSE ) -> 1.286609963e-77 | M30: =_xlfn.POISSON.DIST( 'synthetic-data'!V35, 'synthetic-data'!$J35, FALSE ) -> 3.480442491e-75 | N30: =_xlfn.POISSON.DIST( 'synthetic-data'!W35, 'synthetic-data'!$J35, FALSE ) -> 7.139736113e-73 | O30: =_xlfn.POISSON.DIST( 'synthetic-data'!X35, 'synthetic-data'!$J35, FALSE ) -> 1.148734525e-70 | P30: =_xlfn.POISSON.DIST( 'synthetic-data'!Y35, 'synthetic-data'!$J35, FALSE ) -> 1.341515031e-69 | Q30: =_xlfn.POISSON.DIST( 'synthetic-data'!Z35, 'synthetic-data'!$J35, FALSE ) -> 1.341515031e-69 | R30: =_xlfn.POISSON.DIST( 'synthetic-data'!AA35, 'synthetic-data'!$J35, FALSE ) -> 1.341515031e-69 | S30: =_xlfn.POISSON.DIST( 'synthetic-data'!AB35, 'synthetic-data'!$J35, FALSE ) -> 1.148734525e-70 | T30: =_xlfn.POISSON.DIST( 'synthetic-data'!AC35, 'synthetic-data'!$J35, FALSE ) -> 7.139736113e-73 | U30: =_xlfn.POISSON.DIST( 'synthetic-data'!AD35, 'synthetic-data'!$J35, FALSE ) -> 5.14840464e-74 | V30: =_xlfn.POISSON.DIST( 'synthetic-data'!AE35, 'synthetic-data'!$J35, FALSE ) -> 3.480442491e-75 | W30: =_xlfn.POISSON.DIST( 'synthetic-data'!AF35, 'synthetic-data'!$J35, FALSE ) -> 2.196003499e-76 | X30: =_xlfn.POISSON.DIST( 'synthetic-data'!AG35, 'synthetic-data'!$J35, FALSE ) -> 2.196003499e-76 | Y30: =_xlfn.POISSON.DIST( 'synthetic-data'!AH35, 'synthetic-data'!$J35, FALSE ) -> 1.286609963e-77 | Z30: =_xlfn.POISSON.DIST( 'synthetic-data'!AI35, 'synthetic-data'!$J35, FALSE ) -> 1.286609963e-77
B31: ='synthetic-data'!J36 -> 137.4285943 | C31: =_xlfn.POISSON.DIST( 'synthetic-data'!L36, 'synthetic-data'!$J36, FALSE ) -> 3.467183265e-26 | D31: =_xlfn.POISSON.DIST( 'synthetic-data'!M36, 'synthetic-data'!$J36, FALSE ) -> 3.467183265e-26 | E31: =_xlfn.POISSON.DIST( 'synthetic-data'!N36, 'synthetic-data'!$J36, FALSE ) -> 2.361658298e-29 | F31: =_xlfn.POISSON.DIST( 'synthetic-data'!O36, 'synthetic-data'!$J36, FALSE ) -> 3.21214496e-35 | G31: =_xlfn.POISSON.DIST( 'synthetic-data'!P36, 'synthetic-data'!$J36, FALSE ) -> 1.862845392e-40 | H31: =_xlfn.POISSON.DIST( 'synthetic-data'!Q36, 'synthetic-data'!$J36, FALSE ) -> 1.959332519e-43 | I31: =_xlfn.POISSON.DIST( 'synthetic-data'!R36, 'synthetic-data'!$J36, FALSE ) -> 1.369392262e-45 | J31: =_xlfn.POISSON.DIST( 'synthetic-data'!S36, 'synthetic-data'!$J36, FALSE ) -> 1.369392262e-45 | K31: =_xlfn.POISSON.DIST( 'synthetic-data'!T36, 'synthetic-data'!$J36, FALSE ) -> 1.369392262e-45 | L31: =_xlfn.POISSON.DIST( 'synthetic-data'!U36, 'synthetic-data'!$J36, FALSE ) -> 1.710851395e-44 | M31: =_xlfn.POISSON.DIST( 'synthetic-data'!V36, 'synthetic-data'!$J36, FALSE ) -> 1.959332519e-43 | N31: =_xlfn.POISSON.DIST( 'synthetic-data'!W36, 'synthetic-data'!$J36, FALSE ) -> 2.03325087e-41 | O31: =_xlfn.POISSON.DIST( 'synthetic-data'!X36, 'synthetic-data'!$J36, FALSE ) -> 1.862845392e-40 | P31: =_xlfn.POISSON.DIST( 'synthetic-data'!Y36, 'synthetic-data'!$J36, FALSE ) -> 1.862845392e-40 | Q31: =_xlfn.POISSON.DIST( 'synthetic-data'!Z36, 'synthetic-data'!$J36, FALSE ) -> 1.862845392e-40 | R31: =_xlfn.POISSON.DIST( 'synthetic-data'!AA36, 'synthetic-data'!$J36, FALSE ) -> 1.862845392e-40 | S31: =_xlfn.POISSON.DIST( 'synthetic-data'!AB36, 'synthetic-data'!$J36, FALSE ) -> 2.03325087e-41 | T31: =_xlfn.POISSON.DIST( 'synthetic-data'!AC36, 'synthetic-data'!$J36, FALSE ) -> 2.03325087e-41 | U31: =_xlfn.POISSON.DIST( 'synthetic-data'!AD36, 'synthetic-data'!$J36, FALSE ) -> 2.071294721e-42 | V31: =_xlfn.POISSON.DIST( 'synthetic-data'!AE36, 'synthetic-data'!$J36, FALSE ) -> 2.071294721e-42 | W31: =_xlfn.POISSON.DIST( 'synthetic-data'!AF36, 'synthetic-data'!$J36, FALSE ) -> 2.071294721e-42 | X31: =_xlfn.POISSON.DIST( 'synthetic-data'!AG36, 'synthetic-data'!$J36, FALSE ) -> 1.959332519e-43 | Y31: =_xlfn.POISSON.DIST( 'synthetic-data'!AH36, 'synthetic-data'!$J36, FALSE ) -> 1.959332519e-43 | Z31: =_xlfn.POISSON.DIST( 'synthetic-data'!AI36, 'synthetic-data'!$J36, FALSE ) -> 1.959332519e-43
B32: ='synthetic-data'!J37 -> 105.8105631 | C32: =_xlfn.POISSON.DIST( 'synthetic-data'!L37, 'synthetic-data'!$J37, FALSE ) -> 8.276152335e-17 | D32: =_xlfn.POISSON.DIST( 'synthetic-data'!M37, 'synthetic-data'!$J37, FALSE ) -> 2.581150871e-17 | E32: =_xlfn.POISSON.DIST( 'synthetic-data'!N37, 'synthetic-data'!$J37, FALSE ) -> 4.702807674e-20 | F32: =_xlfn.POISSON.DIST( 'synthetic-data'!O37, 'synthetic-data'!$J37, FALSE ) -> 1.417464572e-24 | G32: =_xlfn.POISSON.DIST( 'synthetic-data'!P37, 'synthetic-data'!$J37, FALSE ) -> 1.988346598e-28 | H32: =_xlfn.POISSON.DIST( 'synthetic-data'!Q37, 'synthetic-data'!$J37, FALSE ) -> 4.582132683e-31 | I32: =_xlfn.POISSON.DIST( 'synthetic-data'!R37, 'synthetic-data'!$J37, FALSE ) -> 5.196607086e-32 | J32: =_xlfn.POISSON.DIST( 'synthetic-data'!S37, 'synthetic-data'!$J37, FALSE ) -> 5.402360243e-33 | K32: =_xlfn.POISSON.DIST( 'synthetic-data'!T37, 'synthetic-data'!$J37, FALSE ) -> 5.402360243e-33 | L32: =_xlfn.POISSON.DIST( 'synthetic-data'!U37, 'synthetic-data'!$J37, FALSE ) -> 5.196607086e-32 | M32: =_xlfn.POISSON.DIST( 'synthetic-data'!V37, 'synthetic-data'!$J37, FALSE ) -> 5.196607086e-32 | N32: =_xlfn.POISSON.DIST( 'synthetic-data'!W37, 'synthetic-data'!$J37, FALSE ) -> 4.582132683e-31 | O32: =_xlfn.POISSON.DIST( 'synthetic-data'!X37, 'synthetic-data'!$J37, FALSE ) -> 4.582132683e-31 | P32: =_xlfn.POISSON.DIST( 'synthetic-data'!Y37, 'synthetic-data'!$J37, FALSE ) -> 4.582132683e-31 | Q32: =_xlfn.POISSON.DIST( 'synthetic-data'!Z37, 'synthetic-data'!$J37, FALSE ) -> 4.582132683e-31 | R32: =_xlfn.POISSON.DIST( 'synthetic-data'!AA37, 'synthetic-data'!$J37, FALSE ) -> 4.582132683e-31 | S32: =_xlfn.POISSON.DIST( 'synthetic-data'!AB37, 'synthetic-data'!$J37, FALSE ) -> 4.582132683e-31 | T32: =_xlfn.POISSON.DIST( 'synthetic-data'!AC37, 'synthetic-data'!$J37, FALSE ) -> 4.582132683e-31 | U32: =_xlfn.POISSON.DIST( 'synthetic-data'!AD37, 'synthetic-data'!$J37, FALSE ) -> 4.582132683e-31 | V32: =_xlfn.POISSON.DIST( 'synthetic-data'!AE37, 'synthetic-data'!$J37, FALSE ) -> 5.196607086e-32 | W32: =_xlfn.POISSON.DIST( 'synthetic-data'!AF37, 'synthetic-data'!$J37, FALSE ) -> 5.196607086e-32 | X32: =_xlfn.POISSON.DIST( 'synthetic-data'!AG37, 'synthetic-data'!$J37, FALSE ) -> 5.196607086e-32 | Y32: =_xlfn.POISSON.DIST( 'synthetic-data'!AH37, 'synthetic-data'!$J37, FALSE ) -> 5.196607086e-32 | Z32: =_xlfn.POISSON.DIST( 'synthetic-data'!AI37, 'synthetic-data'!$J37, FALSE ) -> 5.196607086e-32
B33: ='synthetic-data'!J38 -> 97.64437589 | C33: =_xlfn.POISSON.DIST( 'synthetic-data'!L38, 'synthetic-data'!$J38, FALSE ) -> 2.278394081e-15 | D33: =_xlfn.POISSON.DIST( 'synthetic-data'!M38, 'synthetic-data'!$J38, FALSE ) -> 2.222374905e-16 | E33: =_xlfn.POISSON.DIST( 'synthetic-data'!N38, 'synthetic-data'!$J38, FALSE ) -> 1.39354671e-18 | F33: =_xlfn.POISSON.DIST( 'synthetic-data'!O38, 'synthetic-data'!$J38, FALSE ) -> 2.050166743e-22 | G33: =_xlfn.POISSON.DIST( 'synthetic-data'!P38, 'synthetic-data'!$J38, FALSE ) -> 2.097950605e-25 | H33: =_xlfn.POISSON.DIST( 'synthetic-data'!Q38, 'synthetic-data'!$J38, FALSE ) -> 6.151998263e-28 | I33: =_xlfn.POISSON.DIST( 'synthetic-data'!R38, 'synthetic-data'!$J38, FALSE ) -> 7.560494753e-29 | J33: =_xlfn.POISSON.DIST( 'synthetic-data'!S38, 'synthetic-data'!$J38, FALSE ) -> 8.517176901e-30 | K33: =_xlfn.POISSON.DIST( 'synthetic-data'!T38, 'synthetic-data'!$J38, FALSE ) -> 8.517176901e-30 | L33: =_xlfn.POISSON.DIST( 'synthetic-data'!U38, 'synthetic-data'!$J38, FALSE ) -> 8.517176901e-30 | M33: =_xlfn.POISSON.DIST( 'synthetic-data'!V38, 'synthetic-data'!$J38, FALSE ) -> 8.517176901e-30 | N33: =_xlfn.POISSON.DIST( 'synthetic-data'!W38, 'synthetic-data'!$J38, FALSE ) -> 8.517176901e-30 | O33: =_xlfn.POISSON.DIST( 'synthetic-data'!X38, 'synthetic-data'!$J38, FALSE ) -> 8.517176901e-30 | P33: =_xlfn.POISSON.DIST( 'synthetic-data'!Y38, 'synthetic-data'!$J38, FALSE ) -> 8.517176901e-30 | Q33: =_xlfn.POISSON.DIST( 'synthetic-data'!Z38, 'synthetic-data'!$J38, FALSE ) -> 8.517176901e-30 | R33: =_xlfn.POISSON.DIST( 'synthetic-data'!AA38, 'synthetic-data'!$J38, FALSE ) -> 8.517176901e-30 | S33: =_xlfn.POISSON.DIST( 'synthetic-data'!AB38, 'synthetic-data'!$J38, FALSE ) -> 8.517176901e-30 | T33: =_xlfn.POISSON.DIST( 'synthetic-data'!AC38, 'synthetic-data'!$J38, FALSE ) -> 8.517176901e-30 | U33: =_xlfn.POISSON.DIST( 'synthetic-data'!AD38, 'synthetic-data'!$J38, FALSE ) -> 8.517176901e-30 | V33: =_xlfn.POISSON.DIST( 'synthetic-data'!AE38, 'synthetic-data'!$J38, FALSE ) -> 8.517176901e-30 | W33: =_xlfn.POISSON.DIST( 'synthetic-data'!AF38, 'synthetic-data'!$J38, FALSE ) -> 8.517176901e-30 | X33: =_xlfn.POISSON.DIST( 'synthetic-data'!AG38, 'synthetic-data'!$J38, FALSE ) -> 8.517176901e-30 | Y33: =_xlfn.POISSON.DIST( 'synthetic-data'!AH38, 'synthetic-data'!$J38, FALSE ) -> 8.517176901e-30 | Z33: =_xlfn.POISSON.DIST( 'synthetic-data'!AI38, 'synthetic-data'!$J38, FALSE ) -> 8.517176901e-30
B34: ='synthetic-data'!J39 -> 104.5230928 | C34: =_xlfn.POISSON.DIST( 'synthetic-data'!L39, 'synthetic-data'!$J39, FALSE ) -> 6.3214671e-17 | D34: =_xlfn.POISSON.DIST( 'synthetic-data'!M39, 'synthetic-data'!$J39, FALSE ) -> 5.739909573e-18 | E34: =_xlfn.POISSON.DIST( 'synthetic-data'!N39, 'synthetic-data'!$J39, FALSE ) -> 7.867888336e-21 | F34: =_xlfn.POISSON.DIST( 'synthetic-data'!O39, 'synthetic-data'!$J39, FALSE ) -> 7.69370862e-25 | G34: =_xlfn.POISSON.DIST( 'synthetic-data'!P39, 'synthetic-data'!$J39, FALSE ) -> 5.996277694e-28 | H34: =_xlfn.POISSON.DIST( 'synthetic-data'!Q39, 'synthetic-data'!$J39, FALSE ) -> 1.433532782e-30 | I34: =_xlfn.POISSON.DIST( 'synthetic-data'!R39, 'synthetic-data'!$J39, FALSE ) -> 1.645798352e-31 | J34: =_xlfn.POISSON.DIST( 'synthetic-data'!S39, 'synthetic-data'!$J39, FALSE ) -> 1.732036567e-32 | K34: =_xlfn.POISSON.DIST( 'synthetic-data'!T39, 'synthetic-data'!$J39, FALSE ) -> 1.732036567e-32 | L34: =_xlfn.POISSON.DIST( 'synthetic-data'!U39, 'synthetic-data'!$J39, FALSE ) -> 1.732036567e-32 | M34: =_xlfn.POISSON.DIST( 'synthetic-data'!V39, 'synthetic-data'!$J39, FALSE ) -> 1.732036567e-32 | N34: =_xlfn.POISSON.DIST( 'synthetic-data'!W39, 'synthetic-data'!$J39, FALSE ) -> 1.645798352e-31 | O34: =_xlfn.POISSON.DIST( 'synthetic-data'!X39, 'synthetic-data'!$J39, FALSE ) -> 1.645798352e-31 | P34: =_xlfn.POISSON.DIST( 'synthetic-data'!Y39, 'synthetic-data'!$J39, FALSE ) -> 1.645798352e-31 | Q34: =_xlfn.POISSON.DIST( 'synthetic-data'!Z39, 'synthetic-data'!$J39, FALSE ) -> 1.645798352e-31 | R34: =_xlfn.POISSON.DIST( 'synthetic-data'!AA39, 'synthetic-data'!$J39, FALSE ) -> 1.645798352e-31 | S34: =_xlfn.POISSON.DIST( 'synthetic-data'!AB39, 'synthetic-data'!$J39, FALSE ) -> 1.732036567e-32 | T34: =_xlfn.POISSON.DIST( 'synthetic-data'!AC39, 'synthetic-data'!$J39, FALSE ) -> 1.732036567e-32 | U34: =_xlfn.POISSON.DIST( 'synthetic-data'!AD39, 'synthetic-data'!$J39, FALSE ) -> 1.732036567e-32 | V34: =_xlfn.POISSON.DIST( 'synthetic-data'!AE39, 'synthetic-data'!$J39, FALSE ) -> 1.732036567e-32 | W34: =_xlfn.POISSON.DIST( 'synthetic-data'!AF39, 'synthetic-data'!$J39, FALSE ) -> 1.732036567e-32 | X34: =_xlfn.POISSON.DIST( 'synthetic-data'!AG39, 'synthetic-data'!$J39, FALSE ) -> 1.732036567e-32 | Y34: =_xlfn.POISSON.DIST( 'synthetic-data'!AH39, 'synthetic-data'!$J39, FALSE ) -> 1.732036567e-32 | Z34: =_xlfn.POISSON.DIST( 'synthetic-data'!AI39, 'synthetic-data'!$J39, FALSE ) -> 1.732036567e-32
B35: ='synthetic-data'!J40 -> 194.0467324 | C35: =_xlfn.POISSON.DIST( 'synthetic-data'!L40, 'synthetic-data'!$J40, FALSE ) -> 6.15267451e-45 | D35: =_xlfn.POISSON.DIST( 'synthetic-data'!M40, 'synthetic-data'!$J40, FALSE ) -> 3.316406622e-44 | E35: =_xlfn.POISSON.DIST( 'synthetic-data'!N40, 'synthetic-data'!$J40, FALSE ) -> 5.453175624e-48 | F35: =_xlfn.POISSON.DIST( 'synthetic-data'!O40, 'synthetic-data'!$J40, FALSE ) -> 1.022698588e-55 | G35: =_xlfn.POISSON.DIST( 'synthetic-data'!P40, 'synthetic-data'!$J40, FALSE ) -> 8.485360549e-63 | H35: =_xlfn.POISSON.DIST( 'synthetic-data'!Q40, 'synthetic-data'!$J40, FALSE ) -> 3.170399173e-66 | I35: =_xlfn.POISSON.DIST( 'synthetic-data'!R40, 'synthetic-data'!$J40, FALSE ) -> 1.111412327e-68 | J35: =_xlfn.POISSON.DIST( 'synthetic-data'!S40, 'synthetic-data'!$J40, FALSE ) -> 1.111412327e-68 | K35: =_xlfn.POISSON.DIST( 'synthetic-data'!T40, 'synthetic-data'!$J40, FALSE ) -> 1.111412327e-68 | L35: =_xlfn.POISSON.DIST( 'synthetic-data'!U40, 'synthetic-data'!$J40, FALSE ) -> 3.170399173e-66 | M35: =_xlfn.POISSON.DIST( 'synthetic-data'!V40, 'synthetic-data'!$J40, FALSE ) -> 6.559265734e-64 | N35: =_xlfn.POISSON.DIST( 'synthetic-data'!W40, 'synthetic-data'!$J40, FALSE ) -> 1.029097805e-61 | O35: =_xlfn.POISSON.DIST( 'synthetic-data'!X40, 'synthetic-data'!$J40, FALSE ) -> 1.266332908e-59 | P35: =_xlfn.POISSON.DIST( 'synthetic-data'!Y40, 'synthetic-data'!$J40, FALSE ) -> 1.25480709e-57 | Q35: =_xlfn.POISSON.DIST( 'synthetic-data'!Z40, 'synthetic-data'!$J40, FALSE ) -> 1.25480709e-57 | R35: =_xlfn.POISSON.DIST( 'synthetic-data'!AA40, 'synthetic-data'!$J40, FALSE ) -> 1.25480709e-57 | S35: =_xlfn.POISSON.DIST( 'synthetic-data'!AB40, 'synthetic-data'!$J40, FALSE ) -> 1.293304015e-58 | T35: =_xlfn.POISSON.DIST( 'synthetic-data'!AC40, 'synthetic-data'!$J40, FALSE ) -> 1.174665096e-60 | U35: =_xlfn.POISSON.DIST( 'synthetic-data'!AD40, 'synthetic-data'!$J40, FALSE ) -> 1.029097805e-61 | V35: =_xlfn.POISSON.DIST( 'synthetic-data'!AE40, 'synthetic-data'!$J40, FALSE ) -> 6.559265734e-64 | W35: =_xlfn.POISSON.DIST( 'synthetic-data'!AF40, 'synthetic-data'!$J40, FALSE ) -> 4.732350767e-65 | X35: =_xlfn.POISSON.DIST( 'synthetic-data'!AG40, 'synthetic-data'!$J40, FALSE ) -> 4.732350767e-65 | Y35: =_xlfn.POISSON.DIST( 'synthetic-data'!AH40, 'synthetic-data'!$J40, FALSE ) -> 3.170399173e-66 | Z35: =_xlfn.POISSON.DIST( 'synthetic-data'!AI40, 'synthetic-data'!$J40, FALSE ) -> 3.170399173e-66
B36: ='synthetic-data'!J41 -> 91.22617033 | C36: =_xlfn.POISSON.DIST( 'synthetic-data'!L41, 'synthetic-data'!$J41, FALSE ) -> 4.837578981e-13 | D36: =_xlfn.POISSON.DIST( 'synthetic-data'!M41, 'synthetic-data'!$J41, FALSE ) -> 1.696909197e-13 | E36: =_xlfn.POISSON.DIST( 'synthetic-data'!N41, 'synthetic-data'!$J41, FALSE ) -> 5.476008674e-16 | F36: =_xlfn.POISSON.DIST( 'synthetic-data'!O41, 'synthetic-data'!$J41, FALSE ) -> 1.574859722e-19 | G36: =_xlfn.POISSON.DIST( 'synthetic-data'!P41, 'synthetic-data'!$J41, FALSE ) -> 4.637347743e-23 | H36: =_xlfn.POISSON.DIST( 'synthetic-data'!Q41, 'synthetic-data'!$J41, FALSE ) -> 1.667531245e-25 | I36: =_xlfn.POISSON.DIST( 'synthetic-data'!R41, 'synthetic-data'!$J41, FALSE ) -> 2.193490625e-26 | J36: =_xlfn.POISSON.DIST( 'synthetic-data'!S41, 'synthetic-data'!$J41, FALSE ) -> 2.644898584e-27 | K36: =_xlfn.POISSON.DIST( 'synthetic-data'!T41, 'synthetic-data'!$J41, FALSE ) -> 2.644898584e-27 | L36: =_xlfn.POISSON.DIST( 'synthetic-data'!U41, 'synthetic-data'!$J41, FALSE ) -> 2.644898584e-27 | M36: =_xlfn.POISSON.DIST( 'synthetic-data'!V41, 'synthetic-data'!$J41, FALSE ) -> 2.193490625e-26 | N36: =_xlfn.POISSON.DIST( 'synthetic-data'!W41, 'synthetic-data'!$J41, FALSE ) -> 2.193490625e-26 | O36: =_xlfn.POISSON.DIST( 'synthetic-data'!X41, 'synthetic-data'!$J41, FALSE ) -> 2.193490625e-26 | P36: =_xlfn.POISSON.DIST( 'synthetic-data'!Y41, 'synthetic-data'!$J41, FALSE ) -> 2.193490625e-26 | Q36: =_xlfn.POISSON.DIST( 'synthetic-data'!Z41, 'synthetic-data'!$J41, FALSE ) -> 2.193490625e-26 | R36: =_xlfn.POISSON.DIST( 'synthetic-data'!AA41, 'synthetic-data'!$J41, FALSE ) -> 2.193490625e-26 | S36: =_xlfn.POISSON.DIST( 'synthetic-data'!AB41, 'synthetic-data'!$J41, FALSE ) -> 2.193490625e-26 | T36: =_xlfn.POISSON.DIST( 'synthetic-data'!AC41, 'synthetic-data'!$J41, FALSE ) -> 2.193490625e-26 | U36: =_xlfn.POISSON.DIST( 'synthetic-data'!AD41, 'synthetic-data'!$J41, FALSE ) -> 2.193490625e-26 | V36: =_xlfn.POISSON.DIST( 'synthetic-data'!AE41, 'synthetic-data'!$J41, FALSE ) -> 2.193490625e-26 | W36: =_xlfn.POISSON.DIST( 'synthetic-data'!AF41, 'synthetic-data'!$J41, FALSE ) -> 2.193490625e-26 | X36: =_xlfn.POISSON.DIST( 'synthetic-data'!AG41, 'synthetic-data'!$J41, FALSE ) -> 2.193490625e-26 | Y36: =_xlfn.POISSON.DIST( 'synthetic-data'!AH41, 'synthetic-data'!$J41, FALSE ) -> 2.644898584e-27 | Z36: =_xlfn.POISSON.DIST( 'synthetic-data'!AI41, 'synthetic-data'!$J41, FALSE ) -> 2.644898584e-27
B37: ='synthetic-data'!J42 -> 258.7898892 | C37: =_xlfn.POISSON.DIST( 'synthetic-data'!L42, 'synthetic-data'!$J42, FALSE ) -> 8.026883853e-68 | D37: =_xlfn.POISSON.DIST( 'synthetic-data'!M42, 'synthetic-data'!$J42, FALSE ) -> 3.823457502e-66 | E37: =_xlfn.POISSON.DIST( 'synthetic-data'!N42, 'synthetic-data'!$J42, FALSE ) -> 2.530003736e-71 | F37: =_xlfn.POISSON.DIST( 'synthetic-data'!O42, 'synthetic-data'!$J42, FALSE ) -> 4.946212149e-80 | G37: =_xlfn.POISSON.DIST( 'synthetic-data'!P42, 'synthetic-data'!$J42, FALSE ) -> 4.860591471e-89 | H37: =_xlfn.POISSON.DIST( 'synthetic-data'!Q42, 'synthetic-data'!$J42, FALSE ) -> 3.550126229e-94 | I37: =_xlfn.POISSON.DIST( 'synthetic-data'!R42, 'synthetic-data'!$J42, FALSE ) -> 5.830984288e-97 | J37: =_xlfn.POISSON.DIST( 'synthetic-data'!S42, 'synthetic-data'!$J42, FALSE ) -> 5.830984288e-97 | K37: =_xlfn.POISSON.DIST( 'synthetic-data'!T42, 'synthetic-data'!$J42, FALSE ) -> 1.508999778e-95 | L37: =_xlfn.POISSON.DIST( 'synthetic-data'!U42, 'synthetic-data'!$J42, FALSE ) -> 7.656139778e-93 | M37: =_xlfn.POISSON.DIST( 'synthetic-data'!V42, 'synthetic-data'!$J42, FALSE ) -> 2.817299868e-90 | N37: =_xlfn.POISSON.DIST( 'synthetic-data'!W42, 'synthetic-data'!$J42, FALSE ) -> 1.720638456e-85 | O37: =_xlfn.POISSON.DIST( 'synthetic-data'!X42, 'synthetic-data'!$J42, FALSE ) -> 4.395955337e-81 | P37: =_xlfn.POISSON.DIST( 'synthetic-data'!Y42, 'synthetic-data'!$J42, FALSE ) -> 5.520979044e-78 | Q37: =_xlfn.POISSON.DIST( 'synthetic-data'!Z42, 'synthetic-data'!$J42, FALSE ) -> 4.868137866e-75 | R37: =_xlfn.POISSON.DIST( 'synthetic-data'!AA42, 'synthetic-data'!$J42, FALSE ) -> 5.267124642e-76 | S37: =_xlfn.POISSON.DIST( 'synthetic-data'!AB42, 'synthetic-data'!$J42, FALSE ) -> 5.333457058e-79 | T37: =_xlfn.POISSON.DIST( 'synthetic-data'!AC42, 'synthetic-data'!$J42, FALSE ) -> 3.0324988e-83 | U37: =_xlfn.POISSON.DIST( 'synthetic-data'!AD42, 'synthetic-data'!$J42, FALSE ) -> 7.86169955e-88 | V37: =_xlfn.POISSON.DIST( 'synthetic-data'!AE42, 'synthetic-data'!$J42, FALSE ) -> 2.817299868e-90 | W37: =_xlfn.POISSON.DIST( 'synthetic-data'!AF42, 'synthetic-data'!$J42, FALSE ) -> 7.656139778e-93 | X37: =_xlfn.POISSON.DIST( 'synthetic-data'!AG42, 'synthetic-data'!$J42, FALSE ) -> 3.550126229e-94 | Y37: =_xlfn.POISSON.DIST( 'synthetic-data'!AH42, 'synthetic-data'!$J42, FALSE ) -> 3.550126229e-94 | Z37: =_xlfn.POISSON.DIST( 'synthetic-data'!AI42, 'synthetic-data'!$J42, FALSE ) -> 3.550126229e-94
B38: ='synthetic-data'!J43 -> 178.6768581 | C38: =_xlfn.POISSON.DIST( 'synthetic-data'!L43, 'synthetic-data'!$J43, FALSE ) -> 1.621005849e-39 | D38: =_xlfn.POISSON.DIST( 'synthetic-data'!M43, 'synthetic-data'!$J43, FALSE ) -> 1.621005849e-39 | E38: =_xlfn.POISSON.DIST( 'synthetic-data'!N43, 'synthetic-data'!$J43, FALSE ) -> 3.467493212e-43 | F38: =_xlfn.POISSON.DIST( 'synthetic-data'!O43, 'synthetic-data'!$J43, FALSE ) -> 7.877032639e-50 | G38: =_xlfn.POISSON.DIST( 'synthetic-data'!P43, 'synthetic-data'!$J43, FALSE ) -> 1.164532132e-56 | H38: =_xlfn.POISSON.DIST( 'synthetic-data'!Q43, 'synthetic-data'!$J43, FALSE ) -> 5.573258691e-60 | I38: =_xlfn.POISSON.DIST( 'synthetic-data'!R43, 'synthetic-data'!$J43, FALSE ) -> 2.304339789e-62 | J38: =_xlfn.POISSON.DIST( 'synthetic-data'!S43, 'synthetic-data'!$J43, FALSE ) -> 2.304339789e-62 | K38: =_xlfn.POISSON.DIST( 'synthetic-data'!T43, 'synthetic-data'!$J43, FALSE ) -> 2.304339789e-62 | L38: =_xlfn.POISSON.DIST( 'synthetic-data'!U43, 'synthetic-data'!$J43, FALSE ) -> 5.573258691e-60 | M38: =_xlfn.POISSON.DIST( 'synthetic-data'!V43, 'synthetic-data'!$J43, FALSE ) -> 7.660095018e-59 | N38: =_xlfn.POISSON.DIST( 'synthetic-data'!W43, 'synthetic-data'!$J43, FALSE ) -> 1.164532132e-56 | O38: =_xlfn.POISSON.DIST( 'synthetic-data'!X43, 'synthetic-data'!$J43, FALSE ) -> 1.366844742e-54 | P38: =_xlfn.POISSON.DIST( 'synthetic-data'!Y43, 'synthetic-data'!$J43, FALSE ) -> 1.356797356e-53 | Q38: =_xlfn.POISSON.DIST( 'synthetic-data'!Z43, 'synthetic-data'!$J43, FALSE ) -> 1.275938361e-52 | R38: =_xlfn.POISSON.DIST( 'synthetic-data'!AA43, 'synthetic-data'!$J43, FALSE ) -> 1.356797356e-53 | S38: =_xlfn.POISSON.DIST( 'synthetic-data'!AB43, 'synthetic-data'!$J43, FALSE ) -> 1.366844742e-54 | T38: =_xlfn.POISSON.DIST( 'synthetic-data'!AC43, 'synthetic-data'!$J43, FALSE ) -> 1.300468391e-55 | U38: =_xlfn.POISSON.DIST( 'synthetic-data'!AD43, 'synthetic-data'!$J43, FALSE ) -> 1.164532132e-56 | V38: =_xlfn.POISSON.DIST( 'synthetic-data'!AE43, 'synthetic-data'!$J43, FALSE ) -> 9.776297933e-58 | W38: =_xlfn.POISSON.DIST( 'synthetic-data'!AF43, 'synthetic-data'!$J43, FALSE ) -> 7.660095018e-59 | X38: =_xlfn.POISSON.DIST( 'synthetic-data'!AG43, 'synthetic-data'!$J43, FALSE ) -> 7.660095018e-59 | Y38: =_xlfn.POISSON.DIST( 'synthetic-data'!AH43, 'synthetic-data'!$J43, FALSE ) -> 5.573258691e-60 | Z38: =_xlfn.POISSON.DIST( 'synthetic-data'!AI43, 'synthetic-data'!$J43, FALSE ) -> 5.573258691e-60
B39: ='synthetic-data'!J44 -> 143.2132149 | C39: =_xlfn.POISSON.DIST( 'synthetic-data'!L44, 'synthetic-data'!$J44, FALSE ) -> 1.028128596e-28 | D39: =_xlfn.POISSON.DIST( 'synthetic-data'!M44, 'synthetic-data'!$J44, FALSE ) -> 1.028128596e-28 | E39: =_xlfn.POISSON.DIST( 'synthetic-data'!N44, 'synthetic-data'!$J44, FALSE ) -> 4.860453945e-32 | F39: =_xlfn.POISSON.DIST( 'synthetic-data'!O44, 'synthetic-data'!$J44, FALSE ) -> 2.347426938e-37 | G39: =_xlfn.POISSON.DIST( 'synthetic-data'!P44, 'synthetic-data'!$J44, FALSE ) -> 1.063011149e-42 | H39: =_xlfn.POISSON.DIST( 'synthetic-data'!Q44, 'synthetic-data'!$J44, FALSE ) -> 9.879868956e-46 | I39: =_xlfn.POISSON.DIST( 'synthetic-data'!R44, 'synthetic-data'!$J44, FALSE ) -> 6.358562247e-48 | J39: =_xlfn.POISSON.DIST( 'synthetic-data'!S44, 'synthetic-data'!$J44, FALSE ) -> 6.358562247e-48 | K39: =_xlfn.POISSON.DIST( 'synthetic-data'!T44, 'synthetic-data'!$J44, FALSE ) -> 6.358562247e-48 | L39: =_xlfn.POISSON.DIST( 'synthetic-data'!U44, 'synthetic-data'!$J44, FALSE ) -> 8.278455834e-47 | M39: =_xlfn.POISSON.DIST( 'synthetic-data'!V44, 'synthetic-data'!$J44, FALSE ) -> 9.879868956e-46 | N39: =_xlfn.POISSON.DIST( 'synthetic-data'!W44, 'synthetic-data'!$J44, FALSE ) -> 1.088405997e-44 | O39: =_xlfn.POISSON.DIST( 'synthetic-data'!X44, 'synthetic-data'!$J44, FALSE ) -> 1.113386586e-43 | P39: =_xlfn.POISSON.DIST( 'synthetic-data'!Y44, 'synthetic-data'!$J44, FALSE ) -> 1.113386586e-43 | Q39: =_xlfn.POISSON.DIST( 'synthetic-data'!Z44, 'synthetic-data'!$J44, FALSE ) -> 1.113386586e-43 | R39: =_xlfn.POISSON.DIST( 'synthetic-data'!AA44, 'synthetic-data'!$J44, FALSE ) -> 1.113386586e-43 | S39: =_xlfn.POISSON.DIST( 'synthetic-data'!AB44, 'synthetic-data'!$J44, FALSE ) -> 1.088405997e-44 | T39: =_xlfn.POISSON.DIST( 'synthetic-data'!AC44, 'synthetic-data'!$J44, FALSE ) -> 1.088405997e-44 | U39: =_xlfn.POISSON.DIST( 'synthetic-data'!AD44, 'synthetic-data'!$J44, FALSE ) -> 1.088405997e-44 | V39: =_xlfn.POISSON.DIST( 'synthetic-data'!AE44, 'synthetic-data'!$J44, FALSE ) -> 9.879868956e-46 | W39: =_xlfn.POISSON.DIST( 'synthetic-data'!AF44, 'synthetic-data'!$J44, FALSE ) -> 9.879868956e-46 | X39: =_xlfn.POISSON.DIST( 'synthetic-data'!AG44, 'synthetic-data'!$J44, FALSE ) -> 9.879868956e-46 | Y39: =_xlfn.POISSON.DIST( 'synthetic-data'!AH44, 'synthetic-data'!$J44, FALSE ) -> 9.879868956e-46 | Z39: =_xlfn.POISSON.DIST( 'synthetic-data'!AI44, 'synthetic-data'!$J44, FALSE ) -> 9.879868956e-46
B40: ='synthetic-data'!J45 -> 178.9815674 | C40: =_xlfn.POISSON.DIST( 'synthetic-data'!L45, 'synthetic-data'!$J45, FALSE ) -> 1.26867688e-39 | D40: =_xlfn.POISSON.DIST( 'synthetic-data'!M45, 'synthetic-data'!$J45, FALSE ) -> 6.307493789e-39 | E40: =_xlfn.POISSON.DIST( 'synthetic-data'!N45, 'synthetic-data'!$J45, FALSE ) -> 2.690803997e-43 | F40: =_xlfn.POISSON.DIST( 'synthetic-data'!O45, 'synthetic-data'!$J45, FALSE ) -> 6.029885855e-50 | G40: =_xlfn.POISSON.DIST( 'synthetic-data'!P45, 'synthetic-data'!$J45, FALSE ) -> 8.808823817e-57 | H40: =_xlfn.POISSON.DIST( 'synthetic-data'!Q45, 'synthetic-data'!$J45, FALSE ) -> 4.194262911e-60 | I40: =_xlfn.POISSON.DIST( 'synthetic-data'!R45, 'synthetic-data'!$J45, FALSE ) -> 1.728275476e-62 | J40: =_xlfn.POISSON.DIST( 'synthetic-data'!S45, 'synthetic-data'!$J45, FALSE ) -> 1.728275476e-62 | K40: =_xlfn.POISSON.DIST( 'synthetic-data'!T45, 'synthetic-data'!$J45, FALSE ) -> 1.728275476e-62 | L40: =_xlfn.POISSON.DIST( 'synthetic-data'!U45, 'synthetic-data'!$J45, FALSE ) -> 4.194262911e-60 | M40: =_xlfn.POISSON.DIST( 'synthetic-data'!V45, 'synthetic-data'!$J45, FALSE ) -> 7.382456149e-58 | N40: =_xlfn.POISSON.DIST( 'synthetic-data'!W45, 'synthetic-data'!$J45, FALSE ) -> 9.853856834e-56 | O40: =_xlfn.POISSON.DIST( 'synthetic-data'!X45, 'synthetic-data'!$J45, FALSE ) -> 1.031576489e-53 | P40: =_xlfn.POISSON.DIST( 'synthetic-data'!Y45, 'synthetic-data'!$J45, FALSE ) -> 9.717535627e-53 | Q40: =_xlfn.POISSON.DIST( 'synthetic-data'!Z45, 'synthetic-data'!$J45, FALSE ) -> 9.717535627e-53 | R40: =_xlfn.POISSON.DIST( 'synthetic-data'!AA45, 'synthetic-data'!$J45, FALSE ) -> 9.717535627e-53 | S40: =_xlfn.POISSON.DIST( 'synthetic-data'!AB45, 'synthetic-data'!$J45, FALSE ) -> 1.031576489e-53 | T40: =_xlfn.POISSON.DIST( 'synthetic-data'!AC45, 'synthetic-data'!$J45, FALSE ) -> 1.037446318e-54 | U40: =_xlfn.POISSON.DIST( 'synthetic-data'!AD45, 'synthetic-data'!$J45, FALSE ) -> 8.808823817e-57 | V40: =_xlfn.POISSON.DIST( 'synthetic-data'!AE45, 'synthetic-data'!$J45, FALSE ) -> 7.382456149e-58 | W40: =_xlfn.POISSON.DIST( 'synthetic-data'!AF45, 'synthetic-data'!$J45, FALSE ) -> 5.774582691e-59 | X40: =_xlfn.POISSON.DIST( 'synthetic-data'!AG45, 'synthetic-data'!$J45, FALSE ) -> 5.774582691e-59 | Y40: =_xlfn.POISSON.DIST( 'synthetic-data'!AH45, 'synthetic-data'!$J45, FALSE ) -> 4.194262911e-60 | Z40: =_xlfn.POISSON.DIST( 'synthetic-data'!AI45, 'synthetic-data'!$J45, FALSE ) -> 4.194262911e-60
B41: ='synthetic-data'!J46 -> 136.9652146 | C41: =_xlfn.POISSON.DIST( 'synthetic-data'!L46, 'synthetic-data'!$J46, FALSE ) -> 4.913015053e-26 | D41: =_xlfn.POISSON.DIST( 'synthetic-data'!M46, 'synthetic-data'!$J46, FALSE ) -> 1.219598073e-26 | E41: =_xlfn.POISSON.DIST( 'synthetic-data'!N46, 'synthetic-data'!$J46, FALSE ) -> 7.206264251e-30 | F41: =_xlfn.POISSON.DIST( 'synthetic-data'!O46, 'synthetic-data'!$J46, FALSE ) -> 4.755926334e-35 | G41: =_xlfn.POISSON.DIST( 'synthetic-data'!P46, 'synthetic-data'!$J46, FALSE ) -> 2.814606761e-40 | H41: =_xlfn.POISSON.DIST( 'synthetic-data'!Q46, 'synthetic-data'!$J46, FALSE ) -> 2.99053939e-43 | I41: =_xlfn.POISSON.DIST( 'synthetic-data'!R46, 'synthetic-data'!$J46, FALSE ) -> 2.104276931e-45 | J41: =_xlfn.POISSON.DIST( 'synthetic-data'!S46, 'synthetic-data'!$J46, FALSE ) -> 2.104276931e-45 | K41: =_xlfn.POISSON.DIST( 'synthetic-data'!T46, 'synthetic-data'!$J46, FALSE ) -> 2.104276931e-45 | L41: =_xlfn.POISSON.DIST( 'synthetic-data'!U46, 'synthetic-data'!$J46, FALSE ) -> 2.62011583e-44 | M41: =_xlfn.POISSON.DIST( 'synthetic-data'!V46, 'synthetic-data'!$J46, FALSE ) -> 2.99053939e-43 | N41: =_xlfn.POISSON.DIST( 'synthetic-data'!W46, 'synthetic-data'!$J46, FALSE ) -> 3.150768225e-42 | O41: =_xlfn.POISSON.DIST( 'synthetic-data'!X46, 'synthetic-data'!$J46, FALSE ) -> 3.082468899e-41 | P41: =_xlfn.POISSON.DIST( 'synthetic-data'!Y46, 'synthetic-data'!$J46, FALSE ) -> 3.082468899e-41 | Q41: =_xlfn.POISSON.DIST( 'synthetic-data'!Z46, 'synthetic-data'!$J46, FALSE ) -> 3.082468899e-41 | R41: =_xlfn.POISSON.DIST( 'synthetic-data'!AA46, 'synthetic-data'!$J46, FALSE ) -> 3.082468899e-41 | S41: =_xlfn.POISSON.DIST( 'synthetic-data'!AB46, 'synthetic-data'!$J46, FALSE ) -> 3.150768225e-42 | T41: =_xlfn.POISSON.DIST( 'synthetic-data'!AC46, 'synthetic-data'!$J46, FALSE ) -> 3.150768225e-42 | U41: =_xlfn.POISSON.DIST( 'synthetic-data'!AD46, 'synthetic-data'!$J46, FALSE ) -> 3.150768225e-42 | V41: =_xlfn.POISSON.DIST( 'synthetic-data'!AE46, 'synthetic-data'!$J46, FALSE ) -> 2.99053939e-43 | W41: =_xlfn.POISSON.DIST( 'synthetic-data'!AF46, 'synthetic-data'!$J46, FALSE ) -> 2.99053939e-43 | X41: =_xlfn.POISSON.DIST( 'synthetic-data'!AG46, 'synthetic-data'!$J46, FALSE ) -> 2.99053939e-43 | Y41: =_xlfn.POISSON.DIST( 'synthetic-data'!AH46, 'synthetic-data'!$J46, FALSE ) -> 2.99053939e-43 | Z41: =_xlfn.POISSON.DIST( 'synthetic-data'!AI46, 'synthetic-data'!$J46, FALSE ) -> 2.99053939e-43
B42: ='synthetic-data'!J47 -> 54.77821525 | C42: =_xlfn.POISSON.DIST( 'synthetic-data'!L47, 'synthetic-data'!$J47, FALSE ) -> 2.552719854e-05 | D42: =_xlfn.POISSON.DIST( 'synthetic-data'!M47, 'synthetic-data'!$J47, FALSE ) -> 3.052633493e-06 | E42: =_xlfn.POISSON.DIST( 'synthetic-data'!N47, 'synthetic-data'!$J47, FALSE ) -> 3.945993228e-08 | F42: =_xlfn.POISSON.DIST( 'synthetic-data'!O47, 'synthetic-data'!$J47, FALSE ) -> 5.096005004e-10 | G42: =_xlfn.POISSON.DIST( 'synthetic-data'!P47, 'synthetic-data'!$J47, FALSE ) -> 4.075916993e-11 | H42: =_xlfn.POISSON.DIST( 'synthetic-data'!Q47, 'synthetic-data'!$J47, FALSE ) -> 2.472184974e-12 | I42: =_xlfn.POISSON.DIST( 'synthetic-data'!R47, 'synthetic-data'!$J47, FALSE ) -> 5.415696651e-13 | J42: =_xlfn.POISSON.DIST( 'synthetic-data'!S47, 'synthetic-data'!$J47, FALSE ) -> 1.087524719e-13 | K42: =_xlfn.POISSON.DIST( 'synthetic-data'!T47, 'synthetic-data'!$J47, FALSE ) -> 1.087524719e-13 | L42: =_xlfn.POISSON.DIST( 'synthetic-data'!U47, 'synthetic-data'!$J47, FALSE ) -> 1.087524719e-13 | M42: =_xlfn.POISSON.DIST( 'synthetic-data'!V47, 'synthetic-data'!$J47, FALSE ) -> 1.087524719e-13 | N42: =_xlfn.POISSON.DIST( 'synthetic-data'!W47, 'synthetic-data'!$J47, FALSE ) -> 1.087524719e-13 | O42: =_xlfn.POISSON.DIST( 'synthetic-data'!X47, 'synthetic-data'!$J47, FALSE ) -> 1.985323388e-14 | P42: =_xlfn.POISSON.DIST( 'synthetic-data'!Y47, 'synthetic-data'!$J47, FALSE ) -> 1.985323388e-14 | Q42: =_xlfn.POISSON.DIST( 'synthetic-data'!Z47, 'synthetic-data'!$J47, FALSE ) -> 1.985323388e-14 | R42: =_xlfn.POISSON.DIST( 'synthetic-data'!AA47, 'synthetic-data'!$J47, FALSE ) -> 1.985323388e-14 | S42: =_xlfn.POISSON.DIST( 'synthetic-data'!AB47, 'synthetic-data'!$J47, FALSE ) -> 1.985323388e-14 | T42: =_xlfn.POISSON.DIST( 'synthetic-data'!AC47, 'synthetic-data'!$J47, FALSE ) -> 1.985323388e-14 | U42: =_xlfn.POISSON.DIST( 'synthetic-data'!AD47, 'synthetic-data'!$J47, FALSE ) -> 1.985323388e-14 | V42: =_xlfn.POISSON.DIST( 'synthetic-data'!AE47, 'synthetic-data'!$J47, FALSE ) -> 1.985323388e-14 | W42: =_xlfn.POISSON.DIST( 'synthetic-data'!AF47, 'synthetic-data'!$J47, FALSE ) -> 1.985323388e-14 | X42: =_xlfn.POISSON.DIST( 'synthetic-data'!AG47, 'synthetic-data'!$J47, FALSE ) -> 1.985323388e-14 | Y42: =_xlfn.POISSON.DIST( 'synthetic-data'!AH47, 'synthetic-data'!$J47, FALSE ) -> 1.985323388e-14 | Z42: =_xlfn.POISSON.DIST( 'synthetic-data'!AI47, 'synthetic-data'!$J47, FALSE ) -> 1.985323388e-14
B43: ='synthetic-data'!J48 -> 144.3295606 | C43: =_xlfn.POISSON.DIST( 'synthetic-data'!L48, 'synthetic-data'!$J48, FALSE ) -> 4.35017883e-29 | D43: =_xlfn.POISSON.DIST( 'synthetic-data'!M48, 'synthetic-data'!$J48, FALSE ) -> 4.35017883e-29 | E43: =_xlfn.POISSON.DIST( 'synthetic-data'!N48, 'synthetic-data'!$J48, FALSE ) -> 1.978224278e-32 | F43: =_xlfn.POISSON.DIST( 'synthetic-data'!O48, 'synthetic-data'!$J48, FALSE ) -> 9.048683781e-38 | G43: =_xlfn.POISSON.DIST( 'synthetic-data'!P48, 'synthetic-data'!$J48, FALSE ) -> 3.911091485e-43 | H43: =_xlfn.POISSON.DIST( 'synthetic-data'!Q48, 'synthetic-data'!$J48, FALSE ) -> 3.551360444e-46 | I43: =_xlfn.POISSON.DIST( 'synthetic-data'!R48, 'synthetic-data'!$J48, FALSE ) -> 2.250391637e-48 | J43: =_xlfn.POISSON.DIST( 'synthetic-data'!S48, 'synthetic-data'!$J48, FALSE ) -> 2.250391637e-48 | K43: =_xlfn.POISSON.DIST( 'synthetic-data'!T48, 'synthetic-data'!$J48, FALSE ) -> 2.250391637e-48 | L43: =_xlfn.POISSON.DIST( 'synthetic-data'!U48, 'synthetic-data'!$J48, FALSE ) -> 2.95270942e-47 | M43: =_xlfn.POISSON.DIST( 'synthetic-data'!V48, 'synthetic-data'!$J48, FALSE ) -> 3.551360444e-46 | N43: =_xlfn.POISSON.DIST( 'synthetic-data'!W48, 'synthetic-data'!$J48, FALSE ) -> 3.942817635e-45 | O43: =_xlfn.POISSON.DIST( 'synthetic-data'!X48, 'synthetic-data'!$J48, FALSE ) -> 4.064750978e-44 | P43: =_xlfn.POISSON.DIST( 'synthetic-data'!Y48, 'synthetic-data'!$J48, FALSE ) -> 4.064750978e-44 | Q43: =_xlfn.POISSON.DIST( 'synthetic-data'!Z48, 'synthetic-data'!$J48, FALSE ) -> 4.064750978e-44 | R43: =_xlfn.POISSON.DIST( 'synthetic-data'!AA48, 'synthetic-data'!$J48, FALSE ) -> 4.064750978e-44 | S43: =_xlfn.POISSON.DIST( 'synthetic-data'!AB48, 'synthetic-data'!$J48, FALSE ) -> 3.942817635e-45 | T43: =_xlfn.POISSON.DIST( 'synthetic-data'!AC48, 'synthetic-data'!$J48, FALSE ) -> 3.942817635e-45 | U43: =_xlfn.POISSON.DIST( 'synthetic-data'!AD48, 'synthetic-data'!$J48, FALSE ) -> 3.942817635e-45 | V43: =_xlfn.POISSON.DIST( 'synthetic-data'!AE48, 'synthetic-data'!$J48, FALSE ) -> 3.551360444e-46 | W43: =_xlfn.POISSON.DIST( 'synthetic-data'!AF48, 'synthetic-data'!$J48, FALSE ) -> 3.551360444e-46 | X43: =_xlfn.POISSON.DIST( 'synthetic-data'!AG48, 'synthetic-data'!$J48, FALSE ) -> 3.551360444e-46 | Y43: =_xlfn.POISSON.DIST( 'synthetic-data'!AH48, 'synthetic-data'!$J48, FALSE ) -> 3.551360444e-46 | Z43: =_xlfn.POISSON.DIST( 'synthetic-data'!AI48, 'synthetic-data'!$J48, FALSE ) -> 3.551360444e-46
B44: ='synthetic-data'!J49 -> 68.82289861 | C44: =_xlfn.POISSON.DIST( 'synthetic-data'!L49, 'synthetic-data'!$J49, FALSE ) -> 2.872843178e-08 | D44: =_xlfn.POISSON.DIST( 'synthetic-data'!M49, 'synthetic-data'!$J49, FALSE ) -> 1.932114382e-09 | E44: =_xlfn.POISSON.DIST( 'synthetic-data'!N49, 'synthetic-data'!$J49, FALSE ) -> 9.877411551e-12 | F44: =_xlfn.POISSON.DIST( 'synthetic-data'!O49, 'synthetic-data'!$J49, FALSE ) -> 6.323924939e-14 | G44: =_xlfn.POISSON.DIST( 'synthetic-data'!P49, 'synthetic-data'!$J49, FALSE ) -> 7.914946617e-16 | H44: =_xlfn.POISSON.DIST( 'synthetic-data'!Q49, 'synthetic-data'!$J49, FALSE ) -> 3.041259359e-17 | I44: =_xlfn.POISSON.DIST( 'synthetic-data'!R49, 'synthetic-data'!$J49, FALSE ) -> 5.302757228e-18 | J44: =_xlfn.POISSON.DIST( 'synthetic-data'!S49, 'synthetic-data'!$J49, FALSE ) -> 8.475424704e-19 | K44: =_xlfn.POISSON.DIST( 'synthetic-data'!T49, 'synthetic-data'!$J49, FALSE ) -> 8.475424704e-19 | L44: =_xlfn.POISSON.DIST( 'synthetic-data'!U49, 'synthetic-data'!$J49, FALSE ) -> 8.475424704e-19 | M44: =_xlfn.POISSON.DIST( 'synthetic-data'!V49, 'synthetic-data'!$J49, FALSE ) -> 8.475424704e-19 | N44: =_xlfn.POISSON.DIST( 'synthetic-data'!W49, 'synthetic-data'!$J49, FALSE ) -> 8.475424704e-19 | O44: =_xlfn.POISSON.DIST( 'synthetic-data'!X49, 'synthetic-data'!$J49, FALSE ) -> 8.475424704e-19 | P44: =_xlfn.POISSON.DIST( 'synthetic-data'!Y49, 'synthetic-data'!$J49, FALSE ) -> 1.231483253e-19 | Q44: =_xlfn.POISSON.DIST( 'synthetic-data'!Z49, 'synthetic-data'!$J49, FALSE ) -> 1.231483253e-19 | R44: =_xlfn.POISSON.DIST( 'synthetic-data'!AA49, 'synthetic-data'!$J49, FALSE ) -> 1.231483253e-19 | S44: =_xlfn.POISSON.DIST( 'synthetic-data'!AB49, 'synthetic-data'!$J49, FALSE ) -> 1.231483253e-19 | T44: =_xlfn.POISSON.DIST( 'synthetic-data'!AC49, 'synthetic-data'!$J49, FALSE ) -> 1.231483253e-19 | U44: =_xlfn.POISSON.DIST( 'synthetic-data'!AD49, 'synthetic-data'!$J49, FALSE ) -> 1.231483253e-19 | V44: =_xlfn.POISSON.DIST( 'synthetic-data'!AE49, 'synthetic-data'!$J49, FALSE ) -> 1.231483253e-19 | W44: =_xlfn.POISSON.DIST( 'synthetic-data'!AF49, 'synthetic-data'!$J49, FALSE ) -> 1.231483253e-19 | X44: =_xlfn.POISSON.DIST( 'synthetic-data'!AG49, 'synthetic-data'!$J49, FALSE ) -> 1.231483253e-19 | Y44: =_xlfn.POISSON.DIST( 'synthetic-data'!AH49, 'synthetic-data'!$J49, FALSE ) -> 1.231483253e-19 | Z44: =_xlfn.POISSON.DIST( 'synthetic-data'!AI49, 'synthetic-data'!$J49, FALSE ) -> 1.231483253e-19
B45: ='synthetic-data'!J50 -> 128.3903226 | C45: =_xlfn.POISSON.DIST( 'synthetic-data'!L50, 'synthetic-data'!$J50, FALSE ) -> 1.966314063e-24 | D45: =_xlfn.POISSON.DIST( 'synthetic-data'!M50, 'synthetic-data'!$J50, FALSE ) -> 4.900840555e-25 | E45: =_xlfn.POISSON.DIST( 'synthetic-data'!N50, 'synthetic-data'!$J50, FALSE ) -> 2.864256214e-28 | F45: =_xlfn.POISSON.DIST( 'synthetic-data'!O50, 'synthetic-data'!$J50, FALSE ) -> 1.060016273e-32 | G45: =_xlfn.POISSON.DIST( 'synthetic-data'!P50, 'synthetic-data'!$J50, FALSE ) -> 5.652962271e-37 | H45: =_xlfn.POISSON.DIST( 'synthetic-data'!Q50, 'synthetic-data'!$J50, FALSE ) -> 7.29191946e-40 | I45: =_xlfn.POISSON.DIST( 'synthetic-data'!R50, 'synthetic-data'!$J50, FALSE ) -> 6.815391668e-41 | J45: =_xlfn.POISSON.DIST( 'synthetic-data'!S50, 'synthetic-data'!$J50, FALSE ) -> 5.839171271e-42 | K45: =_xlfn.POISSON.DIST( 'synthetic-data'!T50, 'synthetic-data'!$J50, FALSE ) -> 5.839171271e-42 | L45: =_xlfn.POISSON.DIST( 'synthetic-data'!U50, 'synthetic-data'!$J50, FALSE ) -> 6.815391668e-41 | M45: =_xlfn.POISSON.DIST( 'synthetic-data'!V50, 'synthetic-data'!$J50, FALSE ) -> 6.815391668e-41 | N45: =_xlfn.POISSON.DIST( 'synthetic-data'!W50, 'synthetic-data'!$J50, FALSE ) -> 6.815391668e-41 | O45: =_xlfn.POISSON.DIST( 'synthetic-data'!X50, 'synthetic-data'!$J50, FALSE ) -> 7.29191946e-40 | P45: =_xlfn.POISSON.DIST( 'synthetic-data'!Y50, 'synthetic-data'!$J50, FALSE ) -> 7.29191946e-40 | Q45: =_xlfn.POISSON.DIST( 'synthetic-data'!Z50, 'synthetic-data'!$J50, FALSE ) -> 7.29191946e-40 | R45: =_xlfn.POISSON.DIST( 'synthetic-data'!AA50, 'synthetic-data'!$J50, FALSE ) -> 6.815391668e-41 | S45: =_xlfn.POISSON.DIST( 'synthetic-data'!AB50, 'synthetic-data'!$J50, FALSE ) -> 6.815391668e-41 | T45: =_xlfn.POISSON.DIST( 'synthetic-data'!AC50, 'synthetic-data'!$J50, FALSE ) -> 6.815391668e-41 | U45: =_xlfn.POISSON.DIST( 'synthetic-data'!AD50, 'synthetic-data'!$J50, FALSE ) -> 6.815391668e-41 | V45: =_xlfn.POISSON.DIST( 'synthetic-data'!AE50, 'synthetic-data'!$J50, FALSE ) -> 6.815391668e-41 | W45: =_xlfn.POISSON.DIST( 'synthetic-data'!AF50, 'synthetic-data'!$J50, FALSE ) -> 6.815391668e-41 | X45: =_xlfn.POISSON.DIST( 'synthetic-data'!AG50, 'synthetic-data'!$J50, FALSE ) -> 6.815391668e-41 | Y45: =_xlfn.POISSON.DIST( 'synthetic-data'!AH50, 'synthetic-data'!$J50, FALSE ) -> 6.815391668e-41 | Z45: =_xlfn.POISSON.DIST( 'synthetic-data'!AI50, 'synthetic-data'!$J50, FALSE ) -> 6.815391668e-41
B46: ='synthetic-data'!J51 -> 167.8047288 | C46: =_xlfn.POISSON.DIST( 'synthetic-data'!L51, 'synthetic-data'!$J51, FALSE ) -> 1.979293825e-36 | D46: =_xlfn.POISSON.DIST( 'synthetic-data'!M51, 'synthetic-data'!$J51, FALSE ) -> 9.489567529e-36 | E46: =_xlfn.POISSON.DIST( 'synthetic-data'!N51, 'synthetic-data'!$J51, FALSE ) -> 2.778420774e-39 | F46: =_xlfn.POISSON.DIST( 'synthetic-data'!O51, 'synthetic-data'!$J51, FALSE ) -> 1.042936669e-45 | G46: =_xlfn.POISSON.DIST( 'synthetic-data'!P51, 'synthetic-data'!$J51, FALSE ) -> 2.39274023e-52 | H46: =_xlfn.POISSON.DIST( 'synthetic-data'!Q51, 'synthetic-data'!$J51, FALSE ) -> 1.38243784e-55 | I46: =_xlfn.POISSON.DIST( 'synthetic-data'!R51, 'synthetic-data'!$J51, FALSE ) -> 6.480539368e-58 | J46: =_xlfn.POISSON.DIST( 'synthetic-data'!S51, 'synthetic-data'!$J51, FALSE ) -> 6.480539368e-58 | K46: =_xlfn.POISSON.DIST( 'synthetic-data'!T51, 'synthetic-data'!$J51, FALSE ) -> 6.480539368e-58 | L46: =_xlfn.POISSON.DIST( 'synthetic-data'!U51, 'synthetic-data'!$J51, FALSE ) -> 1.38243784e-55 | M46: =_xlfn.POISSON.DIST( 'synthetic-data'!V51, 'synthetic-data'!$J51, FALSE ) -> 1.784458514e-54 | N46: =_xlfn.POISSON.DIST( 'synthetic-data'!W51, 'synthetic-data'!$J51, FALSE ) -> 2.39274023e-52 | O46: =_xlfn.POISSON.DIST( 'synthetic-data'!X51, 'synthetic-data'!$J51, FALSE ) -> 2.477051512e-50 | P46: =_xlfn.POISSON.DIST( 'synthetic-data'!Y51, 'synthetic-data'!$J51, FALSE ) -> 2.30922754e-49 | Q46: =_xlfn.POISSON.DIST( 'synthetic-data'!Z51, 'synthetic-data'!$J51, FALSE ) -> 2.30922754e-49 | R46: =_xlfn.POISSON.DIST( 'synthetic-data'!AA51, 'synthetic-data'!$J51, FALSE ) -> 2.30922754e-49 | S46: =_xlfn.POISSON.DIST( 'synthetic-data'!AB51, 'synthetic-data'!$J51, FALSE ) -> 2.477051512e-50 | T46: =_xlfn.POISSON.DIST( 'synthetic-data'!AC51, 'synthetic-data'!$J51, FALSE ) -> 2.509457034e-51 | U46: =_xlfn.POISSON.DIST( 'synthetic-data'!AD51, 'synthetic-data'!$J51, FALSE ) -> 2.39274023e-52 | V46: =_xlfn.POISSON.DIST( 'synthetic-data'!AE51, 'synthetic-data'!$J51, FALSE ) -> 2.138861264e-53 | W46: =_xlfn.POISSON.DIST( 'synthetic-data'!AF51, 'synthetic-data'!$J51, FALSE ) -> 1.784458514e-54 | X46: =_xlfn.POISSON.DIST( 'synthetic-data'!AG51, 'synthetic-data'!$J51, FALSE ) -> 1.784458514e-54 | Y46: =_xlfn.POISSON.DIST( 'synthetic-data'!AH51, 'synthetic-data'!$J51, FALSE ) -> 1.38243784e-55 | Z46: =_xlfn.POISSON.DIST( 'synthetic-data'!AI51, 'synthetic-data'!$J51, FALSE ) -> 1.38243784e-55
B47: ='synthetic-data'!J52 -> 157.7412258 | C47: =_xlfn.POISSON.DIST( 'synthetic-data'!L52, 'synthetic-data'!$J52, FALSE ) -> 5.673207257e-33 | D47: =_xlfn.POISSON.DIST( 'synthetic-data'!M52, 'synthetic-data'!$J52, FALSE ) -> 5.673207257e-33 | E47: =_xlfn.POISSON.DIST( 'synthetic-data'!N52, 'synthetic-data'!$J52, FALSE ) -> 3.565998558e-37 | F47: =_xlfn.POISSON.DIST( 'synthetic-data'!O52, 'synthetic-data'!$J52, FALSE ) -> 8.757125913e-43 | G47: =_xlfn.POISSON.DIST( 'synthetic-data'!P52, 'synthetic-data'!$J52, FALSE ) -> 2.220928751e-48 | H47: =_xlfn.POISSON.DIST( 'synthetic-data'!Q52, 'synthetic-data'!$J52, FALSE ) -> 1.544762219e-51 | I47: =_xlfn.POISSON.DIST( 'synthetic-data'!R52, 'synthetic-data'!$J52, FALSE ) -> 8.194928103e-54 | J47: =_xlfn.POISSON.DIST( 'synthetic-data'!S52, 'synthetic-data'!$J52, FALSE ) -> 8.194928103e-54 | K47: =_xlfn.POISSON.DIST( 'synthetic-data'!T52, 'synthetic-data'!$J52, FALSE ) -> 8.194928103e-54 | L47: =_xlfn.POISSON.DIST( 'synthetic-data'!U52, 'synthetic-data'!$J52, FALSE ) -> 1.175161822e-52 | M47: =_xlfn.POISSON.DIST( 'synthetic-data'!V52, 'synthetic-data'!$J52, FALSE ) -> 1.544762219e-51 | N47: =_xlfn.POISSON.DIST( 'synthetic-data'!W52, 'synthetic-data'!$J52, FALSE ) -> 1.874405277e-50 | O47: =_xlfn.POISSON.DIST( 'synthetic-data'!X52, 'synthetic-data'!$J52, FALSE ) -> 2.111935615e-49 | P47: =_xlfn.POISSON.DIST( 'synthetic-data'!Y52, 'synthetic-data'!$J52, FALSE ) -> 2.220928751e-48 | Q47: =_xlfn.POISSON.DIST( 'synthetic-data'!Z52, 'synthetic-data'!$J52, FALSE ) -> 2.111935615e-49 | R47: =_xlfn.POISSON.DIST( 'synthetic-data'!AA52, 'synthetic-data'!$J52, FALSE ) -> 2.111935615e-49 | S47: =_xlfn.POISSON.DIST( 'synthetic-data'!AB52, 'synthetic-data'!$J52, FALSE ) -> 2.111935615e-49 | T47: =_xlfn.POISSON.DIST( 'synthetic-data'!AC52, 'synthetic-data'!$J52, FALSE ) -> 1.874405277e-50 | U47: =_xlfn.POISSON.DIST( 'synthetic-data'!AD52, 'synthetic-data'!$J52, FALSE ) -> 1.874405277e-50 | V47: =_xlfn.POISSON.DIST( 'synthetic-data'!AE52, 'synthetic-data'!$J52, FALSE ) -> 1.874405277e-50 | W47: =_xlfn.POISSON.DIST( 'synthetic-data'!AF52, 'synthetic-data'!$J52, FALSE ) -> 1.544762219e-51 | X47: =_xlfn.POISSON.DIST( 'synthetic-data'!AG52, 'synthetic-data'!$J52, FALSE ) -> 1.544762219e-51 | Y47: =_xlfn.POISSON.DIST( 'synthetic-data'!AH52, 'synthetic-data'!$J52, FALSE ) -> 1.544762219e-51 | Z47: =_xlfn.POISSON.DIST( 'synthetic-data'!AI52, 'synthetic-data'!$J52, FALSE ) -> 1.544762219e-51
B48: ='synthetic-data'!J53 -> 169.3505509 | C48: =_xlfn.POISSON.DIST( 'synthetic-data'!L53, 'synthetic-data'!$J53, FALSE ) -> 5.761963431e-37 | D48: =_xlfn.POISSON.DIST( 'synthetic-data'!M53, 'synthetic-data'!$J53, FALSE ) -> 2.787976233e-36 | E48: =_xlfn.POISSON.DIST( 'synthetic-data'!N53, 'synthetic-data'!$J53, FALSE ) -> 7.797018626e-40 | F48: =_xlfn.POISSON.DIST( 'synthetic-data'!O53, 'synthetic-data'!$J53, FALSE ) -> 2.719750993e-46 | G48: =_xlfn.POISSON.DIST( 'synthetic-data'!P53, 'synthetic-data'!$J53, FALSE ) -> 5.851804774e-53 | H48: =_xlfn.POISSON.DIST( 'synthetic-data'!Q53, 'synthetic-data'!$J53, FALSE ) -> 3.289217821e-56 | I48: =_xlfn.POISSON.DIST( 'synthetic-data'!R53, 'synthetic-data'!$J53, FALSE ) -> 1.513886577e-58 | J48: =_xlfn.POISSON.DIST( 'synthetic-data'!S53, 'synthetic-data'!$J53, FALSE ) -> 1.513886577e-58 | K48: =_xlfn.POISSON.DIST( 'synthetic-data'!T53, 'synthetic-data'!$J53, FALSE ) -> 1.513886577e-58 | L48: =_xlfn.POISSON.DIST( 'synthetic-data'!U53, 'synthetic-data'!$J53, FALSE ) -> 3.289217821e-56 | M48: =_xlfn.POISSON.DIST( 'synthetic-data'!V53, 'synthetic-data'!$J53, FALSE ) -> 4.284852693e-55 | N48: =_xlfn.POISSON.DIST( 'synthetic-data'!W53, 'synthetic-data'!$J53, FALSE ) -> 5.851804774e-53 | O48: =_xlfn.POISSON.DIST( 'synthetic-data'!X53, 'synthetic-data'!$J53, FALSE ) -> 6.170127699e-51 | P48: =_xlfn.POISSON.DIST( 'synthetic-data'!Y53, 'synthetic-data'!$J53, FALSE ) -> 5.805080694e-50 | Q48: =_xlfn.POISSON.DIST( 'synthetic-data'!Z53, 'synthetic-data'!$J53, FALSE ) -> 5.805080694e-50 | R48: =_xlfn.POISSON.DIST( 'synthetic-data'!AA53, 'synthetic-data'!$J53, FALSE ) -> 5.805080694e-50 | S48: =_xlfn.POISSON.DIST( 'synthetic-data'!AB53, 'synthetic-data'!$J53, FALSE ) -> 6.170127699e-51 | T48: =_xlfn.POISSON.DIST( 'synthetic-data'!AC53, 'synthetic-data'!$J53, FALSE ) -> 6.193789765e-52 | U48: =_xlfn.POISSON.DIST( 'synthetic-data'!AD53, 'synthetic-data'!$J53, FALSE ) -> 5.851804774e-53 | V48: =_xlfn.POISSON.DIST( 'synthetic-data'!AE53, 'synthetic-data'!$J53, FALSE ) -> 5.183158315e-54 | W48: =_xlfn.POISSON.DIST( 'synthetic-data'!AF53, 'synthetic-data'!$J53, FALSE ) -> 4.284852693e-55 | X48: =_xlfn.POISSON.DIST( 'synthetic-data'!AG53, 'synthetic-data'!$J53, FALSE ) -> 4.284852693e-55 | Y48: =_xlfn.POISSON.DIST( 'synthetic-data'!AH53, 'synthetic-data'!$J53, FALSE ) -> 3.289217821e-56 | Z48: =_xlfn.POISSON.DIST( 'synthetic-data'!AI53, 'synthetic-data'!$J53, FALSE ) -> 3.289217821e-56
B49: ='synthetic-data'!J54 -> 119.7053922 | C49: =_xlfn.POISSON.DIST( 'synthetic-data'!L54, 'synthetic-data'!$J54, FALSE ) -> 4.484103109e-21 | D49: =_xlfn.POISSON.DIST( 'synthetic-data'!M54, 'synthetic-data'!$J54, FALSE ) -> 1.236163216e-21 | E49: =_xlfn.POISSON.DIST( 'synthetic-data'!N54, 'synthetic-data'!$J54, FALSE ) -> 1.215335554e-24 | F49: =_xlfn.POISSON.DIST( 'synthetic-data'!O54, 'synthetic-data'!$J54, FALSE ) -> 1.544394977e-29 | G49: =_xlfn.POISSON.DIST( 'synthetic-data'!P54, 'synthetic-data'!$J54, FALSE ) -> 1.169000823e-33 | H49: =_xlfn.POISSON.DIST( 'synthetic-data'!Q54, 'synthetic-data'!$J54, FALSE ) -> 1.860528481e-36 | I49: =_xlfn.POISSON.DIST( 'synthetic-data'!R54, 'synthetic-data'!$J54, FALSE ) -> 1.865107441e-37 | J49: =_xlfn.POISSON.DIST( 'synthetic-data'!S54, 'synthetic-data'!$J54, FALSE ) -> 1.713889532e-38 | K49: =_xlfn.POISSON.DIST( 'synthetic-data'!T54, 'synthetic-data'!$J54, FALSE ) -> 1.713889532e-38 | L49: =_xlfn.POISSON.DIST( 'synthetic-data'!U54, 'synthetic-data'!$J54, FALSE ) -> 1.865107441e-37 | M49: =_xlfn.POISSON.DIST( 'synthetic-data'!V54, 'synthetic-data'!$J54, FALSE ) -> 1.865107441e-37 | N49: =_xlfn.POISSON.DIST( 'synthetic-data'!W54, 'synthetic-data'!$J54, FALSE ) -> 1.860528481e-36 | O49: =_xlfn.POISSON.DIST( 'synthetic-data'!X54, 'synthetic-data'!$J54, FALSE ) -> 1.860528481e-36 | P49: =_xlfn.POISSON.DIST( 'synthetic-data'!Y54, 'synthetic-data'!$J54, FALSE ) -> 1.860528481e-36 | Q49: =_xlfn.POISSON.DIST( 'synthetic-data'!Z54, 'synthetic-data'!$J54, FALSE ) -> 1.860528481e-36 | R49: =_xlfn.POISSON.DIST( 'synthetic-data'!AA54, 'synthetic-data'!$J54, FALSE ) -> 1.860528481e-36 | S49: =_xlfn.POISSON.DIST( 'synthetic-data'!AB54, 'synthetic-data'!$J54, FALSE ) -> 1.860528481e-36 | T49: =_xlfn.POISSON.DIST( 'synthetic-data'!AC54, 'synthetic-data'!$J54, FALSE ) -> 1.860528481e-36 | U49: =_xlfn.POISSON.DIST( 'synthetic-data'!AD54, 'synthetic-data'!$J54, FALSE ) -> 1.865107441e-37 | V49: =_xlfn.POISSON.DIST( 'synthetic-data'!AE54, 'synthetic-data'!$J54, FALSE ) -> 1.865107441e-37 | W49: =_xlfn.POISSON.DIST( 'synthetic-data'!AF54, 'synthetic-data'!$J54, FALSE ) -> 1.865107441e-37 | X49: =_xlfn.POISSON.DIST( 'synthetic-data'!AG54, 'synthetic-data'!$J54, FALSE ) -> 1.865107441e-37 | Y49: =_xlfn.POISSON.DIST( 'synthetic-data'!AH54, 'synthetic-data'!$J54, FALSE ) -> 1.865107441e-37 | Z49: =_xlfn.POISSON.DIST( 'synthetic-data'!AI54, 'synthetic-data'!$J54, FALSE ) -> 1.865107441e-37
B50: ='synthetic-data'!J55 -> 117.5470001 | C50: =_xlfn.POISSON.DIST( 'synthetic-data'!L55, 'synthetic-data'!$J55, FALSE ) -> 2.129521155e-20 | D50: =_xlfn.POISSON.DIST( 'synthetic-data'!M55, 'synthetic-data'!$J55, FALSE ) -> 5.978391458e-21 | E50: =_xlfn.POISSON.DIST( 'synthetic-data'!N55, 'synthetic-data'!$J55, FALSE ) -> 6.43747499e-24 | F50: =_xlfn.POISSON.DIST( 'synthetic-data'!O55, 'synthetic-data'!$J55, FALSE ) -> 9.29165078e-29 | G50: =_xlfn.POISSON.DIST( 'synthetic-data'!P55, 'synthetic-data'!$J55, FALSE ) -> 7.703004197e-33 | H50: =_xlfn.POISSON.DIST( 'synthetic-data'!Q55, 'synthetic-data'!$J55, FALSE ) -> 1.294756594e-35 | I50: =_xlfn.POISSON.DIST( 'synthetic-data'!R55, 'synthetic-data'!$J55, FALSE ) -> 1.321775895e-36 | J50: =_xlfn.POISSON.DIST( 'synthetic-data'!S55, 'synthetic-data'!$J55, FALSE ) -> 1.236912455e-37 | K50: =_xlfn.POISSON.DIST( 'synthetic-data'!T55, 'synthetic-data'!$J55, FALSE ) -> 1.236912455e-37 | L50: =_xlfn.POISSON.DIST( 'synthetic-data'!U55, 'synthetic-data'!$J55, FALSE ) -> 1.321775895e-36 | M50: =_xlfn.POISSON.DIST( 'synthetic-data'!V55, 'synthetic-data'!$J55, FALSE ) -> 1.321775895e-36 | N50: =_xlfn.POISSON.DIST( 'synthetic-data'!W55, 'synthetic-data'!$J55, FALSE ) -> 1.294756594e-35 | O50: =_xlfn.POISSON.DIST( 'synthetic-data'!X55, 'synthetic-data'!$J55, FALSE ) -> 1.294756594e-35 | P50: =_xlfn.POISSON.DIST( 'synthetic-data'!Y55, 'synthetic-data'!$J55, FALSE ) -> 1.294756594e-35 | Q50: =_xlfn.POISSON.DIST( 'synthetic-data'!Z55, 'synthetic-data'!$J55, FALSE ) -> 1.294756594e-35 | R50: =_xlfn.POISSON.DIST( 'synthetic-data'!AA55, 'synthetic-data'!$J55, FALSE ) -> 1.294756594e-35 | S50: =_xlfn.POISSON.DIST( 'synthetic-data'!AB55, 'synthetic-data'!$J55, FALSE ) -> 1.321775895e-36 | T50: =_xlfn.POISSON.DIST( 'synthetic-data'!AC55, 'synthetic-data'!$J55, FALSE ) -> 1.321775895e-36 | U50: =_xlfn.POISSON.DIST( 'synthetic-data'!AD55, 'synthetic-data'!$J55, FALSE ) -> 1.321775895e-36 | V50: =_xlfn.POISSON.DIST( 'synthetic-data'!AE55, 'synthetic-data'!$J55, FALSE ) -> 1.321775895e-36 | W50: =_xlfn.POISSON.DIST( 'synthetic-data'!AF55, 'synthetic-data'!$J55, FALSE ) -> 1.321775895e-36 | X50: =_xlfn.POISSON.DIST( 'synthetic-data'!AG55, 'synthetic-data'!$J55, FALSE ) -> 1.321775895e-36 | Y50: =_xlfn.POISSON.DIST( 'synthetic-data'!AH55, 'synthetic-data'!$J55, FALSE ) -> 1.321775895e-36 | Z50: =_xlfn.POISSON.DIST( 'synthetic-data'!AI55, 'synthetic-data'!$J55, FALSE ) -> 1.321775895e-36
B51: ='synthetic-data'!J56 -> 148.6862607 | C51: =_xlfn.POISSON.DIST( 'synthetic-data'!L56, 'synthetic-data'!$J56, FALSE ) -> 6.507608133e-30 | D51: =_xlfn.POISSON.DIST( 'synthetic-data'!M56, 'synthetic-data'!$J56, FALSE ) -> 6.507608133e-30 | E51: =_xlfn.POISSON.DIST( 'synthetic-data'!N56, 'synthetic-data'!$J56, FALSE ) -> 2.990150031e-33 | F51: =_xlfn.POISSON.DIST( 'synthetic-data'!O56, 'synthetic-data'!$J56, FALSE ) -> 2.166312833e-39 | G51: =_xlfn.POISSON.DIST( 'synthetic-data'!P56, 'synthetic-data'!$J56, FALSE ) -> 7.833222022e-45 | H51: =_xlfn.POISSON.DIST( 'synthetic-data'!Q56, 'synthetic-data'!$J56, FALSE ) -> 6.505648053e-48 | I51: =_xlfn.POISSON.DIST( 'synthetic-data'!R56, 'synthetic-data'!$J56, FALSE ) -> 3.884389908e-50 | J51: =_xlfn.POISSON.DIST( 'synthetic-data'!S56, 'synthetic-data'!$J56, FALSE ) -> 3.884389908e-50 | K51: =_xlfn.POISSON.DIST( 'synthetic-data'!T56, 'synthetic-data'!$J56, FALSE ) -> 3.884389908e-50 | L51: =_xlfn.POISSON.DIST( 'synthetic-data'!U56, 'synthetic-data'!$J56, FALSE ) -> 5.25050373e-49 | M51: =_xlfn.POISSON.DIST( 'synthetic-data'!V56, 'synthetic-data'!$J56, FALSE ) -> 7.44077294e-47 | N51: =_xlfn.POISSON.DIST( 'synthetic-data'!W56, 'synthetic-data'!$J56, FALSE ) -> 7.902433607e-46 | O51: =_xlfn.POISSON.DIST( 'synthetic-data'!X56, 'synthetic-data'!$J56, FALSE ) -> 7.833222022e-45 | P51: =_xlfn.POISSON.DIST( 'synthetic-data'!Y56, 'synthetic-data'!$J56, FALSE ) -> 7.833222022e-45 | Q51: =_xlfn.POISSON.DIST( 'synthetic-data'!Z56, 'synthetic-data'!$J56, FALSE ) -> 7.833222022e-45 | R51: =_xlfn.POISSON.DIST( 'synthetic-data'!AA56, 'synthetic-data'!$J56, FALSE ) -> 7.833222022e-45 | S51: =_xlfn.POISSON.DIST( 'synthetic-data'!AB56, 'synthetic-data'!$J56, FALSE ) -> 7.833222022e-45 | T51: =_xlfn.POISSON.DIST( 'synthetic-data'!AC56, 'synthetic-data'!$J56, FALSE ) -> 7.902433607e-46 | U51: =_xlfn.POISSON.DIST( 'synthetic-data'!AD56, 'synthetic-data'!$J56, FALSE ) -> 7.902433607e-46 | V51: =_xlfn.POISSON.DIST( 'synthetic-data'!AE56, 'synthetic-data'!$J56, FALSE ) -> 7.44077294e-47 | W51: =_xlfn.POISSON.DIST( 'synthetic-data'!AF56, 'synthetic-data'!$J56, FALSE ) -> 7.44077294e-47 | X51: =_xlfn.POISSON.DIST( 'synthetic-data'!AG56, 'synthetic-data'!$J56, FALSE ) -> 6.505648053e-48 | Y51: =_xlfn.POISSON.DIST( 'synthetic-data'!AH56, 'synthetic-data'!$J56, FALSE ) -> 6.505648053e-48 | Z51: =_xlfn.POISSON.DIST( 'synthetic-data'!AI56, 'synthetic-data'!$J56, FALSE ) -> 6.505648053e-48
B52: ='synthetic-data'!J57 -> 181.1244633 | C52: =_xlfn.POISSON.DIST( 'synthetic-data'!L57, 'synthetic-data'!$J57, FALSE ) -> 2.257414453e-40 | D52: =_xlfn.POISSON.DIST( 'synthetic-data'!M57, 'synthetic-data'!$J57, FALSE ) -> 2.257414453e-40 | E52: =_xlfn.POISSON.DIST( 'synthetic-data'!N57, 'synthetic-data'!$J57, FALSE ) -> 4.511264765e-44 | F52: =_xlfn.POISSON.DIST( 'synthetic-data'!O57, 'synthetic-data'!$J57, FALSE ) -> 9.191256916e-51 | G52: =_xlfn.POISSON.DIST( 'synthetic-data'!P57, 'synthetic-data'!$J57, FALSE ) -> 1.235384379e-57 | H52: =_xlfn.POISSON.DIST( 'synthetic-data'!Q57, 'synthetic-data'!$J57, FALSE ) -> 5.675882779e-61 | I52: =_xlfn.POISSON.DIST( 'synthetic-data'!R57, 'synthetic-data'!$J57, FALSE ) -> 2.283774006e-63 | J52: =_xlfn.POISSON.DIST( 'synthetic-data'!S57, 'synthetic-data'!$J57, FALSE ) -> 2.283774006e-63 | K52: =_xlfn.POISSON.DIST( 'synthetic-data'!T57, 'synthetic-data'!$J57, FALSE ) -> 2.283774006e-63 | L52: =_xlfn.POISSON.DIST( 'synthetic-data'!U57, 'synthetic-data'!$J57, FALSE ) -> 5.675882779e-61 | M52: =_xlfn.POISSON.DIST( 'synthetic-data'!V57, 'synthetic-data'!$J57, FALSE ) -> 7.908009401e-60 | N52: =_xlfn.POISSON.DIST( 'synthetic-data'!W57, 'synthetic-data'!$J57, FALSE ) -> 1.235384379e-57 | O52: =_xlfn.POISSON.DIST( 'synthetic-data'!X57, 'synthetic-data'!$J57, FALSE ) -> 1.490003967e-55 | P52: =_xlfn.POISSON.DIST( 'synthetic-data'!Y57, 'synthetic-data'!$J57, FALSE ) -> 1.42927416e-53 | Q52: =_xlfn.POISSON.DIST( 'synthetic-data'!Z57, 'synthetic-data'!$J57, FALSE ) -> 1.42927416e-53 | R52: =_xlfn.POISSON.DIST( 'synthetic-data'!AA57, 'synthetic-data'!$J57, FALSE ) -> 1.49931205e-54 | S52: =_xlfn.POISSON.DIST( 'synthetic-data'!AB57, 'synthetic-data'!$J57, FALSE ) -> 1.490003967e-55 | T52: =_xlfn.POISSON.DIST( 'synthetic-data'!AC57, 'synthetic-data'!$J57, FALSE ) -> 1.398489579e-56 | U52: =_xlfn.POISSON.DIST( 'synthetic-data'!AD57, 'synthetic-data'!$J57, FALSE ) -> 1.235384379e-57 | V52: =_xlfn.POISSON.DIST( 'synthetic-data'!AE57, 'synthetic-data'!$J57, FALSE ) -> 1.023095685e-58 | W52: =_xlfn.POISSON.DIST( 'synthetic-data'!AF57, 'synthetic-data'!$J57, FALSE ) -> 7.908009401e-60 | X52: =_xlfn.POISSON.DIST( 'synthetic-data'!AG57, 'synthetic-data'!$J57, FALSE ) -> 7.908009401e-60 | Y52: =_xlfn.POISSON.DIST( 'synthetic-data'!AH57, 'synthetic-data'!$J57, FALSE ) -> 5.675882779e-61 | Z52: =_xlfn.POISSON.DIST( 'synthetic-data'!AI57, 'synthetic-data'!$J57, FALSE ) -> 5.675882779e-61
B53: ='synthetic-data'!J58 -> 70.03080093 | C53: =_xlfn.POISSON.DIST( 'synthetic-data'!L58, 'synthetic-data'!$J58, FALSE ) -> 3.31911513e-08 | D53: =_xlfn.POISSON.DIST( 'synthetic-data'!M58, 'synthetic-data'!$J58, FALSE ) -> 5.887940098e-09 | E53: =_xlfn.POISSON.DIST( 'synthetic-data'!N58, 'synthetic-data'!$J58, FALSE ) -> 4.122534608e-11 | F53: =_xlfn.POISSON.DIST( 'synthetic-data'!O58, 'synthetic-data'!$J58, FALSE ) -> 9.88262353e-14 | G53: =_xlfn.POISSON.DIST( 'synthetic-data'!P58, 'synthetic-data'!$J58, FALSE ) -> 3.017508808e-16 | H53: =_xlfn.POISSON.DIST( 'synthetic-data'!Q58, 'synthetic-data'!$J58, FALSE ) -> 1.119803312e-17 | I53: =_xlfn.POISSON.DIST( 'synthetic-data'!R58, 'synthetic-data'!$J58, FALSE ) -> 1.918818515e-18 | J53: =_xlfn.POISSON.DIST( 'synthetic-data'!S58, 'synthetic-data'!$J58, FALSE ) -> 3.013960056e-19 | K53: =_xlfn.POISSON.DIST( 'synthetic-data'!T58, 'synthetic-data'!$J58, FALSE ) -> 3.013960056e-19 | L53: =_xlfn.POISSON.DIST( 'synthetic-data'!U58, 'synthetic-data'!$J58, FALSE ) -> 3.013960056e-19 | M53: =_xlfn.POISSON.DIST( 'synthetic-data'!V58, 'synthetic-data'!$J58, FALSE ) -> 3.013960056e-19 | N53: =_xlfn.POISSON.DIST( 'synthetic-data'!W58, 'synthetic-data'!$J58, FALSE ) -> 3.013960056e-19 | O53: =_xlfn.POISSON.DIST( 'synthetic-data'!X58, 'synthetic-data'!$J58, FALSE ) -> 3.013960056e-19 | P53: =_xlfn.POISSON.DIST( 'synthetic-data'!Y58, 'synthetic-data'!$J58, FALSE ) -> 3.013960056e-19 | Q53: =_xlfn.POISSON.DIST( 'synthetic-data'!Z58, 'synthetic-data'!$J58, FALSE ) -> 3.013960056e-19 | R53: =_xlfn.POISSON.DIST( 'synthetic-data'!AA58, 'synthetic-data'!$J58, FALSE ) -> 3.013960056e-19 | S53: =_xlfn.POISSON.DIST( 'synthetic-data'!AB58, 'synthetic-data'!$J58, FALSE ) -> 3.013960056e-19 | T53: =_xlfn.POISSON.DIST( 'synthetic-data'!AC58, 'synthetic-data'!$J58, FALSE ) -> 3.013960056e-19 | U53: =_xlfn.POISSON.DIST( 'synthetic-data'!AD58, 'synthetic-data'!$J58, FALSE ) -> 4.303763509e-20 | V53: =_xlfn.POISSON.DIST( 'synthetic-data'!AE58, 'synthetic-data'!$J58, FALSE ) -> 4.303763509e-20 | W53: =_xlfn.POISSON.DIST( 'synthetic-data'!AF58, 'synthetic-data'!$J58, FALSE ) -> 4.303763509e-20 | X53: =_xlfn.POISSON.DIST( 'synthetic-data'!AG58, 'synthetic-data'!$J58, FALSE ) -> 4.303763509e-20 | Y53: =_xlfn.POISSON.DIST( 'synthetic-data'!AH58, 'synthetic-data'!$J58, FALSE ) -> 4.303763509e-20 | Z53: =_xlfn.POISSON.DIST( 'synthetic-data'!AI58, 'synthetic-data'!$J58, FALSE ) -> 4.303763509e-20
B54: ='synthetic-data'!J59 -> 82.79424796 | C54: =_xlfn.POISSON.DIST( 'synthetic-data'!L59, 'synthetic-data'!$J59, FALSE ) -> 1.442978544e-11 | D54: =_xlfn.POISSON.DIST( 'synthetic-data'!M59, 'synthetic-data'!$J59, FALSE ) -> 6.193507394e-13 | E54: =_xlfn.POISSON.DIST( 'synthetic-data'!N59, 'synthetic-data'!$J59, FALSE ) -> 5.551679166e-15 | F54: =_xlfn.POISSON.DIST( 'synthetic-data'!O59, 'synthetic-data'!$J59, FALSE ) -> 5.762048902e-18 | G54: =_xlfn.POISSON.DIST( 'synthetic-data'!P59, 'synthetic-data'!$J59, FALSE ) -> 9.005523113e-21 | H54: =_xlfn.POISSON.DIST( 'synthetic-data'!Q59, 'synthetic-data'!$J59, FALSE ) -> 2.391002344e-22 | I54: =_xlfn.POISSON.DIST( 'synthetic-data'!R59, 'synthetic-data'!$J59, FALSE ) -> 3.46546153e-23 | J54: =_xlfn.POISSON.DIST( 'synthetic-data'!S59, 'synthetic-data'!$J59, FALSE ) -> 4.604193863e-24 | K54: =_xlfn.POISSON.DIST( 'synthetic-data'!T59, 'synthetic-data'!$J59, FALSE ) -> 4.604193863e-24 | L54: =_xlfn.POISSON.DIST( 'synthetic-data'!U59, 'synthetic-data'!$J59, FALSE ) -> 4.604193863e-24 | M54: =_xlfn.POISSON.DIST( 'synthetic-data'!V59, 'synthetic-data'!$J59, FALSE ) -> 4.604193863e-24 | N54: =_xlfn.POISSON.DIST( 'synthetic-data'!W59, 'synthetic-data'!$J59, FALSE ) -> 4.604193863e-24 | O54: =_xlfn.POISSON.DIST( 'synthetic-data'!X59, 'synthetic-data'!$J59, FALSE ) -> 4.604193863e-24 | P54: =_xlfn.POISSON.DIST( 'synthetic-data'!Y59, 'synthetic-data'!$J59, FALSE ) -> 4.604193863e-24 | Q54: =_xlfn.POISSON.DIST( 'synthetic-data'!Z59, 'synthetic-data'!$J59, FALSE ) -> 4.604193863e-24 | R54: =_xlfn.POISSON.DIST( 'synthetic-data'!AA59, 'synthetic-data'!$J59, FALSE ) -> 4.604193863e-24 | S54: =_xlfn.POISSON.DIST( 'synthetic-data'!AB59, 'synthetic-data'!$J59, FALSE ) -> 5.561006925e-25 | T54: =_xlfn.POISSON.DIST( 'synthetic-data'!AC59, 'synthetic-data'!$J59, FALSE ) -> 5.561006925e-25 | U54: =_xlfn.POISSON.DIST( 'synthetic-data'!AD59, 'synthetic-data'!$J59, FALSE ) -> 5.561006925e-25 | V54: =_xlfn.POISSON.DIST( 'synthetic-data'!AE59, 'synthetic-data'!$J59, FALSE ) -> 5.561006925e-25 | W54: =_xlfn.POISSON.DIST( 'synthetic-data'!AF59, 'synthetic-data'!$J59, FALSE ) -> 5.561006925e-25 | X54: =_xlfn.POISSON.DIST( 'synthetic-data'!AG59, 'synthetic-data'!$J59, FALSE ) -> 5.561006925e-25 | Y54: =_xlfn.POISSON.DIST( 'synthetic-data'!AH59, 'synthetic-data'!$J59, FALSE ) -> 5.561006925e-25 | Z54: =_xlfn.POISSON.DIST( 'synthetic-data'!AI59, 'synthetic-data'!$J59, FALSE ) -> 5.561006925e-25
B55: ='synthetic-data'!J60 -> 105.0351727 | C55: =_xlfn.POISSON.DIST( 'synthetic-data'!L60, 'synthetic-data'!$J60, FALSE ) -> 4.429395426e-17 | D55: =_xlfn.POISSON.DIST( 'synthetic-data'!M60, 'synthetic-data'!$J60, FALSE ) -> 3.982782745e-18 | E55: =_xlfn.POISSON.DIST( 'synthetic-data'!N60, 'synthetic-data'!$J60, FALSE ) -> 5.327546424e-21 | F55: =_xlfn.POISSON.DIST( 'synthetic-data'!O60, 'synthetic-data'!$J60, FALSE ) -> 5.059059372e-25 | G55: =_xlfn.POISSON.DIST( 'synthetic-data'!P60, 'synthetic-data'!$J60, FALSE ) -> 3.866569049e-28 | H55: =_xlfn.POISSON.DIST( 'synthetic-data'!Q60, 'synthetic-data'!$J60, FALSE ) -> 9.109282171e-31 | I55: =_xlfn.POISSON.DIST( 'synthetic-data'!R60, 'synthetic-data'!$J60, FALSE ) -> 1.040712203e-31 | J55: =_xlfn.POISSON.DIST( 'synthetic-data'!S60, 'synthetic-data'!$J60, FALSE ) -> 1.089904833e-32 | K55: =_xlfn.POISSON.DIST( 'synthetic-data'!T60, 'synthetic-data'!$J60, FALSE ) -> 1.089904833e-32 | L55: =_xlfn.POISSON.DIST( 'synthetic-data'!U60, 'synthetic-data'!$J60, FALSE ) -> 1.089904833e-32 | M55: =_xlfn.POISSON.DIST( 'synthetic-data'!V60, 'synthetic-data'!$J60, FALSE ) -> 1.089904833e-32 | N55: =_xlfn.POISSON.DIST( 'synthetic-data'!W60, 'synthetic-data'!$J60, FALSE ) -> 1.040712203e-31 | O55: =_xlfn.POISSON.DIST( 'synthetic-data'!X60, 'synthetic-data'!$J60, FALSE ) -> 1.040712203e-31 | P55: =_xlfn.POISSON.DIST( 'synthetic-data'!Y60, 'synthetic-data'!$J60, FALSE ) -> 1.040712203e-31 | Q55: =_xlfn.POISSON.DIST( 'synthetic-data'!Z60, 'synthetic-data'!$J60, FALSE ) -> 1.040712203e-31 | R55: =_xlfn.POISSON.DIST( 'synthetic-data'!AA60, 'synthetic-data'!$J60, FALSE ) -> 1.040712203e-31 | S55: =_xlfn.POISSON.DIST( 'synthetic-data'!AB60, 'synthetic-data'!$J60, FALSE ) -> 1.089904833e-32 | T55: =_xlfn.POISSON.DIST( 'synthetic-data'!AC60, 'synthetic-data'!$J60, FALSE ) -> 1.089904833e-32 | U55: =_xlfn.POISSON.DIST( 'synthetic-data'!AD60, 'synthetic-data'!$J60, FALSE ) -> 1.089904833e-32 | V55: =_xlfn.POISSON.DIST( 'synthetic-data'!AE60, 'synthetic-data'!$J60, FALSE ) -> 1.089904833e-32 | W55: =_xlfn.POISSON.DIST( 'synthetic-data'!AF60, 'synthetic-data'!$J60, FALSE ) -> 1.089904833e-32 | X55: =_xlfn.POISSON.DIST( 'synthetic-data'!AG60, 'synthetic-data'!$J60, FALSE ) -> 1.089904833e-32 | Y55: =_xlfn.POISSON.DIST( 'synthetic-data'!AH60, 'synthetic-data'!$J60, FALSE ) -> 1.089904833e-32 | Z55: =_xlfn.POISSON.DIST( 'synthetic-data'!AI60, 'synthetic-data'!$J60, FALSE ) -> 1.089904833e-32
B56: ='synthetic-data'!J61 -> 139.7838041 | C56: =_xlfn.POISSON.DIST( 'synthetic-data'!L61, 'synthetic-data'!$J61, FALSE ) -> 1.425790669e-27 | D56: =_xlfn.POISSON.DIST( 'synthetic-data'!M61, 'synthetic-data'!$J61, FALSE ) -> 1.425790669e-27 | E56: =_xlfn.POISSON.DIST( 'synthetic-data'!N61, 'synthetic-data'!$J61, FALSE ) -> 7.608803302e-31 | F56: =_xlfn.POISSON.DIST( 'synthetic-data'!O61, 'synthetic-data'!$J61, FALSE ) -> 4.354269263e-36 | G56: =_xlfn.POISSON.DIST( 'synthetic-data'!P61, 'synthetic-data'!$J61, FALSE ) -> 2.280438956e-41 | H56: =_xlfn.POISSON.DIST( 'synthetic-data'!Q61, 'synthetic-data'!$J61, FALSE ) -> 2.279347458e-44 | I56: =_xlfn.POISSON.DIST( 'synthetic-data'!R61, 'synthetic-data'!$J61, FALSE ) -> 1.956748114e-45 | J56: =_xlfn.POISSON.DIST( 'synthetic-data'!S61, 'synthetic-data'!$J61, FALSE ) -> 1.539822828e-46 | K56: =_xlfn.POISSON.DIST( 'synthetic-data'!T61, 'synthetic-data'!$J61, FALSE ) -> 1.539822828e-46 | L56: =_xlfn.POISSON.DIST( 'synthetic-data'!U61, 'synthetic-data'!$J61, FALSE ) -> 1.956748114e-45 | M56: =_xlfn.POISSON.DIST( 'synthetic-data'!V61, 'synthetic-data'!$J61, FALSE ) -> 2.279347458e-44 | N56: =_xlfn.POISSON.DIST( 'synthetic-data'!W61, 'synthetic-data'!$J61, FALSE ) -> 2.450891219e-43 | O56: =_xlfn.POISSON.DIST( 'synthetic-data'!X61, 'synthetic-data'!$J61, FALSE ) -> 2.450891219e-43 | P56: =_xlfn.POISSON.DIST( 'synthetic-data'!Y61, 'synthetic-data'!$J61, FALSE ) -> 2.447106413e-42 | Q56: =_xlfn.POISSON.DIST( 'synthetic-data'!Z61, 'synthetic-data'!$J61, FALSE ) -> 2.450891219e-43 | R56: =_xlfn.POISSON.DIST( 'synthetic-data'!AA61, 'synthetic-data'!$J61, FALSE ) -> 2.450891219e-43 | S56: =_xlfn.POISSON.DIST( 'synthetic-data'!AB61, 'synthetic-data'!$J61, FALSE ) -> 2.450891219e-43 | T56: =_xlfn.POISSON.DIST( 'synthetic-data'!AC61, 'synthetic-data'!$J61, FALSE ) -> 2.450891219e-43 | U56: =_xlfn.POISSON.DIST( 'synthetic-data'!AD61, 'synthetic-data'!$J61, FALSE ) -> 2.279347458e-44 | V56: =_xlfn.POISSON.DIST( 'synthetic-data'!AE61, 'synthetic-data'!$J61, FALSE ) -> 2.279347458e-44 | W56: =_xlfn.POISSON.DIST( 'synthetic-data'!AF61, 'synthetic-data'!$J61, FALSE ) -> 2.279347458e-44 | X56: =_xlfn.POISSON.DIST( 'synthetic-data'!AG61, 'synthetic-data'!$J61, FALSE ) -> 2.279347458e-44 | Y56: =_xlfn.POISSON.DIST( 'synthetic-data'!AH61, 'synthetic-data'!$J61, FALSE ) -> 2.279347458e-44 | Z56: =_xlfn.POISSON.DIST( 'synthetic-data'!AI61, 'synthetic-data'!$J61, FALSE ) -> 2.279347458e-44
B57: ='synthetic-data'!J62 -> 182.31292 | C57: =_xlfn.POISSON.DIST( 'synthetic-data'!L62, 'synthetic-data'!$J62, FALSE ) -> 8.647346576e-41 | D57: =_xlfn.POISSON.DIST( 'synthetic-data'!M62, 'synthetic-data'!$J62, FALSE ) -> 8.647346576e-41 | E57: =_xlfn.POISSON.DIST( 'synthetic-data'!N62, 'synthetic-data'!$J62, FALSE ) -> 1.672508002e-44 | F57: =_xlfn.POISSON.DIST( 'synthetic-data'!O62, 'synthetic-data'!$J62, FALSE ) -> 3.233866677e-51 | G57: =_xlfn.POISSON.DIST( 'synthetic-data'!P62, 'synthetic-data'!$J62, FALSE ) -> 4.152091964e-58 | H57: =_xlfn.POISSON.DIST( 'synthetic-data'!Q62, 'synthetic-data'!$J62, FALSE ) -> 1.870584237e-61 | I57: =_xlfn.POISSON.DIST( 'synthetic-data'!R62, 'synthetic-data'!$J62, FALSE ) -> 7.428759655e-64 | J57: =_xlfn.POISSON.DIST( 'synthetic-data'!S62, 'synthetic-data'!$J62, FALSE ) -> 7.428759655e-64 | K57: =_xlfn.POISSON.DIST( 'synthetic-data'!T62, 'synthetic-data'!$J62, FALSE ) -> 7.428759655e-64 | L57: =_xlfn.POISSON.DIST( 'synthetic-data'!U62, 'synthetic-data'!$J62, FALSE ) -> 1.870584237e-61 | M57: =_xlfn.POISSON.DIST( 'synthetic-data'!V62, 'synthetic-data'!$J62, FALSE ) -> 3.416180239e-59 | N57: =_xlfn.POISSON.DIST( 'synthetic-data'!W62, 'synthetic-data'!$J62, FALSE ) -> 4.731125063e-57 | O57: =_xlfn.POISSON.DIST( 'synthetic-data'!X62, 'synthetic-data'!$J62, FALSE ) -> 5.073795441e-56 | P57: =_xlfn.POISSON.DIST( 'synthetic-data'!Y62, 'synthetic-data'!$J62, FALSE ) -> 4.931076517e-54 | Q57: =_xlfn.POISSON.DIST( 'synthetic-data'!Z62, 'synthetic-data'!$J62, FALSE ) -> 4.931076517e-54 | R57: =_xlfn.POISSON.DIST( 'synthetic-data'!AA62, 'synthetic-data'!$J62, FALSE ) -> 4.931076517e-54 | S57: =_xlfn.POISSON.DIST( 'synthetic-data'!AB62, 'synthetic-data'!$J62, FALSE ) -> 5.138991457e-55 | T57: =_xlfn.POISSON.DIST( 'synthetic-data'!AC62, 'synthetic-data'!$J62, FALSE ) -> 4.731125063e-57 | U57: =_xlfn.POISSON.DIST( 'synthetic-data'!AD62, 'synthetic-data'!$J62, FALSE ) -> 4.152091964e-58 | V57: =_xlfn.POISSON.DIST( 'synthetic-data'!AE62, 'synthetic-data'!$J62, FALSE ) -> 3.416180239e-59 | W57: =_xlfn.POISSON.DIST( 'synthetic-data'!AF62, 'synthetic-data'!$J62, FALSE ) -> 2.623320572e-60 | X57: =_xlfn.POISSON.DIST( 'synthetic-data'!AG62, 'synthetic-data'!$J62, FALSE ) -> 2.623320572e-60 | Y57: =_xlfn.POISSON.DIST( 'synthetic-data'!AH62, 'synthetic-data'!$J62, FALSE ) -> 1.870584237e-61 | Z57: =_xlfn.POISSON.DIST( 'synthetic-data'!AI62, 'synthetic-data'!$J62, FALSE ) -> 1.870584237e-61
B58: ='synthetic-data'!J63 -> 300.2835724 | C58: =_xlfn.POISSON.DIST( 'synthetic-data'!L63, 'synthetic-data'!$J63, FALSE ) -> 1.618463918e-83 | D58: =_xlfn.POISSON.DIST( 'synthetic-data'!M63, 'synthetic-data'!$J63, FALSE ) -> 1.037960553e-81 | E58: =_xlfn.POISSON.DIST( 'synthetic-data'!N63, 'synthetic-data'!$J63, FALSE ) -> 2.560694461e-86 | F58: =_xlfn.POISSON.DIST( 'synthetic-data'!O63, 'synthetic-data'!$J63, FALSE ) -> 1.442890194e-96 | G58: =_xlfn.POISSON.DIST( 'synthetic-data'!P63, 'synthetic-data'!$J63, FALSE ) -> 4.314947421e-106 | H58: =_xlfn.POISSON.DIST( 'synthetic-data'!Q63, 'synthetic-data'!$J63, FALSE ) -> 1.7385737e-111 | I58: =_xlfn.POISSON.DIST( 'synthetic-data'!R63, 'synthetic-data'!$J63, FALSE ) -> 2.120911969e-114 | J58: =_xlfn.POISSON.DIST( 'synthetic-data'!S63, 'synthetic-data'!$J63, FALSE ) -> 2.120911969e-114 | K58: =_xlfn.POISSON.DIST( 'synthetic-data'!T63, 'synthetic-data'!$J63, FALSE ) -> 6.368750227e-113 | L58: =_xlfn.POISSON.DIST( 'synthetic-data'!U63, 'synthetic-data'!$J63, FALSE ) -> 4.350542679e-110 | M58: =_xlfn.POISSON.DIST( 'synthetic-data'!V63, 'synthetic-data'!$J63, FALSE ) -> 2.155436303e-107 | N58: =_xlfn.POISSON.DIST( 'synthetic-data'!W63, 'synthetic-data'!$J63, FALSE ) -> 2.386320766e-102 | O58: =_xlfn.POISSON.DIST( 'synthetic-data'!X63, 'synthetic-data'!$J63, FALSE ) -> 1.442890194e-96 | P58: =_xlfn.POISSON.DIST( 'synthetic-data'!Y63, 'synthetic-data'!$J63, FALSE ) -> 2.785295098e-92 | Q58: =_xlfn.POISSON.DIST( 'synthetic-data'!Z63, 'synthetic-data'!$J63, FALSE ) -> 3.0929887e-90 | R58: =_xlfn.POISSON.DIST( 'synthetic-data'!AA63, 'synthetic-data'!$J63, FALSE ) -> 3.0929887e-90 | S58: =_xlfn.POISSON.DIST( 'synthetic-data'!AB63, 'synthetic-data'!$J63, FALSE ) -> 2.168428862e-94 | T58: =_xlfn.POISSON.DIST( 'synthetic-data'!AC63, 'synthetic-data'!$J63, FALSE ) -> 8.096934962e-99 | U58: =_xlfn.POISSON.DIST( 'synthetic-data'!AD63, 'synthetic-data'!$J63, FALSE ) -> 8.098173913e-105 | V58: =_xlfn.POISSON.DIST( 'synthetic-data'!AE63, 'synthetic-data'!$J63, FALSE ) -> 1.004920383e-108 | W58: =_xlfn.POISSON.DIST( 'synthetic-data'!AF63, 'synthetic-data'!$J63, FALSE ) -> 4.350542679e-110 | X58: =_xlfn.POISSON.DIST( 'synthetic-data'!AG63, 'synthetic-data'!$J63, FALSE ) -> 1.7385737e-111 | Y58: =_xlfn.POISSON.DIST( 'synthetic-data'!AH63, 'synthetic-data'!$J63, FALSE ) -> 1.7385737e-111 | Z58: =_xlfn.POISSON.DIST( 'synthetic-data'!AI63, 'synthetic-data'!$J63, FALSE ) -> 1.7385737e-111
